Workbook

Sheet Current approach
I1: Scenarios | J1: Depreciation | K1: Capex | L1: Opex | Q1: =Depreciation!A1 -> Base case | R1: BAU
J2: Base case | K2: linear decline | L2: BAU | Q2: =Depreciation!A15 -> Alternative A | R2: linear decline
D4: 2021-22 | E4: =(LEFT(D4,4)+1&IF(MID(D4,5,1)="","","-"&TEXT(MOD(MID(D4,6,2)+1,100),"00"))) -> 2022-23 | F4: =(LEFT(E4,4)+1&IF(MID(E4,5,1)="","","-"&TEXT(MOD(MID(E4,6,2)+1,100),"00"))) -> 2023-24 | G4: 2024-25 | H4: 2025-26 | I4: 2026-27 | J4: 2027-28 | K4: 2028-29 | L4: 2029-30 | M4: 2030-31 | N4: 2031-32 | O4: 2032-33 | P4: 2033-34 | Q4: 2034-35 | R4: 2035-36 | S4: 2036-37 | T4: 2037-38 | U4: 2038-39 | V4: 2039-40 | W4: 2040-41 | X4: 2041-42 | Y4: 2042-43 | Z4: 2043-44 | AA4: 2044-45 | AB4: 2045-46 | AC4: 2046-47 | AD4: 2047-48 | AE4: 2048-49 | AF4: 2049-50 | AG4: 2050-51 | AH4: 2051-52 | AI4: 2052-53 | AJ4: 2053-54 | AK4: 2054-55 | AL4: 2055-56 | AM4: 2056-57 | AN4: 2057-58 | AO4: 2058-59 | AP4: 2059-60 | AQ4: 2060-61 | AR4: 2061-62 | AS4: 2062-63 | AT4: 2063-64 | AU4: 2064-65 | AV4: 2065-66 | AW4: 2066-67 | AX4: 2067-68 | AY4: 2068-69 | AZ4: 2069-70 | BA4: 2070-71 | BB4: 2071-72 | BC4: 2072-73 | BD4: 2073-74 | BE4: 2074-75 | BF4: 2075-76 | BG4: 2076-77
A5: Inputs ($real) | C5: 0 | D5: 1 | E5: 2 | F5: 3 | G5: 4 | H5: 5 | I5: 6 | J5: 7 | K5: 8 | L5: 9 | M5: 10 | N5: 11 | O5: 12 | P5: 13 | Q5: 14 | R5: 15 | S5: 16 | T5: 17 | U5: 18 | V5: 19 | W5: 20 | X5: 21 | Y5: 22 | Z5: 23 | AA5: 24 | AB5: 25 | AC5: 26 | AD5: 27 | AE5: 28 | AF5: 29 | AG5: 30 | AH5: 31 | AI5: 32 | AJ5: 33 | AK5: 34 | AL5: 35 | AM5: 36 | AN5: 37 | AO5: 38 | AP5: 39 | AQ5: 40 | AR5: 41 | AS5: 42 | AT5: 43 | AU5: 44 | AV5: 45 | AW5: 46 | AX5: 47 | AY5: 48 | AZ5: 49 | BA5: 50 | BB5: 51 | BC5: 52 | BD5: 53 | BE5: 54 | BF5: 55 | BG5: 56
A6: \/ Asset base inputs \/ | C6: Opening base | D6: capex--> | I6: =N6+5 -> 15 | J6: =O6+5 -> 15 | K6: =P6+5 -> 15 | L6: =Q6+5 -> 15 | M6: =R6+5 -> 15 | N6: 10 | O6: =T6+5 -> 10 | P6: =U6+5 -> 10 | Q6: =V6+5 -> 10 | R6: =W6+5 -> 10 | S6: 5 | T6: 5 | U6: 5 | V6: 5 | W6: 5 | X6: 1 | Y6: 1 | Z6: 1 | AA6: 1 | AB6: 1
A7: ="Asset "&B7&" - capex (incurred)" -> Asset 1 - capex (incurred) | B7: 1 | C7: 93.88999316 | D7: 0.1884058799 | E7: 0.1990476444 | F7: 0.2523415132 | G7: 0.2943548329 | H7: 0.2299248324
A8: ="Asset "&B8&" - capex (commissioned)" -> Asset 1 - capex (commissioned) | B8: 1 | C8: 93.88999316 | D8: 0.1884058799 | E8: 0.1990476444 | F8: 0.2523415132 | G8: 0.2943548329 | H8: 0.2299248324
A9: ="Asset "&B9&" - tracking" -> Asset 1 - tracking | B9: 1 | D9: =INDEX(IF($J$2=$Q$2,Depreciation!D$16:D$27,Depreciation!D$2:D$13),'Current approach'!$B9) -> 1.558524226 | E9: =INDEX(IF($J$2=$Q$2,Depreciation!E$16:E$27,Depreciation!E$2:E$13),'Current approach'!$B9) -> 1.558524226 | F9: =INDEX(IF($J$2=$Q$2,Depreciation!F$16:F$27,Depreciation!F$2:F$13),'Current approach'!$B9) -> 1.558524226 | G9: =INDEX(IF($J$2=$Q$2,Depreciation!G$16:G$27,Depreciation!G$2:G$13),'Current approach'!$B9) -> 1.558524226 | H9: =INDEX(IF($J$2=$Q$2,Depreciation!H$16:H$27,Depreciation!H$2:H$13),'Current approach'!$B9) -> 1.558524226 | I9: =INDEX(IF($J$2=$Q$2,Depreciation!I$16:I$27,Depreciation!I$2:I$13),'Current approach'!$B9) -> 1.558524226 | J9: =INDEX(IF($J$2=$Q$2,Depreciation!J$16:J$27,Depreciation!J$2:J$13),'Current approach'!$B9) -> 1.558524226 | K9: =INDEX(IF($J$2=$Q$2,Depreciation!K$16:K$27,Depreciation!K$2:K$13),'Current approach'!$B9) -> 1.558524226 | L9: =INDEX(IF($J$2=$Q$2,Depreciation!L$16:L$27,Depreciation!L$2:L$13),'Current approach'!$B9) -> 1.558524226 | M9: =INDEX(IF($J$2=$Q$2,Depreciation!M$16:M$27,Depreciation!M$2:M$13),'Current approach'!$B9) -> 1.558524226 | N9: =INDEX(IF($J$2=$Q$2,Depreciation!N$16:N$27,Depreciation!N$2:N$13),'Current approach'!$B9) -> 1.558524226 | O9: =INDEX(IF($J$2=$Q$2,Depreciation!O$16:O$27,Depreciation!O$2:O$13),'Current approach'!$B9) -> 1.558524226 | P9: =INDEX(IF($J$2=$Q$2,Depreciation!P$16:P$27,Depreciation!P$2:P$13),'Current approach'!$B9) -> 1.558524226 | Q9: =INDEX(IF($J$2=$Q$2,Depreciation!Q$16:Q$27,Depreciation!Q$2:Q$13),'Current approach'!$B9) -> 1.558524226 | R9: =INDEX(IF($J$2=$Q$2,Depreciation!R$16:R$27,Depreciation!R$2:R$13),'Current approach'!$B9) -> 1.558524226 | S9: =INDEX(IF($J$2=$Q$2,Depreciation!S$16:S$27,Depreciation!S$2:S$13),'Current approach'!$B9) -> 1.558524226 | T9: =INDEX(IF($J$2=$Q$2,Depreciation!T$16:T$27,Depreciation!T$2:T$13),'Current approach'!$B9) -> 1.558524226 | U9: =INDEX(IF($J$2=$Q$2,Depreciation!U$16:U$27,Depreciation!U$2:U$13),'Current approach'!$B9) -> 1.558524226 | V9: =INDEX(IF($J$2=$Q$2,Depreciation!V$16:V$27,Depreciation!V$2:V$13),'Current approach'!$B9) -> 1.558524226 | W9: =INDEX(IF($J$2=$Q$2,Depreciation!W$16:W$27,Depreciation!W$2:W$13),'Current approach'!$B9) -> 1.558524226 | X9: =INDEX(IF($J$2=$Q$2,Depreciation!X$16:X$27,Depreciation!X$2:X$13),'Current approach'!$B9) -> 1.558524226 | Y9: =INDEX(IF($J$2=$Q$2,Depreciation!Y$16:Y$27,Depreciation!Y$2:Y$13),'Current approach'!$B9) -> 1.558524226 | Z9: =INDEX(IF($J$2=$Q$2,Depreciation!Z$16:Z$27,Depreciation!Z$2:Z$13),'Current approach'!$B9) -> 1.558524226 | AA9: =INDEX(IF($J$2=$Q$2,Depreciation!AA$16:AA$27,Depreciation!AA$2:AA$13),'Current approach'!$B9) -> 1.558524226 | AB9: =INDEX(IF($J$2=$Q$2,Depreciation!AB$16:AB$27,Depreciation!AB$2:AB$13),'Current approach'!$B9) -> 1.558524226 | AC9: =INDEX(IF($J$2=$Q$2,Depreciation!AC$16:AC$27,Depreciation!AC$2:AC$13),'Current approach'!$B9) -> 1.558524226 | AD9: =INDEX(IF($J$2=$Q$2,Depreciation!AD$16:AD$27,Depreciation!AD$2:AD$13),'Current approach'!$B9) -> 1.558524226 | AE9: =INDEX(IF($J$2=$Q$2,Depreciation!AE$16:AE$27,Depreciation!AE$2:AE$13),'Current approach'!$B9) -> 1.558524226 | AF9: =INDEX(IF($J$2=$Q$2,Depreciation!AF$16:AF$27,Depreciation!AF$2:AF$13),'Current approach'!$B9) -> 1.558524226 | AG9: =INDEX(IF($J$2=$Q$2,Depreciation!AG$16:AG$27,Depreciation!AG$2:AG$13),'Current approach'!$B9) -> 1.558524226 | AH9: =INDEX(IF($J$2=$Q$2,Depreciation!AH$16:AH$27,Depreciation!AH$2:AH$13),'Current approach'!$B9) -> 1.558524226 | AI9: =INDEX(IF($J$2=$Q$2,Depreciation!AI$16:AI$27,Depreciation!AI$2:AI$13),'Current approach'!$B9) -> 1.558524226 | AJ9: =INDEX(IF($J$2=$Q$2,Depreciation!AJ$16:AJ$27,Depreciation!AJ$2:AJ$13),'Current approach'!$B9) -> 1.558524226 | AK9: =INDEX(IF($J$2=$Q$2,Depreciation!AK$16:AK$27,Depreciation!AK$2:AK$13),'Current approach'!$B9) -> 1.558524226 | AL9: =INDEX(IF($J$2=$Q$2,Depreciation!AL$16:AL$27,Depreciation!AL$2:AL$13),'Current approach'!$B9) -> 1.558524226 | AM9: =INDEX(IF($J$2=$Q$2,Depreciation!AM$16:AM$27,Depreciation!AM$2:AM$13),'Current approach'!$B9) -> 1.558524226 | AN9: =INDEX(IF($J$2=$Q$2,Depreciation!AN$16:AN$27,Depreciation!AN$2:AN$13),'Current approach'!$B9) -> 1.558524226 | AO9: =INDEX(IF($J$2=$Q$2,Depreciation!AO$16:AO$27,Depreciation!AO$2:AO$13),'Current approach'!$B9) -> 1.558524226 | AP9: =INDEX(IF($J$2=$Q$2,Depreciation!AP$16:AP$27,Depreciation!AP$2:AP$13),'Current approach'!$B9) -> 1.558524226 | AQ9: =INDEX(IF($J$2=$Q$2,Depreciation!AQ$16:AQ$27,Depreciation!AQ$2:AQ$13),'Current approach'!$B9) -> 1.558524226 | AR9: =INDEX(IF($J$2=$Q$2,Depreciation!AR$16:AR$27,Depreciation!AR$2:AR$13),'Current approach'!$B9) -> 1.558524226 | AS9: =INDEX(IF($J$2=$Q$2,Depreciation!AS$16:AS$27,Depreciation!AS$2:AS$13),'Current approach'!$B9) -> 1.558524226 | AT9: =INDEX(IF($J$2=$Q$2,Depreciation!AT$16:AT$27,Depreciation!AT$2:AT$13),'Current approach'!$B9) -> 1.558524226 | AU9: =INDEX(IF($J$2=$Q$2,Depreciation!AU$16:AU$27,Depreciation!AU$2:AU$13),'Current approach'!$B9) -> 1.558524226 | AV9: =INDEX(IF($J$2=$Q$2,Depreciation!AV$16:AV$27,Depreciation!AV$2:AV$13),'Current approach'!$B9) -> 1.558524226 | AW9: =INDEX(IF($J$2=$Q$2,Depreciation!AW$16:AW$27,Depreciation!AW$2:AW$13),'Current approach'!$B9) -> 1.558524226 | AX9: =INDEX(IF($J$2=$Q$2,Depreciation!AX$16:AX$27,Depreciation!AX$2:AX$13),'Current approach'!$B9) -> 1.558524226 | AY9: =INDEX(IF($J$2=$Q$2,Depreciation!AY$16:AY$27,Depreciation!AY$2:AY$13),'Current approach'!$B9) -> 1.558524226 | AZ9: =INDEX(IF($J$2=$Q$2,Depreciation!AZ$16:AZ$27,Depreciation!AZ$2:AZ$13),'Current approach'!$B9) -> 1.558524226 | BA9: =INDEX(IF($J$2=$Q$2,Depreciation!BA$16:BA$27,Depreciation!BA$2:BA$13),'Current approach'!$B9) -> 1.558524226 | BB9: =INDEX(IF($J$2=$Q$2,Depreciation!BB$16:BB$27,Depreciation!BB$2:BB$13),'Current approach'!$B9) -> 1.558524226 | BC9: =INDEX(IF($J$2=$Q$2,Depreciation!BC$16:BC$27,Depreciation!BC$2:BC$13),'Current approach'!$B9) -> 1.558524226 | BD9: =INDEX(IF($J$2=$Q$2,Depreciation!BD$16:BD$27,Depreciation!BD$2:BD$13),'Current approach'!$B9) -> 1.558524226 | BE9: =INDEX(IF($J$2=$Q$2,Depreciation!BE$16:BE$27,Depreciation!BE$2:BE$13),'Current approach'!$B9) -> 1.558524226 | BF9: =INDEX(IF($J$2=$Q$2,Depreciation!BF$16:BF$27,Depreciation!BF$2:BF$13),'Current approach'!$B9) -> 1.558524226 | BG9: =INDEX(IF($J$2=$Q$2,Depreciation!BG$16:BG$27,Depreciation!BG$2:BG$13),'Current approach'!$B9) -> 8.171160733
A10: Asset 1 - Tax capex | B10: 1 | C10: 34.37349614 | D10: =D8 -> 0.1884058799 | E10: =E8 -> 0.1990476444 | F10: 0.2523415132 | G10: 0.2943548329 | H10: 0.2299248324 | I10: 0 | J10: 0 | K10: 0 | L10: 0 | M10: 0 | N10: 0 | O10: 0 | P10: 0 | Q10: 0 | R10: 0 | S10: 0 | T10: 0 | U10: 0 | V10: 0 | W10: 0 | X10: 0 | Y10: 0 | Z10: 0 | AA10: 0 | AB10: 0 | AC10: 0 | AD10: 0 | AE10: 0 | AF10: 0 | AG10: 0 | AH10: 0 | AI10: 0 | AJ10: 0 | AK10: 0 | AL10: 0 | AM10: 0 | AN10: 0 | AO10: 0 | AP10: 0 | AQ10: 0 | AR10: 0 | AS10: 0 | AT10: 0 | AU10: 0 | AV10: 0 | AW10: 0 | AX10: 0 | AY10: 0 | AZ10: 0 | BA10: 0 | BB10: 0 | BC10: 0 | BD10: 0 | BE10: 0 | BF10: 0 | BG10: 0
A11: ="Asset "&B11&" - TAB tracking" -> Asset 1 - TAB tracking | B11: 1
A12: ="Asset "&B12&" - RAB life" -> Asset 1 - RAB life | B12: 1 | C12: tracking | D12: 50 | E12: 50 | F12: 50 | G12: 50 | H12: 50 | I12: =IF($J$2=$Q$2,MIN(I$6,$H12),$H12) -> 50 | J12: =IF($J$2=$Q$2,MIN(J$6,$H12),$H12) -> 50 | K12: 50 | L12: 50 | M12: 50 | N12: 50 | O12: 50 | P12: 50 | Q12: 50 | R12: 50 | S12: 50 | T12: 50 | U12: 50 | V12: 50 | W12: 50 | X12: 50 | Y12: 50 | Z12: 50 | AA12: 50 | AB12: 50 | AC12: 50 | AD12: 50 | AE12: 50 | AF12: 50 | AG12: 50
A13: ="Asset "&B13&" - Tax life" -> Asset 1 - Tax life | B13: 1 | C13: 40 | D13: 20 | E13: 20 | F13: 20 | G13: 20 | H13: 20 | I13: =H13 -> 20 | J13: 20 | K13: 20 | L13: 20 | M13: 20 | N13: 20 | O13: 20 | P13: 20 | Q13: 20 | R13: 20 | S13: 20 | T13: 20 | U13: 20 | V13: 20 | W13: 20 | X13: 20 | Y13: 20 | Z13: 20 | AA13: 20 | AB13: 20 | AC13: 20 | AD13: 20 | AE13: 20 | AF13: 20 | AG13: 20
A14: ="Asset "&B14&" - capex (incurred)" -> Asset 2 - capex (incurred) | B14: =B7+1 -> 2 | C14: 0.904470449
A15: ="Asset "&B15&" - capex (commissioned)" -> Asset 2 - capex (commissioned) | B15: =B8+1 -> 2 | C15: 0.904470449
A16: ="Asset "&B16&" - tracking" -> Asset 2 - tracking | B16: 2 | D16: =INDEX(IF($J$2=$Q$2,Depreciation!D$16:D$27,Depreciation!D$2:D$13),'Current approach'!$B16) -> 0.03000904384 | E16: =INDEX(IF($J$2=$Q$2,Depreciation!E$16:E$27,Depreciation!E$2:E$13),'Current approach'!$B16) -> 0.03000904384 | F16: =INDEX(IF($J$2=$Q$2,Depreciation!F$16:F$27,Depreciation!F$2:F$13),'Current approach'!$B16) -> 0.03000904384 | G16: =INDEX(IF($J$2=$Q$2,Depreciation!G$16:G$27,Depreciation!G$2:G$13),'Current approach'!$B16) -> 0.03000904384 | H16: =INDEX(IF($J$2=$Q$2,Depreciation!H$16:H$27,Depreciation!H$2:H$13),'Current approach'!$B16) -> 0.03000904384 | I16: =INDEX(IF($J$2=$Q$2,Depreciation!I$16:I$27,Depreciation!I$2:I$13),'Current approach'!$B16) -> 0.03000904384 | J16: =INDEX(IF($J$2=$Q$2,Depreciation!J$16:J$27,Depreciation!J$2:J$13),'Current approach'!$B16) -> 0.03000904384 | K16: =INDEX(IF($J$2=$Q$2,Depreciation!K$16:K$27,Depreciation!K$2:K$13),'Current approach'!$B16) -> 0.03000904384 | L16: =INDEX(IF($J$2=$Q$2,Depreciation!L$16:L$27,Depreciation!L$2:L$13),'Current approach'!$B16) -> 0.03000904384 | M16: =INDEX(IF($J$2=$Q$2,Depreciation!M$16:M$27,Depreciation!M$2:M$13),'Current approach'!$B16) -> 0.03000904384 | N16: =INDEX(IF($J$2=$Q$2,Depreciation!N$16:N$27,Depreciation!N$2:N$13),'Current approach'!$B16) -> 0.03000904384 | O16: =INDEX(IF($J$2=$Q$2,Depreciation!O$16:O$27,Depreciation!O$2:O$13),'Current approach'!$B16) -> 0.03000904384 | P16: =INDEX(IF($J$2=$Q$2,Depreciation!P$16:P$27,Depreciation!P$2:P$13),'Current approach'!$B16) -> 0.03000904384 | Q16: =INDEX(IF($J$2=$Q$2,Depreciation!Q$16:Q$27,Depreciation!Q$2:Q$13),'Current approach'!$B16) -> 0.03000904384 | R16: =INDEX(IF($J$2=$Q$2,Depreciation!R$16:R$27,Depreciation!R$2:R$13),'Current approach'!$B16) -> 0.03000904384 | S16: =INDEX(IF($J$2=$Q$2,Depreciation!S$16:S$27,Depreciation!S$2:S$13),'Current approach'!$B16) -> 0.03000904384 | T16: =INDEX(IF($J$2=$Q$2,Depreciation!T$16:T$27,Depreciation!T$2:T$13),'Current approach'!$B16) -> 0.03000904384 | U16: =INDEX(IF($J$2=$Q$2,Depreciation!U$16:U$27,Depreciation!U$2:U$13),'Current approach'!$B16) -> 0.03000904384 | V16: =INDEX(IF($J$2=$Q$2,Depreciation!V$16:V$27,Depreciation!V$2:V$13),'Current approach'!$B16) -> 0.03000904384 | W16: =INDEX(IF($J$2=$Q$2,Depreciation!W$16:W$27,Depreciation!W$2:W$13),'Current approach'!$B16) -> 0.03000904384 | X16: =INDEX(IF($J$2=$Q$2,Depreciation!X$16:X$27,Depreciation!X$2:X$13),'Current approach'!$B16) -> 0.03000904384 | Y16: =INDEX(IF($J$2=$Q$2,Depreciation!Y$16:Y$27,Depreciation!Y$2:Y$13),'Current approach'!$B16) -> 0.03000904384 | Z16: =INDEX(IF($J$2=$Q$2,Depreciation!Z$16:Z$27,Depreciation!Z$2:Z$13),'Current approach'!$B16) -> 0.03000904384 | AA16: =INDEX(IF($J$2=$Q$2,Depreciation!AA$16:AA$27,Depreciation!AA$2:AA$13),'Current approach'!$B16) -> 0.03000904384 | AB16: =INDEX(IF($J$2=$Q$2,Depreciation!AB$16:AB$27,Depreciation!AB$2:AB$13),'Current approach'!$B16) -> 0.03000904384 | AC16: =INDEX(IF($J$2=$Q$2,Depreciation!AC$16:AC$27,Depreciation!AC$2:AC$13),'Current approach'!$B16) -> 0.03000904384 | AD16: =INDEX(IF($J$2=$Q$2,Depreciation!AD$16:AD$27,Depreciation!AD$2:AD$13),'Current approach'!$B16) -> 0.03000904384 | AE16: =INDEX(IF($J$2=$Q$2,Depreciation!AE$16:AE$27,Depreciation!AE$2:AE$13),'Current approach'!$B16) -> 0.03000904384 | AF16: =INDEX(IF($J$2=$Q$2,Depreciation!AF$16:AF$27,Depreciation!AF$2:AF$13),'Current approach'!$B16) -> 0.03000904384 | AG16: =INDEX(IF($J$2=$Q$2,Depreciation!AG$16:AG$27,Depreciation!AG$2:AG$13),'Current approach'!$B16) -> 0.03000904384 | AH16: =INDEX(IF($J$2=$Q$2,Depreciation!AH$16:AH$27,Depreciation!AH$2:AH$13),'Current approach'!$B16) -> 0.00419913369 | AI16: =INDEX(IF($J$2=$Q$2,Depreciation!AI$16:AI$27,Depreciation!AI$2:AI$13),'Current approach'!$B16) -> 0 | AJ16: =INDEX(IF($J$2=$Q$2,Depreciation!AJ$16:AJ$27,Depreciation!AJ$2:AJ$13),'Current approach'!$B16) -> 0 | AK16: =INDEX(IF($J$2=$Q$2,Depreciation!AK$16:AK$27,Depreciation!AK$2:AK$13),'Current approach'!$B16) -> 0 | AL16: =INDEX(IF($J$2=$Q$2,Depreciation!AL$16:AL$27,Depreciation!AL$2:AL$13),'Current approach'!$B16) -> 0 | AM16: =INDEX(IF($J$2=$Q$2,Depreciation!AM$16:AM$27,Depreciation!AM$2:AM$13),'Current approach'!$B16) -> 0 | AN16: =INDEX(IF($J$2=$Q$2,Depreciation!AN$16:AN$27,Depreciation!AN$2:AN$13),'Current approach'!$B16) -> 0 | AO16: =INDEX(IF($J$2=$Q$2,Depreciation!AO$16:AO$27,Depreciation!AO$2:AO$13),'Current approach'!$B16) -> 0 | AP16: =INDEX(IF($J$2=$Q$2,Depreciation!AP$16:AP$27,Depreciation!AP$2:AP$13),'Current approach'!$B16) -> 0 | AQ16: =INDEX(IF($J$2=$Q$2,Depreciation!AQ$16:AQ$27,Depreciation!AQ$2:AQ$13),'Current approach'!$B16) -> 0 | AR16: =INDEX(IF($J$2=$Q$2,Depreciation!AR$16:AR$27,Depreciation!AR$2:AR$13),'Current approach'!$B16) -> 0 | AS16: =INDEX(IF($J$2=$Q$2,Depreciation!AS$16:AS$27,Depreciation!AS$2:AS$13),'Current approach'!$B16) -> 0 | AT16: =INDEX(IF($J$2=$Q$2,Depreciation!AT$16:AT$27,Depreciation!AT$2:AT$13),'Current approach'!$B16) -> 0 | AU16: =INDEX(IF($J$2=$Q$2,Depreciation!AU$16:AU$27,Depreciation!AU$2:AU$13),'Current approach'!$B16) -> 0 | AV16: =INDEX(IF($J$2=$Q$2,Depreciation!AV$16:AV$27,Depreciation!AV$2:AV$13),'Current approach'!$B16) -> 0 | AW16: =INDEX(IF($J$2=$Q$2,Depreciation!AW$16:AW$27,Depreciation!AW$2:AW$13),'Current approach'!$B16) -> 0 | AX16: =INDEX(IF($J$2=$Q$2,Depreciation!AX$16:AX$27,Depreciation!AX$2:AX$13),'Current approach'!$B16) -> 0 | AY16: =INDEX(IF($J$2=$Q$2,Depreciation!AY$16:AY$27,Depreciation!AY$2:AY$13),'Current approach'!$B16) -> 0 | AZ16: =INDEX(IF($J$2=$Q$2,Depreciation!AZ$16:AZ$27,Depreciation!AZ$2:AZ$13),'Current approach'!$B16) -> 0 | BA16: =INDEX(IF($J$2=$Q$2,Depreciation!BA$16:BA$27,Depreciation!BA$2:BA$13),'Current approach'!$B16) -> 0 | BB16: =INDEX(IF($J$2=$Q$2,Depreciation!BB$16:BB$27,Depreciation!BB$2:BB$13),'Current approach'!$B16) -> 0 | BC16: =INDEX(IF($J$2=$Q$2,Depreciation!BC$16:BC$27,Depreciation!BC$2:BC$13),'Current approach'!$B16) -> 0 | BD16: =INDEX(IF($J$2=$Q$2,Depreciation!BD$16:BD$27,Depreciation!BD$2:BD$13),'Current approach'!$B16) -> 0 | BE16: =INDEX(IF($J$2=$Q$2,Depreciation!BE$16:BE$27,Depreciation!BE$2:BE$13),'Current approach'!$B16) -> 0 | BF16: =INDEX(IF($J$2=$Q$2,Depreciation!BF$16:BF$27,Depreciation!BF$2:BF$13),'Current approach'!$B16) -> 0 | BG16: =INDEX(IF($J$2=$Q$2,Depreciation!BG$16:BG$27,Depreciation!BG$2:BG$13),'Current approach'!$B16) -> 0
A17: ="Asset "&B17&" - Tax capex" -> Asset 2 - Tax capex | B17: 2 | C17: 21.84295975 | D17: =D15 -> 0 | E17: =E15 -> 0 | F17: =F15 -> 0 | G17: =G15 -> 0 | H17: =H15 -> 0 | I17: =I15 -> 0 | J17: =J15 -> 0 | K17: =K15 -> 0 | L17: =L15 -> 0 | M17: =M15 -> 0 | N17: =N15 -> 0 | O17: =O15 -> 0 | P17: =P15 -> 0 | Q17: =Q15 -> 0 | R17: =R15 -> 0 | S17: =S15 -> 0 | T17: =T15 -> 0 | U17: =U15 -> 0 | V17: =V15 -> 0 | W17: =W15 -> 0 | X17: =X15 -> 0 | Y17: =Y15 -> 0 | Z17: =Z15 -> 0 | AA17: =AA15 -> 0 | AB17: =AB15 -> 0 | AC17: =AC15 -> 0 | AD17: =AD15 -> 0 | AE17: =AE15 -> 0 | AF17: =AF15 -> 0 | AG17: =AG15 -> 0 | AH17: =AH15 -> 0 | AI17: =AI15 -> 0 | AJ17: =AJ15 -> 0 | AK17: =AK15 -> 0 | AL17: =AL15 -> 0 | AM17: =AM15 -> 0 | AN17: =AN15 -> 0 | AO17: =AO15 -> 0 | AP17: =AP15 -> 0 | AQ17: =AQ15 -> 0 | AR17: =AR15 -> 0 | AS17: =AS15 -> 0 | AT17: =AT15 -> 0 | AU17: =AU15 -> 0 | AV17: =AV15 -> 0 | AW17: =AW15 -> 0 | AX17: =AX15 -> 0 | AY17: =AY15 -> 0 | AZ17: =AZ15 -> 0 | BA17: 0 | BB17: 0 | BC17: 0 | BD17: 0 | BE17: 0 | BF17: 0 | BG17: =BG15 -> 0
A18: ="Asset "&B18&" - TAB tracking" -> Asset 2 - TAB tracking | B18: 2
A19: ="Asset "&B19&" - RAB life" -> Asset 2 - RAB life | B19: 2 | C19: tracking | D19: 50 | E19: 50 | F19: 50 | G19: 50 | H19: 50 | I19: =IF($J$2=$Q$2,MIN(I$6,$H19),$H19) -> 50 | J19: =IF($J$2=$Q$2,MIN(J$6,$H19),$H19) -> 50 | K19: 50 | L19: 50 | M19: 50 | N19: 50 | O19: 50 | P19: 50 | Q19: 50 | R19: 50 | S19: 50 | T19: 50 | U19: 50 | V19: 50 | W19: 50 | X19: 50 | Y19: 50 | Z19: 50 | AA19: 50 | AB19: 50 | AC19: 50 | AD19: 50 | AE19: 50 | AF19: 50 | AG19: 50
A20: ="Asset "&B20&" - Tax life" -> Asset 2 - Tax life | B20: 2 | C20: 23.79078776 | D20: 20 | E20: 20 | F20: 20 | G20: 20 | H20: 20 | I20: =H20 -> 20 | J20: 20 | K20: 20 | L20: 20 | M20: 20 | N20: 20 | O20: 20 | P20: 20 | Q20: 20 | R20: 20 | S20: 20 | T20: 20 | U20: 20 | V20: 20 | W20: 20 | X20: 20 | Y20: 20 | Z20: 20 | AA20: 20 | AB20: 20 | AC20: 20 | AD20: 20 | AE20: 20 | AF20: 20 | AG20: 20
A21: ="Asset "&B21&" - capex (incurred)" -> Asset 3 - capex (incurred) | B21: 3 | C21: 139.3617765 | D21: 1.47437229 | E21: 1.098059017 | F21: 0.5283064656 | G21: 0.59024942 | H21: 0.5742279822
A22: ="Asset "&B22&" - capex (commissioned)" -> Asset 3 - capex (commissioned) | B22: 3 | C22: 139.3617765 | D22: 1.47437229 | E22: 1.098059017 | F22: 0.5283064656 | G22: 0.59024942 | H22: 0.5742279822
A23: ="Asset "&B23&" - tracking" -> Asset 3 - tracking | B23: 3 | D23: =INDEX(IF($J$2=$Q$2,Depreciation!D$16:D$27,Depreciation!D$2:D$13),'Current approach'!$B23) -> 5.796988882 | E23: =INDEX(IF($J$2=$Q$2,Depreciation!E$16:E$27,Depreciation!E$2:E$13),'Current approach'!$B23) -> 5.796988882 | F23: =INDEX(IF($J$2=$Q$2,Depreciation!F$16:F$27,Depreciation!F$2:F$13),'Current approach'!$B23) -> 5.796988882 | G23: =INDEX(IF($J$2=$Q$2,Depreciation!G$16:G$27,Depreciation!G$2:G$13),'Current approach'!$B23) -> 5.796988882 | H23: =INDEX(IF($J$2=$Q$2,Depreciation!H$16:H$27,Depreciation!H$2:H$13),'Current approach'!$B23) -> 5.796988882 | I23: =INDEX(IF($J$2=$Q$2,Depreciation!I$16:I$27,Depreciation!I$2:I$13),'Current approach'!$B23) -> 5.796988882 | J23: =INDEX(IF($J$2=$Q$2,Depreciation!J$16:J$27,Depreciation!J$2:J$13),'Current approach'!$B23) -> 5.796988882 | K23: =INDEX(IF($J$2=$Q$2,Depreciation!K$16:K$27,Depreciation!K$2:K$13),'Current approach'!$B23) -> 5.796988882 | L23: =INDEX(IF($J$2=$Q$2,Depreciation!L$16:L$27,Depreciation!L$2:L$13),'Current approach'!$B23) -> 5.796988882 | M23: =INDEX(IF($J$2=$Q$2,Depreciation!M$16:M$27,Depreciation!M$2:M$13),'Current approach'!$B23) -> 5.796988882 | N23: =INDEX(IF($J$2=$Q$2,Depreciation!N$16:N$27,Depreciation!N$2:N$13),'Current approach'!$B23) -> 5.796988882 | O23: =INDEX(IF($J$2=$Q$2,Depreciation!O$16:O$27,Depreciation!O$2:O$13),'Current approach'!$B23) -> 5.796988882 | P23: =INDEX(IF($J$2=$Q$2,Depreciation!P$16:P$27,Depreciation!P$2:P$13),'Current approach'!$B23) -> 5.796988882 | Q23: =INDEX(IF($J$2=$Q$2,Depreciation!Q$16:Q$27,Depreciation!Q$2:Q$13),'Current approach'!$B23) -> 5.796988882 | R23: =INDEX(IF($J$2=$Q$2,Depreciation!R$16:R$27,Depreciation!R$2:R$13),'Current approach'!$B23) -> 5.796988882 | S23: =INDEX(IF($J$2=$Q$2,Depreciation!S$16:S$27,Depreciation!S$2:S$13),'Current approach'!$B23) -> 5.796988882 | T23: =INDEX(IF($J$2=$Q$2,Depreciation!T$16:T$27,Depreciation!T$2:T$13),'Current approach'!$B23) -> 5.796988882 | U23: =INDEX(IF($J$2=$Q$2,Depreciation!U$16:U$27,Depreciation!U$2:U$13),'Current approach'!$B23) -> 5.796988882 | V23: =INDEX(IF($J$2=$Q$2,Depreciation!V$16:V$27,Depreciation!V$2:V$13),'Current approach'!$B23) -> 5.796988882 | W23: =INDEX(IF($J$2=$Q$2,Depreciation!W$16:W$27,Depreciation!W$2:W$13),'Current approach'!$B23) -> 5.796988882 | X23: =INDEX(IF($J$2=$Q$2,Depreciation!X$16:X$27,Depreciation!X$2:X$13),'Current approach'!$B23) -> 5.796988882 | Y23: =INDEX(IF($J$2=$Q$2,Depreciation!Y$16:Y$27,Depreciation!Y$2:Y$13),'Current approach'!$B23) -> 5.796988882 | Z23: =INDEX(IF($J$2=$Q$2,Depreciation!Z$16:Z$27,Depreciation!Z$2:Z$13),'Current approach'!$B23) -> 5.796988882 | AA23: =INDEX(IF($J$2=$Q$2,Depreciation!AA$16:AA$27,Depreciation!AA$2:AA$13),'Current approach'!$B23) -> 5.796988882 | AB23: =INDEX(IF($J$2=$Q$2,Depreciation!AB$16:AB$27,Depreciation!AB$2:AB$13),'Current approach'!$B23) -> 0.2340432849 | AC23: =INDEX(IF($J$2=$Q$2,Depreciation!AC$16:AC$27,Depreciation!AC$2:AC$13),'Current approach'!$B23) -> 0 | AD23: =INDEX(IF($J$2=$Q$2,Depreciation!AD$16:AD$27,Depreciation!AD$2:AD$13),'Current approach'!$B23) -> 0 | AE23: =INDEX(IF($J$2=$Q$2,Depreciation!AE$16:AE$27,Depreciation!AE$2:AE$13),'Current approach'!$B23) -> 0 | AF23: =INDEX(IF($J$2=$Q$2,Depreciation!AF$16:AF$27,Depreciation!AF$2:AF$13),'Current approach'!$B23) -> 0 | AG23: =INDEX(IF($J$2=$Q$2,Depreciation!AG$16:AG$27,Depreciation!AG$2:AG$13),'Current approach'!$B23) -> 0 | AH23: =INDEX(IF($J$2=$Q$2,Depreciation!AH$16:AH$27,Depreciation!AH$2:AH$13),'Current approach'!$B23) -> 0 | AI23: =INDEX(IF($J$2=$Q$2,Depreciation!AI$16:AI$27,Depreciation!AI$2:AI$13),'Current approach'!$B23) -> 0 | AJ23: =INDEX(IF($J$2=$Q$2,Depreciation!AJ$16:AJ$27,Depreciation!AJ$2:AJ$13),'Current approach'!$B23) -> 0 | AK23: =INDEX(IF($J$2=$Q$2,Depreciation!AK$16:AK$27,Depreciation!AK$2:AK$13),'Current approach'!$B23) -> 0 | AL23: =INDEX(IF($J$2=$Q$2,Depreciation!AL$16:AL$27,Depreciation!AL$2:AL$13),'Current approach'!$B23) -> 0 | AM23: =INDEX(IF($J$2=$Q$2,Depreciation!AM$16:AM$27,Depreciation!AM$2:AM$13),'Current approach'!$B23) -> 0 | AN23: =INDEX(IF($J$2=$Q$2,Depreciation!AN$16:AN$27,Depreciation!AN$2:AN$13),'Current approach'!$B23) -> 0 | AO23: =INDEX(IF($J$2=$Q$2,Depreciation!AO$16:AO$27,Depreciation!AO$2:AO$13),'Current approach'!$B23) -> 0 | AP23: =INDEX(IF($J$2=$Q$2,Depreciation!AP$16:AP$27,Depreciation!AP$2:AP$13),'Current approach'!$B23) -> 0 | AQ23: =INDEX(IF($J$2=$Q$2,Depreciation!AQ$16:AQ$27,Depreciation!AQ$2:AQ$13),'Current approach'!$B23) -> 0 | AR23: =INDEX(IF($J$2=$Q$2,Depreciation!AR$16:AR$27,Depreciation!AR$2:AR$13),'Current approach'!$B23) -> 0 | AS23: =INDEX(IF($J$2=$Q$2,Depreciation!AS$16:AS$27,Depreciation!AS$2:AS$13),'Current approach'!$B23) -> 0 | AT23: =INDEX(IF($J$2=$Q$2,Depreciation!AT$16:AT$27,Depreciation!AT$2:AT$13),'Current approach'!$B23) -> 0 | AU23: =INDEX(IF($J$2=$Q$2,Depreciation!AU$16:AU$27,Depreciation!AU$2:AU$13),'Current approach'!$B23) -> 0 | AV23: =INDEX(IF($J$2=$Q$2,Depreciation!AV$16:AV$27,Depreciation!AV$2:AV$13),'Current approach'!$B23) -> 0 | AW23: =INDEX(IF($J$2=$Q$2,Depreciation!AW$16:AW$27,Depreciation!AW$2:AW$13),'Current approach'!$B23) -> 0 | AX23: =INDEX(IF($J$2=$Q$2,Depreciation!AX$16:AX$27,Depreciation!AX$2:AX$13),'Current approach'!$B23) -> 0 | AY23: =INDEX(IF($J$2=$Q$2,Depreciation!AY$16:AY$27,Depreciation!AY$2:AY$13),'Current approach'!$B23) -> 0 | AZ23: =INDEX(IF($J$2=$Q$2,Depreciation!AZ$16:AZ$27,Depreciation!AZ$2:AZ$13),'Current approach'!$B23) -> 0 | BA23: =INDEX(IF($J$2=$Q$2,Depreciation!BA$16:BA$27,Depreciation!BA$2:BA$13),'Current approach'!$B23) -> 0 | BB23: =INDEX(IF($J$2=$Q$2,Depreciation!BB$16:BB$27,Depreciation!BB$2:BB$13),'Current approach'!$B23) -> 0 | BC23: =INDEX(IF($J$2=$Q$2,Depreciation!BC$16:BC$27,Depreciation!BC$2:BC$13),'Current approach'!$B23) -> 0 | BD23: =INDEX(IF($J$2=$Q$2,Depreciation!BD$16:BD$27,Depreciation!BD$2:BD$13),'Current approach'!$B23) -> 0 | BE23: =INDEX(IF($J$2=$Q$2,Depreciation!BE$16:BE$27,Depreciation!BE$2:BE$13),'Current approach'!$B23) -> 0 | BF23: =INDEX(IF($J$2=$Q$2,Depreciation!BF$16:BF$27,Depreciation!BF$2:BF$13),'Current approach'!$B23) -> 0 | BG23: =INDEX(IF($J$2=$Q$2,Depreciation!BG$16:BG$27,Depreciation!BG$2:BG$13),'Current approach'!$B23) -> 0
A24: ="Asset "&B24&" - Tax capex" -> Asset 3 - Tax capex | B24: 3 | C24: 104.1061545 | D24: =D22 -> 1.47437229 | E24: =E22 -> 1.098059017 | F24: =F22 -> 0.5283064656 | G24: =G22 -> 0.59024942 | H24: =H22 -> 0.5742279822 | I24: =I22 -> 0 | J24: =J22 -> 0 | K24: =K22 -> 0 | L24: =L22 -> 0 | M24: =M22 -> 0 | N24: =N22 -> 0 | O24: =O22 -> 0 | P24: =P22 -> 0 | Q24: =Q22 -> 0 | R24: =R22 -> 0 | S24: =S22 -> 0 | T24: =T22 -> 0 | U24: =U22 -> 0 | V24: =V22 -> 0 | W24: =W22 -> 0 | X24: =X22 -> 0 | Y24: =Y22 -> 0 | Z24: =Z22 -> 0 | AA24: =AA22 -> 0 | AB24: =AB22 -> 0 | AC24: =AC22 -> 0 | AD24: =AD22 -> 0 | AE24: =AE22 -> 0 | AF24: =AF22 -> 0 | AG24: =AG22 -> 0 | AH24: =AH22 -> 0 | AI24: =AI22 -> 0 | AJ24: =AJ22 -> 0 | AK24: =AK22 -> 0 | AL24: =AL22 -> 0 | AM24: =AM22 -> 0 | AN24: =AN22 -> 0 | AO24: =AO22 -> 0 | AP24: =AP22 -> 0 | AQ24: =AQ22 -> 0 | AR24: =AR22 -> 0 | AS24: =AS22 -> 0 | AT24: =AT22 -> 0 | AU24: =AU22 -> 0 | AV24: =AV22 -> 0 | AW24: =AW22 -> 0 | AX24: =AX22 -> 0 | AY24: =AY22 -> 0 | AZ24: =AZ22 -> 0 | BA24: 0 | BB24: 0 | BC24: 0 | BD24: 0 | BE24: 0 | BF24: 0 | BG24: =BG22 -> 0
A25: ="Asset "&B25&" - TAB tracking" -> Asset 3 - TAB tracking | B25: 3
A26: ="Asset "&B26&" - RAB life" -> Asset 3 - RAB life | B26: 3 | C26: tracking | D26: 30 | E26: 30 | F26: 30 | G26: 30 | H26: 30 | I26: =IF($J$2=$Q$2,MIN(I$6,$H26),$H26) -> 30 | J26: =IF($J$2=$Q$2,MIN(J$6,$H26),$H26) -> 30 | K26: 30 | L26: 30 | M26: 30 | N26: 30 | O26: 30 | P26: 30 | Q26: 30 | R26: 30 | S26: 30 | T26: 30 | U26: 30 | V26: 30 | W26: 30 | X26: 30 | Y26: 30 | Z26: 30 | AA26: 30 | AB26: 30 | AC26: 30 | AD26: 30 | AE26: 30 | AF26: 30 | AG26: 30
A27: ="Asset "&B27&" - Tax life" -> Asset 3 - Tax life | B27: 3 | C27: 27.04397161 | D27: 20 | E27: 20 | F27: 20 | G27: 20 | H27: 20 | I27: =H27 -> 20 | J27: 20 | K27: 20 | L27: 20 | M27: 20 | N27: 20 | O27: 20 | P27: 20 | Q27: 20 | R27: 20 | S27: 20 | T27: 20 | U27: 20 | V27: 20 | W27: 20 | X27: 20 | Y27: 20 | Z27: 20 | AA27: 20 | AB27: 20 | AC27: 20 | AD27: 20 | AE27: 20 | AF27: 20 | AG27: 20
A28: ="Asset "&B28&" - capex (incurred)" -> Asset 4 - capex (incurred) | B28: 4 | C28: 88.99878526 | D28: 3.900325367 | E28: 2.44483414 | F28: 1.095161245 | G28: 0.554383311 | H28: 0.5379439306
A29: ="Asset "&B29&" - capex (commissioned)" -> Asset 4 - capex (commissioned) | B29: 4 | C29: 88.99878526 | D29: 3.900325367 | E29: 2.44483414 | F29: 1.095161245 | G29: 0.554383311 | H29: 0.5379439306
A30: ="Asset "&B30&" - tracking" -> Asset 4 - tracking | B30: 4 | D30: =INDEX(IF($J$2=$Q$2,Depreciation!D$16:D$27,Depreciation!D$2:D$13),'Current approach'!$B30) -> 2.463737679 | E30: =INDEX(IF($J$2=$Q$2,Depreciation!E$16:E$27,Depreciation!E$2:E$13),'Current approach'!$B30) -> 2.463737679 | F30: =INDEX(IF($J$2=$Q$2,Depreciation!F$16:F$27,Depreciation!F$2:F$13),'Current approach'!$B30) -> 2.463737679 | G30: =INDEX(IF($J$2=$Q$2,Depreciation!G$16:G$27,Depreciation!G$2:G$13),'Current approach'!$B30) -> 2.463737679 | H30: =INDEX(IF($J$2=$Q$2,Depreciation!H$16:H$27,Depreciation!H$2:H$13),'Current approach'!$B30) -> 2.463737679 | I30: =INDEX(IF($J$2=$Q$2,Depreciation!I$16:I$27,Depreciation!I$2:I$13),'Current approach'!$B30) -> 2.463737679 | J30: =INDEX(IF($J$2=$Q$2,Depreciation!J$16:J$27,Depreciation!J$2:J$13),'Current approach'!$B30) -> 2.463737679 | K30: =INDEX(IF($J$2=$Q$2,Depreciation!K$16:K$27,Depreciation!K$2:K$13),'Current approach'!$B30) -> 2.463737679 | L30: =INDEX(IF($J$2=$Q$2,Depreciation!L$16:L$27,Depreciation!L$2:L$13),'Current approach'!$B30) -> 2.463737679 | M30: =INDEX(IF($J$2=$Q$2,Depreciation!M$16:M$27,Depreciation!M$2:M$13),'Current approach'!$B30) -> 2.463737679 | N30: =INDEX(IF($J$2=$Q$2,Depreciation!N$16:N$27,Depreciation!N$2:N$13),'Current approach'!$B30) -> 2.463737679 | O30: =INDEX(IF($J$2=$Q$2,Depreciation!O$16:O$27,Depreciation!O$2:O$13),'Current approach'!$B30) -> 2.463737679 | P30: =INDEX(IF($J$2=$Q$2,Depreciation!P$16:P$27,Depreciation!P$2:P$13),'Current approach'!$B30) -> 2.463737679 | Q30: =INDEX(IF($J$2=$Q$2,Depreciation!Q$16:Q$27,Depreciation!Q$2:Q$13),'Current approach'!$B30) -> 2.463737679 | R30: =INDEX(IF($J$2=$Q$2,Depreciation!R$16:R$27,Depreciation!R$2:R$13),'Current approach'!$B30) -> 2.463737679 | S30: =INDEX(IF($J$2=$Q$2,Depreciation!S$16:S$27,Depreciation!S$2:S$13),'Current approach'!$B30) -> 2.463737679 | T30: =INDEX(IF($J$2=$Q$2,Depreciation!T$16:T$27,Depreciation!T$2:T$13),'Current approach'!$B30) -> 2.463737679 | U30: =INDEX(IF($J$2=$Q$2,Depreciation!U$16:U$27,Depreciation!U$2:U$13),'Current approach'!$B30) -> 2.463737679 | V30: =INDEX(IF($J$2=$Q$2,Depreciation!V$16:V$27,Depreciation!V$2:V$13),'Current approach'!$B30) -> 2.463737679 | W30: =INDEX(IF($J$2=$Q$2,Depreciation!W$16:W$27,Depreciation!W$2:W$13),'Current approach'!$B30) -> 2.463737679 | X30: =INDEX(IF($J$2=$Q$2,Depreciation!X$16:X$27,Depreciation!X$2:X$13),'Current approach'!$B30) -> 2.463737679 | Y30: =INDEX(IF($J$2=$Q$2,Depreciation!Y$16:Y$27,Depreciation!Y$2:Y$13),'Current approach'!$B30) -> 2.463737679 | Z30: =INDEX(IF($J$2=$Q$2,Depreciation!Z$16:Z$27,Depreciation!Z$2:Z$13),'Current approach'!$B30) -> 2.463737679 | AA30: =INDEX(IF($J$2=$Q$2,Depreciation!AA$16:AA$27,Depreciation!AA$2:AA$13),'Current approach'!$B30) -> 2.463737679 | AB30: =INDEX(IF($J$2=$Q$2,Depreciation!AB$16:AB$27,Depreciation!AB$2:AB$13),'Current approach'!$B30) -> 2.463737679 | AC30: =INDEX(IF($J$2=$Q$2,Depreciation!AC$16:AC$27,Depreciation!AC$2:AC$13),'Current approach'!$B30) -> 2.463737679 | AD30: =INDEX(IF($J$2=$Q$2,Depreciation!AD$16:AD$27,Depreciation!AD$2:AD$13),'Current approach'!$B30) -> 2.463737679 | AE30: =INDEX(IF($J$2=$Q$2,Depreciation!AE$16:AE$27,Depreciation!AE$2:AE$13),'Current approach'!$B30) -> 2.463737679 | AF30: =INDEX(IF($J$2=$Q$2,Depreciation!AF$16:AF$27,Depreciation!AF$2:AF$13),'Current approach'!$B30) -> 2.463737679 | AG30: =INDEX(IF($J$2=$Q$2,Depreciation!AG$16:AG$27,Depreciation!AG$2:AG$13),'Current approach'!$B30) -> 2.463737679 | AH30: =INDEX(IF($J$2=$Q$2,Depreciation!AH$16:AH$27,Depreciation!AH$2:AH$13),'Current approach'!$B30) -> 2.463737679 | AI30: =INDEX(IF($J$2=$Q$2,Depreciation!AI$16:AI$27,Depreciation!AI$2:AI$13),'Current approach'!$B30) -> 2.463737679 | AJ30: =INDEX(IF($J$2=$Q$2,Depreciation!AJ$16:AJ$27,Depreciation!AJ$2:AJ$13),'Current approach'!$B30) -> 2.463737679 | AK30: =INDEX(IF($J$2=$Q$2,Depreciation!AK$16:AK$27,Depreciation!AK$2:AK$13),'Current approach'!$B30) -> 2.463737679 | AL30: =INDEX(IF($J$2=$Q$2,Depreciation!AL$16:AL$27,Depreciation!AL$2:AL$13),'Current approach'!$B30) -> 2.463737679 | AM30: =INDEX(IF($J$2=$Q$2,Depreciation!AM$16:AM$27,Depreciation!AM$2:AM$13),'Current approach'!$B30) -> 2.463737679 | AN30: =INDEX(IF($J$2=$Q$2,Depreciation!AN$16:AN$27,Depreciation!AN$2:AN$13),'Current approach'!$B30) -> 0.3042288193 | AO30: =INDEX(IF($J$2=$Q$2,Depreciation!AO$16:AO$27,Depreciation!AO$2:AO$13),'Current approach'!$B30) -> 0 | AP30: =INDEX(IF($J$2=$Q$2,Depreciation!AP$16:AP$27,Depreciation!AP$2:AP$13),'Current approach'!$B30) -> 0 | AQ30: =INDEX(IF($J$2=$Q$2,Depreciation!AQ$16:AQ$27,Depreciation!AQ$2:AQ$13),'Current approach'!$B30) -> 0 | AR30: =INDEX(IF($J$2=$Q$2,Depreciation!AR$16:AR$27,Depreciation!AR$2:AR$13),'Current approach'!$B30) -> 0 | AS30: =INDEX(IF($J$2=$Q$2,Depreciation!AS$16:AS$27,Depreciation!AS$2:AS$13),'Current approach'!$B30) -> 0 | AT30: =INDEX(IF($J$2=$Q$2,Depreciation!AT$16:AT$27,Depreciation!AT$2:AT$13),'Current approach'!$B30) -> 0 | AU30: =INDEX(IF($J$2=$Q$2,Depreciation!AU$16:AU$27,Depreciation!AU$2:AU$13),'Current approach'!$B30) -> 0 | AV30: =INDEX(IF($J$2=$Q$2,Depreciation!AV$16:AV$27,Depreciation!AV$2:AV$13),'Current approach'!$B30) -> 0 | AW30: =INDEX(IF($J$2=$Q$2,Depreciation!AW$16:AW$27,Depreciation!AW$2:AW$13),'Current approach'!$B30) -> 0 | AX30: =INDEX(IF($J$2=$Q$2,Depreciation!AX$16:AX$27,Depreciation!AX$2:AX$13),'Current approach'!$B30) -> 0 | AY30: =INDEX(IF($J$2=$Q$2,Depreciation!AY$16:AY$27,Depreciation!AY$2:AY$13),'Current approach'!$B30) -> 0 | AZ30: =INDEX(IF($J$2=$Q$2,Depreciation!AZ$16:AZ$27,Depreciation!AZ$2:AZ$13),'Current approach'!$B30) -> 0 | BA30: =INDEX(IF($J$2=$Q$2,Depreciation!BA$16:BA$27,Depreciation!BA$2:BA$13),'Current approach'!$B30) -> 0 | BB30: =INDEX(IF($J$2=$Q$2,Depreciation!BB$16:BB$27,Depreciation!BB$2:BB$13),'Current approach'!$B30) -> 0 | BC30: =INDEX(IF($J$2=$Q$2,Depreciation!BC$16:BC$27,Depreciation!BC$2:BC$13),'Current approach'!$B30) -> 0 | BD30: =INDEX(IF($J$2=$Q$2,Depreciation!BD$16:BD$27,Depreciation!BD$2:BD$13),'Current approach'!$B30) -> 0 | BE30: =INDEX(IF($J$2=$Q$2,Depreciation!BE$16:BE$27,Depreciation!BE$2:BE$13),'Current approach'!$B30) -> 0 | BF30: =INDEX(IF($J$2=$Q$2,Depreciation!BF$16:BF$27,Depreciation!BF$2:BF$13),'Current approach'!$B30) -> 0 | BG30: =INDEX(IF($J$2=$Q$2,Depreciation!BG$16:BG$27,Depreciation!BG$2:BG$13),'Current approach'!$B30) -> 0
A31: ="Asset "&B31&" - Tax capex" -> Asset 4 - Tax capex | B31: 4 | C31: 41.07734171 | D31: =D29 -> 3.900325367 | E31: =E29 -> 2.44483414 | F31: =F29 -> 1.095161245 | G31: =G29 -> 0.554383311 | H31: =H29 -> 0.5379439306 | I31: =I29 -> 0 | J31: =J29 -> 0 | K31: =K29 -> 0 | L31: =L29 -> 0 | M31: =M29 -> 0 | N31: =N29 -> 0 | O31: =O29 -> 0 | P31: =P29 -> 0 | Q31: =Q29 -> 0 | R31: =R29 -> 0 | S31: =S29 -> 0 | T31: =T29 -> 0 | U31: =U29 -> 0 | V31: =V29 -> 0 | W31: =W29 -> 0 | X31: =X29 -> 0 | Y31: =Y29 -> 0 | Z31: =Z29 -> 0 | AA31: =AA29 -> 0 | AB31: =AB29 -> 0 | AC31: =AC29 -> 0 | AD31: =AD29 -> 0 | AE31: =AE29 -> 0 | AF31: =AF29 -> 0 | AG31: =AG29 -> 0 | AH31: =AH29 -> 0 | AI31: =AI29 -> 0 | AJ31: =AJ29 -> 0 | AK31: =AK29 -> 0 | AL31: =AL29 -> 0 | AM31: =AM29 -> 0 | AN31: =AN29 -> 0 | AO31: =AO29 -> 0 | AP31: =AP29 -> 0 | AQ31: =AQ29 -> 0 | AR31: =AR29 -> 0 | AS31: =AS29 -> 0 | AT31: =AT29 -> 0 | AU31: =AU29 -> 0 | AV31: =AV29 -> 0 | AW31: =AW29 -> 0 | AX31: =AX29 -> 0 | AY31: =AY29 -> 0 | AZ31: =AZ29 -> 0 | BA31: 0 | BB31: 0 | BC31: 0 | BD31: 0 | BE31: 0 | BF31: 0 | BG31: =BG29 -> 0
A32: ="Asset "&B32&" - TAB tracking" -> Asset 4 - TAB tracking | B32: 4
A33: ="Asset "&B33&" - RAB life" -> Asset 4 - RAB life | B33: 4 | C33: tracking | D33: 30 | E33: 30 | F33: 30 | G33: 30 | H33: 30 | I33: =IF($J$2=$Q$2,MIN(I$6,$H33),$H33) -> 30 | J33: =IF($J$2=$Q$2,MIN(J$6,$H33),$H33) -> 30 | K33: 30 | L33: 30 | M33: 30 | N33: 30 | O33: 30 | P33: 30 | Q33: 30 | R33: 30 | S33: 30 | T33: 30 | U33: 30 | V33: 30 | W33: 30 | X33: 30 | Y33: 30 | Z33: 30 | AA33: 30 | AB33: 30 | AC33: 30 | AD33: 30 | AE33: 30 | AF33: 30 | AG33: 30
A34: ="Asset "&B34&" - Tax life" -> Asset 4 - Tax life | B34: 4 | C34: 23.7733685 | D34: 20 | E34: 20 | F34: 20 | G34: 20 | H34: 20 | I34: =H34 -> 20 | J34: 20 | K34: 20 | L34: 20 | M34: 20 | N34: 20 | O34: 20 | P34: 20 | Q34: 20 | R34: 20 | S34: 20 | T34: 20 | U34: 20 | V34: 20 | W34: 20 | X34: 20 | Y34: 20 | Z34: 20 | AA34: 20 | AB34: 20 | AC34: 20 | AD34: 20 | AE34: 20 | AF34: 20 | AG34: 20
A35: ="Asset "&B35&" - capex (incurred)" -> Asset 5 - capex (incurred) | B35: 5 | C35: 14.37653064 | D35: 1.896771113 | E35: 3.671639394 | F35: 1.1795188 | G35: 1.610764824 | H35: 0.2250829358
A36: ="Asset "&B36&" - capex (commissioned)" -> Asset 5 - capex (commissioned) | B36: 5 | C36: 14.37653064 | D36: 1.896771113 | E36: 3.671639394 | F36: 1.1795188 | G36: 1.610764824 | H36: 0.2250829358
A37: ="Asset "&B37&" - tracking" -> Asset 5 - tracking | B37: 5 | D37: =INDEX(IF($J$2=$Q$2,Depreciation!D$16:D$27,Depreciation!D$2:D$13),'Current approach'!$B37) -> 1.73656107 | E37: =INDEX(IF($J$2=$Q$2,Depreciation!E$16:E$27,Depreciation!E$2:E$13),'Current approach'!$B37) -> 1.73656107 | F37: =INDEX(IF($J$2=$Q$2,Depreciation!F$16:F$27,Depreciation!F$2:F$13),'Current approach'!$B37) -> 1.73656107 | G37: =INDEX(IF($J$2=$Q$2,Depreciation!G$16:G$27,Depreciation!G$2:G$13),'Current approach'!$B37) -> 1.73656107 | H37: =INDEX(IF($J$2=$Q$2,Depreciation!H$16:H$27,Depreciation!H$2:H$13),'Current approach'!$B37) -> 1.73656107 | I37: =INDEX(IF($J$2=$Q$2,Depreciation!I$16:I$27,Depreciation!I$2:I$13),'Current approach'!$B37) -> 1.73656107 | J37: =INDEX(IF($J$2=$Q$2,Depreciation!J$16:J$27,Depreciation!J$2:J$13),'Current approach'!$B37) -> 1.73656107 | K37: =INDEX(IF($J$2=$Q$2,Depreciation!K$16:K$27,Depreciation!K$2:K$13),'Current approach'!$B37) -> 1.73656107 | L37: =INDEX(IF($J$2=$Q$2,Depreciation!L$16:L$27,Depreciation!L$2:L$13),'Current approach'!$B37) -> 0.484042079 | M37: =INDEX(IF($J$2=$Q$2,Depreciation!M$16:M$27,Depreciation!M$2:M$13),'Current approach'!$B37) -> 0 | N37: =INDEX(IF($J$2=$Q$2,Depreciation!N$16:N$27,Depreciation!N$2:N$13),'Current approach'!$B37) -> 0 | O37: =INDEX(IF($J$2=$Q$2,Depreciation!O$16:O$27,Depreciation!O$2:O$13),'Current approach'!$B37) -> 0 | P37: =INDEX(IF($J$2=$Q$2,Depreciation!P$16:P$27,Depreciation!P$2:P$13),'Current approach'!$B37) -> 0 | Q37: =INDEX(IF($J$2=$Q$2,Depreciation!Q$16:Q$27,Depreciation!Q$2:Q$13),'Current approach'!$B37) -> 0 | R37: =INDEX(IF($J$2=$Q$2,Depreciation!R$16:R$27,Depreciation!R$2:R$13),'Current approach'!$B37) -> 0 | S37: =INDEX(IF($J$2=$Q$2,Depreciation!S$16:S$27,Depreciation!S$2:S$13),'Current approach'!$B37) -> 0 | T37: =INDEX(IF($J$2=$Q$2,Depreciation!T$16:T$27,Depreciation!T$2:T$13),'Current approach'!$B37) -> 0 | U37: =INDEX(IF($J$2=$Q$2,Depreciation!U$16:U$27,Depreciation!U$2:U$13),'Current approach'!$B37) -> 0 | V37: =INDEX(IF($J$2=$Q$2,Depreciation!V$16:V$27,Depreciation!V$2:V$13),'Current approach'!$B37) -> 0 | W37: =INDEX(IF($J$2=$Q$2,Depreciation!W$16:W$27,Depreciation!W$2:W$13),'Current approach'!$B37) -> 0 | X37: =INDEX(IF($J$2=$Q$2,Depreciation!X$16:X$27,Depreciation!X$2:X$13),'Current approach'!$B37) -> 0 | Y37: =INDEX(IF($J$2=$Q$2,Depreciation!Y$16:Y$27,Depreciation!Y$2:Y$13),'Current approach'!$B37) -> 0 | Z37: =INDEX(IF($J$2=$Q$2,Depreciation!Z$16:Z$27,Depreciation!Z$2:Z$13),'Current approach'!$B37) -> 0 | AA37: =INDEX(IF($J$2=$Q$2,Depreciation!AA$16:AA$27,Depreciation!AA$2:AA$13),'Current approach'!$B37) -> 0 | AB37: =INDEX(IF($J$2=$Q$2,Depreciation!AB$16:AB$27,Depreciation!AB$2:AB$13),'Current approach'!$B37) -> 0 | AC37: =INDEX(IF($J$2=$Q$2,Depreciation!AC$16:AC$27,Depreciation!AC$2:AC$13),'Current approach'!$B37) -> 0 | AD37: =INDEX(IF($J$2=$Q$2,Depreciation!AD$16:AD$27,Depreciation!AD$2:AD$13),'Current approach'!$B37) -> 0 | AE37: =INDEX(IF($J$2=$Q$2,Depreciation!AE$16:AE$27,Depreciation!AE$2:AE$13),'Current approach'!$B37) -> 0 | AF37: =INDEX(IF($J$2=$Q$2,Depreciation!AF$16:AF$27,Depreciation!AF$2:AF$13),'Current approach'!$B37) -> 0 | AG37: =INDEX(IF($J$2=$Q$2,Depreciation!AG$16:AG$27,Depreciation!AG$2:AG$13),'Current approach'!$B37) -> 0 | AH37: =INDEX(IF($J$2=$Q$2,Depreciation!AH$16:AH$27,Depreciation!AH$2:AH$13),'Current approach'!$B37) -> 0 | AI37: =INDEX(IF($J$2=$Q$2,Depreciation!AI$16:AI$27,Depreciation!AI$2:AI$13),'Current approach'!$B37) -> 0 | AJ37: =INDEX(IF($J$2=$Q$2,Depreciation!AJ$16:AJ$27,Depreciation!AJ$2:AJ$13),'Current approach'!$B37) -> 0 | AK37: =INDEX(IF($J$2=$Q$2,Depreciation!AK$16:AK$27,Depreciation!AK$2:AK$13),'Current approach'!$B37) -> 0 | AL37: =INDEX(IF($J$2=$Q$2,Depreciation!AL$16:AL$27,Depreciation!AL$2:AL$13),'Current approach'!$B37) -> 0 | AM37: =INDEX(IF($J$2=$Q$2,Depreciation!AM$16:AM$27,Depreciation!AM$2:AM$13),'Current approach'!$B37) -> 0 | AN37: =INDEX(IF($J$2=$Q$2,Depreciation!AN$16:AN$27,Depreciation!AN$2:AN$13),'Current approach'!$B37) -> 0 | AO37: =INDEX(IF($J$2=$Q$2,Depreciation!AO$16:AO$27,Depreciation!AO$2:AO$13),'Current approach'!$B37) -> 0 | AP37: =INDEX(IF($J$2=$Q$2,Depreciation!AP$16:AP$27,Depreciation!AP$2:AP$13),'Current approach'!$B37) -> 0 | AQ37: =INDEX(IF($J$2=$Q$2,Depreciation!AQ$16:AQ$27,Depreciation!AQ$2:AQ$13),'Current approach'!$B37) -> 0 | AR37: =INDEX(IF($J$2=$Q$2,Depreciation!AR$16:AR$27,Depreciation!AR$2:AR$13),'Current approach'!$B37) -> 0 | AS37: =INDEX(IF($J$2=$Q$2,Depreciation!AS$16:AS$27,Depreciation!AS$2:AS$13),'Current approach'!$B37) -> 0 | AT37: =INDEX(IF($J$2=$Q$2,Depreciation!AT$16:AT$27,Depreciation!AT$2:AT$13),'Current approach'!$B37) -> 0 | AU37: =INDEX(IF($J$2=$Q$2,Depreciation!AU$16:AU$27,Depreciation!AU$2:AU$13),'Current approach'!$B37) -> 0 | AV37: =INDEX(IF($J$2=$Q$2,Depreciation!AV$16:AV$27,Depreciation!AV$2:AV$13),'Current approach'!$B37) -> 0 | AW37: =INDEX(IF($J$2=$Q$2,Depreciation!AW$16:AW$27,Depreciation!AW$2:AW$13),'Current approach'!$B37) -> 0 | AX37: =INDEX(IF($J$2=$Q$2,Depreciation!AX$16:AX$27,Depreciation!AX$2:AX$13),'Current approach'!$B37) -> 0 | AY37: =INDEX(IF($J$2=$Q$2,Depreciation!AY$16:AY$27,Depreciation!AY$2:AY$13),'Current approach'!$B37) -> 0 | AZ37: =INDEX(IF($J$2=$Q$2,Depreciation!AZ$16:AZ$27,Depreciation!AZ$2:AZ$13),'Current approach'!$B37) -> 0 | BA37: =INDEX(IF($J$2=$Q$2,Depreciation!BA$16:BA$27,Depreciation!BA$2:BA$13),'Current approach'!$B37) -> 0 | BB37: =INDEX(IF($J$2=$Q$2,Depreciation!BB$16:BB$27,Depreciation!BB$2:BB$13),'Current approach'!$B37) -> 0 | BC37: =INDEX(IF($J$2=$Q$2,Depreciation!BC$16:BC$27,Depreciation!BC$2:BC$13),'Current approach'!$B37) -> 0 | BD37: =INDEX(IF($J$2=$Q$2,Depreciation!BD$16:BD$27,Depreciation!BD$2:BD$13),'Current approach'!$B37) -> 0 | BE37: =INDEX(IF($J$2=$Q$2,Depreciation!BE$16:BE$27,Depreciation!BE$2:BE$13),'Current approach'!$B37) -> 0 | BF37: =INDEX(IF($J$2=$Q$2,Depreciation!BF$16:BF$27,Depreciation!BF$2:BF$13),'Current approach'!$B37) -> 0 | BG37: =INDEX(IF($J$2=$Q$2,Depreciation!BG$16:BG$27,Depreciation!BG$2:BG$13),'Current approach'!$B37) -> 0
A38: ="Asset "&B38&" - Tax capex" -> Asset 5 - Tax capex | B38: 5 | C38: 22.79979915 | D38: =D36 -> 1.896771113 | E38: =E36 -> 3.671639394 | F38: =F36 -> 1.1795188 | G38: =G36 -> 1.610764824 | H38: =H36 -> 0.2250829358 | I38: =I36 -> 0 | J38: =J36 -> 0 | K38: =K36 -> 0 | L38: =L36 -> 0 | M38: =M36 -> 0 | N38: =N36 -> 0 | O38: =O36 -> 0 | P38: =P36 -> 0 | Q38: =Q36 -> 0 | R38: =R36 -> 0 | S38: =S36 -> 0 | T38: =T36 -> 0 | U38: =U36 -> 0 | V38: =V36 -> 0 | W38: =W36 -> 0 | X38: =X36 -> 0 | Y38: =Y36 -> 0 | Z38: =Z36 -> 0 | AA38: =AA36 -> 0 | AB38: =AB36 -> 0 | AC38: =AC36 -> 0 | AD38: =AD36 -> 0 | AE38: =AE36 -> 0 | AF38: =AF36 -> 0 | AG38: =AG36 -> 0 | AH38: =AH36 -> 0 | AI38: =AI36 -> 0 | AJ38: =AJ36 -> 0 | AK38: =AK36 -> 0 | AL38: =AL36 -> 0 | AM38: =AM36 -> 0 | AN38: =AN36 -> 0 | AO38: =AO36 -> 0 | AP38: =AP36 -> 0 | AQ38: =AQ36 -> 0 | AR38: =AR36 -> 0 | AS38: =AS36 -> 0 | AT38: =AT36 -> 0 | AU38: =AU36 -> 0 | AV38: =AV36 -> 0 | AW38: =AW36 -> 0 | AX38: =AX36 -> 0 | AY38: =AY36 -> 0 | AZ38: =AZ36 -> 0 | BA38: 0 | BB38: 0 | BC38: 0 | BD38: 0 | BE38: 0 | BF38: 0 | BG38: =BG36 -> 0
A39: ="Asset "&B39&" - TAB tracking" -> Asset 5 - TAB tracking | B39: 5
A40: ="Asset "&B40&" - RAB life" -> Asset 5 - RAB life | B40: 5 | C40: tracking | D40: 15 | E40: 15 | F40: 15 | G40: 15 | H40: 15 | I40: =IF($J$2=$Q$2,MIN(I$6,$H40),$H40) -> 15 | J40: =IF($J$2=$Q$2,MIN(J$6,$H40),$H40) -> 15 | K40: 15 | L40: 15 | M40: 15 | N40: 15 | O40: 15 | P40: 15 | Q40: 15 | R40: 15 | S40: 15 | T40: 15 | U40: 15 | V40: 15 | W40: 15 | X40: 15 | Y40: 15 | Z40: 15 | AA40: 15 | AB40: 15 | AC40: 15 | AD40: 15 | AE40: 15 | AF40: 15 | AG40: 15
A41: ="Asset "&B41&" - Tax life" -> Asset 5 - Tax life | B41: 5 | C41: 33.72243069 | D41: 20 | E41: 20 | F41: 20 | G41: 20 | H41: 20 | I41: =H41 -> 20 | J41: 20 | K41: 20 | L41: 20 | M41: 20 | N41: 20 | O41: 20 | P41: 20 | Q41: 20 | R41: 20 | S41: 20 | T41: 20 | U41: 20 | V41: 20 | W41: 20 | X41: 20 | Y41: 20 | Z41: 20 | AA41: 20 | AB41: 20 | AC41: 20 | AD41: 20 | AE41: 20 | AF41: 20 | AG41: 20
A42: ="Asset "&B42&" - capex (incurred)" -> Asset 6 - capex (incurred) | B42: 6 | C42: 0.9829993687
A43: ="Asset "&B43&" - capex (commissioned)" -> Asset 6 - capex (commissioned) | B43: 6 | C43: 0.9829993687
A44: ="Asset "&B44&" - tracking" -> Asset 6 - tracking | B44: 6 | D44: =INDEX(IF($J$2=$Q$2,Depreciation!D$16:D$27,Depreciation!D$2:D$13),'Current approach'!$B44) -> 0.06991187657 | E44: =INDEX(IF($J$2=$Q$2,Depreciation!E$16:E$27,Depreciation!E$2:E$13),'Current approach'!$B44) -> 0.06991187657 | F44: =INDEX(IF($J$2=$Q$2,Depreciation!F$16:F$27,Depreciation!F$2:F$13),'Current approach'!$B44) -> 0.06991187657 | G44: =INDEX(IF($J$2=$Q$2,Depreciation!G$16:G$27,Depreciation!G$2:G$13),'Current approach'!$B44) -> 0.06991187657 | H44: =INDEX(IF($J$2=$Q$2,Depreciation!H$16:H$27,Depreciation!H$2:H$13),'Current approach'!$B44) -> 0.06991187657 | I44: =INDEX(IF($J$2=$Q$2,Depreciation!I$16:I$27,Depreciation!I$2:I$13),'Current approach'!$B44) -> 0.06991187657 | J44: =INDEX(IF($J$2=$Q$2,Depreciation!J$16:J$27,Depreciation!J$2:J$13),'Current approach'!$B44) -> 0.06991187657 | K44: =INDEX(IF($J$2=$Q$2,Depreciation!K$16:K$27,Depreciation!K$2:K$13),'Current approach'!$B44) -> 0.06991187657 | L44: =INDEX(IF($J$2=$Q$2,Depreciation!L$16:L$27,Depreciation!L$2:L$13),'Current approach'!$B44) -> 0.06991187657 | M44: =INDEX(IF($J$2=$Q$2,Depreciation!M$16:M$27,Depreciation!M$2:M$13),'Current approach'!$B44) -> 0.06991187657 | N44: =INDEX(IF($J$2=$Q$2,Depreciation!N$16:N$27,Depreciation!N$2:N$13),'Current approach'!$B44) -> 0.06991187657 | O44: =INDEX(IF($J$2=$Q$2,Depreciation!O$16:O$27,Depreciation!O$2:O$13),'Current approach'!$B44) -> 0.06991187657 | P44: =INDEX(IF($J$2=$Q$2,Depreciation!P$16:P$27,Depreciation!P$2:P$13),'Current approach'!$B44) -> 0.06991187657 | Q44: =INDEX(IF($J$2=$Q$2,Depreciation!Q$16:Q$27,Depreciation!Q$2:Q$13),'Current approach'!$B44) -> 0.06991187657 | R44: =INDEX(IF($J$2=$Q$2,Depreciation!R$16:R$27,Depreciation!R$2:R$13),'Current approach'!$B44) -> 0.004233096738 | S44: =INDEX(IF($J$2=$Q$2,Depreciation!S$16:S$27,Depreciation!S$2:S$13),'Current approach'!$B44) -> 0 | T44: =INDEX(IF($J$2=$Q$2,Depreciation!T$16:T$27,Depreciation!T$2:T$13),'Current approach'!$B44) -> 0 | U44: =INDEX(IF($J$2=$Q$2,Depreciation!U$16:U$27,Depreciation!U$2:U$13),'Current approach'!$B44) -> 0 | V44: =INDEX(IF($J$2=$Q$2,Depreciation!V$16:V$27,Depreciation!V$2:V$13),'Current approach'!$B44) -> 0 | W44: =INDEX(IF($J$2=$Q$2,Depreciation!W$16:W$27,Depreciation!W$2:W$13),'Current approach'!$B44) -> 0 | X44: =INDEX(IF($J$2=$Q$2,Depreciation!X$16:X$27,Depreciation!X$2:X$13),'Current approach'!$B44) -> 0 | Y44: =INDEX(IF($J$2=$Q$2,Depreciation!Y$16:Y$27,Depreciation!Y$2:Y$13),'Current approach'!$B44) -> 0 | Z44: =INDEX(IF($J$2=$Q$2,Depreciation!Z$16:Z$27,Depreciation!Z$2:Z$13),'Current approach'!$B44) -> 0 | AA44: =INDEX(IF($J$2=$Q$2,Depreciation!AA$16:AA$27,Depreciation!AA$2:AA$13),'Current approach'!$B44) -> 0 | AB44: =INDEX(IF($J$2=$Q$2,Depreciation!AB$16:AB$27,Depreciation!AB$2:AB$13),'Current approach'!$B44) -> 0 | AC44: =INDEX(IF($J$2=$Q$2,Depreciation!AC$16:AC$27,Depreciation!AC$2:AC$13),'Current approach'!$B44) -> 0 | AD44: =INDEX(IF($J$2=$Q$2,Depreciation!AD$16:AD$27,Depreciation!AD$2:AD$13),'Current approach'!$B44) -> 0 | AE44: =INDEX(IF($J$2=$Q$2,Depreciation!AE$16:AE$27,Depreciation!AE$2:AE$13),'Current approach'!$B44) -> 0 | AF44: =INDEX(IF($J$2=$Q$2,Depreciation!AF$16:AF$27,Depreciation!AF$2:AF$13),'Current approach'!$B44) -> 0 | AG44: =INDEX(IF($J$2=$Q$2,Depreciation!AG$16:AG$27,Depreciation!AG$2:AG$13),'Current approach'!$B44) -> 0 | AH44: =INDEX(IF($J$2=$Q$2,Depreciation!AH$16:AH$27,Depreciation!AH$2:AH$13),'Current approach'!$B44) -> 0 | AI44: =INDEX(IF($J$2=$Q$2,Depreciation!AI$16:AI$27,Depreciation!AI$2:AI$13),'Current approach'!$B44) -> 0 | AJ44: =INDEX(IF($J$2=$Q$2,Depreciation!AJ$16:AJ$27,Depreciation!AJ$2:AJ$13),'Current approach'!$B44) -> 0 | AK44: =INDEX(IF($J$2=$Q$2,Depreciation!AK$16:AK$27,Depreciation!AK$2:AK$13),'Current approach'!$B44) -> 0 | AL44: =INDEX(IF($J$2=$Q$2,Depreciation!AL$16:AL$27,Depreciation!AL$2:AL$13),'Current approach'!$B44) -> 0 | AM44: =INDEX(IF($J$2=$Q$2,Depreciation!AM$16:AM$27,Depreciation!AM$2:AM$13),'Current approach'!$B44) -> 0 | AN44: =INDEX(IF($J$2=$Q$2,Depreciation!AN$16:AN$27,Depreciation!AN$2:AN$13),'Current approach'!$B44) -> 0 | AO44: =INDEX(IF($J$2=$Q$2,Depreciation!AO$16:AO$27,Depreciation!AO$2:AO$13),'Current approach'!$B44) -> 0 | AP44: =INDEX(IF($J$2=$Q$2,Depreciation!AP$16:AP$27,Depreciation!AP$2:AP$13),'Current approach'!$B44) -> 0 | AQ44: =INDEX(IF($J$2=$Q$2,Depreciation!AQ$16:AQ$27,Depreciation!AQ$2:AQ$13),'Current approach'!$B44) -> 0 | AR44: =INDEX(IF($J$2=$Q$2,Depreciation!AR$16:AR$27,Depreciation!AR$2:AR$13),'Current approach'!$B44) -> 0 | AS44: =INDEX(IF($J$2=$Q$2,Depreciation!AS$16:AS$27,Depreciation!AS$2:AS$13),'Current approach'!$B44) -> 0 | AT44: =INDEX(IF($J$2=$Q$2,Depreciation!AT$16:AT$27,Depreciation!AT$2:AT$13),'Current approach'!$B44) -> 0 | AU44: =INDEX(IF($J$2=$Q$2,Depreciation!AU$16:AU$27,Depreciation!AU$2:AU$13),'Current approach'!$B44) -> 0 | AV44: =INDEX(IF($J$2=$Q$2,Depreciation!AV$16:AV$27,Depreciation!AV$2:AV$13),'Current approach'!$B44) -> 0 | AW44: =INDEX(IF($J$2=$Q$2,Depreciation!AW$16:AW$27,Depreciation!AW$2:AW$13),'Current approach'!$B44) -> 0 | AX44: =INDEX(IF($J$2=$Q$2,Depreciation!AX$16:AX$27,Depreciation!AX$2:AX$13),'Current approach'!$B44) -> 0 | AY44: =INDEX(IF($J$2=$Q$2,Depreciation!AY$16:AY$27,Depreciation!AY$2:AY$13),'Current approach'!$B44) -> 0 | AZ44: =INDEX(IF($J$2=$Q$2,Depreciation!AZ$16:AZ$27,Depreciation!AZ$2:AZ$13),'Current approach'!$B44) -> 0 | BA44: =INDEX(IF($J$2=$Q$2,Depreciation!BA$16:BA$27,Depreciation!BA$2:BA$13),'Current approach'!$B44) -> 0 | BB44: =INDEX(IF($J$2=$Q$2,Depreciation!BB$16:BB$27,Depreciation!BB$2:BB$13),'Current approach'!$B44) -> 0 | BC44: =INDEX(IF($J$2=$Q$2,Depreciation!BC$16:BC$27,Depreciation!BC$2:BC$13),'Current approach'!$B44) -> 0 | BD44: =INDEX(IF($J$2=$Q$2,Depreciation!BD$16:BD$27,Depreciation!BD$2:BD$13),'Current approach'!$B44) -> 0 | BE44: =INDEX(IF($J$2=$Q$2,Depreciation!BE$16:BE$27,Depreciation!BE$2:BE$13),'Current approach'!$B44) -> 0 | BF44: =INDEX(IF($J$2=$Q$2,Depreciation!BF$16:BF$27,Depreciation!BF$2:BF$13),'Current approach'!$B44) -> 0 | BG44: =INDEX(IF($J$2=$Q$2,Depreciation!BG$16:BG$27,Depreciation!BG$2:BG$13),'Current approach'!$B44) -> 0
A45: ="Asset "&B45&" - Tax capex" -> Asset 6 - Tax capex | B45: 6 | C45: 1.122701692 | D45: =D43 -> 0 | E45: =E43 -> 0 | F45: =F43 -> 0 | G45: =G43 -> 0 | H45: =H43 -> 0 | I45: =I43 -> 0 | J45: =J43 -> 0 | K45: =K43 -> 0 | L45: =L43 -> 0 | M45: =M43 -> 0 | N45: =N43 -> 0 | O45: =O43 -> 0 | P45: =P43 -> 0 | Q45: =Q43 -> 0 | R45: =R43 -> 0 | S45: =S43 -> 0 | T45: =T43 -> 0 | U45: =U43 -> 0 | V45: =V43 -> 0 | W45: =W43 -> 0 | X45: =X43 -> 0 | Y45: =Y43 -> 0 | Z45: =Z43 -> 0 | AA45: =AA43 -> 0 | AB45: =AB43 -> 0 | AC45: =AC43 -> 0 | AD45: =AD43 -> 0 | AE45: =AE43 -> 0 | AF45: =AF43 -> 0 | AG45: =AG43 -> 0 | AH45: =AH43 -> 0 | AI45: =AI43 -> 0 | AJ45: =AJ43 -> 0 | AK45: =AK43 -> 0 | AL45: =AL43 -> 0 | AM45: =AM43 -> 0 | AN45: =AN43 -> 0 | AO45: =AO43 -> 0 | AP45: =AP43 -> 0 | AQ45: =AQ43 -> 0 | AR45: =AR43 -> 0 | AS45: =AS43 -> 0 | AT45: =AT43 -> 0 | AU45: =AU43 -> 0 | AV45: =AV43 -> 0 | AW45: =AW43 -> 0 | AX45: =AX43 -> 0 | AY45: =AY43 -> 0 | AZ45: =AZ43 -> 0 | BA45: 0 | BB45: 0 | BC45: 0 | BD45: 0 | BE45: 0 | BF45: 0 | BG45: =BG43 -> 0
A46: ="Asset "&B46&" - TAB tracking" -> Asset 6 - TAB tracking | B46: 6
A47: ="Asset "&B47&" - RAB life" -> Asset 6 - RAB life | B47: 6 | C47: tracking | D47: 15 | E47: 15 | F47: 15 | G47: 15 | H47: 15 | I47: =IF($J$2=$Q$2,MIN(I$6,$H47),$H47) -> 15 | J47: =IF($J$2=$Q$2,MIN(J$6,$H47),$H47) -> 15 | K47: 15 | L47: 15 | M47: 15 | N47: 15 | O47: 15 | P47: 15 | Q47: 15 | R47: 15 | S47: 15 | T47: 15 | U47: 15 | V47: 15 | W47: 15 | X47: 15 | Y47: 15 | Z47: 15 | AA47: 15 | AB47: 15 | AC47: 15 | AD47: 15 | AE47: 15 | AF47: 15 | AG47: 15
A48: ="Asset "&B48&" - Tax life" -> Asset 6 - Tax life | B48: 6 | C48: 14.06191136 | D48: 15 | E48: 15 | F48: 15 | G48: 15 | H48: 15 | I48: =H48 -> 15 | J48: 15 | K48: 15 | L48: 15 | M48: 15 | N48: 15 | O48: 15 | P48: 15 | Q48: 15 | R48: 15 | S48: 15 | T48: 15 | U48: 15 | V48: 15 | W48: 15 | X48: 15 | Y48: 15 | Z48: 15 | AA48: 15 | AB48: 15 | AC48: 15 | AD48: 15 | AE48: 15 | AF48: 15 | AG48: 15
A49: ="Asset "&B49&" - capex (incurred)" -> Asset 7 - capex (incurred) | B49: 7 | C49: 38.5273316 | D49: 7.117996062 | E49: 5.564175504 | F49: 5.747991481 | G49: 4.518052906 | H49: 5.410267964 | I49: =AVERAGE($D49:$H49) -> 5.671696783 | J49: =AVERAGE($D49:$H49) -> 5.671696783 | K49: 5.671696783 | L49: 5.671696783 | M49: 5.671696783 | N49: 5.671696783 | O49: 5.671696783 | P49: 5.671696783 | Q49: 5.671696783 | R49: 5.671696783 | S49: 5.671696783 | T49: 5.671696783 | U49: 5.671696783 | V49: 5.671696783 | W49: 5.671696783
A50: ="Asset "&B50&" - capex (commissioned)" -> Asset 7 - capex (commissioned) | B50: 7 | C50: 38.5273316 | D50: 7.117996062 | E50: 5.564175504 | F50: 5.747991481 | G50: 4.518052906 | H50: 5.410267964 | I50: =AVERAGE($D50:$H50) -> 5.671696783 | J50: 5.671696783 | K50: 5.671696783 | L50: 5.671696783 | M50: 5.671696783 | N50: 5.671696783 | O50: 5.671696783 | P50: 5.671696783 | Q50: 5.671696783 | R50: 5.671696783 | S50: 5.671696783 | T50: 5.671696783 | U50: 5.671696783 | V50: 5.671696783 | W50: 5.671696783
A51: ="Asset "&B51&" - tracking" -> Asset 7 - tracking | B51: 7 | D51: =INDEX(IF($J$2=$Q$2,Depreciation!D$16:D$27,Depreciation!D$2:D$13),'Current approach'!$B51) -> 3.67564471 | E51: =INDEX(IF($J$2=$Q$2,Depreciation!E$16:E$27,Depreciation!E$2:E$13),'Current approach'!$B51) -> 3.67564471 | F51: =INDEX(IF($J$2=$Q$2,Depreciation!F$16:F$27,Depreciation!F$2:F$13),'Current approach'!$B51) -> 3.67564471 | G51: =INDEX(IF($J$2=$Q$2,Depreciation!G$16:G$27,Depreciation!G$2:G$13),'Current approach'!$B51) -> 3.67564471 | H51: =INDEX(IF($J$2=$Q$2,Depreciation!H$16:H$27,Depreciation!H$2:H$13),'Current approach'!$B51) -> 3.67564471 | I51: =INDEX(IF($J$2=$Q$2,Depreciation!I$16:I$27,Depreciation!I$2:I$13),'Current approach'!$B51) -> 3.67564471 | J51: =INDEX(IF($J$2=$Q$2,Depreciation!J$16:J$27,Depreciation!J$2:J$13),'Current approach'!$B51) -> 3.67564471 | K51: =INDEX(IF($J$2=$Q$2,Depreciation!K$16:K$27,Depreciation!K$2:K$13),'Current approach'!$B51) -> 3.67564471 | L51: =INDEX(IF($J$2=$Q$2,Depreciation!L$16:L$27,Depreciation!L$2:L$13),'Current approach'!$B51) -> 3.67564471 | M51: =INDEX(IF($J$2=$Q$2,Depreciation!M$16:M$27,Depreciation!M$2:M$13),'Current approach'!$B51) -> 3.67564471 | N51: =INDEX(IF($J$2=$Q$2,Depreciation!N$16:N$27,Depreciation!N$2:N$13),'Current approach'!$B51) -> 1.770884493 | O51: =INDEX(IF($J$2=$Q$2,Depreciation!O$16:O$27,Depreciation!O$2:O$13),'Current approach'!$B51) -> 0 | P51: =INDEX(IF($J$2=$Q$2,Depreciation!P$16:P$27,Depreciation!P$2:P$13),'Current approach'!$B51) -> 0 | Q51: =INDEX(IF($J$2=$Q$2,Depreciation!Q$16:Q$27,Depreciation!Q$2:Q$13),'Current approach'!$B51) -> 0 | R51: =INDEX(IF($J$2=$Q$2,Depreciation!R$16:R$27,Depreciation!R$2:R$13),'Current approach'!$B51) -> 0 | S51: =INDEX(IF($J$2=$Q$2,Depreciation!S$16:S$27,Depreciation!S$2:S$13),'Current approach'!$B51) -> 0 | T51: =INDEX(IF($J$2=$Q$2,Depreciation!T$16:T$27,Depreciation!T$2:T$13),'Current approach'!$B51) -> 0 | U51: =INDEX(IF($J$2=$Q$2,Depreciation!U$16:U$27,Depreciation!U$2:U$13),'Current approach'!$B51) -> 0 | V51: =INDEX(IF($J$2=$Q$2,Depreciation!V$16:V$27,Depreciation!V$2:V$13),'Current approach'!$B51) -> 0 | W51: =INDEX(IF($J$2=$Q$2,Depreciation!W$16:W$27,Depreciation!W$2:W$13),'Current approach'!$B51) -> 0 | X51: =INDEX(IF($J$2=$Q$2,Depreciation!X$16:X$27,Depreciation!X$2:X$13),'Current approach'!$B51) -> 0 | Y51: =INDEX(IF($J$2=$Q$2,Depreciation!Y$16:Y$27,Depreciation!Y$2:Y$13),'Current approach'!$B51) -> 0 | Z51: =INDEX(IF($J$2=$Q$2,Depreciation!Z$16:Z$27,Depreciation!Z$2:Z$13),'Current approach'!$B51) -> 0 | AA51: =INDEX(IF($J$2=$Q$2,Depreciation!AA$16:AA$27,Depreciation!AA$2:AA$13),'Current approach'!$B51) -> 0 | AB51: =INDEX(IF($J$2=$Q$2,Depreciation!AB$16:AB$27,Depreciation!AB$2:AB$13),'Current approach'!$B51) -> 0 | AC51: =INDEX(IF($J$2=$Q$2,Depreciation!AC$16:AC$27,Depreciation!AC$2:AC$13),'Current approach'!$B51) -> 0 | AD51: =INDEX(IF($J$2=$Q$2,Depreciation!AD$16:AD$27,Depreciation!AD$2:AD$13),'Current approach'!$B51) -> 0 | AE51: =INDEX(IF($J$2=$Q$2,Depreciation!AE$16:AE$27,Depreciation!AE$2:AE$13),'Current approach'!$B51) -> 0 | AF51: =INDEX(IF($J$2=$Q$2,Depreciation!AF$16:AF$27,Depreciation!AF$2:AF$13),'Current approach'!$B51) -> 0 | AG51: =INDEX(IF($J$2=$Q$2,Depreciation!AG$16:AG$27,Depreciation!AG$2:AG$13),'Current approach'!$B51) -> 0 | AH51: =INDEX(IF($J$2=$Q$2,Depreciation!AH$16:AH$27,Depreciation!AH$2:AH$13),'Current approach'!$B51) -> 0 | AI51: =INDEX(IF($J$2=$Q$2,Depreciation!AI$16:AI$27,Depreciation!AI$2:AI$13),'Current approach'!$B51) -> 0 | AJ51: =INDEX(IF($J$2=$Q$2,Depreciation!AJ$16:AJ$27,Depreciation!AJ$2:AJ$13),'Current approach'!$B51) -> 0 | AK51: =INDEX(IF($J$2=$Q$2,Depreciation!AK$16:AK$27,Depreciation!AK$2:AK$13),'Current approach'!$B51) -> 0 | AL51: =INDEX(IF($J$2=$Q$2,Depreciation!AL$16:AL$27,Depreciation!AL$2:AL$13),'Current approach'!$B51) -> 0 | AM51: =INDEX(IF($J$2=$Q$2,Depreciation!AM$16:AM$27,Depreciation!AM$2:AM$13),'Current approach'!$B51) -> 0 | AN51: =INDEX(IF($J$2=$Q$2,Depreciation!AN$16:AN$27,Depreciation!AN$2:AN$13),'Current approach'!$B51) -> 0 | AO51: =INDEX(IF($J$2=$Q$2,Depreciation!AO$16:AO$27,Depreciation!AO$2:AO$13),'Current approach'!$B51) -> 0 | AP51: =INDEX(IF($J$2=$Q$2,Depreciation!AP$16:AP$27,Depreciation!AP$2:AP$13),'Current approach'!$B51) -> 0 | AQ51: =INDEX(IF($J$2=$Q$2,Depreciation!AQ$16:AQ$27,Depreciation!AQ$2:AQ$13),'Current approach'!$B51) -> 0 | AR51: =INDEX(IF($J$2=$Q$2,Depreciation!AR$16:AR$27,Depreciation!AR$2:AR$13),'Current approach'!$B51) -> 0 | AS51: =INDEX(IF($J$2=$Q$2,Depreciation!AS$16:AS$27,Depreciation!AS$2:AS$13),'Current approach'!$B51) -> 0 | AT51: =INDEX(IF($J$2=$Q$2,Depreciation!AT$16:AT$27,Depreciation!AT$2:AT$13),'Current approach'!$B51) -> 0 | AU51: =INDEX(IF($J$2=$Q$2,Depreciation!AU$16:AU$27,Depreciation!AU$2:AU$13),'Current approach'!$B51) -> 0 | AV51: =INDEX(IF($J$2=$Q$2,Depreciation!AV$16:AV$27,Depreciation!AV$2:AV$13),'Current approach'!$B51) -> 0 | AW51: =INDEX(IF($J$2=$Q$2,Depreciation!AW$16:AW$27,Depreciation!AW$2:AW$13),'Current approach'!$B51) -> 0 | AX51: =INDEX(IF($J$2=$Q$2,Depreciation!AX$16:AX$27,Depreciation!AX$2:AX$13),'Current approach'!$B51) -> 0 | AY51: =INDEX(IF($J$2=$Q$2,Depreciation!AY$16:AY$27,Depreciation!AY$2:AY$13),'Current approach'!$B51) -> 0 | AZ51: =INDEX(IF($J$2=$Q$2,Depreciation!AZ$16:AZ$27,Depreciation!AZ$2:AZ$13),'Current approach'!$B51) -> 0 | BA51: =INDEX(IF($J$2=$Q$2,Depreciation!BA$16:BA$27,Depreciation!BA$2:BA$13),'Current approach'!$B51) -> 0 | BB51: =INDEX(IF($J$2=$Q$2,Depreciation!BB$16:BB$27,Depreciation!BB$2:BB$13),'Current approach'!$B51) -> 0 | BC51: =INDEX(IF($J$2=$Q$2,Depreciation!BC$16:BC$27,Depreciation!BC$2:BC$13),'Current approach'!$B51) -> 0 | BD51: =INDEX(IF($J$2=$Q$2,Depreciation!BD$16:BD$27,Depreciation!BD$2:BD$13),'Current approach'!$B51) -> 0 | BE51: =INDEX(IF($J$2=$Q$2,Depreciation!BE$16:BE$27,Depreciation!BE$2:BE$13),'Current approach'!$B51) -> 0 | BF51: =INDEX(IF($J$2=$Q$2,Depreciation!BF$16:BF$27,Depreciation!BF$2:BF$13),'Current approach'!$B51) -> 0 | BG51: =INDEX(IF($J$2=$Q$2,Depreciation!BG$16:BG$27,Depreciation!BG$2:BG$13),'Current approach'!$B51) -> 0
A52: ="Asset "&B52&" - Tax capex" -> Asset 7 - Tax capex | B52: 7 | C52: 34.13349157 | D52: =D50 -> 7.117996062 | E52: =E50 -> 5.564175504 | F52: =F50 -> 5.747991481 | G52: =G50 -> 4.518052906 | H52: =H50 -> 5.410267964 | I52: =I50 -> 5.671696783 | J52: =J50 -> 5.671696783 | K52: =K50 -> 5.671696783 | L52: =L50 -> 5.671696783 | M52: =M50 -> 5.671696783 | N52: =N50 -> 5.671696783 | O52: =O50 -> 5.671696783 | P52: =P50 -> 5.671696783 | Q52: =Q50 -> 5.671696783 | R52: =R50 -> 5.671696783 | S52: =S50 -> 5.671696783 | T52: =T50 -> 5.671696783 | U52: =U50 -> 5.671696783 | V52: =V50 -> 5.671696783 | W52: =W50 -> 5.671696783 | X52: =X50 -> 0 | Y52: =Y50 -> 0 | Z52: =Z50 -> 0 | AA52: =AA50 -> 0 | AB52: =AB50 -> 0 | AC52: =AC50 -> 0 | AD52: =AD50 -> 0 | AE52: =AE50 -> 0 | AF52: =AF50 -> 0 | AG52: =AG50 -> 0 | AH52: =AH50 -> 0 | AI52: =AI50 -> 0 | AJ52: =AJ50 -> 0 | AK52: =AK50 -> 0 | AL52: =AL50 -> 0 | AM52: =AM50 -> 0 | AN52: =AN50 -> 0 | AO52: =AO50 -> 0 | AP52: =AP50 -> 0 | AQ52: =AQ50 -> 0 | AR52: =AR50 -> 0 | AS52: =AS50 -> 0 | AT52: =AT50 -> 0 | AU52: =AU50 -> 0 | AV52: =AV50 -> 0 | AW52: =AW50 -> 0 | AX52: =AX50 -> 0 | AY52: =AY50 -> 0 | AZ52: =AZ50 -> 0 | BA52: 0 | BB52: 0 | BC52: 0 | BD52: 0 | BE52: 0 | BF52: 0 | BG52: =BG50 -> 0
A53: ="Asset "&B53&" - TAB tracking" -> Asset 7 - TAB tracking | B53: 7
A54: ="Asset "&B54&" - RAB life" -> Asset 7 - RAB life | B54: 7 | C54: tracking | D54: 15 | E54: 15 | F54: 15 | G54: 15 | H54: 15 | I54: =IF($J$2=$Q$2,MIN(I$6,$H54),$H54) -> 15 | J54: =IF($J$2=$Q$2,MIN(J$6,$H54),$H54) -> 15 | K54: 15 | L54: 15 | M54: 15 | N54: 15 | O54: 15 | P54: 15 | Q54: 15 | R54: 15 | S54: 15 | T54: 15 | U54: 15 | V54: 15 | W54: 15 | X54: 15 | Y54: 15 | Z54: 15 | AA54: 15 | AB54: 15 | AC54: 15 | AD54: 15 | AE54: 15 | AF54: 15 | AG54: 15
A55: ="Asset "&B55&" - Tax life" -> Asset 7 - Tax life | B55: 7 | C55: 11.29329959 | D55: 15 | E55: 15 | F55: 15 | G55: 15 | H55: 15 | I55: =H55 -> 15 | J55: =I55 -> 15 | K55: 15 | L55: 15 | M55: 15 | N55: 15 | O55: 15 | P55: 15 | Q55: 15 | R55: 15 | S55: 15 | T55: 15 | U55: 15 | V55: 15 | W55: 15 | X55: 15 | Y55: 15 | Z55: 15 | AA55: 15 | AB55: 15 | AC55: 15 | AD55: 15 | AE55: 15 | AF55: 15 | AG55: 15
A56: ="Asset "&B56&" - capex (incurred)" -> Asset 8 - capex (incurred) | B56: 8 | C56: -0.3545222547
A57: ="Asset "&B57&" - capex (commissioned)" -> Asset 8 - capex (commissioned) | B57: 8 | C57: -0.3545222547
A58: ="Asset "&B58&" - tracking" -> Asset 8 - tracking | B58: 8 | D58: =INDEX(IF($J$2=$Q$2,Depreciation!D$16:D$27,Depreciation!D$2:D$13),'Current approach'!$B58) -> -0.3545222547 | E58: =INDEX(IF($J$2=$Q$2,Depreciation!E$16:E$27,Depreciation!E$2:E$13),'Current approach'!$B58) -> 0 | F58: =INDEX(IF($J$2=$Q$2,Depreciation!F$16:F$27,Depreciation!F$2:F$13),'Current approach'!$B58) -> 0 | G58: =INDEX(IF($J$2=$Q$2,Depreciation!G$16:G$27,Depreciation!G$2:G$13),'Current approach'!$B58) -> 0 | H58: =INDEX(IF($J$2=$Q$2,Depreciation!H$16:H$27,Depreciation!H$2:H$13),'Current approach'!$B58) -> 0 | I58: =INDEX(IF($J$2=$Q$2,Depreciation!I$16:I$27,Depreciation!I$2:I$13),'Current approach'!$B58) -> 0 | J58: =INDEX(IF($J$2=$Q$2,Depreciation!J$16:J$27,Depreciation!J$2:J$13),'Current approach'!$B58) -> 0 | K58: =INDEX(IF($J$2=$Q$2,Depreciation!K$16:K$27,Depreciation!K$2:K$13),'Current approach'!$B58) -> 0 | L58: =INDEX(IF($J$2=$Q$2,Depreciation!L$16:L$27,Depreciation!L$2:L$13),'Current approach'!$B58) -> 0 | M58: =INDEX(IF($J$2=$Q$2,Depreciation!M$16:M$27,Depreciation!M$2:M$13),'Current approach'!$B58) -> 0 | N58: =INDEX(IF($J$2=$Q$2,Depreciation!N$16:N$27,Depreciation!N$2:N$13),'Current approach'!$B58) -> 0 | O58: =INDEX(IF($J$2=$Q$2,Depreciation!O$16:O$27,Depreciation!O$2:O$13),'Current approach'!$B58) -> 0 | P58: =INDEX(IF($J$2=$Q$2,Depreciation!P$16:P$27,Depreciation!P$2:P$13),'Current approach'!$B58) -> 0 | Q58: =INDEX(IF($J$2=$Q$2,Depreciation!Q$16:Q$27,Depreciation!Q$2:Q$13),'Current approach'!$B58) -> 0 | R58: =INDEX(IF($J$2=$Q$2,Depreciation!R$16:R$27,Depreciation!R$2:R$13),'Current approach'!$B58) -> 0 | S58: =INDEX(IF($J$2=$Q$2,Depreciation!S$16:S$27,Depreciation!S$2:S$13),'Current approach'!$B58) -> 0 | T58: =INDEX(IF($J$2=$Q$2,Depreciation!T$16:T$27,Depreciation!T$2:T$13),'Current approach'!$B58) -> 0 | U58: =INDEX(IF($J$2=$Q$2,Depreciation!U$16:U$27,Depreciation!U$2:U$13),'Current approach'!$B58) -> 0 | V58: =INDEX(IF($J$2=$Q$2,Depreciation!V$16:V$27,Depreciation!V$2:V$13),'Current approach'!$B58) -> 0 | W58: =INDEX(IF($J$2=$Q$2,Depreciation!W$16:W$27,Depreciation!W$2:W$13),'Current approach'!$B58) -> 0 | X58: =INDEX(IF($J$2=$Q$2,Depreciation!X$16:X$27,Depreciation!X$2:X$13),'Current approach'!$B58) -> 0 | Y58: =INDEX(IF($J$2=$Q$2,Depreciation!Y$16:Y$27,Depreciation!Y$2:Y$13),'Current approach'!$B58) -> 0 | Z58: =INDEX(IF($J$2=$Q$2,Depreciation!Z$16:Z$27,Depreciation!Z$2:Z$13),'Current approach'!$B58) -> 0 | AA58: =INDEX(IF($J$2=$Q$2,Depreciation!AA$16:AA$27,Depreciation!AA$2:AA$13),'Current approach'!$B58) -> 0 | AB58: =INDEX(IF($J$2=$Q$2,Depreciation!AB$16:AB$27,Depreciation!AB$2:AB$13),'Current approach'!$B58) -> 0 | AC58: =INDEX(IF($J$2=$Q$2,Depreciation!AC$16:AC$27,Depreciation!AC$2:AC$13),'Current approach'!$B58) -> 0 | AD58: =INDEX(IF($J$2=$Q$2,Depreciation!AD$16:AD$27,Depreciation!AD$2:AD$13),'Current approach'!$B58) -> 0 | AE58: =INDEX(IF($J$2=$Q$2,Depreciation!AE$16:AE$27,Depreciation!AE$2:AE$13),'Current approach'!$B58) -> 0 | AF58: =INDEX(IF($J$2=$Q$2,Depreciation!AF$16:AF$27,Depreciation!AF$2:AF$13),'Current approach'!$B58) -> 0 | AG58: =INDEX(IF($J$2=$Q$2,Depreciation!AG$16:AG$27,Depreciation!AG$2:AG$13),'Current approach'!$B58) -> 0 | AH58: =INDEX(IF($J$2=$Q$2,Depreciation!AH$16:AH$27,Depreciation!AH$2:AH$13),'Current approach'!$B58) -> 0 | AI58: =INDEX(IF($J$2=$Q$2,Depreciation!AI$16:AI$27,Depreciation!AI$2:AI$13),'Current approach'!$B58) -> 0 | AJ58: =INDEX(IF($J$2=$Q$2,Depreciation!AJ$16:AJ$27,Depreciation!AJ$2:AJ$13),'Current approach'!$B58) -> 0 | AK58: =INDEX(IF($J$2=$Q$2,Depreciation!AK$16:AK$27,Depreciation!AK$2:AK$13),'Current approach'!$B58) -> 0 | AL58: =INDEX(IF($J$2=$Q$2,Depreciation!AL$16:AL$27,Depreciation!AL$2:AL$13),'Current approach'!$B58) -> 0 | AM58: =INDEX(IF($J$2=$Q$2,Depreciation!AM$16:AM$27,Depreciation!AM$2:AM$13),'Current approach'!$B58) -> 0 | AN58: =INDEX(IF($J$2=$Q$2,Depreciation!AN$16:AN$27,Depreciation!AN$2:AN$13),'Current approach'!$B58) -> 0 | AO58: =INDEX(IF($J$2=$Q$2,Depreciation!AO$16:AO$27,Depreciation!AO$2:AO$13),'Current approach'!$B58) -> 0 | AP58: =INDEX(IF($J$2=$Q$2,Depreciation!AP$16:AP$27,Depreciation!AP$2:AP$13),'Current approach'!$B58) -> 0 | AQ58: =INDEX(IF($J$2=$Q$2,Depreciation!AQ$16:AQ$27,Depreciation!AQ$2:AQ$13),'Current approach'!$B58) -> 0 | AR58: =INDEX(IF($J$2=$Q$2,Depreciation!AR$16:AR$27,Depreciation!AR$2:AR$13),'Current approach'!$B58) -> 0 | AS58: =INDEX(IF($J$2=$Q$2,Depreciation!AS$16:AS$27,Depreciation!AS$2:AS$13),'Current approach'!$B58) -> 0 | AT58: =INDEX(IF($J$2=$Q$2,Depreciation!AT$16:AT$27,Depreciation!AT$2:AT$13),'Current approach'!$B58) -> 0 | AU58: =INDEX(IF($J$2=$Q$2,Depreciation!AU$16:AU$27,Depreciation!AU$2:AU$13),'Current approach'!$B58) -> 0 | AV58: =INDEX(IF($J$2=$Q$2,Depreciation!AV$16:AV$27,Depreciation!AV$2:AV$13),'Current approach'!$B58) -> 0 | AW58: =INDEX(IF($J$2=$Q$2,Depreciation!AW$16:AW$27,Depreciation!AW$2:AW$13),'Current approach'!$B58) -> 0 | AX58: =INDEX(IF($J$2=$Q$2,Depreciation!AX$16:AX$27,Depreciation!AX$2:AX$13),'Current approach'!$B58) -> 0 | AY58: =INDEX(IF($J$2=$Q$2,Depreciation!AY$16:AY$27,Depreciation!AY$2:AY$13),'Current approach'!$B58) -> 0 | AZ58: =INDEX(IF($J$2=$Q$2,Depreciation!AZ$16:AZ$27,Depreciation!AZ$2:AZ$13),'Current approach'!$B58) -> 0 | BA58: =INDEX(IF($J$2=$Q$2,Depreciation!BA$16:BA$27,Depreciation!BA$2:BA$13),'Current approach'!$B58) -> 0 | BB58: =INDEX(IF($J$2=$Q$2,Depreciation!BB$16:BB$27,Depreciation!BB$2:BB$13),'Current approach'!$B58) -> 0 | BC58: =INDEX(IF($J$2=$Q$2,Depreciation!BC$16:BC$27,Depreciation!BC$2:BC$13),'Current approach'!$B58) -> 0 | BD58: =INDEX(IF($J$2=$Q$2,Depreciation!BD$16:BD$27,Depreciation!BD$2:BD$13),'Current approach'!$B58) -> 0 | BE58: =INDEX(IF($J$2=$Q$2,Depreciation!BE$16:BE$27,Depreciation!BE$2:BE$13),'Current approach'!$B58) -> 0 | BF58: =INDEX(IF($J$2=$Q$2,Depreciation!BF$16:BF$27,Depreciation!BF$2:BF$13),'Current approach'!$B58) -> 0 | BG58: =INDEX(IF($J$2=$Q$2,Depreciation!BG$16:BG$27,Depreciation!BG$2:BG$13),'Current approach'!$B58) -> 0
A59: ="Asset "&B59&" - Tax capex" -> Asset 8 - Tax capex | B59: 8 | C59: 0 | D59: =D57 -> 0 | E59: =E57 -> 0 | F59: =F57 -> 0 | G59: =G57 -> 0 | H59: =H57 -> 0 | I59: =I57 -> 0 | J59: =J57 -> 0 | K59: =K57 -> 0 | L59: =L57 -> 0 | M59: =M57 -> 0 | N59: =N57 -> 0 | O59: =O57 -> 0 | P59: =P57 -> 0 | Q59: =Q57 -> 0 | R59: =R57 -> 0 | S59: =S57 -> 0 | T59: =T57 -> 0 | U59: =U57 -> 0 | V59: =V57 -> 0 | W59: =W57 -> 0 | X59: =X57 -> 0 | Y59: =Y57 -> 0 | Z59: =Z57 -> 0 | AA59: =AA57 -> 0 | AB59: =AB57 -> 0 | AC59: =AC57 -> 0 | AD59: =AD57 -> 0 | AE59: =AE57 -> 0 | AF59: =AF57 -> 0 | AG59: =AG57 -> 0 | AH59: =AH57 -> 0 | AI59: =AI57 -> 0 | AJ59: =AJ57 -> 0 | AK59: =AK57 -> 0 | AL59: =AL57 -> 0 | AM59: =AM57 -> 0 | AN59: =AN57 -> 0 | AO59: =AO57 -> 0 | AP59: =AP57 -> 0 | AQ59: =AQ57 -> 0 | AR59: =AR57 -> 0 | AS59: =AS57 -> 0 | AT59: =AT57 -> 0 | AU59: =AU57 -> 0 | AV59: =AV57 -> 0 | AW59: =AW57 -> 0 | AX59: =AX57 -> 0 | AY59: =AY57 -> 0 | AZ59: =AZ57 -> 0 | BA59: 0 | BB59: 0 | BC59: 0 | BD59: 0 | BE59: 0 | BF59: 0 | BG59: =BG57 -> 0
A60: ="Asset "&B60&" - TAB tracking" -> Asset 8 - TAB tracking | B60: 8
A61: ="Asset "&B61&" - RAB life" -> Asset 8 - RAB life | B61: 8 | C61: tracking | D61: 5 | E61: 5 | F61: 5 | G61: 5 | H61: 5
A62: ="Asset "&B62&" - Tax life" -> Asset 8 - Tax life | B62: 8 | C62: 1 | D62: 5 | E62: 5 | F62: 5 | G62: 5 | H62: 5
A63: ="Asset "&B63&" - capex (incurred)" -> Asset 9 - capex (incurred) | B63: 9
A64: ="Asset "&B64&" - capex (commissioned)" -> Asset 9 - capex (commissioned) | B64: 9
A65: ="Asset "&B65&" - tracking" -> Asset 9 - tracking | B65: 9
A66: ="Asset "&B66&" - Tax capex" -> Asset 9 - Tax capex | B66: 9 | D66: =D64 -> 0 | E66: =E64 -> 0 | F66: =F64 -> 0 | G66: =G64 -> 0 | H66: =H64 -> 0 | I66: =I64 -> 0 | J66: =J64 -> 0 | K66: =K64 -> 0 | L66: =L64 -> 0 | M66: =M64 -> 0 | N66: =N64 -> 0 | O66: =O64 -> 0 | P66: =P64 -> 0 | Q66: =Q64 -> 0 | R66: =R64 -> 0 | S66: =S64 -> 0 | T66: =T64 -> 0 | U66: =U64 -> 0 | V66: =V64 -> 0 | W66: =W64 -> 0 | X66: =X64 -> 0 | Y66: =Y64 -> 0 | Z66: =Z64 -> 0 | AA66: =AA64 -> 0 | AB66: =AB64 -> 0 | AC66: =AC64 -> 0 | AD66: =AD64 -> 0 | AE66: =AE64 -> 0 | AF66: =AF64 -> 0 | AG66: =AG64 -> 0 | AH66: =AH64 -> 0 | AI66: =AI64 -> 0 | AJ66: =AJ64 -> 0 | AK66: =AK64 -> 0 | AL66: =AL64 -> 0 | AM66: =AM64 -> 0 | AN66: =AN64 -> 0 | AO66: =AO64 -> 0 | AP66: =AP64 -> 0 | AQ66: =AQ64 -> 0 | AR66: =AR64 -> 0 | AS66: =AS64 -> 0 | AT66: =AT64 -> 0 | AU66: =AU64 -> 0 | AV66: =AV64 -> 0 | AW66: =AW64 -> 0 | AX66: =AX64 -> 0 | AY66: =AY64 -> 0 | AZ66: =AZ64 -> 0 | BA66: 0 | BB66: 0 | BC66: 0 | BD66: 0 | BE66: 0 | BF66: 0 | BG66: =BG64 -> 0
A67: ="Asset "&B67&" - TAB tracking" -> Asset 9 - TAB tracking | B67: 9
A68: ="Asset "&B68&" - RAB life" -> Asset 9 - RAB life | B68: 9
A69: ="Asset "&B69&" - Tax life" -> Asset 9 - Tax life | B69: 9
A70: ="Asset "&B70&" - capex (incurred)" -> Asset 10 - capex (incurred) | B70: 10
A71: ="Asset "&B71&" - capex (commissioned)" -> Asset 10 - capex (commissioned) | B71: 10
A72: ="Asset "&B72&" - tracking" -> Asset 10 - tracking | B72: 10
A73: ="Asset "&B73&" - Tax capex" -> Asset 10 - Tax capex | B73: 10 | D73: =D71 -> 0 | E73: =E71 -> 0 | F73: =F71 -> 0 | G73: =G71 -> 0 | H73: =H71 -> 0 | I73: =I71 -> 0 | J73: =J71 -> 0 | K73: =K71 -> 0 | L73: =L71 -> 0 | M73: =M71 -> 0 | N73: =N71 -> 0 | O73: =O71 -> 0 | P73: =P71 -> 0 | Q73: =Q71 -> 0 | R73: =R71 -> 0 | S73: =S71 -> 0 | T73: =T71 -> 0 | U73: =U71 -> 0 | V73: =V71 -> 0 | W73: =W71 -> 0 | X73: =X71 -> 0 | Y73: =Y71 -> 0 | Z73: =Z71 -> 0 | AA73: =AA71 -> 0 | AB73: =AB71 -> 0 | AC73: =AC71 -> 0 | AD73: =AD71 -> 0 | AE73: =AE71 -> 0 | AF73: =AF71 -> 0 | AG73: =AG71 -> 0 | AH73: =AH71 -> 0 | AI73: =AI71 -> 0 | AJ73: =AJ71 -> 0 | AK73: =AK71 -> 0 | AL73: =AL71 -> 0 | AM73: =AM71 -> 0 | AN73: =AN71 -> 0 | AO73: =AO71 -> 0 | AP73: =AP71 -> 0 | AQ73: =AQ71 -> 0 | AR73: =AR71 -> 0 | AS73: =AS71 -> 0 | AT73: =AT71 -> 0 | AU73: =AU71 -> 0 | AV73: =AV71 -> 0 | AW73: =AW71 -> 0 | AX73: =AX71 -> 0 | AY73: =AY71 -> 0 | AZ73: =AZ71 -> 0 | BA73: 0 | BB73: 0 | BC73: 0 | BD73: 0 | BE73: 0 | BF73: 0 | BG73: =BG71 -> 0
A74: ="Asset "&B74&" - TAB tracking" -> Asset 10 - TAB tracking | B74: 10
A75: ="Asset "&B75&" - RAB life" -> Asset 10 - RAB life | B75: 10
A76: ="Asset "&B76&" - Tax life" -> Asset 10 - Tax life | B76: 10
A77: ="Asset "&B77&" - capex (incurred)" -> Asset 11 - capex (incurred) | B77: 11
A78: ="Asset "&B78&" - capex (commissioned)" -> Asset 11 - capex (commissioned) | B78: 11
A79: ="Asset "&B79&" - tracking" -> Asset 11 - tracking | B79: =B72+1 -> 11
A80: ="Asset "&B80&" - Tax capex" -> Asset 11 - Tax capex | B80: 11 | D80: =D78 -> 0 | E80: =E78 -> 0 | F80: 0 | G80: 0 | H80: 0 | I80: 0 | J80: 0 | K80: 0 | L80: 0 | M80: 0 | N80: 0 | O80: 0 | P80: 0 | Q80: 0 | R80: 0 | S80: 0 | T80: 0 | U80: 0 | V80: 0 | W80: 0 | X80: 0 | Y80: 0 | Z80: 0 | AA80: 0 | AB80: 0 | AC80: 0 | AD80: 0 | AE80: 0 | AF80: 0 | AG80: 0 | AH80: 0 | AI80: 0 | AJ80: 0 | AK80: 0 | AL80: 0 | AM80: 0 | AN80: 0 | AO80: 0 | AP80: 0 | AQ80: 0 | AR80: 0 | AS80: 0 | AT80: 0 | AU80: 0 | AV80: 0 | AW80: 0 | AX80: 0 | AY80: 0 | AZ80: 0 | BA80: 0 | BB80: 0 | BC80: 0 | BD80: 0 | BE80: 0 | BF80: 0 | BG80: 0
A81: ="Asset "&B81&" - TAB tracking" -> Asset 11 - TAB tracking | B81: 11
A82: ="Asset "&B82&" - RAB life" -> Asset 11 - RAB life | B82: 11
A83: ="Asset "&B83&" - Tax life" -> Asset 11 - Tax life | B83: 11
A84: ="Asset "&B84&" - capex (incurred)" -> Asset 12 - capex (incurred) | B84: 12
A85: ="Asset "&B85&" - capex (commissioned)" -> Asset 12 - capex (commissioned) | B85: 12
A86: ="Asset "&B86&" - tracking" -> Asset 12 - tracking | B86: 12
A87: ="Asset "&B87&" - Tax capex" -> Asset 12 - Tax capex | B87: 12 | D87: =D85 -> 0 | E87: =E85 -> 0 | F87: 0 | G87: 0 | H87: 0 | I87: 0 | J87: 0 | K87: 0 | L87: 0 | M87: 0 | N87: 0 | O87: 0 | P87: 0 | Q87: 0 | R87: 0 | S87: 0 | T87: 0 | U87: 0 | V87: 0 | W87: 0 | X87: 0 | Y87: 0 | Z87: 0 | AA87: 0 | AB87: 0 | AC87: 0 | AD87: 0 | AE87: 0 | AF87: 0 | AG87: 0 | AH87: 0 | AI87: 0 | AJ87: 0 | AK87: 0 | AL87: 0 | AM87: 0 | AN87: 0 | AO87: 0 | AP87: 0 | AQ87: 0 | AR87: 0 | AS87: 0 | AT87: 0 | AU87: 0 | AV87: 0 | AW87: 0 | AX87: 0 | AY87: 0 | AZ87: 0 | BA87: 0 | BB87: 0 | BC87: 0 | BD87: 0 | BE87: 0 | BF87: 0 | BG87: 0
A88: ="Asset "&B88&" - TAB tracking" -> Asset 12 - TAB tracking | B88: 12
A89: ="Asset "&B89&" - RAB life" -> Asset 12 - RAB life | B89: 12
A90: ="Asset "&B90&" - Tax life" -> Asset 12 - Tax life | B90: 12
A91: ="Asset "&B91&" - capex (incurred)" -> Asset 13 - capex (incurred) | B91: 13
A92: ="Asset "&B92&" - capex (commissioned)" -> Asset 13 - capex (commissioned) | B92: 13
A93: ="Asset "&B93&" - tracking" -> Asset 13 - tracking | B93: 13
A94: ="Asset "&B94&" - Tax capex" -> Asset 13 - Tax capex | B94: 13 | D94: =D92 -> 0 | E94: =E92 -> 0 | F94: 0 | G94: 0 | H94: 0 | I94: 0 | J94: 0 | K94: 0 | L94: 0 | M94: 0 | N94: 0 | O94: 0 | P94: 0 | Q94: 0 | R94: 0 | S94: 0 | T94: 0 | U94: 0 | V94: 0 | W94: 0 | X94: 0 | Y94: 0 | Z94: 0 | AA94: 0 | AB94: 0 | AC94: 0 | AD94: 0 | AE94: 0 | AF94: 0 | AG94: 0 | AH94: 0 | AI94: 0 | AJ94: 0 | AK94: 0 | AL94: 0 | AM94: 0 | AN94: 0 | AO94: 0 | AP94: 0 | AQ94: 0 | AR94: 0 | AS94: 0 | AT94: 0 | AU94: 0 | AV94: 0 | AW94: 0 | AX94: 0 | AY94: 0 | AZ94: 0 | BA94: 0 | BB94: 0 | BC94: 0 | BD94: 0 | BE94: 0 | BF94: 0 | BG94: 0
A95: ="Asset "&B95&" - TAB tracking" -> Asset 13 - TAB tracking | B95: 13
A96: ="Asset "&B96&" - RAB life" -> Asset 13 - RAB life | B96: 13
A97: ="Asset "&B97&" - Tax life" -> Asset 13 - Tax life | B97: 13
A98: ="Asset "&B98&" - capex (incurred)" -> Asset 14 - capex (incurred) | B98: 14
A99: ="Asset "&B99&" - capex (commissioned)" -> Asset 14 - capex (commissioned) | B99: 14
A100: ="Asset "&B100&" - tracking" -> Asset 14 - tracking | B100: 14
A101: ="Asset "&B101&" - Tax capex" -> Asset 14 - Tax capex | B101: 14 | D101: =D99 -> 0 | E101: =E99 -> 0 | F101: 0 | G101: 0 | H101: 0 | I101: 0 | J101: 0 | K101: 0 | L101: 0 | M101: 0 | N101: 0 | O101: 0 | P101: 0 | Q101: 0 | R101: 0 | S101: 0 | T101: 0 | U101: 0 | V101: 0 | W101: 0 | X101: 0 | Y101: 0 | Z101: 0 | AA101: 0 | AB101: 0 | AC101: 0 | AD101: 0 | AE101: 0 | AF101: 0 | AG101: 0 | AH101: 0 | AI101: 0 | AJ101: 0 | AK101: 0 | AL101: 0 | AM101: 0 | AN101: 0 | AO101: 0 | AP101: 0 | AQ101: 0 | AR101: 0 | AS101: 0 | AT101: 0 | AU101: 0 | AV101: 0 | AW101: 0 | AX101: 0 | AY101: 0 | AZ101: 0 | BA101: 0 | BB101: 0 | BC101: 0 | BD101: 0 | BE101: 0 | BF101: 0 | BG101: 0
A102: ="Asset "&B102&" - TAB tracking" -> Asset 14 - TAB tracking | B102: 14
A103: ="Asset "&B103&" - RAB life" -> Asset 14 - RAB life | B103: 14
A104: ="Asset "&B104&" - Tax life" -> Asset 14 - Tax life | B104: 14
A105: ="Asset "&B105&" - capex (incurred)" -> Asset 15 - capex (incurred) | B105: 15
A106: ="Asset "&B106&" - capex (commissioned)" -> Asset 15 - capex (commissioned) | B106: 15
A107: ="Asset "&B107&" - tracking" -> Asset 15 - tracking | B107: 15
A108: ="Asset "&B108&" - Tax capex" -> Asset 15 - Tax capex | B108: 15 | D108: =D106 -> 0 | E108: =E106 -> 0 | F108: 0 | G108: 0 | H108: 0 | I108: 0 | J108: 0 | K108: 0 | L108: 0 | M108: 0 | N108: 0 | O108: 0 | P108: 0 | Q108: 0 | R108: 0 | S108: 0 | T108: 0 | U108: 0 | V108: 0 | W108: 0 | X108: 0 | Y108: 0 | Z108: 0 | AA108: 0 | AB108: 0 | AC108: 0 | AD108: 0 | AE108: 0 | AF108: 0 | AG108: 0 | AH108: 0 | AI108: 0 | AJ108: 0 | AK108: 0 | AL108: 0 | AM108: 0 | AN108: 0 | AO108: 0 | AP108: 0 | AQ108: 0 | AR108: 0 | AS108: 0 | AT108: 0 | AU108: 0 | AV108: 0 | AW108: 0 | AX108: 0 | AY108: 0 | AZ108: 0 | BA108: 0 | BB108: 0 | BC108: 0 | BD108: 0 | BE108: 0 | BF108: 0 | BG108: 0
A109: ="Asset "&B109&" - TAB tracking" -> Asset 15 - TAB tracking | B109: 15
A110: ="Asset "&B110&" - RAB life" -> Asset 15 - RAB life | B110: 15
A111: ="Asset "&B111&" - Tax life" -> Asset 15 - Tax life | B111: 15
A112: ="Asset "&B112&" - capex (incurred)" -> Asset 16 - capex (incurred) | B112: 16
A113: ="Asset "&B113&" - capex (commissioned)" -> Asset 16 - capex (commissioned) | B113: 16
A114: ="Asset "&B114&" - tracking" -> Asset 16 - tracking | B114: 16
A115: ="Asset "&B115&" - Tax capex" -> Asset 16 - Tax capex | B115: 16 | D115: =D113 -> 0 | E115: =E113 -> 0 | F115: 0 | G115: 0 | H115: 0 | I115: 0 | J115: 0 | K115: 0 | L115: 0 | M115: 0 | N115: 0 | O115: 0 | P115: 0 | Q115: 0 | R115: 0 | S115: 0 | T115: 0 | U115: 0 | V115: 0 | W115: 0 | X115: 0 | Y115: 0 | Z115: 0 | AA115: 0 | AB115: 0 | AC115: 0 | AD115: 0 | AE115: 0 | AF115: 0 | AG115: 0 | AH115: 0 | AI115: 0 | AJ115: 0 | AK115: 0 | AL115: 0 | AM115: 0 | AN115: 0 | AO115: 0 | AP115: 0 | AQ115: 0 | AR115: 0 | AS115: 0 | AT115: 0 | AU115: 0 | AV115: 0 | AW115: 0 | AX115: 0 | AY115: 0 | AZ115: 0 | BA115: 0 | BB115: 0 | BC115: 0 | BD115: 0 | BE115: 0 | BF115: 0 | BG115: 0
A116: ="Asset "&B116&" - TAB tracking" -> Asset 16 - TAB tracking | B116: 16
A117: ="Asset "&B117&" - RAB life" -> Asset 16 - RAB life | B117: 16
A118: ="Asset "&B118&" - Tax life" -> Asset 16 - Tax life | B118: 16
A119: ="Asset "&B119&" - capex (incurred)" -> Asset 17 - capex (incurred) | B119: 17
A120: ="Asset "&B120&" - capex (commissioned)" -> Asset 17 - capex (commissioned) | B120: 17
A121: ="Asset "&B121&" - tracking" -> Asset 17 - tracking | B121: 17
A122: ="Asset "&B122&" - Tax capex" -> Asset 17 - Tax capex | B122: 17 | D122: =D120 -> 0 | E122: 0 | F122: 0 | G122: 0 | H122: 0 | I122: 0 | J122: 0 | K122: 0 | L122: 0 | M122: 0 | N122: =N120 -> 0 | O122: 0 | P122: 0 | Q122: 0 | R122: 0 | S122: 0 | T122: 0 | U122: 0 | V122: 0 | W122: 0 | X122: 0 | Y122: 0 | Z122: 0 | AA122: 0 | AB122: 0 | AC122: 0 | AD122: 0 | AE122: 0 | AF122: 0 | AG122: 0 | AH122: 0 | AI122: 0 | AJ122: 0 | AK122: 0 | AL122: 0 | AM122: 0 | AN122: 0 | AO122: 0 | AP122: 0 | AQ122: 0 | AR122: 0 | AS122: 0 | AT122: 0 | AU122: 0 | AV122: 0 | AW122: 0 | AX122: 0 | AY122: 0 | AZ122: 0 | BA122: 0 | BB122: 0 | BC122: 0 | BD122: 0 | BE122: 0 | BF122: 0 | BG122: 0
A123: ="Asset "&B123&" - TAB tracking" -> Asset 17 - TAB tracking | B123: 17
A124: ="Asset "&B124&" - RAB life" -> Asset 17 - RAB life | B124: 17
A125: ="Asset "&B125&" - Tax life" -> Asset 17 - Tax life | B125: 17
A126: ="Asset "&B126&" - capex (incurred)" -> Asset 18 - capex (incurred) | B126: 18
A127: ="Asset "&B127&" - capex (commissioned)" -> Asset 18 - capex (commissioned) | B127: 18
A128: ="Asset "&B128&" - tracking" -> Asset 18 - tracking | B128: 18
A129: ="Asset "&B129&" - Tax capex" -> Asset 18 - Tax capex | B129: 18 | D129: =D127 -> 0 | E129: =E127 -> 0 | F129: 0 | G129: 0 | H129: 0 | I129: 0 | J129: 0 | K129: 0 | L129: 0 | M129: 0 | N129: 0 | O129: 0 | P129: 0 | Q129: 0 | R129: 0 | S129: 0 | T129: 0 | U129: 0 | V129: 0 | W129: 0 | X129: 0 | Y129: 0 | Z129: 0 | AA129: 0 | AB129: 0 | AC129: 0 | AD129: 0 | AE129: 0 | AF129: 0 | AG129: 0 | AH129: 0 | AI129: 0 | AJ129: 0 | AK129: 0 | AL129: 0 | AM129: 0 | AN129: 0 | AO129: 0 | AP129: 0 | AQ129: 0 | AR129: 0 | AS129: 0 | AT129: 0 | AU129: 0 | AV129: 0 | AW129: 0 | AX129: 0 | AY129: 0 | AZ129: 0 | BA129: 0 | BB129: 0 | BC129: 0 | BD129: 0 | BE129: 0 | BF129: 0 | BG129: 0
A130: ="Asset "&B130&" - TAB tracking" -> Asset 18 - TAB tracking | B130: 18
A131: ="Asset "&B131&" - RAB life" -> Asset 18 - RAB life | B131: 18
A132: ="Asset "&B132&" - Tax life" -> Asset 18 - Tax life | B132: 18
A133: ="Asset "&B133&" - capex (incurred)" -> Asset 19 - capex (incurred) | B133: 19
A134: ="Asset "&B134&" - capex (commissioned)" -> Asset 19 - capex (commissioned) | B134: 19
A135: ="Asset "&B135&" - tracking" -> Asset 19 - tracking | B135: 19
A136: ="Asset "&B136&" - Tax capex" -> Asset 19 - Tax capex | B136: 19 | D136: =D134 -> 0 | E136: =E134 -> 0 | F136: 0 | G136: 0 | H136: 0 | I136: 0 | J136: 0 | K136: 0 | L136: 0 | M136: 0 | N136: 0 | O136: 0 | P136: 0 | Q136: 0 | R136: 0 | S136: 0 | T136: 0 | U136: 0 | V136: 0 | W136: 0 | X136: 0 | Y136: 0 | Z136: 0 | AA136: 0 | AB136: 0 | AC136: 0 | AD136: 0 | AE136: 0 | AF136: 0 | AG136: 0 | AH136: 0 | AI136: 0 | AJ136: 0 | AK136: 0 | AL136: 0 | AM136: 0 | AN136: 0 | AO136: 0 | AP136: 0 | AQ136: 0 | AR136: 0 | AS136: 0 | AT136: 0 | AU136: 0 | AV136: 0 | AW136: 0 | AX136: 0 | AY136: 0 | AZ136: 0 | BA136: 0 | BB136: 0 | BC136: 0 | BD136: 0 | BE136: 0 | BF136: 0 | BG136: 0
A137: ="Asset "&B137&" - TAB tracking" -> Asset 19 - TAB tracking | B137: 19
A138: ="Asset "&B138&" - RAB life" -> Asset 19 - RAB life | B138: 19
A139: ="Asset "&B139&" - Tax life" -> Asset 19 - Tax life | B139: 19
A140: ="Asset "&B140&" - capex (incurred)" -> Asset 20 - capex (incurred) | B140: 20
A141: ="Asset "&B141&" - capex (commissioned)" -> Asset 20 - capex (commissioned) | B141: 20
A142: ="Asset "&B142&" - tracking" -> Asset 20 - tracking | B142: 20
A143: ="Asset "&B143&" - Tax capex" -> Asset 20 - Tax capex | B143: =B136+1 -> 20 | D143: =D141 -> 0 | E143: =E141 -> 0 | F143: 0 | G143: 0 | H143: 0 | I143: 0 | J143: 0 | K143: 0 | L143: 0 | M143: 0 | N143: 0 | O143: 0 | P143: 0 | Q143: 0 | R143: 0 | S143: 0 | T143: 0 | U143: 0 | V143: 0 | W143: 0 | X143: 0 | Y143: 0 | Z143: 0 | AA143: 0 | AB143: 0 | AC143: 0 | AD143: 0 | AE143: 0 | AF143: 0 | AG143: 0 | AH143: 0 | AI143: 0 | AJ143: 0 | AK143: 0 | AL143: 0 | AM143: 0 | AN143: 0 | AO143: 0 | AP143: 0 | AQ143: 0 | AR143: 0 | AS143: 0 | AT143: 0 | AU143: 0 | AV143: 0 | AW143: 0 | AX143: 0 | AY143: 0 | AZ143: 0 | BA143: 0 | BB143: 0 | BC143: 0 | BD143: 0 | BE143: 0 | BF143: 0 | BG143: 0
A144: ="Asset "&B144&" - TAB tracking" -> Asset 20 - TAB tracking | B144: 20
A145: ="Asset "&B145&" - RAB life" -> Asset 20 - RAB life | B145: 20
A146: ="Asset "&B146&" - Tax life" -> Asset 20 - Tax life | B146: 20
A147: ="Asset "&B147&" - capex (incurred)" -> Asset 21 - capex (incurred) | B147: 21
A148: ="Asset "&B148&" - capex (commissioned)" -> Asset 21 - capex (commissioned) | B148: 21
A149: ="Asset "&B149&" - tracking" -> Asset 21 - tracking | B149: 21
A150: ="Asset "&B150&" - Tax capex" -> Asset 21 - Tax capex | B150: 21 | D150: =D148 -> 0 | E150: =E148 -> 0 | F150: 0 | G150: 0 | H150: 0 | I150: 0 | J150: 0 | K150: 0 | L150: 0 | M150: 0 | N150: 0 | O150: 0 | P150: 0 | Q150: 0 | R150: 0 | S150: 0 | T150: 0 | U150: 0 | V150: 0 | W150: 0 | X150: 0 | Y150: 0 | Z150: 0 | AA150: 0 | AB150: 0 | AC150: 0 | AD150: 0 | AE150: 0 | AF150: 0 | AG150: 0 | AH150: 0 | AI150: 0 | AJ150: 0 | AK150: 0 | AL150: 0 | AM150: 0 | AN150: 0 | AO150: 0 | AP150: 0 | AQ150: 0 | AR150: 0 | AS150: 0 | AT150: 0 | AU150: 0 | AV150: 0 | AW150: 0 | AX150: 0 | AY150: 0 | AZ150: 0 | BA150: 0 | BB150: 0 | BC150: 0 | BD150: 0 | BE150: 0 | BF150: 0 | BG150: 0
A151: ="Asset "&B151&" - TAB tracking" -> Asset 21 - TAB tracking | B151: 21
A152: ="Asset "&B152&" - RAB life" -> Asset 21 - RAB life | B152: 21
A153: ="Asset "&B153&" - Tax life" -> Asset 21 - Tax life | B153: 21
A154: ="Asset "&B154&" - capex (incurred)" -> Asset 22 - capex (incurred) | B154: 22
A155: ="Asset "&B155&" - capex (commissioned)" -> Asset 22 - capex (commissioned) | B155: 22
A156: ="Asset "&B156&" - tracking" -> Asset 22 - tracking | B156: 22
A157: ="Asset "&B157&" - Tax capex" -> Asset 22 - Tax capex | B157: 22 | D157: =D155 -> 0 | E157: =E155 -> 0 | F157: 0 | G157: 0 | H157: 0 | I157: 0 | J157: 0 | K157: 0 | L157: 0 | M157: 0 | N157: 0 | O157: 0 | P157: 0 | Q157: 0 | R157: 0 | S157: 0 | T157: 0 | U157: 0 | V157: 0 | W157: 0 | X157: 0 | Y157: 0 | Z157: 0 | AA157: 0 | AB157: 0 | AC157: 0 | AD157: 0 | AE157: 0 | AF157: 0 | AG157: 0 | AH157: 0 | AI157: 0 | AJ157: 0 | AK157: 0 | AL157: 0 | AM157: 0 | AN157: 0 | AO157: 0 | AP157: 0 | AQ157: 0 | AR157: 0 | AS157: 0 | AT157: 0 | AU157: 0 | AV157: 0 | AW157: 0 | AX157: 0 | AY157: 0 | AZ157: 0 | BA157: 0 | BB157: 0 | BC157: 0 | BD157: 0 | BE157: 0 | BF157: 0 | BG157: 0
A158: ="Asset "&B158&" - TAB tracking" -> Asset 22 - TAB tracking | B158: 22
A159: ="Asset "&B159&" - RAB life" -> Asset 22 - RAB life | B159: 22
A160: ="Asset "&B160&" - Tax life" -> Asset 22 - Tax life | B160: 22
A161: ="Asset "&B161&" - capex (incurred)" -> Asset 23 - capex (incurred) | B161: 23
A162: ="Asset "&B162&" - capex (commissioned)" -> Asset 23 - capex (commissioned) | B162: 23
A163: ="Asset "&B163&" - tracking" -> Asset 23 - tracking | B163: 23
A164: ="Asset "&B164&" - Tax capex" -> Asset 23 - Tax capex | B164: 23 | D164: =D162 -> 0 | E164: =E162 -> 0 | F164: 0 | G164: 0 | H164: 0 | I164: 0 | J164: 0 | K164: 0 | L164: 0 | M164: 0 | N164: 0 | O164: 0 | P164: 0 | Q164: 0 | R164: 0 | S164: 0 | T164: 0 | U164: 0 | V164: 0 | W164: 0 | X164: 0 | Y164: 0 | Z164: 0 | AA164: 0 | AB164: 0 | AC164: 0 | AD164: 0 | AE164: 0 | AF164: 0 | AG164: 0 | AH164: 0 | AI164: 0 | AJ164: 0 | AK164: 0 | AL164: 0 | AM164: 0 | AN164: 0 | AO164: 0 | AP164: 0 | AQ164: 0 | AR164: 0 | AS164: 0 | AT164: 0 | AU164: 0 | AV164: 0 | AW164: 0 | AX164: 0 | AY164: 0 | AZ164: 0 | BA164: 0 | BB164: 0 | BC164: 0 | BD164: 0 | BE164: 0 | BF164: 0 | BG164: 0
A165: ="Asset "&B165&" - TAB tracking" -> Asset 23 - TAB tracking | B165: 23
A166: ="Asset "&B166&" - RAB life" -> Asset 23 - RAB life | B166: 23
A167: ="Asset "&B167&" - Tax life" -> Asset 23 - Tax life | B167: 23 | Z167: 0 | AA167: 0 | AB167: 0 | AC167: 0 | AD167: 0 | AE167: 0 | AF167: 0 | AG167: 0 | AH167: 0 | AI167: 0 | AJ167: 0 | AK167: 0 | AL167: 0 | AM167: 0 | AN167: 0 | AO167: 0 | AP167: 0 | AQ167: 0 | AR167: 0 | AS167: 0 | AT167: 0 | AU167: 0 | AV167: 0 | AW167: 0 | AX167: 0 | AY167: 0 | AZ167: 0 | BA167: 0 | BB167: 0 | BC167: 0 | BD167: 0 | BE167: 0 | BF167: 0 | BG167: 0
A168: ="Asset "&B168&" - capex (incurred)" -> Asset 24 - capex (incurred) | B168: 24
A169: ="Asset "&B169&" - capex (commissioned)" -> Asset 24 - capex (commissioned) | B169: 24
A170: ="Asset "&B170&" - tracking" -> Asset 24 - tracking | B170: 24
A171: ="Asset "&B171&" - Tax capex" -> Asset 24 - Tax capex | B171: 24 | D171: =D169 -> 0 | E171: =E169 -> 0 | F171: 0 | G171: 0 | H171: 0 | I171: 0 | J171: 0 | K171: 0 | L171: 0 | M171: 0 | N171: 0 | O171: 0 | P171: 0 | Q171: 0 | R171: 0 | S171: 0 | T171: 0 | U171: 0 | V171: 0 | W171: 0 | X171: 0 | Y171: 0 | Z171: 0 | AA171: 0 | AB171: 0 | AC171: 0 | AD171: 0 | AE171: 0 | AF171: 0 | AG171: 0 | AH171: 0 | AI171: 0 | AJ171: 0 | AK171: 0 | AL171: 0 | AM171: 0 | AN171: 0 | AO171: 0 | AP171: 0 | AQ171: 0 | AR171: 0 | AS171: 0 | AT171: 0 | AU171: 0 | AV171: 0 | AW171: 0 | AX171: 0 | AY171: 0 | AZ171: 0 | BA171: 0 | BB171: 0 | BC171: 0 | BD171: 0 | BE171: 0 | BF171: 0 | BG171: 0
A172: ="Asset "&B172&" - TAB tracking" -> Asset 24 - TAB tracking | B172: 24
A173: ="Asset "&B173&" - RAB life" -> Asset 24 - RAB life | B173: 24
A174: ="Asset "&B174&" - Tax life" -> Asset 24 - Tax life | B174: 24
A175: ="Asset "&B175&" - capex (incurred)" -> Asset 25 - capex (incurred) | B175: 25
A176: ="Asset "&B176&" - capex (commissioned)" -> Asset 25 - capex (commissioned) | B176: 25
A177: ="Asset "&B177&" - tracking" -> Asset 25 - tracking | B177: 25
A178: ="Asset "&B178&" - Tax capex" -> Asset 25 - Tax capex | B178: 25 | D178: =D176 -> 0 | E178: =E176 -> 0 | F178: 0 | G178: 0 | H178: 0 | I178: 0 | J178: 0 | K178: 0 | L178: 0 | M178: 0 | N178: 0 | O178: 0 | P178: 0 | Q178: 0 | R178: 0 | S178: 0 | T178: 0 | U178: 0 | V178: 0 | W178: 0 | X178: 0 | Y178: 0 | Z178: 0 | AA178: 0 | AB178: 0 | AC178: 0 | AD178: 0 | AE178: 0 | AF178: 0 | AG178: 0 | AH178: 0 | AI178: 0 | AJ178: 0 | AK178: 0 | AL178: 0 | AM178: 0 | AN178: 0 | AO178: 0 | AP178: 0 | AQ178: 0 | AR178: 0 | AS178: 0 | AT178: 0 | AU178: 0 | AV178: 0 | AW178: 0 | AX178: 0 | AY178: 0 | AZ178: 0 | BA178: 0 | BB178: 0 | BC178: 0 | BD178: 0 | BE178: 0 | BF178: 0 | BG178: 0
A179: ="Asset "&B179&" - TAB tracking" -> Asset 25 - TAB tracking | B179: 25
A180: ="Asset "&B180&" - RAB life" -> Asset 25 - RAB life | B180: 25
A181: ="Asset "&B181&" - Tax life" -> Asset 25 - Tax life | B181: 25
A182: ="Asset "&B182&" - capex (incurred)" -> Asset 26 - capex (incurred) | B182: 26
A183: ="Asset "&B183&" - capex (commissioned)" -> Asset 26 - capex (commissioned) | B183: 26
A184: ="Asset "&B184&" - tracking" -> Asset 26 - tracking | B184: 26
A185: ="Asset "&B185&" - Tax capex" -> Asset 26 - Tax capex | B185: 26 | D185: =D183 -> 0 | E185: =E183 -> 0 | F185: 0 | G185: 0 | H185: 0 | I185: 0 | J185: 0 | K185: 0 | L185: 0 | M185: 0 | N185: 0 | O185: 0 | P185: 0 | Q185: 0 | R185: 0 | S185: 0 | T185: 0 | U185: 0 | V185: 0 | W185: 0 | X185: 0 | Y185: 0 | Z185: 0 | AA185: 0 | AB185: 0 | AC185: 0 | AD185: 0 | AE185: 0 | AF185: 0 | AG185: 0 | AH185: 0 | AI185: 0 | AJ185: 0 | AK185: 0 | AL185: 0 | AM185: 0 | AN185: 0 | AO185: 0 | AP185: 0 | AQ185: 0 | AR185: 0 | AS185: 0 | AT185: 0 | AU185: 0 | AV185: 0 | AW185: 0 | AX185: 0 | AY185: 0 | AZ185: 0 | BA185: 0 | BB185: 0 | BC185: 0 | BD185: 0 | BE185: 0 | BF185: 0 | BG185: 0
A186: ="Asset "&B186&" - TAB tracking" -> Asset 26 - TAB tracking | B186: 26
A187: ="Asset "&B187&" - RAB life" -> Asset 26 - RAB life | B187: 26
A188: ="Asset "&B188&" - Tax life" -> Asset 26 - Tax life | B188: 26
A189: ="Asset "&B189&" - capex (incurred)" -> Asset 27 - capex (incurred) | B189: 27
A190: ="Asset "&B190&" - capex (commissioned)" -> Asset 27 - capex (commissioned) | B190: 27
A191: ="Asset "&B191&" - tracking" -> Asset 27 - tracking | B191: 27
A192: ="Asset "&B192&" - Tax capex" -> Asset 27 - Tax capex | B192: 27 | D192: =D190 -> 0 | E192: =E190 -> 0 | F192: 0 | G192: 0 | H192: 0 | I192: 0 | J192: 0 | K192: 0 | L192: 0 | M192: 0 | N192: 0 | O192: 0 | P192: 0 | Q192: 0 | R192: 0 | S192: 0 | T192: 0 | U192: 0 | V192: 0 | W192: 0 | X192: 0 | Y192: 0 | Z192: 0 | AA192: 0 | AB192: 0 | AC192: 0 | AD192: 0 | AE192: 0 | AF192: 0 | AG192: 0 | AH192: 0 | AI192: 0 | AJ192: 0 | AK192: 0 | AL192: 0 | AM192: 0 | AN192: 0 | AO192: 0 | AP192: 0 | AQ192: 0 | AR192: 0 | AS192: 0 | AT192: 0 | AU192: 0 | AV192: 0 | AW192: 0 | AX192: 0 | AY192: 0 | AZ192: 0 | BA192: 0 | BB192: 0 | BC192: 0 | BD192: 0 | BE192: 0 | BF192: 0 | BG192: 0
A193: ="Asset "&B193&" - TAB tracking" -> Asset 27 - TAB tracking | B193: 27
A194: ="Asset "&B194&" - RAB life" -> Asset 27 - RAB life | B194: 27
A195: ="Asset "&B195&" - Tax life" -> Asset 27 - Tax life | B195: 27
A196: ="Asset "&B196&" - capex (incurred)" -> Asset 28 - capex (incurred) | B196: 28
A197: ="Asset "&B197&" - capex (commissioned)" -> Asset 28 - capex (commissioned) | B197: 28
A198: ="Asset "&B198&" - tracking" -> Asset 28 - tracking | B198: 28
A199: ="Asset "&B199&" - Tax capex" -> Asset 28 - Tax capex | B199: 28 | D199: =D197 -> 0 | E199: =E197 -> 0 | F199: 0 | G199: 0 | H199: 0 | I199: 0 | J199: 0 | K199: 0 | L199: 0 | M199: 0 | N199: 0 | O199: 0 | P199: 0 | Q199: 0 | R199: 0 | S199: 0 | T199: 0 | U199: 0 | V199: 0 | W199: 0 | X199: 0 | Y199: 0 | Z199: 0 | AA199: 0 | AB199: 0 | AC199: 0 | AD199: 0 | AE199: 0 | AF199: 0 | AG199: 0 | AH199: 0 | AI199: 0 | AJ199: 0 | AK199: 0 | AL199: 0 | AM199: 0 | AN199: 0 | AO199: 0 | AP199: 0 | AQ199: 0 | AR199: 0 | AS199: 0 | AT199: 0 | AU199: 0 | AV199: 0 | AW199: 0 | AX199: 0 | AY199: 0 | AZ199: 0 | BA199: 0 | BB199: 0 | BC199: 0 | BD199: 0 | BE199: 0 | BF199: 0 | BG199: 0
A200: ="Asset "&B200&" - TAB tracking" -> Asset 28 - TAB tracking | B200: 28
A201: ="Asset "&B201&" - RAB life" -> Asset 28 - RAB life | B201: 28
... 919 more rows

Sheet Fully depreciate
I1: Scenarios | J1: Depreciation | K1: Capex | L1: Opex | Q1: SL | R1: BAU
J2: SYD | K2: linear decline | L2: BAU | Q2: S-curve | R2: linear decline
Q3: SYD
D4: ='Current approach'!I4 -> 2026-27 | E4: =(LEFT(D4,4)+1&IF(MID(D4,5,1)="","","-"&TEXT(MOD(MID(D4,6,2)+1,100),"00"))) -> 2027-28 | F4: =(LEFT(E4,4)+1&IF(MID(E4,5,1)="","","-"&TEXT(MOD(MID(E4,6,2)+1,100),"00"))) -> 2028-29 | G4: 2029-30 | H4: 2030-31 | I4: 2031-32 | J4: 2032-33 | K4: 2033-34 | L4: 2034-35 | M4: 2035-36 | N4: 2036-37 | O4: 2037-38 | P4: 2038-39 | Q4: 2039-40 | R4: 2040-41 | S4: 2041-42 | T4: 2042-43 | U4: 2043-44 | V4: 2044-45 | W4: 2045-46 | X4: 2046-47 | Y4: 2047-48 | Z4: 2048-49 | AA4: 2049-50 | AB4: 2050-51 | AC4: 2051-52 | AD4: 2052-53 | AE4: 2053-54 | AF4: 2054-55 | AG4: 2055-56 | AH4: 2056-57 | AI4: 2057-58 | AJ4: 2058-59 | AK4: 2059-60 | AL4: 2060-61 | AM4: 2061-62 | AN4: 2062-63 | AO4: 2063-64 | AP4: 2064-65 | AQ4: 2065-66 | AR4: 2066-67 | AS4: 2067-68 | AT4: 2068-69 | AU4: 2069-70 | AV4: 2070-71 | AW4: 2071-72 | AX4: 2072-73 | AY4: 2073-74 | AZ4: 2074-75 | BA4: 2075-76 | BB4: 2076-77 | BC4: 2077-78 | BD4: 2078-79 | BE4: 2079-80 | BF4: 2080-81 | BG4: 2081-82
A5: Inputs ($real) | C5: 0 | D5: 1 | E5: 2 | F5: 3 | G5: 4 | H5: 5 | I5: 6 | J5: 7 | K5: 8 | L5: 9 | M5: 10 | N5: 11 | O5: 12 | P5: 13 | Q5: 14 | R5: 15 | S5: 16 | T5: 17 | U5: 18 | V5: 19 | W5: 20 | X5: 21 | Y5: 22 | Z5: 23 | AA5: 24 | AB5: 25 | AC5: 26 | AD5: 27 | AE5: 28 | AF5: 29 | AG5: 30 | AH5: 31 | AI5: 32 | AJ5: 33 | AK5: 34 | AL5: 35 | AM5: 36 | AN5: 37 | AO5: 38 | AP5: 39 | AQ5: 40 | AR5: 41 | AS5: 42 | AT5: 43 | AU5: 44 | AV5: 45 | AW5: 46 | AX5: 47 | AY5: 48 | AZ5: 49 | BA5: 50 | BB5: 51 | BC5: 52 | BD5: 53 | BE5: 54 | BF5: 55 | BG5: 56
A6: \/ Asset base inputs \/ | C6: Opening base | D6: capex--> | E6: 5 | F6: 5 | G6: 5 | H6: 5 | I6: 5 | J6: 5 | K6: 5 | L6: 5 | M6: 5 | N6: 5 | O6: 5 | P6: 5 | Q6: 5 | R6: 5 | S6: 1 | T6: 1 | U6: 1 | V6: 1 | W6: 1
A7: ="Asset "&B7&" - capex (incurred)" -> Asset 1 - capex (incurred) | B7: 1 | C7: ='Current approach'!$I$1868 -> 380.88573 | D7: =IF($K$2=$R$2,(SUM('Current approach'!$D$56:$H$56,'Current approach'!$D$49:$H$49,'Current approach'!$D$42:$H$42,'Current approach'!$D$35:$H$35,'Current approach'!$D$28:$H$28,'Current approach'!$D$21:$H$21,'Current approach'!$D$14:$H$14,'Current approach'!$D$7:$H$7)/5)*(($W$5-E$5)/($W$5-$D$5)),(SUM('Current approach'!$D$56:$H$56,'Current approach'!$D$49:$H$49,'Current approach'!$D$42:$H$42,'Current approach'!$D$35:$H$35,'Current approach'!$D$28:$H$28,'Current approach'!$D$21:$H$21,'Current approach'!$D$14:$H$14,'Current approach'!$D$7:$H$7)/5)) -> 9.645006099 | E7: =IF($K$2=$R$2,(SUM('Current approach'!$D$56:$H$56,'Current approach'!$D$49:$H$49,'Current approach'!$D$42:$H$42,'Current approach'!$D$35:$H$35,'Current approach'!$D$28:$H$28,'Current approach'!$D$21:$H$21,'Current approach'!$D$14:$H$14,'Current approach'!$D$7:$H$7)/5)*(($W$5-F$5)/($W$5-$D$5)),(SUM('Current approach'!$D$56:$H$56,'Current approach'!$D$49:$H$49,'Current approach'!$D$42:$H$42,'Current approach'!$D$35:$H$35,'Current approach'!$D$28:$H$28,'Current approach'!$D$21:$H$21,'Current approach'!$D$14:$H$14,'Current approach'!$D$7:$H$7)/5)) -> 9.109172427 | F7: =IF($K$2=$R$2,(SUM('Current approach'!$D$56:$H$56,'Current approach'!$D$49:$H$49,'Current approach'!$D$42:$H$42,'Current approach'!$D$35:$H$35,'Current approach'!$D$28:$H$28,'Current approach'!$D$21:$H$21,'Current approach'!$D$14:$H$14,'Current approach'!$D$7:$H$7)/5)*(($W$5-G$5)/($W$5-$D$5)),(SUM('Current approach'!$D$56:$H$56,'Current approach'!$D$49:$H$49,'Current approach'!$D$42:$H$42,'Current approach'!$D$35:$H$35,'Current approach'!$D$28:$H$28,'Current approach'!$D$21:$H$21,'Current approach'!$D$14:$H$14,'Current approach'!$D$7:$H$7)/5)) -> 8.573338755 | G7: =IF($K$2=$R$2,(SUM('Current approach'!$D$56:$H$56,'Current approach'!$D$49:$H$49,'Current approach'!$D$42:$H$42,'Current approach'!$D$35:$H$35,'Current approach'!$D$28:$H$28,'Current approach'!$D$21:$H$21,'Current approach'!$D$14:$H$14,'Current approach'!$D$7:$H$7)/5)*(($W$5-H$5)/($W$5-$D$5)),(SUM('Current approach'!$D$56:$H$56,'Current approach'!$D$49:$H$49,'Current approach'!$D$42:$H$42,'Current approach'!$D$35:$H$35,'Current approach'!$D$28:$H$28,'Current approach'!$D$21:$H$21,'Current approach'!$D$14:$H$14,'Current approach'!$D$7:$H$7)/5)) -> 8.037505082 | H7: =IF($K$2=$R$2,(SUM('Current approach'!$D$56:$H$56,'Current approach'!$D$49:$H$49,'Current approach'!$D$42:$H$42,'Current approach'!$D$35:$H$35,'Current approach'!$D$28:$H$28,'Current approach'!$D$21:$H$21,'Current approach'!$D$14:$H$14,'Current approach'!$D$7:$H$7)/5)*(($W$5-I$5)/($W$5-$D$5)),(SUM('Current approach'!$D$56:$H$56,'Current approach'!$D$49:$H$49,'Current approach'!$D$42:$H$42,'Current approach'!$D$35:$H$35,'Current approach'!$D$28:$H$28,'Current approach'!$D$21:$H$21,'Current approach'!$D$14:$H$14,'Current approach'!$D$7:$H$7)/5)) -> 7.50167141 | I7: =IF($K$2=$R$2,(SUM('Current approach'!$D$56:$H$56,'Current approach'!$D$49:$H$49,'Current approach'!$D$42:$H$42,'Current approach'!$D$35:$H$35,'Current approach'!$D$28:$H$28,'Current approach'!$D$21:$H$21,'Current approach'!$D$14:$H$14,'Current approach'!$D$7:$H$7)/5)*(($W$5-J$5)/($W$5-$D$5)),(SUM('Current approach'!$D$56:$H$56,'Current approach'!$D$49:$H$49,'Current approach'!$D$42:$H$42,'Current approach'!$D$35:$H$35,'Current approach'!$D$28:$H$28,'Current approach'!$D$21:$H$21,'Current approach'!$D$14:$H$14,'Current approach'!$D$7:$H$7)/5)) -> 6.965837738 | J7: =IF($K$2=$R$2,(SUM('Current approach'!$D$56:$H$56,'Current approach'!$D$49:$H$49,'Current approach'!$D$42:$H$42,'Current approach'!$D$35:$H$35,'Current approach'!$D$28:$H$28,'Current approach'!$D$21:$H$21,'Current approach'!$D$14:$H$14,'Current approach'!$D$7:$H$7)/5)*(($W$5-K$5)/($W$5-$D$5)),(SUM('Current approach'!$D$56:$H$56,'Current approach'!$D$49:$H$49,'Current approach'!$D$42:$H$42,'Current approach'!$D$35:$H$35,'Current approach'!$D$28:$H$28,'Current approach'!$D$21:$H$21,'Current approach'!$D$14:$H$14,'Current approach'!$D$7:$H$7)/5)) -> 6.430004066 | K7: =IF($K$2=$R$2,(SUM('Current approach'!$D$56:$H$56,'Current approach'!$D$49:$H$49,'Current approach'!$D$42:$H$42,'Current approach'!$D$35:$H$35,'Current approach'!$D$28:$H$28,'Current approach'!$D$21:$H$21,'Current approach'!$D$14:$H$14,'Current approach'!$D$7:$H$7)/5)*(($W$5-L$5)/($W$5-$D$5)),(SUM('Current approach'!$D$56:$H$56,'Current approach'!$D$49:$H$49,'Current approach'!$D$42:$H$42,'Current approach'!$D$35:$H$35,'Current approach'!$D$28:$H$28,'Current approach'!$D$21:$H$21,'Current approach'!$D$14:$H$14,'Current approach'!$D$7:$H$7)/5)) -> 5.894170394 | L7: =IF($K$2=$R$2,(SUM('Current approach'!$D$56:$H$56,'Current approach'!$D$49:$H$49,'Current approach'!$D$42:$H$42,'Current approach'!$D$35:$H$35,'Current approach'!$D$28:$H$28,'Current approach'!$D$21:$H$21,'Current approach'!$D$14:$H$14,'Current approach'!$D$7:$H$7)/5)*(($W$5-M$5)/($W$5-$D$5)),(SUM('Current approach'!$D$56:$H$56,'Current approach'!$D$49:$H$49,'Current approach'!$D$42:$H$42,'Current approach'!$D$35:$H$35,'Current approach'!$D$28:$H$28,'Current approach'!$D$21:$H$21,'Current approach'!$D$14:$H$14,'Current approach'!$D$7:$H$7)/5)) -> 5.358336722 | M7: =IF($K$2=$R$2,(SUM('Current approach'!$D$56:$H$56,'Current approach'!$D$49:$H$49,'Current approach'!$D$42:$H$42,'Current approach'!$D$35:$H$35,'Current approach'!$D$28:$H$28,'Current approach'!$D$21:$H$21,'Current approach'!$D$14:$H$14,'Current approach'!$D$7:$H$7)/5)*(($W$5-N$5)/($W$5-$D$5)),(SUM('Current approach'!$D$56:$H$56,'Current approach'!$D$49:$H$49,'Current approach'!$D$42:$H$42,'Current approach'!$D$35:$H$35,'Current approach'!$D$28:$H$28,'Current approach'!$D$21:$H$21,'Current approach'!$D$14:$H$14,'Current approach'!$D$7:$H$7)/5)) -> 4.822503049 | N7: =IF($K$2=$R$2,(SUM('Current approach'!$D$56:$H$56,'Current approach'!$D$49:$H$49,'Current approach'!$D$42:$H$42,'Current approach'!$D$35:$H$35,'Current approach'!$D$28:$H$28,'Current approach'!$D$21:$H$21,'Current approach'!$D$14:$H$14,'Current approach'!$D$7:$H$7)/5)*(($W$5-O$5)/($W$5-$D$5)),(SUM('Current approach'!$D$56:$H$56,'Current approach'!$D$49:$H$49,'Current approach'!$D$42:$H$42,'Current approach'!$D$35:$H$35,'Current approach'!$D$28:$H$28,'Current approach'!$D$21:$H$21,'Current approach'!$D$14:$H$14,'Current approach'!$D$7:$H$7)/5)) -> 4.286669377 | O7: =IF($K$2=$R$2,(SUM('Current approach'!$D$56:$H$56,'Current approach'!$D$49:$H$49,'Current approach'!$D$42:$H$42,'Current approach'!$D$35:$H$35,'Current approach'!$D$28:$H$28,'Current approach'!$D$21:$H$21,'Current approach'!$D$14:$H$14,'Current approach'!$D$7:$H$7)/5)*(($W$5-P$5)/($W$5-$D$5)),(SUM('Current approach'!$D$56:$H$56,'Current approach'!$D$49:$H$49,'Current approach'!$D$42:$H$42,'Current approach'!$D$35:$H$35,'Current approach'!$D$28:$H$28,'Current approach'!$D$21:$H$21,'Current approach'!$D$14:$H$14,'Current approach'!$D$7:$H$7)/5)) -> 3.750835705 | P7: =IF($K$2=$R$2,(SUM('Current approach'!$D$56:$H$56,'Current approach'!$D$49:$H$49,'Current approach'!$D$42:$H$42,'Current approach'!$D$35:$H$35,'Current approach'!$D$28:$H$28,'Current approach'!$D$21:$H$21,'Current approach'!$D$14:$H$14,'Current approach'!$D$7:$H$7)/5)*(($W$5-Q$5)/($W$5-$D$5)),(SUM('Current approach'!$D$56:$H$56,'Current approach'!$D$49:$H$49,'Current approach'!$D$42:$H$42,'Current approach'!$D$35:$H$35,'Current approach'!$D$28:$H$28,'Current approach'!$D$21:$H$21,'Current approach'!$D$14:$H$14,'Current approach'!$D$7:$H$7)/5)) -> 3.215002033 | Q7: =IF($K$2=$R$2,(SUM('Current approach'!$D$56:$H$56,'Current approach'!$D$49:$H$49,'Current approach'!$D$42:$H$42,'Current approach'!$D$35:$H$35,'Current approach'!$D$28:$H$28,'Current approach'!$D$21:$H$21,'Current approach'!$D$14:$H$14,'Current approach'!$D$7:$H$7)/5)*(($W$5-R$5)/($W$5-$D$5)),(SUM('Current approach'!$D$56:$H$56,'Current approach'!$D$49:$H$49,'Current approach'!$D$42:$H$42,'Current approach'!$D$35:$H$35,'Current approach'!$D$28:$H$28,'Current approach'!$D$21:$H$21,'Current approach'!$D$14:$H$14,'Current approach'!$D$7:$H$7)/5)) -> 2.679168361 | R7: =IF($K$2=$R$2,(SUM('Current approach'!$D$56:$H$56,'Current approach'!$D$49:$H$49,'Current approach'!$D$42:$H$42,'Current approach'!$D$35:$H$35,'Current approach'!$D$28:$H$28,'Current approach'!$D$21:$H$21,'Current approach'!$D$14:$H$14,'Current approach'!$D$7:$H$7)/5)*(($W$5-S$5)/($W$5-$D$5)),(SUM('Current approach'!$D$56:$H$56,'Current approach'!$D$49:$H$49,'Current approach'!$D$42:$H$42,'Current approach'!$D$35:$H$35,'Current approach'!$D$28:$H$28,'Current approach'!$D$21:$H$21,'Current approach'!$D$14:$H$14,'Current approach'!$D$7:$H$7)/5)) -> 2.143334689 | S7: =IF($K$2=$R$2,(SUM('Current approach'!$D$56:$H$56,'Current approach'!$D$49:$H$49,'Current approach'!$D$42:$H$42,'Current approach'!$D$35:$H$35,'Current approach'!$D$28:$H$28,'Current approach'!$D$21:$H$21,'Current approach'!$D$14:$H$14,'Current approach'!$D$7:$H$7)/5)*(($W$5-T$5)/($W$5-$D$5)),(SUM('Current approach'!$D$56:$H$56,'Current approach'!$D$49:$H$49,'Current approach'!$D$42:$H$42,'Current approach'!$D$35:$H$35,'Current approach'!$D$28:$H$28,'Current approach'!$D$21:$H$21,'Current approach'!$D$14:$H$14,'Current approach'!$D$7:$H$7)/5)) -> 1.607501016 | T7: =IF($K$2=$R$2,(SUM('Current approach'!$D$56:$H$56,'Current approach'!$D$49:$H$49,'Current approach'!$D$42:$H$42,'Current approach'!$D$35:$H$35,'Current approach'!$D$28:$H$28,'Current approach'!$D$21:$H$21,'Current approach'!$D$14:$H$14,'Current approach'!$D$7:$H$7)/5)*(($W$5-U$5)/($W$5-$D$5)),(SUM('Current approach'!$D$56:$H$56,'Current approach'!$D$49:$H$49,'Current approach'!$D$42:$H$42,'Current approach'!$D$35:$H$35,'Current approach'!$D$28:$H$28,'Current approach'!$D$21:$H$21,'Current approach'!$D$14:$H$14,'Current approach'!$D$7:$H$7)/5)) -> 1.071667344 | U7: =IF($K$2=$R$2,(SUM('Current approach'!$D$56:$H$56,'Current approach'!$D$49:$H$49,'Current approach'!$D$42:$H$42,'Current approach'!$D$35:$H$35,'Current approach'!$D$28:$H$28,'Current approach'!$D$21:$H$21,'Current approach'!$D$14:$H$14,'Current approach'!$D$7:$H$7)/5)*(($W$5-V$5)/($W$5-$D$5)),(SUM('Current approach'!$D$56:$H$56,'Current approach'!$D$49:$H$49,'Current approach'!$D$42:$H$42,'Current approach'!$D$35:$H$35,'Current approach'!$D$28:$H$28,'Current approach'!$D$21:$H$21,'Current approach'!$D$14:$H$14,'Current approach'!$D$7:$H$7)/5)) -> 0.5358336722
A8: ="Asset "&B8&" - capex (commissioned)" -> Asset 1 - capex (commissioned) | B8: 1 | C8: ='Current approach'!$I$1868 -> 380.88573 | D8: =D7 -> 9.645006099 | E8: =E7 -> 9.109172427 | F8: 8.573338755 | G8: 8.037505082 | H8: 7.50167141 | I8: 6.965837738 | J8: 6.430004066 | K8: 5.894170394 | L8: 5.358336722 | M8: 4.822503049 | N8: 4.286669377 | O8: 3.750835705 | P8: 3.215002033 | Q8: 2.679168361 | R8: 2.143334689 | S8: 1.607501016 | T8: 1.071667344 | U8: 0.5358336722
A9: ="Asset "&B9&" - tracking" -> Asset 1 - tracking | B9: 1 | D9: =IF($J$2=$Q$1,Depreciation!I30,IF($J$2=$Q$2,Depreciation!I41,Depreciation!I38)) -> 38.088573 | E9: =IF($J$2=$Q$1,Depreciation!J30,IF($J$2=$Q$2,Depreciation!J41,Depreciation!J38)) -> 36.08391127 | F9: =IF($J$2=$Q$1,Depreciation!K30,IF($J$2=$Q$2,Depreciation!K41,Depreciation!K38)) -> 34.07924953 | G9: =IF($J$2=$Q$1,Depreciation!L30,IF($J$2=$Q$2,Depreciation!L41,Depreciation!L38)) -> 32.07458779 | H9: =IF($J$2=$Q$1,Depreciation!M30,IF($J$2=$Q$2,Depreciation!M41,Depreciation!M38)) -> 30.06992605 | I9: =IF($J$2=$Q$1,Depreciation!N30,IF($J$2=$Q$2,Depreciation!N41,Depreciation!N38)) -> 28.06526432 | J9: =IF($J$2=$Q$1,Depreciation!O30,IF($J$2=$Q$2,Depreciation!O41,Depreciation!O38)) -> 26.06060258 | K9: =IF($J$2=$Q$1,Depreciation!P30,IF($J$2=$Q$2,Depreciation!P41,Depreciation!P38)) -> 24.05594084 | L9: =IF($J$2=$Q$1,Depreciation!Q30,IF($J$2=$Q$2,Depreciation!Q41,Depreciation!Q38)) -> 22.05127911 | M9: =IF($J$2=$Q$1,Depreciation!R30,IF($J$2=$Q$2,Depreciation!R41,Depreciation!R38)) -> 20.04661737 | N9: =IF($J$2=$Q$1,Depreciation!S30,IF($J$2=$Q$2,Depreciation!S41,Depreciation!S38)) -> 18.04195563 | O9: =IF($J$2=$Q$1,Depreciation!T30,IF($J$2=$Q$2,Depreciation!T41,Depreciation!T38)) -> 16.0372939 | P9: =IF($J$2=$Q$1,Depreciation!U30,IF($J$2=$Q$2,Depreciation!U41,Depreciation!U38)) -> 14.03263216 | Q9: =IF($J$2=$Q$1,Depreciation!V30,IF($J$2=$Q$2,Depreciation!V41,Depreciation!V38)) -> 12.02797042 | R9: =IF($J$2=$Q$1,Depreciation!W30,IF($J$2=$Q$2,Depreciation!W41,Depreciation!W38)) -> 10.02330868 | S9: =IF($J$2=$Q$1,Depreciation!X30,IF($J$2=$Q$2,Depreciation!X41,Depreciation!X38)) -> 8.018646948 | T9: =IF($J$2=$Q$1,Depreciation!Y30,IF($J$2=$Q$2,Depreciation!Y41,Depreciation!Y38)) -> 6.013985211 | U9: =IF($J$2=$Q$1,Depreciation!Z30,IF($J$2=$Q$2,Depreciation!Z41,Depreciation!Z38)) -> 4.009323474 | V9: =IF($J$2=$Q$1,Depreciation!AA30,IF($J$2=$Q$2,Depreciation!AA41,Depreciation!AA38)) -> 2.004661737 | W9: =IF($J$2=$Q$1,Depreciation!AB30,IF($J$2=$Q$2,Depreciation!AB41,Depreciation!AB38)) -> 0
A10: Asset 1 - Tax capex | B10: 1 | C10: =SUM('Current approach'!C59,'Current approach'!C52,'Current approach'!C45,'Current approach'!C38,'Current approach'!C31,'Current approach'!C24,'Current approach'!C17,'Current approach'!C10)-SUM('Current approach'!C1877:H1877) -> 190.7815851 | D10: =D8 -> 9.645006099 | E10: =E8 -> 9.109172427 | F10: 8.573338755 | G10: 8.037505082 | H10: 7.50167141 | I10: 6.965837738 | J10: 6.430004066 | K10: 5.894170394 | L10: 5.358336722 | M10: 4.822503049 | N10: 4.286669377 | O10: 3.750835705 | P10: 3.215002033 | Q10: 2.679168361 | R10: 2.143334689 | S10: 1.607501016 | T10: 1.071667344 | U10: 0.5358336722 | V10: 0 | W10: 0 | X10: 0 | Y10: 0 | Z10: 0 | AA10: 0 | AB10: 0 | AC10: 0 | AD10: 0 | AE10: 0 | AF10: 0 | AG10: 0 | AH10: 0 | AI10: 0 | AJ10: 0 | AK10: 0 | AL10: 0 | AM10: 0 | AN10: 0 | AO10: 0 | AP10: 0 | AQ10: 0 | AR10: 0 | AS10: 0 | AT10: 0 | AU10: 0 | AV10: 0 | AW10: 0 | AX10: 0 | AY10: 0 | AZ10: 0 | BA10: 0 | BB10: 0 | BC10: 0 | BD10: 0 | BE10: 0 | BF10: 0 | BG10: 0
A11: ="Asset "&B11&" - TAB tracking" -> Asset 1 - TAB tracking | B11: 1
A12: ="Asset "&B12&" - RAB life" -> Asset 1 - RAB life | B12: 1 | C12: tracking | D12: 14 | E12: 14 | F12: 14 | G12: 14 | H12: 14 | I12: 9 | J12: 9 | K12: 9 | L12: 9 | M12: 9 | N12: 4 | O12: 4 | P12: 4 | Q12: 4 | R12: 4 | S12: 1 | T12: 1 | U12: 1 | V12: 1 | W12: 1
A13: ="Asset "&B13&" - Tax life" -> Asset 1 - Tax life | B13: 1 | C13: 20 | D13: =D12 -> 14 | E13: =E12 -> 14 | F13: 14 | G13: 14 | H13: 14 | I13: 9 | J13: 9 | K13: 9 | L13: 9 | M13: 9 | N13: 4 | O13: 4 | P13: 4 | Q13: 4 | R13: 4 | S13: 1 | T13: 1 | U13: 1 | V13: 1 | W13: 1
A14: ="Asset "&B14&" - capex (incurred)" -> Asset 2 - capex (incurred) | B14: =B7+1 -> 2
A15: ="Asset "&B15&" - capex (commissioned)" -> Asset 2 - capex (commissioned) | B15: =B8+1 -> 2
A16: ="Asset "&B16&" - tracking" -> Asset 2 - tracking | B16: 2
A17: ="Asset "&B17&" - Tax capex" -> Asset 2 - Tax capex | B17: 2 | D17: =D15 -> 0 | E17: =E15 -> 0 | F17: 0 | G17: 0 | H17: 0 | I17: 0 | J17: 0 | K17: 0 | L17: 0 | M17: 0 | N17: 0 | O17: 0 | P17: 0 | Q17: 0 | R17: 0 | S17: 0 | T17: 0 | U17: 0 | V17: 0 | W17: 0 | X17: 0 | Y17: 0 | Z17: 0 | AA17: 0 | AB17: 0 | AC17: 0 | AD17: 0 | AE17: 0 | AF17: 0 | AG17: 0 | AH17: 0 | AI17: 0 | AJ17: 0 | AK17: 0 | AL17: 0 | AM17: 0 | AN17: 0 | AO17: 0 | AP17: 0 | AQ17: 0 | AR17: 0 | AS17: 0 | AT17: 0 | AU17: 0 | AV17: 0 | AW17: 0 | AX17: 0 | AY17: 0 | AZ17: 0 | BA17: 0 | BB17: 0 | BC17: 0 | BD17: 0 | BE17: 0 | BF17: 0 | BG17: 0
A18: ="Asset "&B18&" - TAB tracking" -> Asset 2 - TAB tracking | B18: 2
A19: ="Asset "&B19&" - RAB life" -> Asset 2 - RAB life | B19: 2
A20: ="Asset "&B20&" - Tax life" -> Asset 2 - Tax life | B20: 2
A21: ="Asset "&B21&" - capex (incurred)" -> Asset 3 - capex (incurred) | B21: 3
A22: ="Asset "&B22&" - capex (commissioned)" -> Asset 3 - capex (commissioned) | B22: 3
A23: ="Asset "&B23&" - tracking" -> Asset 3 - tracking | B23: 3 | AH23: =INDEX(IF($J$2=$Q$2,Depreciation!AH$16:AH$27,Depreciation!AH$2:AH$13),'Fully depreciate'!$B23) -> 0 | AI23: =INDEX(IF($J$2=$Q$2,Depreciation!AI$16:AI$27,Depreciation!AI$2:AI$13),'Fully depreciate'!$B23) -> 0 | AJ23: =INDEX(IF($J$2=$Q$2,Depreciation!AJ$16:AJ$27,Depreciation!AJ$2:AJ$13),'Fully depreciate'!$B23) -> 0 | AK23: =INDEX(IF($J$2=$Q$2,Depreciation!AK$16:AK$27,Depreciation!AK$2:AK$13),'Fully depreciate'!$B23) -> 0 | AL23: =INDEX(IF($J$2=$Q$2,Depreciation!AL$16:AL$27,Depreciation!AL$2:AL$13),'Fully depreciate'!$B23) -> 0 | AM23: =INDEX(IF($J$2=$Q$2,Depreciation!AM$16:AM$27,Depreciation!AM$2:AM$13),'Fully depreciate'!$B23) -> 0 | AN23: =INDEX(IF($J$2=$Q$2,Depreciation!AN$16:AN$27,Depreciation!AN$2:AN$13),'Fully depreciate'!$B23) -> 0 | AO23: =INDEX(IF($J$2=$Q$2,Depreciation!AO$16:AO$27,Depreciation!AO$2:AO$13),'Fully depreciate'!$B23) -> 0 | AP23: =INDEX(IF($J$2=$Q$2,Depreciation!AP$16:AP$27,Depreciation!AP$2:AP$13),'Fully depreciate'!$B23) -> 0 | AQ23: =INDEX(IF($J$2=$Q$2,Depreciation!AQ$16:AQ$27,Depreciation!AQ$2:AQ$13),'Fully depreciate'!$B23) -> 0 | AR23: =INDEX(IF($J$2=$Q$2,Depreciation!AR$16:AR$27,Depreciation!AR$2:AR$13),'Fully depreciate'!$B23) -> 0 | AS23: =INDEX(IF($J$2=$Q$2,Depreciation!AS$16:AS$27,Depreciation!AS$2:AS$13),'Fully depreciate'!$B23) -> 0 | AT23: =INDEX(IF($J$2=$Q$2,Depreciation!AT$16:AT$27,Depreciation!AT$2:AT$13),'Fully depreciate'!$B23) -> 0 | AU23: =INDEX(IF($J$2=$Q$2,Depreciation!AU$16:AU$27,Depreciation!AU$2:AU$13),'Fully depreciate'!$B23) -> 0 | AV23: =INDEX(IF($J$2=$Q$2,Depreciation!AV$16:AV$27,Depreciation!AV$2:AV$13),'Fully depreciate'!$B23) -> 0 | AW23: =INDEX(IF($J$2=$Q$2,Depreciation!AW$16:AW$27,Depreciation!AW$2:AW$13),'Fully depreciate'!$B23) -> 0 | AX23: =INDEX(IF($J$2=$Q$2,Depreciation!AX$16:AX$27,Depreciation!AX$2:AX$13),'Fully depreciate'!$B23) -> 0 | AY23: =INDEX(IF($J$2=$Q$2,Depreciation!AY$16:AY$27,Depreciation!AY$2:AY$13),'Fully depreciate'!$B23) -> 0 | AZ23: =INDEX(IF($J$2=$Q$2,Depreciation!AZ$16:AZ$27,Depreciation!AZ$2:AZ$13),'Fully depreciate'!$B23) -> 0 | BA23: =INDEX(IF($J$2=$Q$2,Depreciation!BA$16:BA$27,Depreciation!BA$2:BA$13),'Fully depreciate'!$B23) -> 0 | BB23: =INDEX(IF($J$2=$Q$2,Depreciation!BB$16:BB$27,Depreciation!BB$2:BB$13),'Fully depreciate'!$B23) -> 0 | BC23: =INDEX(IF($J$2=$Q$2,Depreciation!BC$16:BC$27,Depreciation!BC$2:BC$13),'Fully depreciate'!$B23) -> 0 | BD23: =INDEX(IF($J$2=$Q$2,Depreciation!BD$16:BD$27,Depreciation!BD$2:BD$13),'Fully depreciate'!$B23) -> 0 | BE23: =INDEX(IF($J$2=$Q$2,Depreciation!BE$16:BE$27,Depreciation!BE$2:BE$13),'Fully depreciate'!$B23) -> 0 | BF23: =INDEX(IF($J$2=$Q$2,Depreciation!BF$16:BF$27,Depreciation!BF$2:BF$13),'Fully depreciate'!$B23) -> 0 | BG23: =INDEX(IF($J$2=$Q$2,Depreciation!BG$16:BG$27,Depreciation!BG$2:BG$13),'Fully depreciate'!$B23) -> 0
A24: ="Asset "&B24&" - Tax capex" -> Asset 3 - Tax capex | B24: 3 | D24: =D22 -> 0 | E24: =E22 -> 0 | F24: 0 | G24: 0 | H24: 0 | I24: 0 | J24: 0 | K24: 0 | L24: 0 | M24: 0 | N24: 0 | O24: 0 | P24: 0 | Q24: 0 | R24: 0 | S24: 0 | T24: 0 | U24: 0 | V24: 0 | W24: 0 | X24: 0 | Y24: 0 | Z24: 0 | AA24: 0 | AB24: 0 | AC24: 0 | AD24: 0 | AE24: 0 | AF24: 0 | AG24: 0 | AH24: 0 | AI24: 0 | AJ24: 0 | AK24: 0 | AL24: 0 | AM24: 0 | AN24: 0 | AO24: 0 | AP24: 0 | AQ24: 0 | AR24: 0 | AS24: 0 | AT24: 0 | AU24: 0 | AV24: 0 | AW24: 0 | AX24: 0 | AY24: 0 | AZ24: 0 | BA24: 0 | BB24: 0 | BC24: 0 | BD24: 0 | BE24: 0 | BF24: 0 | BG24: 0
A25: ="Asset "&B25&" - TAB tracking" -> Asset 3 - TAB tracking | B25: 3
A26: ="Asset "&B26&" - RAB life" -> Asset 3 - RAB life | B26: 3
A27: ="Asset "&B27&" - Tax life" -> Asset 3 - Tax life | B27: 3
A28: ="Asset "&B28&" - capex (incurred)" -> Asset 4 - capex (incurred) | B28: 4
A29: ="Asset "&B29&" - capex (commissioned)" -> Asset 4 - capex (commissioned) | B29: 4
A30: ="Asset "&B30&" - tracking" -> Asset 4 - tracking | B30: 4 | AH30: =INDEX(IF($J$2=$Q$2,Depreciation!AH$16:AH$27,Depreciation!AH$2:AH$13),'Fully depreciate'!$B30) -> 2.463737679 | AI30: =INDEX(IF($J$2=$Q$2,Depreciation!AI$16:AI$27,Depreciation!AI$2:AI$13),'Fully depreciate'!$B30) -> 2.463737679 | AJ30: =INDEX(IF($J$2=$Q$2,Depreciation!AJ$16:AJ$27,Depreciation!AJ$2:AJ$13),'Fully depreciate'!$B30) -> 2.463737679 | AK30: =INDEX(IF($J$2=$Q$2,Depreciation!AK$16:AK$27,Depreciation!AK$2:AK$13),'Fully depreciate'!$B30) -> 2.463737679 | AL30: =INDEX(IF($J$2=$Q$2,Depreciation!AL$16:AL$27,Depreciation!AL$2:AL$13),'Fully depreciate'!$B30) -> 2.463737679 | AM30: =INDEX(IF($J$2=$Q$2,Depreciation!AM$16:AM$27,Depreciation!AM$2:AM$13),'Fully depreciate'!$B30) -> 2.463737679 | AN30: =INDEX(IF($J$2=$Q$2,Depreciation!AN$16:AN$27,Depreciation!AN$2:AN$13),'Fully depreciate'!$B30) -> 0.3042288193 | AO30: =INDEX(IF($J$2=$Q$2,Depreciation!AO$16:AO$27,Depreciation!AO$2:AO$13),'Fully depreciate'!$B30) -> 0 | AP30: =INDEX(IF($J$2=$Q$2,Depreciation!AP$16:AP$27,Depreciation!AP$2:AP$13),'Fully depreciate'!$B30) -> 0 | AQ30: =INDEX(IF($J$2=$Q$2,Depreciation!AQ$16:AQ$27,Depreciation!AQ$2:AQ$13),'Fully depreciate'!$B30) -> 0 | AR30: =INDEX(IF($J$2=$Q$2,Depreciation!AR$16:AR$27,Depreciation!AR$2:AR$13),'Fully depreciate'!$B30) -> 0 | AS30: =INDEX(IF($J$2=$Q$2,Depreciation!AS$16:AS$27,Depreciation!AS$2:AS$13),'Fully depreciate'!$B30) -> 0 | AT30: =INDEX(IF($J$2=$Q$2,Depreciation!AT$16:AT$27,Depreciation!AT$2:AT$13),'Fully depreciate'!$B30) -> 0 | AU30: =INDEX(IF($J$2=$Q$2,Depreciation!AU$16:AU$27,Depreciation!AU$2:AU$13),'Fully depreciate'!$B30) -> 0 | AV30: =INDEX(IF($J$2=$Q$2,Depreciation!AV$16:AV$27,Depreciation!AV$2:AV$13),'Fully depreciate'!$B30) -> 0 | AW30: =INDEX(IF($J$2=$Q$2,Depreciation!AW$16:AW$27,Depreciation!AW$2:AW$13),'Fully depreciate'!$B30) -> 0 | AX30: =INDEX(IF($J$2=$Q$2,Depreciation!AX$16:AX$27,Depreciation!AX$2:AX$13),'Fully depreciate'!$B30) -> 0 | AY30: =INDEX(IF($J$2=$Q$2,Depreciation!AY$16:AY$27,Depreciation!AY$2:AY$13),'Fully depreciate'!$B30) -> 0 | AZ30: =INDEX(IF($J$2=$Q$2,Depreciation!AZ$16:AZ$27,Depreciation!AZ$2:AZ$13),'Fully depreciate'!$B30) -> 0 | BA30: =INDEX(IF($J$2=$Q$2,Depreciation!BA$16:BA$27,Depreciation!BA$2:BA$13),'Fully depreciate'!$B30) -> 0 | BB30: =INDEX(IF($J$2=$Q$2,Depreciation!BB$16:BB$27,Depreciation!BB$2:BB$13),'Fully depreciate'!$B30) -> 0 | BC30: =INDEX(IF($J$2=$Q$2,Depreciation!BC$16:BC$27,Depreciation!BC$2:BC$13),'Fully depreciate'!$B30) -> 0 | BD30: =INDEX(IF($J$2=$Q$2,Depreciation!BD$16:BD$27,Depreciation!BD$2:BD$13),'Fully depreciate'!$B30) -> 0 | BE30: =INDEX(IF($J$2=$Q$2,Depreciation!BE$16:BE$27,Depreciation!BE$2:BE$13),'Fully depreciate'!$B30) -> 0 | BF30: =INDEX(IF($J$2=$Q$2,Depreciation!BF$16:BF$27,Depreciation!BF$2:BF$13),'Fully depreciate'!$B30) -> 0 | BG30: =INDEX(IF($J$2=$Q$2,Depreciation!BG$16:BG$27,Depreciation!BG$2:BG$13),'Fully depreciate'!$B30) -> 0
A31: ="Asset "&B31&" - Tax capex" -> Asset 4 - Tax capex | B31: 4 | D31: =D29 -> 0 | E31: =E29 -> 0 | F31: 0 | G31: 0 | H31: 0 | I31: 0 | J31: 0 | K31: 0 | L31: 0 | M31: 0 | N31: 0 | O31: 0 | P31: 0 | Q31: 0 | R31: 0 | S31: 0 | T31: 0 | U31: 0 | V31: 0 | W31: 0 | X31: 0 | Y31: 0 | Z31: 0 | AA31: 0 | AB31: 0 | AC31: 0 | AD31: 0 | AE31: 0 | AF31: 0 | AG31: 0 | AH31: 0 | AI31: 0 | AJ31: 0 | AK31: 0 | AL31: 0 | AM31: 0 | AN31: 0 | AO31: 0 | AP31: 0 | AQ31: 0 | AR31: 0 | AS31: 0 | AT31: 0 | AU31: 0 | AV31: 0 | AW31: 0 | AX31: 0 | AY31: 0 | AZ31: 0 | BA31: 0 | BB31: 0 | BC31: 0 | BD31: 0 | BE31: 0 | BF31: 0 | BG31: 0
A32: ="Asset "&B32&" - TAB tracking" -> Asset 4 - TAB tracking | B32: 4
A33: ="Asset "&B33&" - RAB life" -> Asset 4 - RAB life | B33: 4
A34: ="Asset "&B34&" - Tax life" -> Asset 4 - Tax life | B34: 4
A35: ="Asset "&B35&" - capex (incurred)" -> Asset 5 - capex (incurred) | B35: 5
A36: ="Asset "&B36&" - capex (commissioned)" -> Asset 5 - capex (commissioned) | B36: 5
A37: ="Asset "&B37&" - tracking" -> Asset 5 - tracking | B37: 5 | AH37: =INDEX(IF($J$2=$Q$2,Depreciation!AH$16:AH$27,Depreciation!AH$2:AH$13),'Fully depreciate'!$B37) -> 0 | AI37: =INDEX(IF($J$2=$Q$2,Depreciation!AI$16:AI$27,Depreciation!AI$2:AI$13),'Fully depreciate'!$B37) -> 0 | AJ37: =INDEX(IF($J$2=$Q$2,Depreciation!AJ$16:AJ$27,Depreciation!AJ$2:AJ$13),'Fully depreciate'!$B37) -> 0 | AK37: =INDEX(IF($J$2=$Q$2,Depreciation!AK$16:AK$27,Depreciation!AK$2:AK$13),'Fully depreciate'!$B37) -> 0 | AL37: =INDEX(IF($J$2=$Q$2,Depreciation!AL$16:AL$27,Depreciation!AL$2:AL$13),'Fully depreciate'!$B37) -> 0 | AM37: =INDEX(IF($J$2=$Q$2,Depreciation!AM$16:AM$27,Depreciation!AM$2:AM$13),'Fully depreciate'!$B37) -> 0 | AN37: =INDEX(IF($J$2=$Q$2,Depreciation!AN$16:AN$27,Depreciation!AN$2:AN$13),'Fully depreciate'!$B37) -> 0 | AO37: =INDEX(IF($J$2=$Q$2,Depreciation!AO$16:AO$27,Depreciation!AO$2:AO$13),'Fully depreciate'!$B37) -> 0 | AP37: =INDEX(IF($J$2=$Q$2,Depreciation!AP$16:AP$27,Depreciation!AP$2:AP$13),'Fully depreciate'!$B37) -> 0 | AQ37: =INDEX(IF($J$2=$Q$2,Depreciation!AQ$16:AQ$27,Depreciation!AQ$2:AQ$13),'Fully depreciate'!$B37) -> 0 | AR37: =INDEX(IF($J$2=$Q$2,Depreciation!AR$16:AR$27,Depreciation!AR$2:AR$13),'Fully depreciate'!$B37) -> 0 | AS37: =INDEX(IF($J$2=$Q$2,Depreciation!AS$16:AS$27,Depreciation!AS$2:AS$13),'Fully depreciate'!$B37) -> 0 | AT37: =INDEX(IF($J$2=$Q$2,Depreciation!AT$16:AT$27,Depreciation!AT$2:AT$13),'Fully depreciate'!$B37) -> 0 | AU37: =INDEX(IF($J$2=$Q$2,Depreciation!AU$16:AU$27,Depreciation!AU$2:AU$13),'Fully depreciate'!$B37) -> 0 | AV37: =INDEX(IF($J$2=$Q$2,Depreciation!AV$16:AV$27,Depreciation!AV$2:AV$13),'Fully depreciate'!$B37) -> 0 | AW37: =INDEX(IF($J$2=$Q$2,Depreciation!AW$16:AW$27,Depreciation!AW$2:AW$13),'Fully depreciate'!$B37) -> 0 | AX37: =INDEX(IF($J$2=$Q$2,Depreciation!AX$16:AX$27,Depreciation!AX$2:AX$13),'Fully depreciate'!$B37) -> 0 | AY37: =INDEX(IF($J$2=$Q$2,Depreciation!AY$16:AY$27,Depreciation!AY$2:AY$13),'Fully depreciate'!$B37) -> 0 | AZ37: =INDEX(IF($J$2=$Q$2,Depreciation!AZ$16:AZ$27,Depreciation!AZ$2:AZ$13),'Fully depreciate'!$B37) -> 0 | BA37: =INDEX(IF($J$2=$Q$2,Depreciation!BA$16:BA$27,Depreciation!BA$2:BA$13),'Fully depreciate'!$B37) -> 0 | BB37: =INDEX(IF($J$2=$Q$2,Depreciation!BB$16:BB$27,Depreciation!BB$2:BB$13),'Fully depreciate'!$B37) -> 0 | BC37: =INDEX(IF($J$2=$Q$2,Depreciation!BC$16:BC$27,Depreciation!BC$2:BC$13),'Fully depreciate'!$B37) -> 0 | BD37: =INDEX(IF($J$2=$Q$2,Depreciation!BD$16:BD$27,Depreciation!BD$2:BD$13),'Fully depreciate'!$B37) -> 0 | BE37: =INDEX(IF($J$2=$Q$2,Depreciation!BE$16:BE$27,Depreciation!BE$2:BE$13),'Fully depreciate'!$B37) -> 0 | BF37: =INDEX(IF($J$2=$Q$2,Depreciation!BF$16:BF$27,Depreciation!BF$2:BF$13),'Fully depreciate'!$B37) -> 0 | BG37: =INDEX(IF($J$2=$Q$2,Depreciation!BG$16:BG$27,Depreciation!BG$2:BG$13),'Fully depreciate'!$B37) -> 0
A38: ="Asset "&B38&" - Tax capex" -> Asset 5 - Tax capex | B38: 5 | D38: =D36 -> 0 | E38: =E36 -> 0 | F38: 0 | G38: 0 | H38: 0 | I38: 0 | J38: 0 | K38: 0 | L38: 0 | M38: 0 | N38: 0 | O38: 0 | P38: 0 | Q38: 0 | R38: 0 | S38: 0 | T38: 0 | U38: 0 | V38: 0 | W38: 0 | X38: 0 | Y38: 0 | Z38: 0 | AA38: 0 | AB38: 0 | AC38: 0 | AD38: 0 | AE38: 0 | AF38: 0 | AG38: 0 | AH38: 0 | AI38: 0 | AJ38: 0 | AK38: 0 | AL38: 0 | AM38: 0 | AN38: 0 | AO38: 0 | AP38: 0 | AQ38: 0 | AR38: 0 | AS38: 0 | AT38: 0 | AU38: 0 | AV38: 0 | AW38: 0 | AX38: 0 | AY38: 0 | AZ38: 0 | BA38: 0 | BB38: 0 | BC38: 0 | BD38: 0 | BE38: 0 | BF38: 0 | BG38: 0
A39: ="Asset "&B39&" - TAB tracking" -> Asset 5 - TAB tracking | B39: 5
A40: ="Asset "&B40&" - RAB life" -> Asset 5 - RAB life | B40: 5
A41: ="Asset "&B41&" - Tax life" -> Asset 5 - Tax life | B41: 5
A42: ="Asset "&B42&" - capex (incurred)" -> Asset 6 - capex (incurred) | B42: 6
A43: ="Asset "&B43&" - capex (commissioned)" -> Asset 6 - capex (commissioned) | B43: 6
A44: ="Asset "&B44&" - tracking" -> Asset 6 - tracking | B44: 6 | AH44: =INDEX(IF($J$2=$Q$2,Depreciation!AH$16:AH$27,Depreciation!AH$2:AH$13),'Fully depreciate'!$B44) -> 0 | AI44: =INDEX(IF($J$2=$Q$2,Depreciation!AI$16:AI$27,Depreciation!AI$2:AI$13),'Fully depreciate'!$B44) -> 0 | AJ44: =INDEX(IF($J$2=$Q$2,Depreciation!AJ$16:AJ$27,Depreciation!AJ$2:AJ$13),'Fully depreciate'!$B44) -> 0 | AK44: =INDEX(IF($J$2=$Q$2,Depreciation!AK$16:AK$27,Depreciation!AK$2:AK$13),'Fully depreciate'!$B44) -> 0 | AL44: =INDEX(IF($J$2=$Q$2,Depreciation!AL$16:AL$27,Depreciation!AL$2:AL$13),'Fully depreciate'!$B44) -> 0 | AM44: =INDEX(IF($J$2=$Q$2,Depreciation!AM$16:AM$27,Depreciation!AM$2:AM$13),'Fully depreciate'!$B44) -> 0 | AN44: =INDEX(IF($J$2=$Q$2,Depreciation!AN$16:AN$27,Depreciation!AN$2:AN$13),'Fully depreciate'!$B44) -> 0 | AO44: =INDEX(IF($J$2=$Q$2,Depreciation!AO$16:AO$27,Depreciation!AO$2:AO$13),'Fully depreciate'!$B44) -> 0 | AP44: =INDEX(IF($J$2=$Q$2,Depreciation!AP$16:AP$27,Depreciation!AP$2:AP$13),'Fully depreciate'!$B44) -> 0 | AQ44: =INDEX(IF($J$2=$Q$2,Depreciation!AQ$16:AQ$27,Depreciation!AQ$2:AQ$13),'Fully depreciate'!$B44) -> 0 | AR44: =INDEX(IF($J$2=$Q$2,Depreciation!AR$16:AR$27,Depreciation!AR$2:AR$13),'Fully depreciate'!$B44) -> 0 | AS44: =INDEX(IF($J$2=$Q$2,Depreciation!AS$16:AS$27,Depreciation!AS$2:AS$13),'Fully depreciate'!$B44) -> 0 | AT44: =INDEX(IF($J$2=$Q$2,Depreciation!AT$16:AT$27,Depreciation!AT$2:AT$13),'Fully depreciate'!$B44) -> 0 | AU44: =INDEX(IF($J$2=$Q$2,Depreciation!AU$16:AU$27,Depreciation!AU$2:AU$13),'Fully depreciate'!$B44) -> 0 | AV44: =INDEX(IF($J$2=$Q$2,Depreciation!AV$16:AV$27,Depreciation!AV$2:AV$13),'Fully depreciate'!$B44) -> 0 | AW44: =INDEX(IF($J$2=$Q$2,Depreciation!AW$16:AW$27,Depreciation!AW$2:AW$13),'Fully depreciate'!$B44) -> 0 | AX44: =INDEX(IF($J$2=$Q$2,Depreciation!AX$16:AX$27,Depreciation!AX$2:AX$13),'Fully depreciate'!$B44) -> 0 | AY44: =INDEX(IF($J$2=$Q$2,Depreciation!AY$16:AY$27,Depreciation!AY$2:AY$13),'Fully depreciate'!$B44) -> 0 | AZ44: =INDEX(IF($J$2=$Q$2,Depreciation!AZ$16:AZ$27,Depreciation!AZ$2:AZ$13),'Fully depreciate'!$B44) -> 0 | BA44: =INDEX(IF($J$2=$Q$2,Depreciation!BA$16:BA$27,Depreciation!BA$2:BA$13),'Fully depreciate'!$B44) -> 0 | BB44: =INDEX(IF($J$2=$Q$2,Depreciation!BB$16:BB$27,Depreciation!BB$2:BB$13),'Fully depreciate'!$B44) -> 0 | BC44: =INDEX(IF($J$2=$Q$2,Depreciation!BC$16:BC$27,Depreciation!BC$2:BC$13),'Fully depreciate'!$B44) -> 0 | BD44: =INDEX(IF($J$2=$Q$2,Depreciation!BD$16:BD$27,Depreciation!BD$2:BD$13),'Fully depreciate'!$B44) -> 0 | BE44: =INDEX(IF($J$2=$Q$2,Depreciation!BE$16:BE$27,Depreciation!BE$2:BE$13),'Fully depreciate'!$B44) -> 0 | BF44: =INDEX(IF($J$2=$Q$2,Depreciation!BF$16:BF$27,Depreciation!BF$2:BF$13),'Fully depreciate'!$B44) -> 0 | BG44: =INDEX(IF($J$2=$Q$2,Depreciation!BG$16:BG$27,Depreciation!BG$2:BG$13),'Fully depreciate'!$B44) -> 0
A45: ="Asset "&B45&" - Tax capex" -> Asset 6 - Tax capex | B45: 6 | D45: =D43 -> 0 | E45: =E43 -> 0 | F45: 0 | G45: 0 | H45: 0 | I45: 0 | J45: 0 | K45: 0 | L45: 0 | M45: 0 | N45: 0 | O45: 0 | P45: 0 | Q45: 0 | R45: 0 | S45: 0 | T45: 0 | U45: 0 | V45: 0 | W45: 0 | X45: 0 | Y45: 0 | Z45: 0 | AA45: 0 | AB45: 0 | AC45: 0 | AD45: 0 | AE45: 0 | AF45: 0 | AG45: 0 | AH45: 0 | AI45: 0 | AJ45: 0 | AK45: 0 | AL45: 0 | AM45: 0 | AN45: 0 | AO45: 0 | AP45: 0 | AQ45: 0 | AR45: 0 | AS45: 0 | AT45: 0 | AU45: 0 | AV45: 0 | AW45: 0 | AX45: 0 | AY45: 0 | AZ45: 0 | BA45: 0 | BB45: 0 | BC45: 0 | BD45: 0 | BE45: 0 | BF45: 0 | BG45: 0
A46: ="Asset "&B46&" - TAB tracking" -> Asset 6 - TAB tracking | B46: 6
A47: ="Asset "&B47&" - RAB life" -> Asset 6 - RAB life | B47: 6
A48: ="Asset "&B48&" - Tax life" -> Asset 6 - Tax life | B48: 6
A49: ="Asset "&B49&" - capex (incurred)" -> Asset 7 - capex (incurred) | B49: 7
A50: ="Asset "&B50&" - capex (commissioned)" -> Asset 7 - capex (commissioned) | B50: 7
A51: ="Asset "&B51&" - tracking" -> Asset 7 - tracking | B51: 7 | AH51: =INDEX(IF($J$2=$Q$2,Depreciation!AH$16:AH$27,Depreciation!AH$2:AH$13),'Fully depreciate'!$B51) -> 0 | AI51: =INDEX(IF($J$2=$Q$2,Depreciation!AI$16:AI$27,Depreciation!AI$2:AI$13),'Fully depreciate'!$B51) -> 0 | AJ51: =INDEX(IF($J$2=$Q$2,Depreciation!AJ$16:AJ$27,Depreciation!AJ$2:AJ$13),'Fully depreciate'!$B51) -> 0 | AK51: =INDEX(IF($J$2=$Q$2,Depreciation!AK$16:AK$27,Depreciation!AK$2:AK$13),'Fully depreciate'!$B51) -> 0 | AL51: =INDEX(IF($J$2=$Q$2,Depreciation!AL$16:AL$27,Depreciation!AL$2:AL$13),'Fully depreciate'!$B51) -> 0 | AM51: =INDEX(IF($J$2=$Q$2,Depreciation!AM$16:AM$27,Depreciation!AM$2:AM$13),'Fully depreciate'!$B51) -> 0 | AN51: =INDEX(IF($J$2=$Q$2,Depreciation!AN$16:AN$27,Depreciation!AN$2:AN$13),'Fully depreciate'!$B51) -> 0 | AO51: =INDEX(IF($J$2=$Q$2,Depreciation!AO$16:AO$27,Depreciation!AO$2:AO$13),'Fully depreciate'!$B51) -> 0 | AP51: =INDEX(IF($J$2=$Q$2,Depreciation!AP$16:AP$27,Depreciation!AP$2:AP$13),'Fully depreciate'!$B51) -> 0 | AQ51: =INDEX(IF($J$2=$Q$2,Depreciation!AQ$16:AQ$27,Depreciation!AQ$2:AQ$13),'Fully depreciate'!$B51) -> 0 | AR51: =INDEX(IF($J$2=$Q$2,Depreciation!AR$16:AR$27,Depreciation!AR$2:AR$13),'Fully depreciate'!$B51) -> 0 | AS51: =INDEX(IF($J$2=$Q$2,Depreciation!AS$16:AS$27,Depreciation!AS$2:AS$13),'Fully depreciate'!$B51) -> 0 | AT51: =INDEX(IF($J$2=$Q$2,Depreciation!AT$16:AT$27,Depreciation!AT$2:AT$13),'Fully depreciate'!$B51) -> 0 | AU51: =INDEX(IF($J$2=$Q$2,Depreciation!AU$16:AU$27,Depreciation!AU$2:AU$13),'Fully depreciate'!$B51) -> 0 | AV51: =INDEX(IF($J$2=$Q$2,Depreciation!AV$16:AV$27,Depreciation!AV$2:AV$13),'Fully depreciate'!$B51) -> 0 | AW51: =INDEX(IF($J$2=$Q$2,Depreciation!AW$16:AW$27,Depreciation!AW$2:AW$13),'Fully depreciate'!$B51) -> 0 | AX51: =INDEX(IF($J$2=$Q$2,Depreciation!AX$16:AX$27,Depreciation!AX$2:AX$13),'Fully depreciate'!$B51) -> 0 | AY51: =INDEX(IF($J$2=$Q$2,Depreciation!AY$16:AY$27,Depreciation!AY$2:AY$13),'Fully depreciate'!$B51) -> 0 | AZ51: =INDEX(IF($J$2=$Q$2,Depreciation!AZ$16:AZ$27,Depreciation!AZ$2:AZ$13),'Fully depreciate'!$B51) -> 0 | BA51: =INDEX(IF($J$2=$Q$2,Depreciation!BA$16:BA$27,Depreciation!BA$2:BA$13),'Fully depreciate'!$B51) -> 0 | BB51: =INDEX(IF($J$2=$Q$2,Depreciation!BB$16:BB$27,Depreciation!BB$2:BB$13),'Fully depreciate'!$B51) -> 0 | BC51: =INDEX(IF($J$2=$Q$2,Depreciation!BC$16:BC$27,Depreciation!BC$2:BC$13),'Fully depreciate'!$B51) -> 0 | BD51: =INDEX(IF($J$2=$Q$2,Depreciation!BD$16:BD$27,Depreciation!BD$2:BD$13),'Fully depreciate'!$B51) -> 0 | BE51: =INDEX(IF($J$2=$Q$2,Depreciation!BE$16:BE$27,Depreciation!BE$2:BE$13),'Fully depreciate'!$B51) -> 0 | BF51: =INDEX(IF($J$2=$Q$2,Depreciation!BF$16:BF$27,Depreciation!BF$2:BF$13),'Fully depreciate'!$B51) -> 0 | BG51: =INDEX(IF($J$2=$Q$2,Depreciation!BG$16:BG$27,Depreciation!BG$2:BG$13),'Fully depreciate'!$B51) -> 0
A52: ="Asset "&B52&" - Tax capex" -> Asset 7 - Tax capex | B52: 7 | D52: =D50 -> 0 | E52: =E50 -> 0 | F52: 0 | G52: 0 | H52: 0 | I52: 0 | J52: 0 | K52: 0 | L52: 0 | M52: 0 | N52: 0 | O52: 0 | P52: 0 | Q52: 0 | R52: 0 | S52: 0 | T52: 0 | U52: 0 | V52: 0 | W52: 0 | X52: 0 | Y52: 0 | Z52: 0 | AA52: 0 | AB52: 0 | AC52: 0 | AD52: 0 | AE52: 0 | AF52: 0 | AG52: 0 | AH52: 0 | AI52: 0 | AJ52: 0 | AK52: 0 | AL52: 0 | AM52: 0 | AN52: 0 | AO52: 0 | AP52: 0 | AQ52: 0 | AR52: 0 | AS52: 0 | AT52: 0 | AU52: 0 | AV52: 0 | AW52: 0 | AX52: 0 | AY52: 0 | AZ52: 0 | BA52: 0 | BB52: 0 | BC52: 0 | BD52: 0 | BE52: 0 | BF52: 0 | BG52: 0
A53: ="Asset "&B53&" - TAB tracking" -> Asset 7 - TAB tracking | B53: 7
A54: ="Asset "&B54&" - RAB life" -> Asset 7 - RAB life | B54: 7
A55: ="Asset "&B55&" - Tax life" -> Asset 7 - Tax life | B55: 7
A56: ="Asset "&B56&" - capex (incurred)" -> Asset 8 - capex (incurred) | B56: 8
A57: ="Asset "&B57&" - capex (commissioned)" -> Asset 8 - capex (commissioned) | B57: 8
A58: ="Asset "&B58&" - tracking" -> Asset 8 - tracking | B58: 8
A59: ="Asset "&B59&" - Tax capex" -> Asset 8 - Tax capex | B59: 8 | D59: =D57 -> 0 | E59: =E57 -> 0 | F59: 0 | G59: 0 | H59: 0 | I59: 0 | J59: 0 | K59: 0 | L59: 0 | M59: 0 | N59: 0 | O59: 0 | P59: 0 | Q59: 0 | R59: 0 | S59: 0 | T59: 0 | U59: 0 | V59: 0 | W59: 0 | X59: 0 | Y59: 0 | Z59: 0 | AA59: 0 | AB59: 0 | AC59: 0 | AD59: 0 | AE59: 0 | AF59: 0 | AG59: 0 | AH59: 0 | AI59: 0 | AJ59: 0 | AK59: 0 | AL59: 0 | AM59: 0 | AN59: 0 | AO59: 0 | AP59: 0 | AQ59: 0 | AR59: 0 | AS59: 0 | AT59: 0 | AU59: 0 | AV59: 0 | AW59: 0 | AX59: 0 | AY59: 0 | AZ59: 0 | BA59: 0 | BB59: 0 | BC59: 0 | BD59: 0 | BE59: 0 | BF59: 0 | BG59: 0
A60: ="Asset "&B60&" - TAB tracking" -> Asset 8 - TAB tracking | B60: 8
A61: ="Asset "&B61&" - RAB life" -> Asset 8 - RAB life | B61: 8
A62: ="Asset "&B62&" - Tax life" -> Asset 8 - Tax life | B62: 8
A63: ="Asset "&B63&" - capex (incurred)" -> Asset 9 - capex (incurred) | B63: 9
A64: ="Asset "&B64&" - capex (commissioned)" -> Asset 9 - capex (commissioned) | B64: 9
A65: ="Asset "&B65&" - tracking" -> Asset 9 - tracking | B65: 9
A66: ="Asset "&B66&" - Tax capex" -> Asset 9 - Tax capex | B66: 9 | D66: =D64 -> 0 | E66: =E64 -> 0 | F66: 0 | G66: 0 | H66: 0 | I66: 0 | J66: 0 | K66: 0 | L66: 0 | M66: 0 | N66: 0 | O66: 0 | P66: 0 | Q66: 0 | R66: 0 | S66: 0 | T66: 0 | U66: 0 | V66: 0 | W66: 0 | X66: 0 | Y66: 0 | Z66: 0 | AA66: 0 | AB66: 0 | AC66: 0 | AD66: 0 | AE66: 0 | AF66: 0 | AG66: 0 | AH66: 0 | AI66: 0 | AJ66: 0 | AK66: 0 | AL66: 0 | AM66: 0 | AN66: 0 | AO66: 0 | AP66: 0 | AQ66: 0 | AR66: 0 | AS66: 0 | AT66: 0 | AU66: 0 | AV66: 0 | AW66: 0 | AX66: 0 | AY66: 0 | AZ66: 0 | BA66: 0 | BB66: 0 | BC66: 0 | BD66: 0 | BE66: 0 | BF66: 0 | BG66: 0
A67: ="Asset "&B67&" - TAB tracking" -> Asset 9 - TAB tracking | B67: 9
A68: ="Asset "&B68&" - RAB life" -> Asset 9 - RAB life | B68: 9
A69: ="Asset "&B69&" - Tax life" -> Asset 9 - Tax life | B69: 9
A70: ="Asset "&B70&" - capex (incurred)" -> Asset 10 - capex (incurred) | B70: 10
A71: ="Asset "&B71&" - capex (commissioned)" -> Asset 10 - capex (commissioned) | B71: 10
A72: ="Asset "&B72&" - tracking" -> Asset 10 - tracking | B72: 10
A73: ="Asset "&B73&" - Tax capex" -> Asset 10 - Tax capex | B73: 10 | D73: =D71 -> 0 | E73: =E71 -> 0 | F73: 0 | G73: 0 | H73: 0 | I73: 0 | J73: 0 | K73: 0 | L73: 0 | M73: 0 | N73: 0 | O73: 0 | P73: 0 | Q73: 0 | R73: 0 | S73: 0 | T73: 0 | U73: 0 | V73: 0 | W73: 0 | X73: 0 | Y73: 0 | Z73: 0 | AA73: 0 | AB73: 0 | AC73: 0 | AD73: 0 | AE73: 0 | AF73: 0 | AG73: 0 | AH73: 0 | AI73: 0 | AJ73: 0 | AK73: 0 | AL73: 0 | AM73: 0 | AN73: 0 | AO73: 0 | AP73: 0 | AQ73: 0 | AR73: 0 | AS73: 0 | AT73: 0 | AU73: 0 | AV73: 0 | AW73: 0 | AX73: 0 | AY73: 0 | AZ73: 0 | BA73: 0 | BB73: 0 | BC73: 0 | BD73: 0 | BE73: 0 | BF73: 0 | BG73: 0
A74: ="Asset "&B74&" - TAB tracking" -> Asset 10 - TAB tracking | B74: 10
A75: ="Asset "&B75&" - RAB life" -> Asset 10 - RAB life | B75: 10
A76: ="Asset "&B76&" - Tax life" -> Asset 10 - Tax life | B76: 10
A77: ="Asset "&B77&" - capex (incurred)" -> Asset 11 - capex (incurred) | B77: 11
A78: ="Asset "&B78&" - capex (commissioned)" -> Asset 11 - capex (commissioned) | B78: 11
A79: ="Asset "&B79&" - tracking" -> Asset 11 - tracking | B79: =B72+1 -> 11
A80: ="Asset "&B80&" - Tax capex" -> Asset 11 - Tax capex | B80: 11 | D80: =D78 -> 0 | E80: =E78 -> 0 | F80: 0 | G80: 0 | H80: 0 | I80: 0 | J80: 0 | K80: 0 | L80: 0 | M80: 0 | N80: 0 | O80: 0 | P80: 0 | Q80: 0 | R80: 0 | S80: 0 | T80: 0 | U80: 0 | V80: 0 | W80: 0 | X80: 0 | Y80: 0 | Z80: 0 | AA80: 0 | AB80: 0 | AC80: 0 | AD80: 0 | AE80: 0 | AF80: 0 | AG80: 0 | AH80: 0 | AI80: 0 | AJ80: 0 | AK80: 0 | AL80: 0 | AM80: 0 | AN80: 0 | AO80: 0 | AP80: 0 | AQ80: 0 | AR80: 0 | AS80: 0 | AT80: 0 | AU80: 0 | AV80: 0 | AW80: 0 | AX80: 0 | AY80: 0 | AZ80: 0 | BA80: 0 | BB80: 0 | BC80: 0 | BD80: 0 | BE80: 0 | BF80: 0 | BG80: 0
A81: ="Asset "&B81&" - TAB tracking" -> Asset 11 - TAB tracking | B81: 11
A82: ="Asset "&B82&" - RAB life" -> Asset 11 - RAB life | B82: 11
A83: ="Asset "&B83&" - Tax life" -> Asset 11 - Tax life | B83: 11
A84: ="Asset "&B84&" - capex (incurred)" -> Asset 12 - capex (incurred) | B84: 12
A85: ="Asset "&B85&" - capex (commissioned)" -> Asset 12 - capex (commissioned) | B85: 12
A86: ="Asset "&B86&" - tracking" -> Asset 12 - tracking | B86: 12
A87: ="Asset "&B87&" - Tax capex" -> Asset 12 - Tax capex | B87: 12 | D87: =D85 -> 0 | E87: =E85 -> 0 | F87: 0 | G87: 0 | H87: 0 | I87: 0 | J87: 0 | K87: 0 | L87: 0 | M87: 0 | N87: 0 | O87: 0 | P87: 0 | Q87: 0 | R87: 0 | S87: 0 | T87: 0 | U87: 0 | V87: 0 | W87: 0 | X87: 0 | Y87: 0 | Z87: 0 | AA87: 0 | AB87: 0 | AC87: 0 | AD87: 0 | AE87: 0 | AF87: 0 | AG87: 0 | AH87: 0 | AI87: 0 | AJ87: 0 | AK87: 0 | AL87: 0 | AM87: 0 | AN87: 0 | AO87: 0 | AP87: 0 | AQ87: 0 | AR87: 0 | AS87: 0 | AT87: 0 | AU87: 0 | AV87: 0 | AW87: 0 | AX87: 0 | AY87: 0 | AZ87: 0 | BA87: 0 | BB87: 0 | BC87: 0 | BD87: 0 | BE87: 0 | BF87: 0 | BG87: 0
A88: ="Asset "&B88&" - TAB tracking" -> Asset 12 - TAB tracking | B88: 12
A89: ="Asset "&B89&" - RAB life" -> Asset 12 - RAB life | B89: 12
A90: ="Asset "&B90&" - Tax life" -> Asset 12 - Tax life | B90: 12
A91: ="Asset "&B91&" - capex (incurred)" -> Asset 13 - capex (incurred) | B91: 13
A92: ="Asset "&B92&" - capex (commissioned)" -> Asset 13 - capex (commissioned) | B92: 13
A93: ="Asset "&B93&" - tracking" -> Asset 13 - tracking | B93: 13
A94: ="Asset "&B94&" - Tax capex" -> Asset 13 - Tax capex | B94: 13 | D94: =D92 -> 0 | E94: =E92 -> 0 | F94: 0 | G94: 0 | H94: 0 | I94: 0 | J94: 0 | K94: 0 | L94: 0 | M94: 0 | N94: 0 | O94: 0 | P94: 0 | Q94: 0 | R94: 0 | S94: 0 | T94: 0 | U94: 0 | V94: 0 | W94: 0 | X94: 0 | Y94: 0 | Z94: 0 | AA94: 0 | AB94: 0 | AC94: 0 | AD94: 0 | AE94: 0 | AF94: 0 | AG94: 0 | AH94: 0 | AI94: 0 | AJ94: 0 | AK94: 0 | AL94: 0 | AM94: 0 | AN94: 0 | AO94: 0 | AP94: 0 | AQ94: 0 | AR94: 0 | AS94: 0 | AT94: 0 | AU94: 0 | AV94: 0 | AW94: 0 | AX94: 0 | AY94: 0 | AZ94: 0 | BA94: 0 | BB94: 0 | BC94: 0 | BD94: 0 | BE94: 0 | BF94: 0 | BG94: 0
A95: ="Asset "&B95&" - TAB tracking" -> Asset 13 - TAB tracking | B95: 13
A96: ="Asset "&B96&" - RAB life" -> Asset 13 - RAB life | B96: 13
A97: ="Asset "&B97&" - Tax life" -> Asset 13 - Tax life | B97: 13
A98: ="Asset "&B98&" - capex (incurred)" -> Asset 14 - capex (incurred) | B98: 14
A99: ="Asset "&B99&" - capex (commissioned)" -> Asset 14 - capex (commissioned) | B99: 14
A100: ="Asset "&B100&" - tracking" -> Asset 14 - tracking | B100: 14
A101: ="Asset "&B101&" - Tax capex" -> Asset 14 - Tax capex | B101: 14 | D101: =D99 -> 0 | E101: =E99 -> 0 | F101: 0 | G101: 0 | H101: 0 | I101: 0 | J101: 0 | K101: 0 | L101: 0 | M101: 0 | N101: 0 | O101: 0 | P101: 0 | Q101: 0 | R101: 0 | S101: 0 | T101: 0 | U101: 0 | V101: 0 | W101: 0 | X101: 0 | Y101: 0 | Z101: 0 | AA101: 0 | AB101: 0 | AC101: 0 | AD101: 0 | AE101: 0 | AF101: 0 | AG101: 0 | AH101: 0 | AI101: 0 | AJ101: 0 | AK101: 0 | AL101: 0 | AM101: 0 | AN101: 0 | AO101: 0 | AP101: 0 | AQ101: 0 | AR101: 0 | AS101: 0 | AT101: 0 | AU101: 0 | AV101: 0 | AW101: 0 | AX101: 0 | AY101: 0 | AZ101: 0 | BA101: 0 | BB101: 0 | BC101: 0 | BD101: 0 | BE101: 0 | BF101: 0 | BG101: 0
A102: ="Asset "&B102&" - TAB tracking" -> Asset 14 - TAB tracking | B102: 14
A103: ="Asset "&B103&" - RAB life" -> Asset 14 - RAB life | B103: 14
A104: ="Asset "&B104&" - Tax life" -> Asset 14 - Tax life | B104: 14
A105: ="Asset "&B105&" - capex (incurred)" -> Asset 15 - capex (incurred) | B105: 15
A106: ="Asset "&B106&" - capex (commissioned)" -> Asset 15 - capex (commissioned) | B106: 15
A107: ="Asset "&B107&" - tracking" -> Asset 15 - tracking | B107: 15
A108: ="Asset "&B108&" - Tax capex" -> Asset 15 - Tax capex | B108: 15 | D108: =D106 -> 0 | E108: =E106 -> 0 | F108: 0 | G108: 0 | H108: 0 | I108: 0 | J108: 0 | K108: 0 | L108: 0 | M108: 0 | N108: 0 | O108: 0 | P108: 0 | Q108: 0 | R108: 0 | S108: 0 | T108: 0 | U108: 0 | V108: 0 | W108: 0 | X108: 0 | Y108: 0 | Z108: 0 | AA108: 0 | AB108: 0 | AC108: 0 | AD108: 0 | AE108: 0 | AF108: 0 | AG108: 0 | AH108: 0 | AI108: 0 | AJ108: 0 | AK108: 0 | AL108: 0 | AM108: 0 | AN108: 0 | AO108: 0 | AP108: 0 | AQ108: 0 | AR108: 0 | AS108: 0 | AT108: 0 | AU108: 0 | AV108: 0 | AW108: 0 | AX108: 0 | AY108: 0 | AZ108: 0 | BA108: 0 | BB108: 0 | BC108: 0 | BD108: 0 | BE108: 0 | BF108: 0 | BG108: 0
A109: ="Asset "&B109&" - TAB tracking" -> Asset 15 - TAB tracking | B109: 15
A110: ="Asset "&B110&" - RAB life" -> Asset 15 - RAB life | B110: 15
A111: ="Asset "&B111&" - Tax life" -> Asset 15 - Tax life | B111: 15
A112: ="Asset "&B112&" - capex (incurred)" -> Asset 16 - capex (incurred) | B112: 16
A113: ="Asset "&B113&" - capex (commissioned)" -> Asset 16 - capex (commissioned) | B113: 16
A114: ="Asset "&B114&" - tracking" -> Asset 16 - tracking | B114: 16
A115: ="Asset "&B115&" - Tax capex" -> Asset 16 - Tax capex | B115: 16 | D115: =D113 -> 0 | E115: =E113 -> 0 | F115: 0 | G115: 0 | H115: 0 | I115: 0 | J115: 0 | K115: 0 | L115: 0 | M115: 0 | N115: 0 | O115: 0 | P115: 0 | Q115: 0 | R115: 0 | S115: 0 | T115: 0 | U115: 0 | V115: 0 | W115: 0 | X115: 0 | Y115: 0 | Z115: 0 | AA115: 0 | AB115: 0 | AC115: 0 | AD115: 0 | AE115: 0 | AF115: 0 | AG115: 0 | AH115: 0 | AI115: 0 | AJ115: 0 | AK115: 0 | AL115: 0 | AM115: 0 | AN115: 0 | AO115: 0 | AP115: 0 | AQ115: 0 | AR115: 0 | AS115: 0 | AT115: 0 | AU115: 0 | AV115: 0 | AW115: 0 | AX115: 0 | AY115: 0 | AZ115: 0 | BA115: 0 | BB115: 0 | BC115: 0 | BD115: 0 | BE115: 0 | BF115: 0 | BG115: 0
A116: ="Asset "&B116&" - TAB tracking" -> Asset 16 - TAB tracking | B116: 16
A117: ="Asset "&B117&" - RAB life" -> Asset 16 - RAB life | B117: 16
A118: ="Asset "&B118&" - Tax life" -> Asset 16 - Tax life | B118: 16
A119: ="Asset "&B119&" - capex (incurred)" -> Asset 17 - capex (incurred) | B119: 17
A120: ="Asset "&B120&" - capex (commissioned)" -> Asset 17 - capex (commissioned) | B120: 17
A121: ="Asset "&B121&" - tracking" -> Asset 17 - tracking | B121: 17
A122: ="Asset "&B122&" - Tax capex" -> Asset 17 - Tax capex | B122: 17 | D122: =D120 -> 0 | E122: 0 | F122: 0 | G122: 0 | H122: 0 | I122: 0 | J122: 0 | K122: 0 | L122: 0 | M122: 0 | N122: 0 | O122: 0 | P122: 0 | Q122: 0 | R122: 0 | S122: 0 | T122: 0 | U122: 0 | V122: 0 | W122: 0 | X122: 0 | Y122: 0 | Z122: 0 | AA122: 0 | AB122: 0 | AC122: 0 | AD122: 0 | AE122: 0 | AF122: 0 | AG122: 0 | AH122: 0 | AI122: 0 | AJ122: 0 | AK122: 0 | AL122: 0 | AM122: 0 | AN122: 0 | AO122: 0 | AP122: 0 | AQ122: 0 | AR122: 0 | AS122: 0 | AT122: 0 | AU122: 0 | AV122: 0 | AW122: 0 | AX122: 0 | AY122: 0 | AZ122: 0 | BA122: 0 | BB122: 0 | BC122: 0 | BD122: 0 | BE122: 0 | BF122: 0 | BG122: 0
A123: ="Asset "&B123&" - TAB tracking" -> Asset 17 - TAB tracking | B123: 17
A124: ="Asset "&B124&" - RAB life" -> Asset 17 - RAB life | B124: 17
A125: ="Asset "&B125&" - Tax life" -> Asset 17 - Tax life | B125: 17
A126: ="Asset "&B126&" - capex (incurred)" -> Asset 18 - capex (incurred) | B126: 18
A127: ="Asset "&B127&" - capex (commissioned)" -> Asset 18 - capex (commissioned) | B127: 18
A128: ="Asset "&B128&" - tracking" -> Asset 18 - tracking | B128: 18
A129: ="Asset "&B129&" - Tax capex" -> Asset 18 - Tax capex | B129: 18 | D129: =D127 -> 0 | E129: =E127 -> 0 | F129: 0 | G129: 0 | H129: 0 | I129: 0 | J129: 0 | K129: 0 | L129: 0 | M129: 0 | N129: 0 | O129: 0 | P129: 0 | Q129: 0 | R129: 0 | S129: 0 | T129: 0 | U129: 0 | V129: 0 | W129: 0 | X129: 0 | Y129: 0 | Z129: 0 | AA129: 0 | AB129: 0 | AC129: 0 | AD129: 0 | AE129: 0 | AF129: 0 | AG129: 0 | AH129: 0 | AI129: 0 | AJ129: 0 | AK129: 0 | AL129: 0 | AM129: 0 | AN129: 0 | AO129: 0 | AP129: 0 | AQ129: 0 | AR129: 0 | AS129: 0 | AT129: 0 | AU129: 0 | AV129: 0 | AW129: 0 | AX129: 0 | AY129: 0 | AZ129: 0 | BA129: 0 | BB129: 0 | BC129: 0 | BD129: 0 | BE129: 0 | BF129: 0 | BG129: 0
A130: ="Asset "&B130&" - TAB tracking" -> Asset 18 - TAB tracking | B130: 18
A131: ="Asset "&B131&" - RAB life" -> Asset 18 - RAB life | B131: 18
A132: ="Asset "&B132&" - Tax life" -> Asset 18 - Tax life | B132: 18
A133: ="Asset "&B133&" - capex (incurred)" -> Asset 19 - capex (incurred) | B133: 19
A134: ="Asset "&B134&" - capex (commissioned)" -> Asset 19 - capex (commissioned) | B134: 19
A135: ="Asset "&B135&" - tracking" -> Asset 19 - tracking | B135: 19
A136: ="Asset "&B136&" - Tax capex" -> Asset 19 - Tax capex | B136: 19 | D136: =D134 -> 0 | E136: =E134 -> 0 | F136: 0 | G136: 0 | H136: 0 | I136: 0 | J136: 0 | K136: 0 | L136: 0 | M136: 0 | N136: 0 | O136: 0 | P136: 0 | Q136: 0 | R136: 0 | S136: 0 | T136: 0 | U136: 0 | V136: 0 | W136: 0 | X136: 0 | Y136: 0 | Z136: 0 | AA136: 0 | AB136: 0 | AC136: 0 | AD136: 0 | AE136: 0 | AF136: 0 | AG136: 0 | AH136: 0 | AI136: 0 | AJ136: 0 | AK136: 0 | AL136: 0 | AM136: 0 | AN136: 0 | AO136: 0 | AP136: 0 | AQ136: 0 | AR136: 0 | AS136: 0 | AT136: 0 | AU136: 0 | AV136: 0 | AW136: 0 | AX136: 0 | AY136: 0 | AZ136: 0 | BA136: 0 | BB136: 0 | BC136: 0 | BD136: 0 | BE136: 0 | BF136: 0 | BG136: 0
A137: ="Asset "&B137&" - TAB tracking" -> Asset 19 - TAB tracking | B137: 19
A138: ="Asset "&B138&" - RAB life" -> Asset 19 - RAB life | B138: 19
A139: ="Asset "&B139&" - Tax life" -> Asset 19 - Tax life | B139: 19
A140: ="Asset "&B140&" - capex (incurred)" -> Asset 20 - capex (incurred) | B140: 20
A141: ="Asset "&B141&" - capex (commissioned)" -> Asset 20 - capex (commissioned) | B141: 20
A142: ="Asset "&B142&" - tracking" -> Asset 20 - tracking | B142: 20
A143: ="Asset "&B143&" - Tax capex" -> Asset 20 - Tax capex | B143: =B136+1 -> 20 | D143: =D141 -> 0 | E143: =E141 -> 0 | F143: 0 | G143: 0 | H143: 0 | I143: 0 | J143: 0 | K143: 0 | L143: 0 | M143: 0 | N143: 0 | O143: 0 | P143: 0 | Q143: 0 | R143: 0 | S143: 0 | T143: 0 | U143: 0 | V143: 0 | W143: 0 | X143: 0 | Y143: 0 | Z143: 0 | AA143: 0 | AB143: 0 | AC143: 0 | AD143: 0 | AE143: 0 | AF143: 0 | AG143: 0 | AH143: 0 | AI143: 0 | AJ143: 0 | AK143: 0 | AL143: 0 | AM143: 0 | AN143: 0 | AO143: 0 | AP143: 0 | AQ143: 0 | AR143: 0 | AS143: 0 | AT143: 0 | AU143: 0 | AV143: 0 | AW143: 0 | AX143: 0 | AY143: 0 | AZ143: 0 | BA143: 0 | BB143: 0 | BC143: 0 | BD143: 0 | BE143: 0 | BF143: 0 | BG143: 0
A144: ="Asset "&B144&" - TAB tracking" -> Asset 20 - TAB tracking | B144: 20
A145: ="Asset "&B145&" - RAB life" -> Asset 20 - RAB life | B145: 20
A146: ="Asset "&B146&" - Tax life" -> Asset 20 - Tax life | B146: 20
A147: ="Asset "&B147&" - capex (incurred)" -> Asset 21 - capex (incurred) | B147: 21
A148: ="Asset "&B148&" - capex (commissioned)" -> Asset 21 - capex (commissioned) | B148: 21
A149: ="Asset "&B149&" - tracking" -> Asset 21 - tracking | B149: 21
A150: ="Asset "&B150&" - Tax capex" -> Asset 21 - Tax capex | B150: 21 | D150: =D148 -> 0 | E150: =E148 -> 0 | F150: 0 | G150: 0 | H150: 0 | I150: 0 | J150: 0 | K150: 0 | L150: 0 | M150: 0 | N150: 0 | O150: 0 | P150: 0 | Q150: 0 | R150: 0 | S150: 0 | T150: 0 | U150: 0 | V150: 0 | W150: 0 | X150: 0 | Y150: 0 | Z150: 0 | AA150: 0 | AB150: 0 | AC150: 0 | AD150: 0 | AE150: 0 | AF150: 0 | AG150: 0 | AH150: 0 | AI150: 0 | AJ150: 0 | AK150: 0 | AL150: 0 | AM150: 0 | AN150: 0 | AO150: 0 | AP150: 0 | AQ150: 0 | AR150: 0 | AS150: 0 | AT150: 0 | AU150: 0 | AV150: 0 | AW150: 0 | AX150: 0 | AY150: 0 | AZ150: 0 | BA150: 0 | BB150: 0 | BC150: 0 | BD150: 0 | BE150: 0 | BF150: 0 | BG150: 0
A151: ="Asset "&B151&" - TAB tracking" -> Asset 21 - TAB tracking | B151: 21
A152: ="Asset "&B152&" - RAB life" -> Asset 21 - RAB life | B152: 21
A153: ="Asset "&B153&" - Tax life" -> Asset 21 - Tax life | B153: 21
A154: ="Asset "&B154&" - capex (incurred)" -> Asset 22 - capex (incurred) | B154: 22
A155: ="Asset "&B155&" - capex (commissioned)" -> Asset 22 - capex (commissioned) | B155: 22
A156: ="Asset "&B156&" - tracking" -> Asset 22 - tracking | B156: 22
A157: ="Asset "&B157&" - Tax capex" -> Asset 22 - Tax capex | B157: 22 | D157: =D155 -> 0 | E157: =E155 -> 0 | F157: 0 | G157: 0 | H157: 0 | I157: 0 | J157: 0 | K157: 0 | L157: 0 | M157: 0 | N157: 0 | O157: 0 | P157: 0 | Q157: 0 | R157: 0 | S157: 0 | T157: 0 | U157: 0 | V157: 0 | W157: 0 | X157: 0 | Y157: 0 | Z157: 0 | AA157: 0 | AB157: 0 | AC157: 0 | AD157: 0 | AE157: 0 | AF157: 0 | AG157: 0 | AH157: 0 | AI157: 0 | AJ157: 0 | AK157: 0 | AL157: 0 | AM157: 0 | AN157: 0 | AO157: 0 | AP157: 0 | AQ157: 0 | AR157: 0 | AS157: 0 | AT157: 0 | AU157: 0 | AV157: 0 | AW157: 0 | AX157: 0 | AY157: 0 | AZ157: 0 | BA157: 0 | BB157: 0 | BC157: 0 | BD157: 0 | BE157: 0 | BF157: 0 | BG157: 0
A158: ="Asset "&B158&" - TAB tracking" -> Asset 22 - TAB tracking | B158: 22
A159: ="Asset "&B159&" - RAB life" -> Asset 22 - RAB life | B159: 22
A160: ="Asset "&B160&" - Tax life" -> Asset 22 - Tax life | B160: 22
A161: ="Asset "&B161&" - capex (incurred)" -> Asset 23 - capex (incurred) | B161: 23
A162: ="Asset "&B162&" - capex (commissioned)" -> Asset 23 - capex (commissioned) | B162: 23
A163: ="Asset "&B163&" - tracking" -> Asset 23 - tracking | B163: 23
A164: ="Asset "&B164&" - Tax capex" -> Asset 23 - Tax capex | B164: 23 | D164: =D162 -> 0 | E164: =E162 -> 0 | F164: 0 | G164: 0 | H164: 0 | I164: 0 | J164: 0 | K164: 0 | L164: 0 | M164: 0 | N164: 0 | O164: 0 | P164: 0 | Q164: 0 | R164: 0 | S164: 0 | T164: 0 | U164: 0 | V164: 0 | W164: 0 | X164: 0 | Y164: 0 | Z164: 0 | AA164: 0 | AB164: 0 | AC164: 0 | AD164: 0 | AE164: 0 | AF164: 0 | AG164: 0 | AH164: 0 | AI164: 0 | AJ164: 0 | AK164: 0 | AL164: 0 | AM164: 0 | AN164: 0 | AO164: 0 | AP164: 0 | AQ164: 0 | AR164: 0 | AS164: 0 | AT164: 0 | AU164: 0 | AV164: 0 | AW164: 0 | AX164: 0 | AY164: 0 | AZ164: 0 | BA164: 0 | BB164: 0 | BC164: 0 | BD164: 0 | BE164: 0 | BF164: 0 | BG164: 0
A165: ="Asset "&B165&" - TAB tracking" -> Asset 23 - TAB tracking | B165: 23
A166: ="Asset "&B166&" - RAB life" -> Asset 23 - RAB life | B166: 23
A167: ="Asset "&B167&" - Tax life" -> Asset 23 - Tax life | B167: 23 | Z167: 0 | AA167: 0 | AB167: 0 | AC167: 0 | AD167: 0 | AE167: 0 | AF167: 0 | AG167: 0 | AH167: 0 | AI167: 0 | AJ167: 0 | AK167: 0 | AL167: 0 | AM167: 0 | AN167: 0 | AO167: 0 | AP167: 0 | AQ167: 0 | AR167: 0 | AS167: 0 | AT167: 0 | AU167: 0 | AV167: 0 | AW167: 0 | AX167: 0 | AY167: 0 | AZ167: 0 | BA167: 0 | BB167: 0 | BC167: 0 | BD167: 0 | BE167: 0 | BF167: 0 | BG167: 0
A168: ="Asset "&B168&" - capex (incurred)" -> Asset 24 - capex (incurred) | B168: 24
A169: ="Asset "&B169&" - capex (commissioned)" -> Asset 24 - capex (commissioned) | B169: 24
A170: ="Asset "&B170&" - tracking" -> Asset 24 - tracking | B170: 24
A171: ="Asset "&B171&" - Tax capex" -> Asset 24 - Tax capex | B171: 24 | D171: =D169 -> 0 | E171: =E169 -> 0 | F171: 0 | G171: 0 | H171: 0 | I171: 0 | J171: 0 | K171: 0 | L171: 0 | M171: 0 | N171: 0 | O171: 0 | P171: 0 | Q171: 0 | R171: 0 | S171: 0 | T171: 0 | U171: 0 | V171: 0 | W171: 0 | X171: 0 | Y171: 0 | Z171: 0 | AA171: 0 | AB171: 0 | AC171: 0 | AD171: 0 | AE171: 0 | AF171: 0 | AG171: 0 | AH171: 0 | AI171: 0 | AJ171: 0 | AK171: 0 | AL171: 0 | AM171: 0 | AN171: 0 | AO171: 0 | AP171: 0 | AQ171: 0 | AR171: 0 | AS171: 0 | AT171: 0 | AU171: 0 | AV171: 0 | AW171: 0 | AX171: 0 | AY171: 0 | AZ171: 0 | BA171: 0 | BB171: 0 | BC171: 0 | BD171: 0 | BE171: 0 | BF171: 0 | BG171: 0
A172: ="Asset "&B172&" - TAB tracking" -> Asset 24 - TAB tracking | B172: 24
A173: ="Asset "&B173&" - RAB life" -> Asset 24 - RAB life | B173: 24
A174: ="Asset "&B174&" - Tax life" -> Asset 24 - Tax life | B174: 24
A175: ="Asset "&B175&" - capex (incurred)" -> Asset 25 - capex (incurred) | B175: 25
A176: ="Asset "&B176&" - capex (commissioned)" -> Asset 25 - capex (commissioned) | B176: 25
A177: ="Asset "&B177&" - tracking" -> Asset 25 - tracking | B177: 25
A178: ="Asset "&B178&" - Tax capex" -> Asset 25 - Tax capex | B178: 25 | D178: =D176 -> 0 | E178: =E176 -> 0 | F178: 0 | G178: 0 | H178: 0 | I178: 0 | J178: 0 | K178: 0 | L178: 0 | M178: 0 | N178: 0 | O178: 0 | P178: 0 | Q178: 0 | R178: 0 | S178: 0 | T178: 0 | U178: 0 | V178: 0 | W178: 0 | X178: 0 | Y178: 0 | Z178: 0 | AA178: 0 | AB178: 0 | AC178: 0 | AD178: 0 | AE178: 0 | AF178: 0 | AG178: 0 | AH178: 0 | AI178: 0 | AJ178: 0 | AK178: 0 | AL178: 0 | AM178: 0 | AN178: 0 | AO178: 0 | AP178: 0 | AQ178: 0 | AR178: 0 | AS178: 0 | AT178: 0 | AU178: 0 | AV178: 0 | AW178: 0 | AX178: 0 | AY178: 0 | AZ178: 0 | BA178: 0 | BB178: 0 | BC178: 0 | BD178: 0 | BE178: 0 | BF178: 0 | BG178: 0
A179: ="Asset "&B179&" - TAB tracking" -> Asset 25 - TAB tracking | B179: 25
A180: ="Asset "&B180&" - RAB life" -> Asset 25 - RAB life | B180: 25
A181: ="Asset "&B181&" - Tax life" -> Asset 25 - Tax life | B181: 25
A182: ="Asset "&B182&" - capex (incurred)" -> Asset 26 - capex (incurred) | B182: 26
A183: ="Asset "&B183&" - capex (commissioned)" -> Asset 26 - capex (commissioned) | B183: 26
A184: ="Asset "&B184&" - tracking" -> Asset 26 - tracking | B184: 26
A185: ="Asset "&B185&" - Tax capex" -> Asset 26 - Tax capex | B185: 26 | D185: =D183 -> 0 | E185: =E183 -> 0 | F185: 0 | G185: 0 | H185: 0 | I185: 0 | J185: 0 | K185: 0 | L185: 0 | M185: 0 | N185: 0 | O185: 0 | P185: 0 | Q185: 0 | R185: 0 | S185: 0 | T185: 0 | U185: 0 | V185: 0 | W185: 0 | X185: 0 | Y185: 0 | Z185: 0 | AA185: 0 | AB185: 0 | AC185: 0 | AD185: 0 | AE185: 0 | AF185: 0 | AG185: 0 | AH185: 0 | AI185: 0 | AJ185: 0 | AK185: 0 | AL185: 0 | AM185: 0 | AN185: 0 | AO185: 0 | AP185: 0 | AQ185: 0 | AR185: 0 | AS185: 0 | AT185: 0 | AU185: 0 | AV185: 0 | AW185: 0 | AX185: 0 | AY185: 0 | AZ185: 0 | BA185: 0 | BB185: 0 | BC185: 0 | BD185: 0 | BE185: 0 | BF185: 0 | BG185: 0
A186: ="Asset "&B186&" - TAB tracking" -> Asset 26 - TAB tracking | B186: 26
A187: ="Asset "&B187&" - RAB life" -> Asset 26 - RAB life | B187: 26
A188: ="Asset "&B188&" - Tax life" -> Asset 26 - Tax life | B188: 26
A189: ="Asset "&B189&" - capex (incurred)" -> Asset 27 - capex (incurred) | B189: 27
A190: ="Asset "&B190&" - capex (commissioned)" -> Asset 27 - capex (commissioned) | B190: 27
A191: ="Asset "&B191&" - tracking" -> Asset 27 - tracking | B191: 27
A192: ="Asset "&B192&" - Tax capex" -> Asset 27 - Tax capex | B192: 27 | D192: =D190 -> 0 | E192: =E190 -> 0 | F192: 0 | G192: 0 | H192: 0 | I192: 0 | J192: 0 | K192: 0 | L192: 0 | M192: 0 | N192: 0 | O192: 0 | P192: 0 | Q192: 0 | R192: 0 | S192: 0 | T192: 0 | U192: 0 | V192: 0 | W192: 0 | X192: 0 | Y192: 0 | Z192: 0 | AA192: 0 | AB192: 0 | AC192: 0 | AD192: 0 | AE192: 0 | AF192: 0 | AG192: 0 | AH192: 0 | AI192: 0 | AJ192: 0 | AK192: 0 | AL192: 0 | AM192: 0 | AN192: 0 | AO192: 0 | AP192: 0 | AQ192: 0 | AR192: 0 | AS192: 0 | AT192: 0 | AU192: 0 | AV192: 0 | AW192: 0 | AX192: 0 | AY192: 0 | AZ192: 0 | BA192: 0 | BB192: 0 | BC192: 0 | BD192: 0 | BE192: 0 | BF192: 0 | BG192: 0
A193: ="Asset "&B193&" - TAB tracking" -> Asset 27 - TAB tracking | B193: 27
A194: ="Asset "&B194&" - RAB life" -> Asset 27 - RAB life | B194: 27
A195: ="Asset "&B195&" - Tax life" -> Asset 27 - Tax life | B195: 27
A196: ="Asset "&B196&" - capex (incurred)" -> Asset 28 - capex (incurred) | B196: 28
A197: ="Asset "&B197&" - capex (commissioned)" -> Asset 28 - capex (commissioned) | B197: 28
A198: ="Asset "&B198&" - tracking" -> Asset 28 - tracking | B198: 28
A199: ="Asset "&B199&" - Tax capex" -> Asset 28 - Tax capex | B199: 28 | D199: =D197 -> 0 | E199: =E197 -> 0 | F199: 0 | G199: 0 | H199: 0 | I199: 0 | J199: 0 | K199: 0 | L199: 0 | M199: 0 | N199: 0 | O199: 0 | P199: 0 | Q199: 0 | R199: 0 | S199: 0 | T199: 0 | U199: 0 | V199: 0 | W199: 0 | X199: 0 | Y199: 0 | Z199: 0 | AA199: 0 | AB199: 0 | AC199: 0 | AD199: 0 | AE199: 0 | AF199: 0 | AG199: 0 | AH199: 0 | AI199: 0 | AJ199: 0 | AK199: 0 | AL199: 0 | AM199: 0 | AN199: 0 | AO199: 0 | AP199: 0 | AQ199: 0 | AR199: 0 | AS199: 0 | AT199: 0 | AU199: 0 | AV199: 0 | AW199: 0 | AX199: 0 | AY199: 0 | AZ199: 0 | BA199: 0 | BB199: 0 | BC199: 0 | BD199: 0 | BE199: 0 | BF199: 0 | BG199: 0
A200: ="Asset "&B200&" - TAB tracking" -> Asset 28 - TAB tracking | B200: 28
... 919 more rows

Sheet Depreciation
A1: Base case | B1: ORAB | C1: SUM | D1: ='Current approach'!D4 -> 2021-22 | E1: ='Current approach'!E4 -> 2022-23 | F1: ='Current approach'!F4 -> 2023-24 | G1: ='Current approach'!G4 -> 2024-25 | H1: ='Current approach'!H4 -> 2025-26 | I1: ='Current approach'!I4 -> 2026-27 | J1: ='Current approach'!J4 -> 2027-28 | K1: ='Current approach'!K4 -> 2028-29 | L1: ='Current approach'!L4 -> 2029-30 | M1: ='Current approach'!M4 -> 2030-31 | N1: ='Current approach'!N4 -> 2031-32 | O1: ='Current approach'!O4 -> 2032-33 | P1: ='Current approach'!P4 -> 2033-34 | Q1: ='Current approach'!Q4 -> 2034-35 | R1: ='Current approach'!R4 -> 2035-36 | S1: ='Current approach'!S4 -> 2036-37 | T1: ='Current approach'!T4 -> 2037-38 | U1: ='Current approach'!U4 -> 2038-39 | V1: ='Current approach'!V4 -> 2039-40 | W1: ='Current approach'!W4 -> 2040-41 | X1: ='Current approach'!X4 -> 2041-42 | Y1: ='Current approach'!Y4 -> 2042-43 | Z1: ='Current approach'!Z4 -> 2043-44 | AA1: ='Current approach'!AA4 -> 2044-45 | AB1: ='Current approach'!AB4 -> 2045-46 | AC1: ='Current approach'!AC4 -> 2046-47 | AD1: ='Current approach'!AD4 -> 2047-48 | AE1: ='Current approach'!AE4 -> 2048-49 | AF1: ='Current approach'!AF4 -> 2049-50 | AG1: ='Current approach'!AG4 -> 2050-51 | AH1: ='Current approach'!AH4 -> 2051-52 | AI1: ='Current approach'!AI4 -> 2052-53 | AJ1: ='Current approach'!AJ4 -> 2053-54 | AK1: ='Current approach'!AK4 -> 2054-55 | AL1: ='Current approach'!AL4 -> 2055-56 | AM1: ='Current approach'!AM4 -> 2056-57 | AN1: ='Current approach'!AN4 -> 2057-58 | AO1: ='Current approach'!AO4 -> 2058-59 | AP1: ='Current approach'!AP4 -> 2059-60 | AQ1: ='Current approach'!AQ4 -> 2060-61 | AR1: ='Current approach'!AR4 -> 2061-62 | AS1: ='Current approach'!AS4 -> 2062-63 | AT1: ='Current approach'!AT4 -> 2063-64 | AU1: ='Current approach'!AU4 -> 2064-65 | AV1: ='Current approach'!AV4 -> 2065-66 | AW1: ='Current approach'!AW4 -> 2066-67 | AX1: ='Current approach'!AX4 -> 2067-68 | AY1: ='Current approach'!AY4 -> 2068-69 | AZ1: ='Current approach'!AZ4 -> 2069-70 | BA1: ='Current approach'!BA4 -> 2070-71 | BB1: ='Current approach'!BB4 -> 2071-72 | BC1: ='Current approach'!BC4 -> 2072-73 | BD1: ='Current approach'!BD4 -> 2073-74 | BE1: ='Current approach'!BE4 -> 2074-75 | BF1: ='Current approach'!BF4 -> 2075-76 | BG1: ='Current approach'!BG4 -> 2076-77
A2: Asset 1 | B2: =INDEX('Current approach'!$C$7:$C$219,MATCH(Depreciation!$A2&" - capex (incurred)",'Current approach'!$A$7:$A$219,0)) -> 93.88999316 | C2: =SUM(D2:BG2) -> 93.88999316 | D2: 1.558524226 | E2: 1.558524226 | F2: 1.558524226 | G2: 1.558524226 | H2: 1.558524226 | I2: 1.558524226 | J2: 1.558524226 | K2: 1.558524226 | L2: 1.558524226 | M2: 1.558524226 | N2: 1.558524226 | O2: 1.558524226 | P2: 1.558524226 | Q2: 1.558524226 | R2: 1.558524226 | S2: 1.558524226 | T2: 1.558524226 | U2: 1.558524226 | V2: 1.558524226 | W2: 1.558524226 | X2: 1.558524226 | Y2: 1.558524226 | Z2: 1.558524226 | AA2: 1.558524226 | AB2: 1.558524226 | AC2: 1.558524226 | AD2: 1.558524226 | AE2: 1.558524226 | AF2: 1.558524226 | AG2: 1.558524226 | AH2: 1.558524226 | AI2: 1.558524226 | AJ2: 1.558524226 | AK2: 1.558524226 | AL2: 1.558524226 | AM2: 1.558524226 | AN2: 1.558524226 | AO2: 1.558524226 | AP2: 1.558524226 | AQ2: 1.558524226 | AR2: 1.558524226 | AS2: 1.558524226 | AT2: 1.558524226 | AU2: 1.558524226 | AV2: 1.558524226 | AW2: 1.558524226 | AX2: 1.558524226 | AY2: 1.558524226 | AZ2: 1.558524226 | BA2: 1.558524226 | BB2: 1.558524226 | BC2: 1.558524226 | BD2: 1.558524226 | BE2: 1.558524226 | BF2: 1.558524226 | BG2: 8.171160733 | BH2: =B2-C2 -> 0
A3: Asset 2 | B3: =INDEX('Current approach'!$C$7:$C$219,MATCH(Depreciation!$A3&" - capex (incurred)",'Current approach'!$A$7:$A$219,0)) -> 0.904470449 | C3: =SUM(D3:BG3) -> 0.904470449 | D3: 0.03000904384 | E3: 0.03000904384 | F3: 0.03000904384 | G3: 0.03000904384 | H3: 0.03000904384 | I3: 0.03000904384 | J3: 0.03000904384 | K3: 0.03000904384 | L3: 0.03000904384 | M3: 0.03000904384 | N3: 0.03000904384 | O3: 0.03000904384 | P3: 0.03000904384 | Q3: 0.03000904384 | R3: 0.03000904384 | S3: 0.03000904384 | T3: 0.03000904384 | U3: 0.03000904384 | V3: 0.03000904384 | W3: 0.03000904384 | X3: 0.03000904384 | Y3: 0.03000904384 | Z3: 0.03000904384 | AA3: 0.03000904384 | AB3: 0.03000904384 | AC3: 0.03000904384 | AD3: 0.03000904384 | AE3: 0.03000904384 | AF3: 0.03000904384 | AG3: 0.03000904384 | AH3: 0.00419913369 | AI3: 0 | AJ3: 0 | AK3: 0 | AL3: 0 | AM3: 0 | AN3: 0 | AO3: 0 | AP3: 0 | AQ3: 0 | AR3: 0 | AS3: 0 | AT3: 0 | AU3: 0 | AV3: 0 | AW3: 0 | AX3: 0 | AY3: 0 | AZ3: 0 | BA3: 0 | BB3: 0 | BC3: 0 | BD3: 0 | BE3: 0 | BF3: 0 | BG3: 0
A4: Asset 3 | B4: =INDEX('Current approach'!$C$7:$C$219,MATCH(Depreciation!$A4&" - capex (incurred)",'Current approach'!$A$7:$A$219,0)) -> 139.3617765 | C4: 139.3617765 | D4: 5.796988882 | E4: 5.796988882 | F4: 5.796988882 | G4: 5.796988882 | H4: 5.796988882 | I4: 5.796988882 | J4: 5.796988882 | K4: 5.796988882 | L4: 5.796988882 | M4: 5.796988882 | N4: 5.796988882 | O4: 5.796988882 | P4: 5.796988882 | Q4: 5.796988882 | R4: 5.796988882 | S4: 5.796988882 | T4: 5.796988882 | U4: 5.796988882 | V4: 5.796988882 | W4: 5.796988882 | X4: 5.796988882 | Y4: 5.796988882 | Z4: 5.796988882 | AA4: 5.796988882 | AB4: 0.2340432849 | AC4: 0 | AD4: 0 | AE4: 0 | AF4: 0 | AG4: 0 | AH4: 0 | AI4: 0 | AJ4: 0 | AK4: 0 | AL4: 0 | AM4: 0 | AN4: 0 | AO4: 0 | AP4: 0 | AQ4: 0 | AR4: 0 | AS4: 0 | AT4: 0 | AU4: 0 | AV4: 0 | AW4: 0 | AX4: 0 | AY4: 0 | AZ4: 0 | BA4: 0 | BB4: 0 | BC4: 0 | BD4: 0 | BE4: 0 | BF4: 0 | BG4: 0
A5: Asset 4 | B5: =INDEX('Current approach'!$C$7:$C$219,MATCH(Depreciation!$A5&" - capex (incurred)",'Current approach'!$A$7:$A$219,0)) -> 88.99878526 | C5: 88.99878526 | D5: 2.463737679 | E5: 2.463737679 | F5: 2.463737679 | G5: 2.463737679 | H5: 2.463737679 | I5: 2.463737679 | J5: 2.463737679 | K5: 2.463737679 | L5: 2.463737679 | M5: 2.463737679 | N5: 2.463737679 | O5: 2.463737679 | P5: 2.463737679 | Q5: 2.463737679 | R5: 2.463737679 | S5: 2.463737679 | T5: 2.463737679 | U5: 2.463737679 | V5: 2.463737679 | W5: 2.463737679 | X5: 2.463737679 | Y5: 2.463737679 | Z5: 2.463737679 | AA5: 2.463737679 | AB5: 2.463737679 | AC5: 2.463737679 | AD5: 2.463737679 | AE5: 2.463737679 | AF5: 2.463737679 | AG5: 2.463737679 | AH5: 2.463737679 | AI5: 2.463737679 | AJ5: 2.463737679 | AK5: 2.463737679 | AL5: 2.463737679 | AM5: 2.463737679 | AN5: 0.3042288193 | AO5: 0 | AP5: 0 | AQ5: 0 | AR5: 0 | AS5: 0 | AT5: 0 | AU5: 0 | AV5: 0 | AW5: 0 | AX5: 0 | AY5: 0 | AZ5: 0 | BA5: 0 | BB5: 0 | BC5: 0 | BD5: 0 | BE5: 0 | BF5: 0 | BG5: 0
A6: Asset 5 | B6: =INDEX('Current approach'!$C$7:$C$219,MATCH(Depreciation!$A6&" - capex (incurred)",'Current approach'!$A$7:$A$219,0)) -> 14.37653064 | C6: 14.37653064 | D6: 1.73656107 | E6: 1.73656107 | F6: 1.73656107 | G6: 1.73656107 | H6: 1.73656107 | I6: 1.73656107 | J6: 1.73656107 | K6: 1.73656107 | L6: 0.484042079 | M6: 0 | N6: 0 | O6: 0 | P6: 0 | Q6: 0 | R6: 0 | S6: 0 | T6: 0 | U6: 0 | V6: 0 | W6: 0 | X6: 0 | Y6: 0 | Z6: 0 | AA6: 0 | AB6: 0 | AC6: 0 | AD6: 0 | AE6: 0 | AF6: 0 | AG6: 0 | AH6: 0 | AI6: 0 | AJ6: 0 | AK6: 0 | AL6: 0 | AM6: 0 | AN6: 0 | AO6: 0 | AP6: 0 | AQ6: 0 | AR6: 0 | AS6: 0 | AT6: 0 | AU6: 0 | AV6: 0 | AW6: 0 | AX6: 0 | AY6: 0 | AZ6: 0 | BA6: 0 | BB6: 0 | BC6: 0 | BD6: 0 | BE6: 0 | BF6: 0 | BG6: 0
A7: Asset 6 | B7: =INDEX('Current approach'!$C$7:$C$219,MATCH(Depreciation!$A7&" - capex (incurred)",'Current approach'!$A$7:$A$219,0)) -> 0.9829993687 | C7: 0.9829993687 | D7: 0.06991187657 | E7: 0.06991187657 | F7: 0.06991187657 | G7: 0.06991187657 | H7: 0.06991187657 | I7: 0.06991187657 | J7: 0.06991187657 | K7: 0.06991187657 | L7: 0.06991187657 | M7: 0.06991187657 | N7: 0.06991187657 | O7: 0.06991187657 | P7: 0.06991187657 | Q7: 0.06991187657 | R7: 0.004233096738 | S7: 0 | T7: 0 | U7: 0 | V7: 0 | W7: 0 | X7: 0 | Y7: 0 | Z7: 0 | AA7: 0 | AB7: 0 | AC7: 0 | AD7: 0 | AE7: 0 | AF7: 0 | AG7: 0 | AH7: 0 | AI7: 0 | AJ7: 0 | AK7: 0 | AL7: 0 | AM7: 0 | AN7: 0 | AO7: 0 | AP7: 0 | AQ7: 0 | AR7: 0 | AS7: 0 | AT7: 0 | AU7: 0 | AV7: 0 | AW7: 0 | AX7: 0 | AY7: 0 | AZ7: 0 | BA7: 0 | BB7: 0 | BC7: 0 | BD7: 0 | BE7: 0 | BF7: 0 | BG7: 0
A8: Asset 7 | B8: =INDEX('Current approach'!$C$7:$C$219,MATCH(Depreciation!$A8&" - capex (incurred)",'Current approach'!$A$7:$A$219,0)) -> 38.5273316 | C8: 38.5273316 | D8: 3.67564471 | E8: 3.67564471 | F8: 3.67564471 | G8: 3.67564471 | H8: 3.67564471 | I8: 3.67564471 | J8: 3.67564471 | K8: 3.67564471 | L8: 3.67564471 | M8: 3.67564471 | N8: 1.770884493 | O8: 0 | P8: 0 | Q8: 0 | R8: 0 | S8: 0 | T8: 0 | U8: 0 | V8: 0 | W8: 0 | X8: 0 | Y8: 0 | Z8: 0 | AA8: 0 | AB8: 0 | AC8: 0 | AD8: 0 | AE8: 0 | AF8: 0 | AG8: 0 | AH8: 0 | AI8: 0 | AJ8: 0 | AK8: 0 | AL8: 0 | AM8: 0 | AN8: 0 | AO8: 0 | AP8: 0 | AQ8: 0 | AR8: 0 | AS8: 0 | AT8: 0 | AU8: 0 | AV8: 0 | AW8: 0 | AX8: 0 | AY8: 0 | AZ8: 0 | BA8: 0 | BB8: 0 | BC8: 0 | BD8: 0 | BE8: 0 | BF8: 0 | BG8: 0
A9: Asset 8 | B9: =INDEX('Current approach'!$C$7:$C$219,MATCH(Depreciation!$A9&" - capex (incurred)",'Current approach'!$A$7:$A$219,0)) -> -0.3545222547 | C9: -0.3545222547 | D9: -0.3545222547 | E9: 0 | F9: 0 | G9: 0 | H9: 0 | I9: 0 | J9: 0 | K9: 0 | L9: 0 | M9: 0 | N9: 0 | O9: 0 | P9: 0 | Q9: 0 | R9: 0 | S9: 0 | T9: 0 | U9: 0 | V9: 0 | W9: 0 | X9: 0 | Y9: 0 | Z9: 0 | AA9: 0 | AB9: 0 | AC9: 0 | AD9: 0 | AE9: 0 | AF9: 0 | AG9: 0 | AH9: 0 | AI9: 0 | AJ9: 0 | AK9: 0 | AL9: 0 | AM9: 0 | AN9: 0 | AO9: 0 | AP9: 0 | AQ9: 0 | AR9: 0 | AS9: 0 | AT9: 0 | AU9: 0 | AV9: 0 | AW9: 0 | AX9: 0 | AY9: 0 | AZ9: 0 | BA9: 0 | BB9: 0 | BC9: 0 | BD9: 0 | BE9: 0 | BF9: 0 | BG9: 0
A10: Asset 9 | B10: =INDEX('Current approach'!$C$7:$C$219,MATCH(Depreciation!$A10&" - capex (incurred)",'Current approach'!$A$7:$A$219,0)) -> 0 | C10: 0 | D10: 0 | E10: 0 | F10: 0 | G10: 0 | H10: 0 | I10: 0 | J10: 0 | K10: 0 | L10: 0 | M10: 0 | N10: 0 | O10: 0 | P10: 0 | Q10: 0 | R10: 0 | S10: 0 | T10: 0 | U10: 0 | V10: 0 | W10: 0 | X10: 0 | Y10: 0 | Z10: 0 | AA10: 0 | AB10: 0 | AC10: 0 | AD10: 0 | AE10: 0 | AF10: 0 | AG10: 0 | AH10: 0 | AI10: 0 | AJ10: 0 | AK10: 0 | AL10: 0 | AM10: 0 | AN10: 0 | AO10: 0 | AP10: 0 | AQ10: 0 | AR10: 0 | AS10: 0 | AT10: 0 | AU10: 0 | AV10: 0 | AW10: 0 | AX10: 0 | AY10: 0 | AZ10: 0 | BA10: 0 | BB10: 0 | BC10: 0 | BD10: 0 | BE10: 0 | BF10: 0 | BG10: 0
A11: Asset 10 | B11: =INDEX('Current approach'!$C$7:$C$219,MATCH(Depreciation!$A11&" - capex (incurred)",'Current approach'!$A$7:$A$219,0)) -> 0 | C11: 0 | D11: 0 | E11: 0 | F11: 0 | G11: 0 | H11: 0 | I11: 0 | J11: 0 | K11: 0 | L11: 0 | M11: 0 | N11: 0 | O11: 0 | P11: 0 | Q11: 0 | R11: 0 | S11: 0 | T11: 0 | U11: 0 | V11: 0 | W11: 0 | X11: 0 | Y11: 0 | Z11: 0 | AA11: 0 | AB11: 0 | AC11: 0 | AD11: 0 | AE11: 0 | AF11: 0 | AG11: 0 | AH11: 0 | AI11: 0 | AJ11: 0 | AK11: 0 | AL11: 0 | AM11: 0 | AN11: 0 | AO11: 0 | AP11: 0 | AQ11: 0 | AR11: 0 | AS11: 0 | AT11: 0 | AU11: 0 | AV11: 0 | AW11: 0 | AX11: 0 | AY11: 0 | AZ11: 0 | BA11: 0 | BB11: 0 | BC11: 0 | BD11: 0 | BE11: 0 | BF11: 0 | BG11: 0
A12: Asset 11 | B12: =INDEX('Current approach'!$C$7:$C$219,MATCH(Depreciation!$A12&" - capex (incurred)",'Current approach'!$A$7:$A$219,0)) -> 0 | C12: 0 | D12: 0 | E12: 0 | F12: 0 | G12: 0 | H12: 0 | I12: 0 | J12: 0 | K12: 0 | L12: 0 | M12: 0 | N12: 0 | O12: 0 | P12: 0 | Q12: 0 | R12: 0 | S12: 0 | T12: 0 | U12: 0 | V12: 0 | W12: 0 | X12: 0 | Y12: 0 | Z12: 0 | AA12: 0 | AB12: 0 | AC12: 0 | AD12: 0 | AE12: 0 | AF12: 0 | AG12: 0 | AH12: 0 | AI12: 0 | AJ12: 0 | AK12: 0 | AL12: 0 | AM12: 0 | AN12: 0 | AO12: 0 | AP12: 0 | AQ12: 0 | AR12: 0 | AS12: 0 | AT12: 0 | AU12: 0 | AV12: 0 | AW12: 0 | AX12: 0 | AY12: 0 | AZ12: 0 | BA12: 0 | BB12: 0 | BC12: 0 | BD12: 0 | BE12: 0 | BF12: 0 | BG12: 0
A13: Asset 12 | B13: =INDEX('Current approach'!$C$7:$C$219,MATCH(Depreciation!$A13&" - capex (incurred)",'Current approach'!$A$7:$A$219,0)) -> 0 | C13: 0 | D13: 0 | E13: 0 | F13: 0 | G13: 0 | H13: 0 | I13: 0 | J13: 0 | K13: 0 | L13: 0 | M13: 0 | N13: 0 | O13: 0 | P13: 0 | Q13: 0 | R13: 0 | S13: 0 | T13: 0 | U13: 0 | V13: 0 | W13: 0 | X13: 0 | Y13: 0 | Z13: 0 | AA13: 0 | AB13: 0 | AC13: 0 | AD13: 0 | AE13: 0 | AF13: 0 | AG13: 0 | AH13: 0 | AI13: 0 | AJ13: 0 | AK13: 0 | AL13: 0 | AM13: 0 | AN13: 0 | AO13: 0 | AP13: 0 | AQ13: 0 | AR13: 0 | AS13: 0 | AT13: 0 | AU13: 0 | AV13: 0 | AW13: 0 | AX13: 0 | AY13: 0 | AZ13: 0 | BA13: 0 | BB13: 0 | BC13: 0 | BD13: 0 | BE13: 0 | BF13: 0 | BG13: 0
A15: Alternative A | B15: ORAB | C15: SUM | D15: =D$1 -> 2021-22 | E15: =E$1 -> 2022-23 | F15: 2023-24 | G15: 2024-25 | H15: 2025-26 | I15: 2026-27 | J15: 2027-28 | K15: 2028-29 | L15: 2029-30 | M15: 2030-31 | N15: 2031-32 | O15: 2032-33 | P15: 2033-34 | Q15: 2034-35 | R15: 2035-36 | S15: 2036-37 | T15: 2037-38 | U15: 2038-39 | V15: 2039-40 | W15: 2040-41 | X15: 2041-42 | Y15: 2042-43 | Z15: 2043-44 | AA15: 2044-45 | AB15: 2045-46 | AC15: 2046-47 | AD15: 2047-48 | AE15: 2048-49 | AF15: 2049-50 | AG15: 2050-51 | AH15: 2051-52 | AI15: 2052-53 | AJ15: 2053-54 | AK15: 2054-55 | AL15: 2055-56 | AM15: 2056-57 | AN15: 2057-58 | AO15: 2058-59 | AP15: 2059-60 | AQ15: 2060-61 | AR15: 2061-62 | AS15: 2062-63 | AT15: 2063-64 | AU15: 2064-65 | AV15: 2065-66 | AW15: 2066-67 | AX15: 2067-68 | AY15: 2068-69 | AZ15: 2069-70 | BA15: 2070-71 | BB15: 2071-72 | BC15: 2072-73 | BD15: 2073-74 | BE15: 2074-75 | BF15: 2075-76 | BG15: 2076-77
A16: Asset 1 | B16: =INDEX('Current approach'!$C$7:$C$219,MATCH(Depreciation!$A16&" - capex (incurred)",'Current approach'!$A$7:$A$219,0)) -> 93.88999316 | C16: =SUM(D16:BG16) -> 93.88999316 | D16: =D2 -> 1.558524226 | E16: =E2 -> 1.558524226 | F16: 1.558524226 | G16: 1.558524226 | H16: 1.558524226 | I16: =IFERROR(I2*(($B16-SUM($D16:$H16))/SUM($I2:$AB2)),0) -> 4.304868601 | J16: =IFERROR(J2*(($B16-SUM($D16:$H16))/SUM($I2:$AB2)),0) -> 4.304868601 | K16: 4.304868601 | L16: 4.304868601 | M16: 4.304868601 | N16: 4.304868601 | O16: 4.304868601 | P16: 4.304868601 | Q16: 4.304868601 | R16: 4.304868601 | S16: 4.304868601 | T16: 4.304868601 | U16: 4.304868601 | V16: 4.304868601 | W16: 4.304868601 | X16: 4.304868601 | Y16: 4.304868601 | Z16: 4.304868601 | AA16: 4.304868601 | AB16: 4.304868601
A17: Asset 2 | B17: =INDEX('Current approach'!$C$7:$C$219,MATCH(Depreciation!$A17&" - capex (incurred)",'Current approach'!$A$7:$A$219,0)) -> 0.904470449 | C17: =SUM(D17:BG17) -> 0.904470449 | D17: =D3 -> 0.03000904384 | E17: 0.03000904384 | F17: 0.03000904384 | G17: 0.03000904384 | H17: 0.03000904384 | I17: =IFERROR(I3*(($B17-SUM($D17:$H17))/SUM($I3:$AB3)),0) -> 0.03772126149 | J17: 0.03772126149 | K17: 0.03772126149 | L17: 0.03772126149 | M17: 0.03772126149 | N17: 0.03772126149 | O17: 0.03772126149 | P17: 0.03772126149 | Q17: 0.03772126149 | R17: 0.03772126149 | S17: 0.03772126149 | T17: 0.03772126149 | U17: 0.03772126149 | V17: 0.03772126149 | W17: 0.03772126149 | X17: 0.03772126149 | Y17: 0.03772126149 | Z17: 0.03772126149 | AA17: 0.03772126149 | AB17: 0.03772126149
A18: Asset 3 | B18: =INDEX('Current approach'!$C$7:$C$219,MATCH(Depreciation!$A18&" - capex (incurred)",'Current approach'!$A$7:$A$219,0)) -> 139.3617765 | C18: 139.3617765 | D18: 5.796988882 | E18: 5.796988882 | F18: 5.796988882 | G18: 5.796988882 | H18: 5.796988882 | I18: =IFERROR(I4*(($B18-SUM($D18:$H18))/SUM($I4:$AB4)),0) -> 5.796988882 | J18: 5.796988882 | K18: 5.796988882 | L18: 5.796988882 | M18: 5.796988882 | N18: 5.796988882 | O18: 5.796988882 | P18: 5.796988882 | Q18: 5.796988882 | R18: 5.796988882 | S18: 5.796988882 | T18: 5.796988882 | U18: 5.796988882 | V18: 5.796988882 | W18: 5.796988882 | X18: 5.796988882 | Y18: 5.796988882 | Z18: 5.796988882 | AA18: 5.796988882 | AB18: 0.2340432849
A19: Asset 4 | B19: =INDEX('Current approach'!$C$7:$C$219,MATCH(Depreciation!$A19&" - capex (incurred)",'Current approach'!$A$7:$A$219,0)) -> 88.99878526 | C19: 88.99878526 | D19: 2.463737679 | E19: 2.463737679 | F19: 2.463737679 | G19: 2.463737679 | H19: 2.463737679 | I19: =IFERROR(I5*(($B19-SUM($D19:$H19))/SUM($I5:$AB5)),0) -> 3.834004843 | J19: 3.834004843 | K19: 3.834004843 | L19: 3.834004843 | M19: 3.834004843 | N19: 3.834004843 | O19: 3.834004843 | P19: 3.834004843 | Q19: 3.834004843 | R19: 3.834004843 | S19: 3.834004843 | T19: 3.834004843 | U19: 3.834004843 | V19: 3.834004843 | W19: 3.834004843 | X19: 3.834004843 | Y19: 3.834004843 | Z19: 3.834004843 | AA19: 3.834004843 | AB19: 3.834004843
A20: Asset 5 | B20: =INDEX('Current approach'!$C$7:$C$219,MATCH(Depreciation!$A20&" - capex (incurred)",'Current approach'!$A$7:$A$219,0)) -> 14.37653064 | C20: 14.37653064 | D20: 1.73656107 | E20: 1.73656107 | F20: 1.73656107 | G20: 1.73656107 | H20: 1.73656107 | I20: =IFERROR(I6*(($B20-SUM($D20:$H20))/SUM($I6:$AB6)),0) -> 1.73656107 | J20: 1.73656107 | K20: 1.73656107 | L20: 0.484042079 | M20: 0 | N20: 0 | O20: 0 | P20: 0 | Q20: 0 | R20: 0 | S20: 0 | T20: 0 | U20: 0 | V20: 0 | W20: 0 | X20: 0 | Y20: 0 | Z20: 0 | AA20: 0 | AB20: 0
A21: Asset 6 | B21: =INDEX('Current approach'!$C$7:$C$219,MATCH(Depreciation!$A21&" - capex (incurred)",'Current approach'!$A$7:$A$219,0)) -> 0.9829993687 | C21: 0.9829993687 | D21: 0.06991187657 | E21: 0.06991187657 | F21: 0.06991187657 | G21: 0.06991187657 | H21: 0.06991187657 | I21: =IFERROR(I7*(($B21-SUM($D21:$H21))/SUM($I7:$AB7)),0) -> 0.06991187657 | J21: 0.06991187657 | K21: 0.06991187657 | L21: 0.06991187657 | M21: 0.06991187657 | N21: 0.06991187657 | O21: 0.06991187657 | P21: 0.06991187657 | Q21: 0.06991187657 | R21: 0.004233096738 | S21: 0 | T21: 0 | U21: 0 | V21: 0 | W21: 0 | X21: 0 | Y21: 0 | Z21: 0 | AA21: 0 | AB21: 0
A22: Asset 7 | B22: =INDEX('Current approach'!$C$7:$C$219,MATCH(Depreciation!$A22&" - capex (incurred)",'Current approach'!$A$7:$A$219,0)) -> 38.5273316 | C22: 38.5273316 | D22: 3.67564471 | E22: 3.67564471 | F22: 3.67564471 | G22: 3.67564471 | H22: 3.67564471 | I22: =IFERROR(I8*(($B22-SUM($D22:$H22))/SUM($I8:$AB8)),0) -> 3.67564471 | J22: 3.67564471 | K22: 3.67564471 | L22: 3.67564471 | M22: 3.67564471 | N22: 1.770884493 | O22: 0 | P22: 0 | Q22: 0 | R22: 0 | S22: 0 | T22: 0 | U22: 0 | V22: 0 | W22: 0 | X22: 0 | Y22: 0 | Z22: 0 | AA22: 0 | AB22: 0
A23: Asset 8 | B23: =INDEX('Current approach'!$C$7:$C$219,MATCH(Depreciation!$A23&" - capex (incurred)",'Current approach'!$A$7:$A$219,0)) -> -0.3545222547 | C23: -0.3545222547 | D23: -0.3545222547 | E23: 0 | F23: 0 | G23: 0 | H23: 0 | I23: =IFERROR(I9*(($B23-SUM($D23:$H23))/SUM($I9:$AB9)),0) -> 0 | J23: 0 | K23: 0 | L23: 0 | M23: 0 | N23: 0 | O23: 0 | P23: 0 | Q23: 0 | R23: 0 | S23: 0 | T23: 0 | U23: 0 | V23: 0 | W23: 0 | X23: 0 | Y23: 0 | Z23: 0 | AA23: 0 | AB23: 0
A24: Asset 9 | B24: =INDEX('Current approach'!$C$7:$C$219,MATCH(Depreciation!$A24&" - capex (incurred)",'Current approach'!$A$7:$A$219,0)) -> 0 | C24: 0 | D24: 0 | E24: 0 | F24: 0 | G24: 0 | H24: 0 | I24: =IFERROR(I10*(($B24-SUM($D24:$H24))/SUM($I10:$AB10)),0) -> 0 | J24: 0 | K24: 0 | L24: 0 | M24: 0 | N24: 0 | O24: 0 | P24: 0 | Q24: 0 | R24: 0 | S24: 0 | T24: 0 | U24: 0 | V24: 0 | W24: 0 | X24: 0 | Y24: 0 | Z24: 0 | AA24: 0 | AB24: 0
A25: Asset 10 | B25: =INDEX('Current approach'!$C$7:$C$219,MATCH(Depreciation!$A25&" - capex (incurred)",'Current approach'!$A$7:$A$219,0)) -> 0 | C25: 0 | D25: 0 | E25: 0 | F25: 0 | G25: 0 | H25: 0 | I25: =IFERROR(I11*(($B25-SUM($D25:$H25))/SUM($I11:$AB11)),0) -> 0 | J25: 0 | K25: 0 | L25: 0 | M25: 0 | N25: 0 | O25: 0 | P25: 0 | Q25: 0 | R25: 0 | S25: 0 | T25: 0 | U25: 0 | V25: 0 | W25: 0 | X25: 0 | Y25: 0 | Z25: 0 | AA25: 0 | AB25: 0
A26: Asset 11 | B26: =INDEX('Current approach'!$C$7:$C$219,MATCH(Depreciation!$A26&" - capex (incurred)",'Current approach'!$A$7:$A$219,0)) -> 0 | C26: 0 | D26: 0 | E26: 0 | F26: 0 | G26: 0 | H26: 0 | I26: =IFERROR(I12*(($B26-SUM($D26:$H26))/SUM($I12:$AB12)),0) -> 0 | J26: 0 | K26: 0 | L26: 0 | M26: 0 | N26: 0 | O26: 0 | P26: 0 | Q26: 0 | R26: 0 | S26: 0 | T26: 0 | U26: 0 | V26: 0 | W26: 0 | X26: 0 | Y26: 0 | Z26: 0 | AA26: 0 | AB26: 0
A27: Asset 12 | B27: =INDEX('Current approach'!$C$7:$C$219,MATCH(Depreciation!$A27&" - capex (incurred)",'Current approach'!$A$7:$A$219,0)) -> 0 | C27: 0 | D27: 0 | E27: 0 | F27: 0 | G27: 0 | H27: 0 | I27: =IFERROR(I13*(($B27-SUM($D27:$H27))/SUM($I13:$AB13)),0) -> 0 | J27: 0 | K27: 0 | L27: 0 | M27: 0 | N27: 0 | O27: 0 | P27: 0 | Q27: 0 | R27: 0 | S27: 0 | T27: 0 | U27: 0 | V27: 0 | W27: 0 | X27: 0 | Y27: 0 | Z27: 0 | AA27: 0 | AB27: 0
A29: Straight-line | B29: ORAB | C29: SUM | D29: =D$1 -> 2021-22 | E29: =E$1 -> 2022-23 | F29: 2023-24 | G29: 2024-25 | H29: 2025-26 | I29: 2026-27 | J29: 2027-28 | K29: 2028-29 | L29: 2029-30 | M29: 2030-31 | N29: 2031-32 | O29: 2032-33 | P29: 2033-34 | Q29: 2034-35 | R29: 2035-36 | S29: 2036-37 | T29: 2037-38 | U29: 2038-39 | V29: 2039-40 | W29: 2040-41 | X29: 2041-42 | Y29: 2042-43 | Z29: 2043-44 | AA29: 2044-45 | AB29: 2045-46 | AC29: 2046-47 | AD29: 2047-48 | AE29: 2048-49 | AF29: 2049-50 | AG29: 2050-51 | AH29: 2051-52 | AI29: 2052-53 | AJ29: 2053-54 | AK29: 2054-55 | AL29: 2055-56 | AM29: 2056-57 | AN29: 2057-58 | AO29: 2058-59 | AP29: 2059-60 | AQ29: 2060-61 | AR29: 2061-62 | AS29: 2062-63 | AT29: 2063-64 | AU29: 2064-65 | AV29: 2065-66 | AW29: 2066-67 | AX29: 2067-68 | AY29: 2068-69 | AZ29: 2069-70 | BA29: 2070-71 | BB29: 2071-72 | BC29: 2072-73 | BD29: 2073-74 | BE29: 2074-75 | BF29: 2075-76 | BG29: 2076-77
A30: Asset 1 | B30: ='Fully depreciate'!$C$7 -> 380.88573 | C30: =SUM(D30:BG30) -> 380.88573 | I30: =$B$30/19 -> 20.04661737 | J30: =$B$30/19 -> 20.04661737 | K30: 20.04661737 | L30: 20.04661737 | M30: 20.04661737 | N30: 20.04661737 | O30: 20.04661737 | P30: 20.04661737 | Q30: 20.04661737 | R30: 20.04661737 | S30: 20.04661737 | T30: 20.04661737 | U30: 20.04661737 | V30: 20.04661737 | W30: 20.04661737 | X30: 20.04661737 | Y30: 20.04661737 | Z30: 20.04661737 | AA30: 20.04661737
A32: Tilted depn | B32: ORAB | C32: SUM | D32: =D$1 -> 2021-22 | E32: =E$1 -> 2022-23 | F32: 2023-24 | G32: 2024-25 | H32: 2025-26 | I32: 2026-27 | J32: 2027-28 | K32: 2028-29 | L32: 2029-30 | M32: 2030-31 | N32: 2031-32 | O32: 2032-33 | P32: 2033-34 | Q32: 2034-35 | R32: 2035-36 | S32: 2036-37 | T32: 2037-38 | U32: 2038-39 | V32: 2039-40 | W32: 2040-41 | X32: 2041-42 | Y32: 2042-43 | Z32: 2043-44 | AA32: 2044-45 | AB32: 2045-46 | AC32: 2046-47 | AD32: 2047-48 | AE32: 2048-49 | AF32: 2049-50 | AG32: 2050-51 | AH32: 2051-52 | AI32: 2052-53 | AJ32: 2053-54 | AK32: 2054-55 | AL32: 2055-56 | AM32: 2056-57 | AN32: 2057-58 | AO32: 2058-59 | AP32: 2059-60 | AQ32: 2060-61 | AR32: 2061-62 | AS32: 2062-63 | AT32: 2063-64 | AU32: 2064-65 | AV32: 2065-66 | AW32: 2066-67 | AX32: 2067-68 | AY32: 2068-69 | AZ32: 2069-70 | BA32: 2070-71 | BB32: 2071-72 | BC32: 2072-73 | BD32: 2073-74 | BE32: 2074-75 | BF32: 2075-76 | BG32: 2076-77
A33: Asset 1 | B33: ='Fully depreciate'!$C$7 -> 380.88573 | C33: =SUM(D33:BG33) -> 380.88573 | I33: =I30*I34 -> 30.06992605 | J33: =J30*J34 -> 28.95622509 | K33: 27.84252412 | L33: 26.72882316 | M33: 25.61512219 | N33: 24.50142123 | O33: 23.38772026 | P33: 22.2740193 | Q33: 21.16031833 | R33: 20.04661737 | S33: 18.9329164 | T33: 17.81921544 | U33: 16.70551447 | V33: 15.59181351 | W33: 14.47811254 | X33: 13.36441158 | Y33: 12.25071061 | Z33: 11.13700965 | AA33: 10.02330868
H34: Tilt | I34: =1-I35 -> 1.5 | J34: =1-J35 -> 1.444444444 | K34: =1-K35 -> 1.388888889 | L34: 1.333333333 | M34: 1.277777778 | N34: 1.222222222 | O34: 1.166666667 | P34: 1.111111111 | Q34: 1.055555556 | R34: 1 | S34: 0.9444444444 | T34: 0.8888888889 | U34: 0.8333333333 | V34: 0.7777777778 | W34: 0.7222222222 | X34: 0.6666666667 | Y34: 0.6111111111 | Z34: 0.5555555556 | AA34: 0.5
H35: Tilt | I35: -0.5 | J35: =I35+($AA$35-$I$35)/(COUNTA($I$32:$AA$32)-1) -> -0.4444444444 | K35: =J35+($AA$35-$I$35)/(COUNTA($I$32:$AA$32)-1) -> -0.3888888889 | L35: -0.3333333333 | M35: -0.2777777778 | N35: -0.2222222222 | O35: -0.1666666667 | P35: -0.1111111111 | Q35: -0.05555555556 | R35: 8.326672685e-17 | S35: 0.05555555556 | T35: 0.1111111111 | U35: 0.1666666667 | V35: 0.2222222222 | W35: 0.2777777778 | X35: 0.3333333333 | Y35: 0.3888888889 | Z35: 0.4444444444 | AA35: =-I35 -> 0.5
A37: SYD | B37: ORAB | C37: SUM | D37: =D$1 -> 2021-22 | E37: =E$1 -> 2022-23 | F37: 2023-24 | G37: 2024-25 | H37: 2025-26 | I37: 2026-27 | J37: 2027-28 | K37: 2028-29 | L37: 2029-30 | M37: 2030-31 | N37: 2031-32 | O37: 2032-33 | P37: 2033-34 | Q37: 2034-35 | R37: 2035-36 | S37: 2036-37 | T37: 2037-38 | U37: 2038-39 | V37: 2039-40 | W37: 2040-41 | X37: 2041-42 | Y37: 2042-43 | Z37: 2043-44 | AA37: 2044-45 | AB37: 2045-46 | AC37: 2046-47 | AD37: 2047-48 | AE37: 2048-49 | AF37: 2049-50 | AG37: 2050-51 | AH37: 2051-52 | AI37: 2052-53 | AJ37: 2053-54 | AK37: 2054-55 | AL37: 2055-56 | AM37: 2056-57 | AN37: 2057-58 | AO37: 2058-59 | AP37: 2059-60 | AQ37: 2060-61 | AR37: 2061-62 | AS37: 2062-63 | AT37: 2063-64 | AU37: 2064-65 | AV37: 2065-66 | AW37: 2066-67 | AX37: 2067-68 | AY37: 2068-69 | AZ37: 2069-70 | BA37: 2070-71 | BB37: 2071-72 | BC37: 2072-73 | BD37: 2073-74 | BE37: 2074-75 | BF37: 2075-76 | BG37: 2076-77
A38: Asset 1 | B38: ='Fully depreciate'!$C$7 -> 380.88573 | C38: =SUM(D38:BG38) -> 380.88573 | I38: =SYD($B$38,0,19,COUNTA($I37:I37)) -> 38.088573 | J38: =SYD($B$38,0,19,COUNTA($I37:J37)) -> 36.08391127 | K38: =SYD($B$38,0,19,COUNTA($I37:K37)) -> 34.07924953 | L38: =SYD($B$38,0,19,COUNTA($I37:L37)) -> 32.07458779 | M38: =SYD($B$38,0,19,COUNTA($I37:M37)) -> 30.06992605 | N38: =SYD($B$38,0,19,COUNTA($I37:N37)) -> 28.06526432 | O38: =SYD($B$38,0,19,COUNTA($I37:O37)) -> 26.06060258 | P38: =SYD($B$38,0,19,COUNTA($I37:P37)) -> 24.05594084 | Q38: =SYD($B$38,0,19,COUNTA($I37:Q37)) -> 22.05127911 | R38: =SYD($B$38,0,19,COUNTA($I37:R37)) -> 20.04661737 | S38: =SYD($B$38,0,19,COUNTA($I37:S37)) -> 18.04195563 | T38: =SYD($B$38,0,19,COUNTA($I37:T37)) -> 16.0372939 | U38: =SYD($B$38,0,19,COUNTA($I37:U37)) -> 14.03263216 | V38: =SYD($B$38,0,19,COUNTA($I37:V37)) -> 12.02797042 | W38: =SYD($B$38,0,19,COUNTA($I37:W37)) -> 10.02330868 | X38: =SYD($B$38,0,19,COUNTA($I37:X37)) -> 8.018646948 | Y38: =SYD($B$38,0,19,COUNTA($I37:Y37)) -> 6.013985211 | Z38: =SYD($B$38,0,19,COUNTA($I37:Z37)) -> 4.009323474 | AA38: =SYD($B$38,0,19,COUNTA($I37:AA37)) -> 2.004661737
A40: S curve | B40: ORAB | C40: SUM | D40: =D$1 -> 2021-22 | E40: =E$1 -> 2022-23 | F40: 2023-24 | G40: 2024-25 | H40: 2025-26 | I40: 2026-27 | J40: 2027-28 | K40: 2028-29 | L40: 2029-30 | M40: 2030-31 | N40: 2031-32 | O40: 2032-33 | P40: 2033-34 | Q40: 2034-35 | R40: 2035-36 | S40: 2036-37 | T40: 2037-38 | U40: 2038-39 | V40: 2039-40 | W40: 2040-41 | X40: 2041-42 | Y40: 2042-43 | Z40: 2043-44 | AA40: 2044-45 | AB40: 2045-46 | AC40: 2046-47 | AD40: 2047-48 | AE40: 2048-49 | AF40: 2049-50 | AG40: 2050-51 | AH40: 2051-52 | AI40: 2052-53 | AJ40: 2053-54 | AK40: 2054-55 | AL40: 2055-56 | AM40: 2056-57 | AN40: 2057-58 | AO40: 2058-59 | AP40: 2059-60 | AQ40: 2060-61 | AR40: 2061-62 | AS40: 2062-63 | AT40: 2063-64 | AU40: 2064-65 | AV40: 2065-66 | AW40: 2066-67 | AX40: 2067-68 | AY40: 2068-69 | AZ40: 2069-70 | BA40: 2070-71 | BB40: 2071-72 | BC40: 2072-73 | BD40: 2073-74 | BE40: 2074-75 | BF40: 2075-76 | BG40: 2076-77
A41: Asset 1 | B41: ='Fully depreciate'!$C$7 -> 380.88573 | C41: =SUM(D41:BG41) -> 380.88573 | I41: =($I$44/(1+EXP($I$45*(I42-$I$46)))) -> 39.9129646 | J41: =($I$44/(1+EXP($I$45*(J42-$I$46)))) -> 39.76597086 | K41: 39.50089602 | L41: 39.02687523 | M41: 38.19177807 | N41: 36.75857229 | O41: 34.4059667 | P41: 30.81264455 | Q41: 25.88644985 | R41: 20.04661737 | S41: 14.20678489 | T41: 9.280590191 | U41: 5.687268043 | V41: 3.334662444 | W41: 1.901456666 | X41: 1.066359507 | Y41: 0.5923387207 | Z41: 0.3272638813 | AA41: 0.1802701353
C42: =C41-B41 -> -1.136868377e-12 | H42: 0 | I42: 0 | J42: 1 | K42: 2 | L42: 3 | M42: 4 | N42: 5 | O42: 6 | P42: 7 | Q42: 8 | R42: 9 | S42: 10 | T42: 11 | U42: 12 | V42: 13 | W42: 14 | X42: 15 | Y42: 16 | Z42: 17 | AA42: 18
H44: MAX | I44: 40.09323474
H45: steepness | I45: 0.6
H46: midpoint | I46: 9

Sheet Demand
B1: scenario | D1: ='Current approach'!D4 -> 2021-22 | E1: ='Current approach'!E4 -> 2022-23 | F1: ='Current approach'!F4 -> 2023-24 | G1: ='Current approach'!G4 -> 2024-25 | H1: ='Current approach'!H4 -> 2025-26 | I1: ='Current approach'!I4 -> 2026-27 | J1: ='Current approach'!J4 -> 2027-28 | K1: ='Current approach'!K4 -> 2028-29 | L1: ='Current approach'!L4 -> 2029-30 | M1: ='Current approach'!M4 -> 2030-31 | N1: ='Current approach'!N4 -> 2031-32 | O1: ='Current approach'!O4 -> 2032-33 | P1: ='Current approach'!P4 -> 2033-34 | Q1: ='Current approach'!Q4 -> 2034-35 | R1: ='Current approach'!R4 -> 2035-36 | S1: ='Current approach'!S4 -> 2036-37 | T1: ='Current approach'!T4 -> 2037-38 | U1: ='Current approach'!U4 -> 2038-39 | V1: ='Current approach'!V4 -> 2039-40 | W1: ='Current approach'!W4 -> 2040-41 | X1: ='Current approach'!X4 -> 2041-42 | Y1: ='Current approach'!Y4 -> 2042-43 | Z1: ='Current approach'!Z4 -> 2043-44 | AA1: ='Current approach'!AA4 -> 2044-45 | AB1: ='Current approach'!AB4 -> 2045-46 | AC1: ='Current approach'!AC4 -> 2046-47 | AD1: ='Current approach'!AD4 -> 2047-48 | AE1: ='Current approach'!AE4 -> 2048-49 | AF1: ='Current approach'!AF4 -> 2049-50 | AG1: ='Current approach'!AG4 -> 2050-51 | AH1: ='Current approach'!AH4 -> 2051-52 | AI1: ='Current approach'!AI4 -> 2052-53 | AJ1: ='Current approach'!AJ4 -> 2053-54 | AK1: ='Current approach'!AK4 -> 2054-55 | AL1: ='Current approach'!AL4 -> 2055-56 | AM1: ='Current approach'!AM4 -> 2056-57 | AN1: ='Current approach'!AN4 -> 2057-58 | AO1: ='Current approach'!AO4 -> 2058-59 | AP1: ='Current approach'!AP4 -> 2059-60 | AQ1: ='Current approach'!AQ4 -> 2060-61 | AR1: ='Current approach'!AR4 -> 2061-62 | AS1: ='Current approach'!AS4 -> 2062-63 | AT1: ='Current approach'!AT4 -> 2063-64 | AU1: ='Current approach'!AU4 -> 2064-65 | AV1: ='Current approach'!AV4 -> 2065-66 | AW1: ='Current approach'!AW4 -> 2066-67 | AX1: ='Current approach'!AX4 -> 2067-68 | AY1: ='Current approach'!AY4 -> 2068-69 | AZ1: ='Current approach'!AZ4 -> 2069-70 | BA1: ='Current approach'!BA4 -> 2070-71 | BB1: ='Current approach'!BB4 -> 2071-72 | BC1: ='Current approach'!BC4 -> 2072-73 | BD1: ='Current approach'!BD4 -> 2073-74 | BE1: ='Current approach'!BE4 -> 2074-75 | BF1: ='Current approach'!BF4 -> 2075-76 | BG1: ='Current approach'!BG4 -> 2076-77
H2: 0 | I2: =H2+1 -> 1 | J2: =I2+1 -> 2 | K2: 3 | L2: 4 | M2: 5 | N2: 6 | O2: 7 | P2: 8 | Q2: 9 | R2: 10 | S2: 11 | T2: 12 | U2: 13 | V2: 14 | W2: 15 | X2: 16 | Y2: 17 | Z2: 18 | AA2: 19 | AB2: 20 | AC2: 21 | AD2: 22 | AE2: 23 | AF2: 24 | AG2: 25 | AH2: 26 | AI2: 27 | AJ2: 28 | AK2: 29 | AL2: 30 | AM2: 31 | AN2: 32 | AO2: 33 | AP2: 34 | AQ2: 35 | AR2: 36 | AS2: 37 | AT2: 38 | AU2: 39 | AV2: 40 | AW2: 41 | AX2: 42 | AY2: 43 | AZ2: 44 | BA2: 45 | BB2: 46 | BC2: 47 | BD2: 48 | BE2: 49 | BF2: 50 | BG2: 51
A3: Energy Delivered Forecast (GJ) | B3: Continued decline | C3: 7375870.35 | D3: 7217446.701 | E3: 6967198.441 | F3: 6693336.297 | G3: 6410473.116 | H3: 6139450.635 | I3: =MAX(0,H3+(($H$3-$C$3)/5)) -> 5892166.692 | J3: 5644882.75 | K3: 5397598.807 | L3: 5150314.864 | M3: 4903030.921 | N3: 4655746.978 | O3: 4408463.035 | P3: 4161179.092 | Q3: 3913895.149 | R3: 3666611.206 | S3: 3419327.263 | T3: 3172043.32 | U3: 2924759.377 | V3: 2677475.434 | W3: 2430191.491 | X3: 2182907.548 | Y3: 1935623.605 | Z3: 1688339.662 | AA3: 1441055.719 | AB3: 1193771.776
A4: Energy Delivered Forecast (GJ) | B4: Decline to 50% in 2045 | C4: =C3 -> 7375870.35 | D4: =D3 -> 7217446.701 | E4: 6967198.441 | F4: 6693336.297 | G4: 6410473.116 | H4: 6139450.635 | I4: =H4-($H$4-(0.5*$H$4))/($AB$2-$H$2) -> 5985964.37 | J4: =I4-($H$4-(0.5*$H$4))/($AB$2-$H$2) -> 5832478.104 | K4: 5678991.838 | L4: 5525505.572 | M4: 5372019.306 | N4: 5218533.04 | O4: 5065046.774 | P4: 4911560.508 | Q4: 4758074.242 | R4: 4604587.977 | S4: 4451101.711 | T4: 4297615.445 | U4: 4144129.179 | V4: 3990642.913 | W4: 3837156.647 | X4: 3683670.381 | Y4: 3530184.115 | Z4: 3376697.849 | AA4: 3223211.584 | AB4: 3069725.318
A5: Energy Delivered Forecast (GJ) | B5: Decline to 25% in 2045 | C5: =C4 -> 7375870.35 | D5: =D4 -> 7217446.701 | E5: =E4 -> 6967198.441 | F5: =F4 -> 6693336.297 | G5: =G4 -> 6410473.116 | H5: =H4 -> 6139450.635 | I5: =H5-($H$4-(0.25*$H$4))/($AB$2-$H$2) -> 5909221.237 | J5: =I5-($H$4-(0.25*$H$4))/($AB$2-$H$2) -> 5678991.838 | K5: 5448762.439 | L5: 5218533.04 | M5: 4988303.641 | N5: 4758074.242 | O5: 4527844.844 | P5: 4297615.445 | Q5: 4067386.046 | R5: 3837156.647 | S5: 3606927.248 | T5: 3376697.849 | U5: 3146468.451 | V5: 2916239.052 | W5: 2686009.653 | X5: 2455780.254 | Y5: 2225550.855 | Z5: 1995321.457 | AA5: 1765092.058 | AB5: 1534862.659
A6: Energy Delivered Forecast (GJ) | B6: Decline to 10% in 2045 | C6: =C5 -> 7375870.35 | D6: =D5 -> 7217446.701 | E6: =E5 -> 6967198.441 | F6: =F5 -> 6693336.297 | G6: =G5 -> 6410473.116 | H6: =H5 -> 6139450.635 | I6: =H6-($H$4-(0.1*$H$4))/($AB$2-$H$2) -> 5863175.357 | J6: =I6-($H$4-(0.1*$H$4))/($AB$2-$H$2) -> 5586900.078 | K6: 5310624.8 | L6: 5034349.521 | M6: 4758074.242 | N6: 4481798.964 | O6: 4205523.685 | P6: 3929248.407 | Q6: 3652973.128 | R6: 3376697.849 | S6: 3100422.571 | T6: 2824147.292 | U6: 2547872.014 | V6: 2271596.735 | W6: 1995321.457 | X6: 1719046.178 | Y6: 1442770.899 | Z6: 1166495.621 | AA6: 890220.3421 | AB6: 613945.0635
A7: Energy Delivered Forecast (GJ) | B7: 0.1 | H7: =H6 -> 6139450.635 | I7: =H7*(1-$B$7) -> 5525505.572 | J7: =I7*(1-$B$7) -> 4972955.015 | K7: 4475659.513 | L7: 4028093.562 | M7: 3625284.206 | N7: 3262755.785 | O7: 2936480.207 | P7: 2642832.186 | Q7: 2378548.967 | R7: 2140694.071 | S7: 1926624.664 | T7: 1733962.197 | U7: 1560565.977 | V7: 1404509.38 | W7: 1264058.442 | X7: 1137652.598 | Y7: 1023887.338 | Z7: 921498.6041 | AA7: 829348.7436 | AB7: 746413.8693
A9: Change in demand | B9: Decline to 50% in 2045 | I9: =I4/H4-1 -> -0.025 | J9: =J4/I4-1 -> -0.02564102564 | K9: -0.02631578947 | L9: -0.02702702703 | M9: -0.02777777778 | N9: =N4/M4-1 -> -0.02857142857 | O9: =O4/N4-1 -> -0.02941176471 | P9: -0.0303030303 | Q9: -0.03125 | R9: -0.03225806452 | S9: =S4/R4-1 -> -0.03333333333 | T9: -0.03448275862 | U9: -0.03571428571 | V9: -0.03703703704 | W9: -0.03846153846 | X9: -0.04 | Y9: -0.04166666667 | Z9: -0.04347826087 | AA9: -0.04545454545 | AB9: -0.04761904762
A10: Change in demand | B10: Decline to 25% in 2045 | I10: =I5/H5-1 -> -0.0375 | J10: -0.03896103896 | K10: -0.04054054054 | L10: -0.04225352113 | M10: -0.04411764706 | N10: =N5/M5-1 -> -0.04615384615 | O10: -0.04838709677 | P10: -0.05084745763 | Q10: -0.05357142857 | R10: -0.05660377358 | S10: =S5/R5-1 -> -0.06 | T10: -0.06382978723 | U10: -0.06818181818 | V10: -0.07317073171 | W10: -0.07894736842 | X10: -0.08571428571 | Y10: -0.09375 | Z10: -0.1034482759 | AA10: -0.1153846154 | AB10: -0.1304347826
A11: Change in demand | B11: Decline to 10% in 2045 | I11: -0.045 | J11: -0.04712041885 | K11: -0.04945054945 | L11: -0.05202312139 | M11: -0.05487804878 | N11: =N6/M6-1 -> -0.05806451613 | O11: -0.06164383562 | P11: -0.06569343066 | Q11: -0.0703125 | R11: -0.0756302521 | S11: =S6/R6-1 -> -0.08181818182 | T11: -0.08910891089 | U11: -0.09782608696 | V11: -0.1084337349 | W11: -0.1216216216 | X11: -0.1384615385 | Y11: -0.1607142857 | Z11: -0.1914893617 | AA11: -0.2368421053 | AB11: -0.3103448276
B14: Actual demand

Sheet Summary
G1: 1 | H1: 6 | I1: 11 | J1: 16 | K1: 20
G2: =INDEX(OutputDB!$E$2:$E$21,Summary!G$1) -> 2026-27 | H2: =INDEX(OutputDB!$E$2:$E$21,Summary!H$1) -> 2031-32 | I2: =INDEX(OutputDB!$E$2:$E$21,Summary!I$1) -> 2036-37 | J2: =INDEX(OutputDB!$E$2:$E$21,Summary!J$1) -> 2041-42 | K2: =INDEX(OutputDB!$E$2:$E$21,Summary!K$1) -> 2045-46 | L2: Scenario | M2: Detail | N2: Average annual % change
A3: Depreciation | B3: Capex | C3: Opex | D3: Demand | G3: 2026-31 | H3: 2031-36 | I3: 2036-41 | J3: 2041-45* | N3: 2026-31 | O3: 2031-36 | P3: 2036-41 | Q3: 2041-45*
A4: n/a | B4: n/a | C4: n/a | D4: Decline to 50% in 2045 | E4: average annual | F4: Demand change | G4: =AVERAGEIFS(Demand!$I9:$AB9,Demand!$I$2:$AB$2,">="&G$1,Demand!$I$2:$AB$2,"<"&H$1) -> -0.02635232398 | H4: =AVERAGEIFS(Demand!$I9:$AB9,Demand!$I$2:$AB$2,">="&H$1,Demand!$I$2:$AB$2,"<"&I$1) -> -0.03035885762 | I4: =AVERAGEIFS(Demand!$I9:$AB9,Demand!$I$2:$AB$2,">="&I$1,Demand!$I$2:$AB$2,"<"&J$1) -> -0.03580579063 | J4: =AVERAGEIFS(Demand!$I9:$AB9,Demand!$I$2:$AB$2,">="&J$1,Demand!$I$2:$AB$2,"<"&K$1) -> -0.04264986825 | L4: Base case | M4: Asset base | N4: =G8 -> -0.005550887088 | O4: =H8 -> -0.01061612326 | P4: -0.02945664603 | Q4: -0.05242597182
A5: n/a | B5: n/a | C5: n/a | D5: Decline to 25% in 2045 | E5: average annual | F5: Demand change | G5: =AVERAGEIFS(Demand!$I10:$AB10,Demand!$I$2:$AB$2,">="&G$1,Demand!$I$2:$AB$2,"<"&H$1) -> -0.04067454954 | H5: =AVERAGEIFS(Demand!$I10:$AB10,Demand!$I$2:$AB$2,">="&H$1,Demand!$I$2:$AB$2,"<"&I$1) -> -0.05111272054 | I5: =AVERAGEIFS(Demand!$I10:$AB10,Demand!$I$2:$AB$2,">="&I$1,Demand!$I$2:$AB$2,"<"&J$1) -> -0.06882594111 | J5: =AVERAGEIFS(Demand!$I10:$AB10,Demand!$I$2:$AB$2,">="&J$1,Demand!$I$2:$AB$2,"<"&K$1) -> -0.09957429424 | M5: Price | N5: =G12 -> 0.05509302747 | O5: =H12 -> 0.0724647974 | P5: 0.0954834395 | Q5: 0.1312774807
A6: n/a | B6: n/a | C6: n/a | D6: Decline to 10% in 2045 | E6: average annual | F6: Demand change | G6: =AVERAGEIFS(Demand!$I11:$AB11,Demand!$I$2:$AB$2,">="&G$1,Demand!$I$2:$AB$2,"<"&H$1) -> -0.04969442769 | H6: =AVERAGEIFS(Demand!$I11:$AB11,Demand!$I$2:$AB$2,">="&H$1,Demand!$I$2:$AB$2,"<"&I$1) -> -0.0662689069 | I6: =AVERAGEIFS(Demand!$I11:$AB11,Demand!$I$2:$AB$2,">="&I$1,Demand!$I$2:$AB$2,"<"&J$1) -> -0.09976170725 | J6: =AVERAGEIFS(Demand!$I11:$AB11,Demand!$I$2:$AB$2,">="&J$1,Demand!$I$2:$AB$2,"<"&K$1) -> -0.1818768228 | L6: Fully Depreciated SL | M6: Asset base | N6: =G9 -> -0.01175809058 | O6: =H9 -> -0.04375746106 | P6: =I9 -> -0.1289030738 | Q6: =J9 -> -0.5253163311
M7: Price | N7: =G13 -> 0.06491759462 | O7: =H13 -> 0.08797790291 | P7: 0.1108534212 | Q7: 0.09770152466
A8: Base case | B8: linear decline | C8: BAU | D8: Decline to 25% | E8: average annual | F8: RAB change | G8: =SUMIFS(OutputDB!$K$2:$K$361,OutputDB!$A$2:$A$361,Summary!$A8,OutputDB!$B$2:$B$361,Summary!$B8,OutputDB!$C$2:$C$361,Summary!$C8,OutputDB!$D$2:$D$361,Summary!$D8,OutputDB!$F$2:$F$361,">"&G$1,OutputDB!$F$2:$F$361,"<="&H$1)/(H$1-G$1) -> -0.005550887088 | H8: =SUMIFS(OutputDB!$K$2:$K$361,OutputDB!$A$2:$A$361,Summary!$A8,OutputDB!$B$2:$B$361,Summary!$B8,OutputDB!$C$2:$C$361,Summary!$C8,OutputDB!$D$2:$D$361,Summary!$D8,OutputDB!$F$2:$F$361,">"&H$1,OutputDB!$F$2:$F$361,"<="&I$1)/(I$1-H$1) -> -0.01061612326 | I8: =SUMIFS(OutputDB!$K$2:$K$361,OutputDB!$A$2:$A$361,Summary!$A8,OutputDB!$B$2:$B$361,Summary!$B8,OutputDB!$C$2:$C$361,Summary!$C8,OutputDB!$D$2:$D$361,Summary!$D8,OutputDB!$F$2:$F$361,">"&I$1,OutputDB!$F$2:$F$361,"<="&J$1)/(J$1-I$1) -> -0.02945664603 | J8: =SUMIFS(OutputDB!$K$2:$K$361,OutputDB!$A$2:$A$361,Summary!$A8,OutputDB!$B$2:$B$361,Summary!$B8,OutputDB!$C$2:$C$361,Summary!$C8,OutputDB!$D$2:$D$361,Summary!$D8,OutputDB!$F$2:$F$361,">"&J$1,OutputDB!$F$2:$F$361,"<="&K$1)/(K$1-J$1) -> -0.05242597182 | L8: Fully Depreciated SYD | M8: Asset base | N8: =G10 -> -0.05993981359 | O8: =H10 -> -0.0931114106 | P8: =I10 -> -0.1985423898 | Q8: =J10 -> -0.6225218414
A9: Fully Depreciated SL | B9: linear decline | C9: BAU | D9: Decline to 25% | E9: average annual | F9: RAB change | G9: =SUMIFS(OutputDB!$K$2:$K$361,OutputDB!$A$2:$A$361,Summary!$A9,OutputDB!$B$2:$B$361,Summary!$B9,OutputDB!$C$2:$C$361,Summary!$C9,OutputDB!$D$2:$D$361,Summary!$D9,OutputDB!$F$2:$F$361,">"&G$1,OutputDB!$F$2:$F$361,"<="&H$1)/(H$1-G$1) -> -0.01175809058 | H9: =SUMIFS(OutputDB!$K$2:$K$361,OutputDB!$A$2:$A$361,Summary!$A9,OutputDB!$B$2:$B$361,Summary!$B9,OutputDB!$C$2:$C$361,Summary!$C9,OutputDB!$D$2:$D$361,Summary!$D9,OutputDB!$F$2:$F$361,">"&H$1,OutputDB!$F$2:$F$361,"<="&I$1)/(I$1-H$1) -> -0.04375746106 | I9: =SUMIFS(OutputDB!$K$2:$K$361,OutputDB!$A$2:$A$361,Summary!$A9,OutputDB!$B$2:$B$361,Summary!$B9,OutputDB!$C$2:$C$361,Summary!$C9,OutputDB!$D$2:$D$361,Summary!$D9,OutputDB!$F$2:$F$361,">"&I$1,OutputDB!$F$2:$F$361,"<="&J$1)/(J$1-I$1) -> -0.1289030738 | J9: =SUMIFS(OutputDB!$K$2:$K$361,OutputDB!$A$2:$A$361,Summary!$A9,OutputDB!$B$2:$B$361,Summary!$B9,OutputDB!$C$2:$C$361,Summary!$C9,OutputDB!$D$2:$D$361,Summary!$D9,OutputDB!$F$2:$F$361,">"&J$1,OutputDB!$F$2:$F$361,"<="&K$1)/(K$1-J$1) -> -0.5253163311 | M9: Price | N9: =G14 -> 0.1026610295 | O9: =H14 -> 0.05219335857 | P9: 0.07340415631 | Q9: 0.04213672932
A10: Fully Depreciated SYD | B10: linear decline | C10: BAU | D10: Decline to 25% | E10: average annual | F10: RAB change | G10: =SUMIFS(OutputDB!$K$2:$K$361,OutputDB!$A$2:$A$361,Summary!$A10,OutputDB!$B$2:$B$361,Summary!$B10,OutputDB!$C$2:$C$361,Summary!$C10,OutputDB!$D$2:$D$361,Summary!$D10,OutputDB!$F$2:$F$361,">"&G$1,OutputDB!$F$2:$F$361,"<="&H$1)/(H$1-G$1) -> -0.05993981359 | H10: =SUMIFS(OutputDB!$K$2:$K$361,OutputDB!$A$2:$A$361,Summary!$A10,OutputDB!$B$2:$B$361,Summary!$B10,OutputDB!$C$2:$C$361,Summary!$C10,OutputDB!$D$2:$D$361,Summary!$D10,OutputDB!$F$2:$F$361,">"&H$1,OutputDB!$F$2:$F$361,"<="&I$1)/(I$1-H$1) -> -0.0931114106 | I10: =SUMIFS(OutputDB!$K$2:$K$361,OutputDB!$A$2:$A$361,Summary!$A10,OutputDB!$B$2:$B$361,Summary!$B10,OutputDB!$C$2:$C$361,Summary!$C10,OutputDB!$D$2:$D$361,Summary!$D10,OutputDB!$F$2:$F$361,">"&I$1,OutputDB!$F$2:$F$361,"<="&J$1)/(J$1-I$1) -> -0.1985423898 | J10: =SUMIFS(OutputDB!$K$2:$K$361,OutputDB!$A$2:$A$361,Summary!$A10,OutputDB!$B$2:$B$361,Summary!$B10,OutputDB!$C$2:$C$361,Summary!$C10,OutputDB!$D$2:$D$361,Summary!$D10,OutputDB!$F$2:$F$361,">"&J$1,OutputDB!$F$2:$F$361,"<="&K$1)/(K$1-J$1) -> -0.6225218414
A12: Base case | B12: linear decline | C12: BAU | D12: Decline to 25% | E12: average annual | F12: price change | G12: =SUMIFS(OutputDB!$L$2:$L$361,OutputDB!$A$2:$A$361,Summary!$A12,OutputDB!$B$2:$B$361,Summary!$B12,OutputDB!$C$2:$C$361,Summary!$C12,OutputDB!$D$2:$D$361,Summary!$D12,OutputDB!$F$2:$F$361,">="&G$1,OutputDB!$F$2:$F$361,"<"&H$1)/(H$1-G$1) -> 0.05509302747 | H12: =SUMIFS(OutputDB!$L$2:$L$361,OutputDB!$A$2:$A$361,Summary!$A12,OutputDB!$B$2:$B$361,Summary!$B12,OutputDB!$C$2:$C$361,Summary!$C12,OutputDB!$D$2:$D$361,Summary!$D12,OutputDB!$F$2:$F$361,">="&H$1,OutputDB!$F$2:$F$361,"<"&I$1)/(I$1-H$1) -> 0.0724647974 | I12: =SUMIFS(OutputDB!$L$2:$L$361,OutputDB!$A$2:$A$361,Summary!$A12,OutputDB!$B$2:$B$361,Summary!$B12,OutputDB!$C$2:$C$361,Summary!$C12,OutputDB!$D$2:$D$361,Summary!$D12,OutputDB!$F$2:$F$361,">="&I$1,OutputDB!$F$2:$F$361,"<"&J$1)/(J$1-I$1) -> 0.0954834395 | J12: =SUMIFS(OutputDB!$L$2:$L$361,OutputDB!$A$2:$A$361,Summary!$A12,OutputDB!$B$2:$B$361,Summary!$B12,OutputDB!$C$2:$C$361,Summary!$C12,OutputDB!$D$2:$D$361,Summary!$D12,OutputDB!$F$2:$F$361,">="&J$1,OutputDB!$F$2:$F$361,"<"&K$1)/(K$1-J$1) -> 0.1312774807 | L12: Scenario | M12: Detail | N12: Average annual % change
A13: Fully Depreciated SL | B13: linear decline | C13: BAU | D13: Decline to 25% | E13: average annual | F13: price change | G13: =SUMIFS(OutputDB!$L$2:$L$361,OutputDB!$A$2:$A$361,Summary!$A13,OutputDB!$B$2:$B$361,Summary!$B13,OutputDB!$C$2:$C$361,Summary!$C13,OutputDB!$D$2:$D$361,Summary!$D13,OutputDB!$F$2:$F$361,">="&G$1,OutputDB!$F$2:$F$361,"<"&H$1)/(H$1-G$1) -> 0.06491759462 | H13: =SUMIFS(OutputDB!$L$2:$L$361,OutputDB!$A$2:$A$361,Summary!$A13,OutputDB!$B$2:$B$361,Summary!$B13,OutputDB!$C$2:$C$361,Summary!$C13,OutputDB!$D$2:$D$361,Summary!$D13,OutputDB!$F$2:$F$361,">="&H$1,OutputDB!$F$2:$F$361,"<"&I$1)/(I$1-H$1) -> 0.08797790291 | I13: =SUMIFS(OutputDB!$L$2:$L$361,OutputDB!$A$2:$A$361,Summary!$A13,OutputDB!$B$2:$B$361,Summary!$B13,OutputDB!$C$2:$C$361,Summary!$C13,OutputDB!$D$2:$D$361,Summary!$D13,OutputDB!$F$2:$F$361,">="&I$1,OutputDB!$F$2:$F$361,"<"&J$1)/(J$1-I$1) -> 0.1108534212 | J13: =SUMIFS(OutputDB!$L$2:$L$361,OutputDB!$A$2:$A$361,Summary!$A13,OutputDB!$B$2:$B$361,Summary!$B13,OutputDB!$C$2:$C$361,Summary!$C13,OutputDB!$D$2:$D$361,Summary!$D13,OutputDB!$F$2:$F$361,">="&J$1,OutputDB!$F$2:$F$361,"<"&K$1)/(K$1-J$1) -> 0.09770152466 | N13: 2026-31 | O13: 2031-36 | P13: 2036-41 | Q13: 2041-45*
A14: Fully Depreciated SYD | B14: linear decline | C14: BAU | D14: Decline to 25% | E14: average annual | F14: price change | G14: =SUMIFS(OutputDB!$L$2:$L$361,OutputDB!$A$2:$A$361,Summary!$A14,OutputDB!$B$2:$B$361,Summary!$B14,OutputDB!$C$2:$C$361,Summary!$C14,OutputDB!$D$2:$D$361,Summary!$D14,OutputDB!$F$2:$F$361,">="&G$1,OutputDB!$F$2:$F$361,"<"&H$1)/(H$1-G$1) -> 0.1026610295 | H14: =SUMIFS(OutputDB!$L$2:$L$361,OutputDB!$A$2:$A$361,Summary!$A14,OutputDB!$B$2:$B$361,Summary!$B14,OutputDB!$C$2:$C$361,Summary!$C14,OutputDB!$D$2:$D$361,Summary!$D14,OutputDB!$F$2:$F$361,">="&H$1,OutputDB!$F$2:$F$361,"<"&I$1)/(I$1-H$1) -> 0.05219335857 | I14: =SUMIFS(OutputDB!$L$2:$L$361,OutputDB!$A$2:$A$361,Summary!$A14,OutputDB!$B$2:$B$361,Summary!$B14,OutputDB!$C$2:$C$361,Summary!$C14,OutputDB!$D$2:$D$361,Summary!$D14,OutputDB!$F$2:$F$361,">="&I$1,OutputDB!$F$2:$F$361,"<"&J$1)/(J$1-I$1) -> 0.07340415631 | J14: =SUMIFS(OutputDB!$L$2:$L$361,OutputDB!$A$2:$A$361,Summary!$A14,OutputDB!$B$2:$B$361,Summary!$B14,OutputDB!$C$2:$C$361,Summary!$C14,OutputDB!$D$2:$D$361,Summary!$D14,OutputDB!$F$2:$F$361,">="&J$1,OutputDB!$F$2:$F$361,"<"&K$1)/(K$1-J$1) -> 0.04213672932 | L14: Decline to 10% | M14: Demand | N14: =G6 -> -0.04969442769 | O14: =H6 -> -0.0662689069 | P14: -0.09976170725 | Q14: -0.1818768228
M15: Price (base) | N15: =G20 -> 0.06513077979 | O15: =H20 -> 0.08994545948 | P15: 0.1333326727 | Q15: 0.2475096381
A16: Base case | B16: linear decline | C16: BAU | D16: Decline to 50% | E16: average annual | F16: price change | G16: =SUMIFS(OutputDB!$L$2:$L$361,OutputDB!$A$2:$A$361,Summary!$A16,OutputDB!$B$2:$B$361,Summary!$B16,OutputDB!$C$2:$C$361,Summary!$C16,OutputDB!$D$2:$D$361,Summary!$D16,OutputDB!$F$2:$F$361,">="&G$1,OutputDB!$F$2:$F$361,"<"&H$1)/(H$1-G$1) -> 0.03954996767 | H16: =SUMIFS(OutputDB!$L$2:$L$361,OutputDB!$A$2:$A$361,Summary!$A16,OutputDB!$B$2:$B$361,Summary!$B16,OutputDB!$C$2:$C$361,Summary!$C16,OutputDB!$D$2:$D$361,Summary!$D16,OutputDB!$F$2:$F$361,">="&H$1,OutputDB!$F$2:$F$361,"<"&I$1)/(I$1-H$1) -> 0.04945916387 | I16: =SUMIFS(OutputDB!$L$2:$L$361,OutputDB!$A$2:$A$361,Summary!$A16,OutputDB!$B$2:$B$361,Summary!$B16,OutputDB!$C$2:$C$361,Summary!$C16,OutputDB!$D$2:$D$361,Summary!$D16,OutputDB!$F$2:$F$361,">="&I$1,OutputDB!$F$2:$F$361,"<"&J$1)/(J$1-I$1) -> 0.05792656542 | J16: =SUMIFS(OutputDB!$L$2:$L$361,OutputDB!$A$2:$A$361,Summary!$A16,OutputDB!$B$2:$B$361,Summary!$B16,OutputDB!$C$2:$C$361,Summary!$C16,OutputDB!$D$2:$D$361,Summary!$D16,OutputDB!$F$2:$F$361,">="&J$1,OutputDB!$F$2:$F$361,"<"&K$1)/(K$1-J$1) -> 0.06384873855 | M16: Price (full SL) | N16: =G21 -> 0.07505102359 | O16: =H21 -> 0.1056697486 | P16: 0.1492490815 | Q16: 0.2102223407
A17: Fully Depreciated SL | B17: linear decline | C17: BAU | D17: Decline to 50% | E17: average annual | F17: price change | G17: =SUMIFS(OutputDB!$L$2:$L$361,OutputDB!$A$2:$A$361,Summary!$A17,OutputDB!$B$2:$B$361,Summary!$B17,OutputDB!$C$2:$C$361,Summary!$C17,OutputDB!$D$2:$D$361,Summary!$D17,OutputDB!$F$2:$F$361,">="&G$1,OutputDB!$F$2:$F$361,"<"&H$1)/(H$1-G$1) -> 0.04922738477 | H17: =SUMIFS(OutputDB!$L$2:$L$361,OutputDB!$A$2:$A$361,Summary!$A17,OutputDB!$B$2:$B$361,Summary!$B17,OutputDB!$C$2:$C$361,Summary!$C17,OutputDB!$D$2:$D$361,Summary!$D17,OutputDB!$F$2:$F$361,">="&H$1,OutputDB!$F$2:$F$361,"<"&I$1)/(I$1-H$1) -> 0.06467714611 | I17: =SUMIFS(OutputDB!$L$2:$L$361,OutputDB!$A$2:$A$361,Summary!$A17,OutputDB!$B$2:$B$361,Summary!$B17,OutputDB!$C$2:$C$361,Summary!$C17,OutputDB!$D$2:$D$361,Summary!$D17,OutputDB!$F$2:$F$361,">="&I$1,OutputDB!$F$2:$F$361,"<"&J$1)/(J$1-I$1) -> 0.07275861049 | J17: =SUMIFS(OutputDB!$L$2:$L$361,OutputDB!$A$2:$A$361,Summary!$A17,OutputDB!$B$2:$B$361,Summary!$B17,OutputDB!$C$2:$C$361,Summary!$C17,OutputDB!$D$2:$D$361,Summary!$D17,OutputDB!$F$2:$F$361,">="&J$1,OutputDB!$F$2:$F$361,"<"&K$1)/(K$1-J$1) -> 0.03233583955 | M17: Price (full SYD) | N17: =G22 -> 0.1130344842 | O17: =H22 -> 0.06930223501 | P17: 0.1105036453 | Q17: 0.1487810571
A18: Fully Depreciated SYD | B18: linear decline | C18: BAU | D18: Decline to 50% | E18: average annual | F18: price change | G18: =SUMIFS(OutputDB!$L$2:$L$361,OutputDB!$A$2:$A$361,Summary!$A18,OutputDB!$B$2:$B$361,Summary!$B18,OutputDB!$C$2:$C$361,Summary!$C18,OutputDB!$D$2:$D$361,Summary!$D18,OutputDB!$F$2:$F$361,">="&G$1,OutputDB!$F$2:$F$361,"<"&H$1)/(H$1-G$1) -> 0.08655182346 | H18: =SUMIFS(OutputDB!$L$2:$L$361,OutputDB!$A$2:$A$361,Summary!$A18,OutputDB!$B$2:$B$361,Summary!$B18,OutputDB!$C$2:$C$361,Summary!$C18,OutputDB!$D$2:$D$361,Summary!$D18,OutputDB!$F$2:$F$361,">="&H$1,OutputDB!$F$2:$F$361,"<"&I$1)/(I$1-H$1) -> 0.02965994184 | I18: =SUMIFS(OutputDB!$L$2:$L$361,OutputDB!$A$2:$A$361,Summary!$A18,OutputDB!$B$2:$B$361,Summary!$B18,OutputDB!$C$2:$C$361,Summary!$C18,OutputDB!$D$2:$D$361,Summary!$D18,OutputDB!$F$2:$F$361,">="&I$1,OutputDB!$F$2:$F$361,"<"&J$1)/(J$1-I$1) -> 0.03659457552 | J18: =SUMIFS(OutputDB!$L$2:$L$361,OutputDB!$A$2:$A$361,Summary!$A18,OutputDB!$B$2:$B$361,Summary!$B18,OutputDB!$C$2:$C$361,Summary!$C18,OutputDB!$D$2:$D$361,Summary!$D18,OutputDB!$F$2:$F$361,">="&J$1,OutputDB!$F$2:$F$361,"<"&K$1)/(K$1-J$1) -> -0.01987219302 | L18: Decline to 25% | M18: Demand | N18: =G5 -> -0.04067454954 | O18: =H5 -> -0.05111272054 | P18: -0.06882594111 | Q18: -0.09957429424
M19: Price (base) | N19: =G12 -> 0.05509302747 | O19: =H12 -> 0.0724647974 | P19: 0.0954834395 | Q19: 0.1312774807
A20: Base case | B20: linear decline | C20: BAU | D20: Decline to 10% | E20: average annual | F20: price change | G20: =SUMIFS(OutputDB!$L$2:$L$361,OutputDB!$A$2:$A$361,Summary!$A20,OutputDB!$B$2:$B$361,Summary!$B20,OutputDB!$C$2:$C$361,Summary!$C20,OutputDB!$D$2:$D$361,Summary!$D20,OutputDB!$F$2:$F$361,">="&G$1,OutputDB!$F$2:$F$361,"<"&H$1)/(H$1-G$1) -> 0.06513077979 | H20: =SUMIFS(OutputDB!$L$2:$L$361,OutputDB!$A$2:$A$361,Summary!$A20,OutputDB!$B$2:$B$361,Summary!$B20,OutputDB!$C$2:$C$361,Summary!$C20,OutputDB!$D$2:$D$361,Summary!$D20,OutputDB!$F$2:$F$361,">="&H$1,OutputDB!$F$2:$F$361,"<"&I$1)/(I$1-H$1) -> 0.08994545948 | I20: =SUMIFS(OutputDB!$L$2:$L$361,OutputDB!$A$2:$A$361,Summary!$A20,OutputDB!$B$2:$B$361,Summary!$B20,OutputDB!$C$2:$C$361,Summary!$C20,OutputDB!$D$2:$D$361,Summary!$D20,OutputDB!$F$2:$F$361,">="&I$1,OutputDB!$F$2:$F$361,"<"&J$1)/(J$1-I$1) -> 0.1333326727 | J20: =SUMIFS(OutputDB!$L$2:$L$361,OutputDB!$A$2:$A$361,Summary!$A20,OutputDB!$B$2:$B$361,Summary!$B20,OutputDB!$C$2:$C$361,Summary!$C20,OutputDB!$D$2:$D$361,Summary!$D20,OutputDB!$F$2:$F$361,">="&J$1,OutputDB!$F$2:$F$361,"<"&K$1)/(K$1-J$1) -> 0.2475096381 | M20: Price (full SL) | N20: =G13 -> 0.06491759462 | O20: =H13 -> 0.08797790291 | P20: 0.1108534212 | Q20: 0.09770152466
A21: Fully Depreciated SL | B21: linear decline | C21: BAU | D21: Decline to 10% | E21: average annual | F21: price change | G21: =SUMIFS(OutputDB!$L$2:$L$361,OutputDB!$A$2:$A$361,Summary!$A21,OutputDB!$B$2:$B$361,Summary!$B21,OutputDB!$C$2:$C$361,Summary!$C21,OutputDB!$D$2:$D$361,Summary!$D21,OutputDB!$F$2:$F$361,">="&G$1,OutputDB!$F$2:$F$361,"<"&H$1)/(H$1-G$1) -> 0.07505102359 | H21: =SUMIFS(OutputDB!$L$2:$L$361,OutputDB!$A$2:$A$361,Summary!$A21,OutputDB!$B$2:$B$361,Summary!$B21,OutputDB!$C$2:$C$361,Summary!$C21,OutputDB!$D$2:$D$361,Summary!$D21,OutputDB!$F$2:$F$361,">="&H$1,OutputDB!$F$2:$F$361,"<"&I$1)/(I$1-H$1) -> 0.1056697486 | I21: =SUMIFS(OutputDB!$L$2:$L$361,OutputDB!$A$2:$A$361,Summary!$A21,OutputDB!$B$2:$B$361,Summary!$B21,OutputDB!$C$2:$C$361,Summary!$C21,OutputDB!$D$2:$D$361,Summary!$D21,OutputDB!$F$2:$F$361,">="&I$1,OutputDB!$F$2:$F$361,"<"&J$1)/(J$1-I$1) -> 0.1492490815 | J21: =SUMIFS(OutputDB!$L$2:$L$361,OutputDB!$A$2:$A$361,Summary!$A21,OutputDB!$B$2:$B$361,Summary!$B21,OutputDB!$C$2:$C$361,Summary!$C21,OutputDB!$D$2:$D$361,Summary!$D21,OutputDB!$F$2:$F$361,">="&J$1,OutputDB!$F$2:$F$361,"<"&K$1)/(K$1-J$1) -> 0.2102223407 | M21: Price (full SYD) | N21: =G14 -> 0.1026610295 | O21: 0.05219335857 | P21: 0.07340415631 | Q21: 0.04213672932
A22: Fully Depreciated SYD | B22: linear decline | C22: BAU | D22: Decline to 10% | E22: average annual | F22: price change | G22: =SUMIFS(OutputDB!$L$2:$L$361,OutputDB!$A$2:$A$361,Summary!$A22,OutputDB!$B$2:$B$361,Summary!$B22,OutputDB!$C$2:$C$361,Summary!$C22,OutputDB!$D$2:$D$361,Summary!$D22,OutputDB!$F$2:$F$361,">="&G$1,OutputDB!$F$2:$F$361,"<"&H$1)/(H$1-G$1) -> 0.1130344842 | H22: =SUMIFS(OutputDB!$L$2:$L$361,OutputDB!$A$2:$A$361,Summary!$A22,OutputDB!$B$2:$B$361,Summary!$B22,OutputDB!$C$2:$C$361,Summary!$C22,OutputDB!$D$2:$D$361,Summary!$D22,OutputDB!$F$2:$F$361,">="&H$1,OutputDB!$F$2:$F$361,"<"&I$1)/(I$1-H$1) -> 0.06930223501 | I22: =SUMIFS(OutputDB!$L$2:$L$361,OutputDB!$A$2:$A$361,Summary!$A22,OutputDB!$B$2:$B$361,Summary!$B22,OutputDB!$C$2:$C$361,Summary!$C22,OutputDB!$D$2:$D$361,Summary!$D22,OutputDB!$F$2:$F$361,">="&I$1,OutputDB!$F$2:$F$361,"<"&J$1)/(J$1-I$1) -> 0.1105036453 | J22: =SUMIFS(OutputDB!$L$2:$L$361,OutputDB!$A$2:$A$361,Summary!$A22,OutputDB!$B$2:$B$361,Summary!$B22,OutputDB!$C$2:$C$361,Summary!$C22,OutputDB!$D$2:$D$361,Summary!$D22,OutputDB!$F$2:$F$361,">="&J$1,OutputDB!$F$2:$F$361,"<"&K$1)/(K$1-J$1) -> 0.1487810571 | L22: Decline to 50% | M22: Demand | N22: =G4 -> -0.02635232398 | O22: =H4 -> -0.03035885762 | P22: -0.03580579063 | Q22: -0.04264986825
M23: Price (base) | N23: =G16 -> 0.03954996767 | O23: =H16 -> 0.04945916387 | P23: 0.05792656542 | Q23: 0.06384873855
A24: Base case | B24: linear decline | C24: BAU | D24: Decline to 25% | E24: average annual | F24: regulatory depreciation | G24: =SUMIFS(OutputDB!$M$2:$M$361,OutputDB!$A$2:$A$361,Summary!$A24,OutputDB!$B$2:$B$361,Summary!$B24,OutputDB!$C$2:$C$361,Summary!$C24,OutputDB!$D$2:$D$361,Summary!$D24,OutputDB!$F$2:$F$361,">="&G$1,OutputDB!$F$2:$F$361,"<"&H$1)/(H$1-G$1) -> 12.75364218 | H24: =SUMIFS(OutputDB!$M$2:$M$361,OutputDB!$A$2:$A$361,Summary!$A24,OutputDB!$B$2:$B$361,Summary!$B24,OutputDB!$C$2:$C$361,Summary!$C24,OutputDB!$D$2:$D$361,Summary!$D24,OutputDB!$F$2:$F$361,">="&H$1,OutputDB!$F$2:$F$361,"<"&I$1)/(I$1-H$1) -> 13.16742454 | I24: =SUMIFS(OutputDB!$M$2:$M$361,OutputDB!$A$2:$A$361,Summary!$A24,OutputDB!$B$2:$B$361,Summary!$B24,OutputDB!$C$2:$C$361,Summary!$C24,OutputDB!$D$2:$D$361,Summary!$D24,OutputDB!$F$2:$F$361,">="&I$1,OutputDB!$F$2:$F$361,"<"&J$1)/(J$1-I$1) -> 17.18594619 | J24: =SUMIFS(OutputDB!$M$2:$M$361,OutputDB!$A$2:$A$361,Summary!$A24,OutputDB!$B$2:$B$361,Summary!$B24,OutputDB!$C$2:$C$361,Summary!$C24,OutputDB!$D$2:$D$361,Summary!$D24,OutputDB!$F$2:$F$361,">="&J$1,OutputDB!$F$2:$F$361,"<"&K$1)/(K$1-J$1) -> 19.84402732 | M24: Price (full SL) | N24: =G17 -> 0.04922738477 | O24: =H17 -> 0.06467714611 | P24: 0.07275861049 | Q24: 0.03233583955
A25: Fully Depreciated SL | B25: linear decline | C25: BAU | D25: Decline to 25% | E25: average annual | F25: regulatory depreciation | G25: =SUMIFS(OutputDB!$M$2:$M$361,OutputDB!$A$2:$A$361,Summary!$A25,OutputDB!$B$2:$B$361,Summary!$B25,OutputDB!$C$2:$C$361,Summary!$C25,OutputDB!$D$2:$D$361,Summary!$D25,OutputDB!$F$2:$F$361,">="&G$1,OutputDB!$F$2:$F$361,"<"&H$1)/(H$1-G$1) -> 13.66310266 | H25: =SUMIFS(OutputDB!$M$2:$M$361,OutputDB!$A$2:$A$361,Summary!$A25,OutputDB!$B$2:$B$361,Summary!$B25,OutputDB!$C$2:$C$361,Summary!$C25,OutputDB!$D$2:$D$361,Summary!$D25,OutputDB!$F$2:$F$361,">="&H$1,OutputDB!$F$2:$F$361,"<"&I$1)/(I$1-H$1) -> 21.63056442 | I25: =SUMIFS(OutputDB!$M$2:$M$361,OutputDB!$A$2:$A$361,Summary!$A25,OutputDB!$B$2:$B$361,Summary!$B25,OutputDB!$C$2:$C$361,Summary!$C25,OutputDB!$D$2:$D$361,Summary!$D25,OutputDB!$F$2:$F$361,">="&I$1,OutputDB!$F$2:$F$361,"<"&J$1)/(J$1-I$1) -> 33.22356436 | J25: =SUMIFS(OutputDB!$M$2:$M$361,OutputDB!$A$2:$A$361,Summary!$A25,OutputDB!$B$2:$B$361,Summary!$B25,OutputDB!$C$2:$C$361,Summary!$C25,OutputDB!$D$2:$D$361,Summary!$D25,OutputDB!$F$2:$F$361,">="&J$1,OutputDB!$F$2:$F$361,"<"&K$1)/(K$1-J$1) -> 36.96714237 | M25: Price (full SYD) | N25: =G18 -> 0.08655182346 | O25: 0.02965994184 | P25: 0.03659457552 | Q25: -0.01987219302
A26: Fully Depreciated SYD | B26: linear decline | C26: BAU | D26: Decline to 25% | E26: average annual | F26: regulatory depreciation | G26: =SUMIFS(OutputDB!$M$2:$M$361,OutputDB!$A$2:$A$361,Summary!$A26,OutputDB!$B$2:$B$361,Summary!$B26,OutputDB!$C$2:$C$361,Summary!$C26,OutputDB!$D$2:$D$361,Summary!$D26,OutputDB!$F$2:$F$361,">="&G$1,OutputDB!$F$2:$F$361,"<"&H$1)/(H$1-G$1) -> 29.53973794 | H26: =SUMIFS(OutputDB!$M$2:$M$361,OutputDB!$A$2:$A$361,Summary!$A26,OutputDB!$B$2:$B$361,Summary!$B26,OutputDB!$C$2:$C$361,Summary!$C26,OutputDB!$D$2:$D$361,Summary!$D26,OutputDB!$F$2:$F$361,">="&H$1,OutputDB!$F$2:$F$361,"<"&I$1)/(I$1-H$1) -> 28.8491577 | I26: =SUMIFS(OutputDB!$M$2:$M$361,OutputDB!$A$2:$A$361,Summary!$A26,OutputDB!$B$2:$B$361,Summary!$B26,OutputDB!$C$2:$C$361,Summary!$C26,OutputDB!$D$2:$D$361,Summary!$D26,OutputDB!$F$2:$F$361,">="&I$1,OutputDB!$F$2:$F$361,"<"&J$1)/(J$1-I$1) -> 27.54842332 | J26: =SUMIFS(OutputDB!$M$2:$M$361,OutputDB!$A$2:$A$361,Summary!$A26,OutputDB!$B$2:$B$361,Summary!$B26,OutputDB!$C$2:$C$361,Summary!$C26,OutputDB!$D$2:$D$361,Summary!$D26,OutputDB!$F$2:$F$361,">="&J$1,OutputDB!$F$2:$F$361,"<"&K$1)/(K$1-J$1) -> 15.19203298
A28: Base case | B28: linear decline | C28: BAU | D28: Decline to 25% | E28: average annual | F28: regulatory depreciation | G28: =SUMIFS(OutputDB!$J$2:$J$361,OutputDB!$A$2:$A$361,Summary!$A28,OutputDB!$B$2:$B$361,Summary!$B28,OutputDB!$C$2:$C$361,Summary!$C28,OutputDB!$D$2:$D$361,Summary!$D28,OutputDB!$F$2:$F$361,">="&G$1,OutputDB!$F$2:$F$361,"<"&H$1)/(H$1-G$1) -> 12.65642519 | H28: =SUMIFS(OutputDB!$J$2:$J$361,OutputDB!$A$2:$A$361,Summary!$A28,OutputDB!$B$2:$B$361,Summary!$B28,OutputDB!$C$2:$C$361,Summary!$C28,OutputDB!$D$2:$D$361,Summary!$D28,OutputDB!$F$2:$F$361,">="&H$1,OutputDB!$F$2:$F$361,"<"&I$1)/(I$1-H$1) -> 17.32627178 | I28: =SUMIFS(OutputDB!$J$2:$J$361,OutputDB!$A$2:$A$361,Summary!$A28,OutputDB!$B$2:$B$361,Summary!$B28,OutputDB!$C$2:$C$361,Summary!$C28,OutputDB!$D$2:$D$361,Summary!$D28,OutputDB!$F$2:$F$361,">="&I$1,OutputDB!$F$2:$F$361,"<"&J$1)/(J$1-I$1) -> 26.74038471 | J28: =SUMIFS(OutputDB!$J$2:$J$361,OutputDB!$A$2:$A$361,Summary!$A28,OutputDB!$B$2:$B$361,Summary!$B28,OutputDB!$C$2:$C$361,Summary!$C28,OutputDB!$D$2:$D$361,Summary!$D28,OutputDB!$F$2:$F$361,">="&J$1,OutputDB!$F$2:$F$361,"<"&K$1)/(K$1-J$1) -> 43.444016 | L28: Scenario | M28: Detail | N28: Average annual
A29: Fully Depreciated SL | B29: linear decline | C29: BAU | D29: Decline to 25% | E29: average annual | F29: regulatory depreciation | G29: =SUMIFS(OutputDB!$J$2:$J$361,OutputDB!$A$2:$A$361,Summary!$A29,OutputDB!$B$2:$B$361,Summary!$B29,OutputDB!$C$2:$C$361,Summary!$C29,OutputDB!$D$2:$D$361,Summary!$D29,OutputDB!$F$2:$F$361,">="&G$1,OutputDB!$F$2:$F$361,"<"&H$1)/(H$1-G$1) -> 13.00881098 | H29: =SUMIFS(OutputDB!$J$2:$J$361,OutputDB!$A$2:$A$361,Summary!$A29,OutputDB!$B$2:$B$361,Summary!$B29,OutputDB!$C$2:$C$361,Summary!$C29,OutputDB!$D$2:$D$361,Summary!$D29,OutputDB!$F$2:$F$361,">="&H$1,OutputDB!$F$2:$F$361,"<"&I$1)/(I$1-H$1) -> 19.37992652 | I29: =SUMIFS(OutputDB!$J$2:$J$361,OutputDB!$A$2:$A$361,Summary!$A29,OutputDB!$B$2:$B$361,Summary!$B29,OutputDB!$C$2:$C$361,Summary!$C29,OutputDB!$D$2:$D$361,Summary!$D29,OutputDB!$F$2:$F$361,">="&I$1,OutputDB!$F$2:$F$361,"<"&J$1)/(J$1-I$1) -> 31.42195618 | J29: =SUMIFS(OutputDB!$J$2:$J$361,OutputDB!$A$2:$A$361,Summary!$A29,OutputDB!$B$2:$B$361,Summary!$B29,OutputDB!$C$2:$C$361,Summary!$C29,OutputDB!$D$2:$D$361,Summary!$D29,OutputDB!$F$2:$F$361,">="&J$1,OutputDB!$F$2:$F$361,"<"&K$1)/(K$1-J$1) -> 48.76627046 | N29: 2026-31 | O29: 2031-36 | P29: 2036-41 | Q29: 2041-45*
A30: Fully Depreciated SYD | B30: linear decline | C30: BAU | D30: Decline to 25% | E30: average annual | F30: regulatory depreciation | G30: =SUMIFS(OutputDB!$J$2:$J$361,OutputDB!$A$2:$A$361,Summary!$A30,OutputDB!$B$2:$B$361,Summary!$B30,OutputDB!$C$2:$C$361,Summary!$C30,OutputDB!$D$2:$D$361,Summary!$D30,OutputDB!$F$2:$F$361,">="&G$1,OutputDB!$F$2:$F$361,"<"&H$1)/(H$1-G$1) -> 16.03972131 | H30: =SUMIFS(OutputDB!$J$2:$J$361,OutputDB!$A$2:$A$361,Summary!$A30,OutputDB!$B$2:$B$361,Summary!$B30,OutputDB!$C$2:$C$361,Summary!$C30,OutputDB!$D$2:$D$361,Summary!$D30,OutputDB!$F$2:$F$361,">="&H$1,OutputDB!$F$2:$F$361,"<"&I$1)/(I$1-H$1) -> 20.2516995 | I30: =SUMIFS(OutputDB!$J$2:$J$361,OutputDB!$A$2:$A$361,Summary!$A30,OutputDB!$B$2:$B$361,Summary!$B30,OutputDB!$C$2:$C$361,Summary!$C30,OutputDB!$D$2:$D$361,Summary!$D30,OutputDB!$F$2:$F$361,">="&I$1,OutputDB!$F$2:$F$361,"<"&J$1)/(J$1-I$1) -> 27.65589671 | J30: =SUMIFS(OutputDB!$J$2:$J$361,OutputDB!$A$2:$A$361,Summary!$A30,OutputDB!$B$2:$B$361,Summary!$B30,OutputDB!$C$2:$C$361,Summary!$C30,OutputDB!$D$2:$D$361,Summary!$D30,OutputDB!$F$2:$F$361,">="&J$1,OutputDB!$F$2:$F$361,"<"&K$1)/(K$1-J$1) -> 35.42968052 | L30: Base case | M30: Depreciation ($m) | N30: =G24 -> 12.75364218 | O30: 13.16742454 | P30: 17.18594619 | Q30: 19.84402732
M31: Price ($/GJ) | N31: =G28 -> 12.65642519 | O31: =H28 -> 17.32627178 | P31: 26.74038471 | Q31: 43.444016
L32: Fully Depreciated SL | M32: Depreciation ($m) | N32: =G25 -> 13.66310266 | O32: =H25 -> 21.63056442 | P32: 33.22356436 | Q32: 36.96714237
M33: Price ($/GJ) | N33: =G29 -> 13.00881098 | O33: =H29 -> 19.37992652 | P33: 31.42195618 | Q33: 48.76627046
L34: Fully Depreciated SYD | M34: Depreciation ($m) | N34: =G26 -> 29.53973794 | O34: =H26 -> 28.8491577 | P34: 27.54842332 | Q34: 15.19203298
M35: Price ($/GJ) | N35: =G30 -> 16.03972131 | O35: =H30 -> 20.2516995 | P35: 27.65589671 | Q35: 35.42968052
L37: Scenario | M37: Detail | N37: Average annual
N38: 2026-31 | O38: 2031-36 | P38: 2036-41 | Q38: 2041-45*
L39: Base case | M39: Depreciation ($m) | N39: =N30 -> 12.75364218 | O39: =O30 -> 13.16742454 | P39: 17.18594619 | Q39: 19.84402732
M40: Price ($/GJ) | N40: =N31 -> 12.65642519 | O40: =O31 -> 17.32627178 | P40: 26.74038471 | Q40: 43.444016
L41: Fully Depreciated SL | M41: Depreciation change | N41: =N32-N$30 -> 0.9094604843 | O41: 8.463139884 | P41: 16.03761817 | Q41: 17.12311505
M42: Price change | N42: =N33-N$31 -> 0.3523857866 | O42: =O33-O$31 -> 2.053654748 | P42: 4.681571473 | Q42: 5.322254457
L43: Fully Depreciated SYD | M43: Extra depreciation | N43: =N34-N$30 -> 16.78609576 | O43: =O34-O$30 -> 15.68173316 | P43: 10.36247713 | Q43: -4.651994337
M44: Price ($/GJ) | N44: =N35-N$31 -> 3.383296116 | O44: 2.925427722 | P44: 0.9155120014 | Q44: -8.014335486

Sheet OutputDB
A1: Depreciation | B1: Capex | C1: Opex | D1: Demand | E1: Year | F1: YearID | G1: Throughput | H1: Nom RAB | I1: Nom Revenue | J1: Nom Price | K1: RAB change | L1: Price change | M1: Regulatory depreciation | O1: starting price | P1: 10.98130017
A2: Base case | B2: BAU | C2: BAU | D2: Decline to 25% | E2: 2026-27 | F2: 1 | G2: 5909221.237 | H2: 380.88573 | I2: 64.97428673 | J2: =I2*10^6/G2 -> 10.99540602 | K2: =IFERROR(IF(E2="2026-27","n/a",H2/H1-1),-1) -> n/a | L2: =IFERROR(IF(E2="2026-27",J2/$P$1-1,J2/J1-1),-1) -> 0.001284533309 | M2: 11.06368061
A3: Base case | B3: BAU | C3: BAU | D3: Decline to 25% | E3: 2027-28 | F3: 2 | G3: 5678991.838 | H3: 381.3714329 | I3: 67.18753778 | J3: =I3*10^6/G3 -> 11.83089177 | K3: 0.001275193123 | L3: =IFERROR(IF(E3="2026-27",J3/$P$1-1,J3/J2-1),-1) -> 0.07598498403 | M3: 12.24355053
A4: Base case | B4: BAU | C4: BAU | D4: Decline to 25% | E4: 2028-29 | F4: 3 | G4: 5448762.439 | H4: 380.9660004 | I4: 69.47347879 | J4: 12.75032258 | K4: -0.001063090833 | L4: 0.07771441381 | M4: 13.49243332
A5: Base case | B5: BAU | C5: BAU | D5: Decline to 25% | E5: 2029-30 | F5: 4 | G5: 5218533.04 | H5: 379.6076381 | I5: 70.09754824 | J5: 13.43242396 | K5: -0.003565573606 | L5: 0.05349679351 | M5: 13.29452321
A6: Base case | B6: BAU | C6: BAU | D6: Decline to 25% | E6: 2030-31 | F6: 5 | G6: 4988303.641 | H6: 378.7505377 | I6: 71.82158409 | J6: 14.39799765 | K6: -0.002257858746 | L6: 0.07188380075 | M6: 14.01334088
A7: Base case | B7: BAU | C7: BAU | D7: Decline to 25% | E7: 2031-32 | F7: 6 | G7: 4758074.242 | H7: 377.4855551 | I7: 71.52676191 | J7: 15.03271245 | K7: -0.003339883124 | L7: 0.04408354696 | M7: 12.95284274
A8: Base case | B8: BAU | C8: BAU | D8: Decline to 25% | E8: 2032-33 | F8: 7 | G8: 4527844.844 | H8: 377.5997797 | I8: 71.83321256 | J8: 15.86476901 | K8: 0.0003025932325 | L8: 0.05534972893 | M8: 11.96341778
A9: Base case | B9: BAU | C9: BAU | D9: Decline to 25% | E9: 2033-34 | F9: 8 | G9: 4297615.445 | H9: 379.0301059 | I9: 74.39510619 | J9: 17.31078714 | K9: 0.003787942398 | L9: 0.09114649766 | M9: 13.24828287
A10: Base case | B10: BAU | C10: BAU | D10: Decline to 25% | E10: 2034-35 | F10: 9 | G10: 4067386.046 | H10: 379.5104107 | I10: 77.03433139 | J10: 18.93951804 | K10: 0.001267194138 | L10: 0.09408762774 | M10: 14.60955252
A11: Base case | B11: BAU | C11: BAU | D11: Decline to 25% | E11: 2035-36 | F11: 10 | G11: 3837156.647 | H11: 378.9726604 | I11: 79.65797579 | J11: 20.75963614 | K11: -0.001416957797 | L11: 0.09610160575 | M11: 15.9583661
A12: Base case | B12: BAU | C12: BAU | D12: Decline to 25% | E12: 2036-37 | F12: 11 | G12: 3606927.248 | H12: 377.4378917 | I12: 82.44740626 | J12: 22.85807297 | K12: -0.004049813932 | L12: 0.1010825443 | M12: 17.47238868
A13: Base case | B13: BAU | C13: BAU | D13: Decline to 25% | E13: 2037-38 | F13: 12 | G13: 3376697.849 | H13: 374.7496903 | I13: 84.14146217 | J13: 24.91826806 | K13: -0.007122235122 | L13: 0.09012986734 | M13: 18.17936252
A14: Base case | B14: BAU | C14: BAU | D14: Decline to 25% | E14: 2038-39 | F14: 13 | G14: 3146468.451 | H14: 371.7241197 | I14: 86.00085634 | J14: 27.33250236 | K14: -0.008073577232 | L14: 0.09688611947 | M14: 18.88780779
A15: Base case | B15: BAU | C15: BAU | D15: Decline to 25% | E15: 2039-40 | F15: 14 | G15: 2916239.052 | H15: 368.3689487 | I15: 88.27195658 | J15: 30.26910861 | K15: -0.009025970751 | L15: 0.1074400804 | M15: 19.86062498
A16: Base case | B16: BAU | C16: BAU | D16: Decline to 25% | E16: 2040-41 | F16: 15 | G16: 2686009.653 | H16: 364.4292763 | I16: 90.63115732 | J16: 33.74193284 | K16: -0.01069490879 | L16: 0.1147316322 | M16: 20.96248243
A17: Base case | B17: BAU | C17: BAU | D17: Decline to 25% | E17: 2041-42 | F17: 16 | G17: 2455780.254 | H17: 359.7857704 | I17: 93.12978332 | J17: 37.92268594 | K17: -0.01274185759 | L17: 0.1239037822 | M17: 22.16873671
A18: Base case | B18: BAU | C18: BAU | D18: Decline to 25% | E18: 2042-43 | F18: 17 | G18: 2225550.855 | H18: 354.3439846 | I18: 95.39169579 | J18: 42.86206067 | K18: -0.01512507236 | L18: 0.1302485468 | M18: 23.23538965
A19: Base case | B19: BAU | C19: BAU | D19: Decline to 25% | E19: 2043-44 | F19: 18 | G19: 1995321.457 | H19: 348.2537196 | I19: 97.76111389 | J19: 48.99516996 | K19: -0.01718743718 | L19: 0.143089464 | M19: 24.34530787
A20: Base case | B20: BAU | C20: BAU | D20: Decline to 25% | E20: 2044-45 | F20: 19 | G20: 1765092.058 | H20: 341.4821645 | I20: 100.5632715 | J20: 56.9733862 | K20: -0.01944431516 | L20: 0.1628367907 | M20: 25.50008268
A21: Base case | B21: BAU | C21: BAU | D21: Decline to 25% | E21: 2045-46 | F21: 20 | G21: 1534862.659 | H21: 333.9951785 | I21: 91.60786622 | J21: 59.68473185 | K21: -0.02192496958 | L21: 0.04758968767 | M21: 16.68652912
A22: Base case | B22: linear decline | C22: BAU | D22: Decline to 25% | E22: 2026-27 | F22: 1 | G22: 5909221.237 | H22: 380.88573 | I22: 64.97428673 | J22: =I22*10^6/G22 -> 10.99540602 | K22: n/a | L22: 0.001284533309 | M22: 11.06368061
A23: Base case | B23: linear decline | C23: BAU | D23: Decline to 25% | E23: 2027-28 | F23: 2 | G23: 5678991.838 | H23: 380.9094575 | I23: 67.15762637 | J23: 11.82562474 | K23: 6.229565165e-05 | L23: 0.07550596332 | M23: 12.22800524
A24: Base case | B24: linear decline | C24: BAU | D24: Decline to 25% | E24: 2028-29 | F24: 3 | G24: 5448762.439 | H24: 379.5725209 | I24: 69.38076592 | J24: 12.73330719 | K24: -0.003509854113 | L24: 0.07675555984 | M24: 13.44395418
A25: Base case | B25: linear decline | C25: BAU | D25: Decline to 25% | E25: 2029-30 | F25: 4 | G25: 5218533.04 | H25: 376.8065492 | I25: 69.90614608 | J25: 13.39574657 | K25: -0.007287070436 | L25: 0.05202414235 | M25: 13.19375237
A26: Base case | B26: linear decline | C26: BAU | D26: Decline to 25% | E26: 2030-31 | F26: 5 | G26: 4988303.641 | H26: 374.060232 | I26: 71.49257458 | J26: 14.33204146 | K26: -0.007288400997 | L26: 0.06989493855 | M26: 13.8388185
A27: Base case | B27: linear decline | C27: BAU | D27: Decline to 25% | E27: 2031-32 | F27: 6 | G27: 4758074.242 | H27: 370.4201002 | I27: 71.01815218 | J27: 14.92581842 | K27: -0.009731405545 | L27: 0.04143003414 | M27: 12.68086732
A28: Base case | B28: linear decline | C28: BAU | D28: Decline to 25% | E28: 2032-33 | F28: 7 | G28: 4527844.844 | H28: 367.670204 | I28: 71.09987921 | J28: 15.70280822 | K28: -0.007423722859 | L28: 0.05205676312 | M28: 11.56789925
A29: Base case | B29: linear decline | C29: BAU | D29: Decline to 25% | E29: 2033-34 | F29: 8 | G29: 4297615.445 | H29: 365.7458004 | I29: 73.3887293 | J29: 17.07661615 | K29: -0.005234048223 | L29: 0.08748804116 | M29: 12.70058802
A30: Base case | B30: linear decline | C30: BAU | D30: Decline to 25% | E30: 2034-35 | F30: 9 | G30: 4067386.046 | H30: 362.380652 | I30: 75.70331904 | J30: 18.61227781 | K30: -0.009200784938 | L30: 0.0899277495 | M30: 13.87834249
A31: Base case | B31: linear decline | C31: BAU | D31: Decline to 25% | E31: 2035-36 | F31: 10 | G31: 3837156.647 | H31: 357.508263 | I31: 77.9473796 | J31: 20.31383828 | K31: -0.01344549993 | L31: 0.09142139907 | M31: 15.00942561
A32: Base case | B32: linear decline | C32: BAU | D32: Decline to 25% | E32: 2036-37 | F32: 11 | G32: 3606927.248 | H32: 351.1529957 | I32: 80.29882868 | J32: 22.2623921 | K32: -0.01777656033 | L32: 0.09592248338 | M32: 16.26844652
A33: Base case | B33: linear decline | C33: BAU | D33: Decline to 25% | E33: 2037-38 | F33: 12 | G33: 3376697.849 | H33: 343.1636941 | I33: 81.49295577 | J33: 24.13392 | K33: -0.02275162604 | L33: 0.08406679266 | M33: 16.67990301
A34: Base case | B34: linear decline | C34: BAU | D34: Decline to 25% | E34: 2038-39 | F34: 13 | G34: 3146468.451 | H34: 334.3637629 | I34: 82.78681558 | J34: 26.31102675 | K34: -0.0256435379 | L34: 0.09020941284 | M34: 17.0488728
A35: Base case | B35: linear decline | C35: BAU | D35: Decline to 25% | E35: 2039-40 | F35: 14 | G35: 2916239.052 | H35: 324.7705557 | I35: 84.42300241 | J35: 28.94927367 | K35: -0.02869092954 | L35: 0.1002715305 | M35: 17.63460605
A36: Base case | B36: linear decline | C36: BAU | D36: Decline to 25% | E36: 2040-41 | F36: 15 | G36: 2686009.653 | H36: 314.1411689 | I36: 86.07401472 | J36: 32.04531101 | K36: -0.03272891181 | L36: 0.1069469782 | M36: 18.29790256
A37: Base case | B37: linear decline | C37: BAU | D37: Decline to 25% | E37: 2041-42 | F37: 16 | G37: 2455780.254 | H37: 302.3708569 | I37: 87.78715212 | J37: 35.74715285 | K37: -0.03746822488 | L37: 0.1155189862 | M37: 19.01002141
A38: Base case | B38: linear decline | C38: BAU | D38: Decline to 25% | E38: 2042-43 | F38: 17 | G38: 2225550.855 | H38: 289.3825378 | I38: 89.22573174 | J38: 40.09152679 | K38: -0.0429549303 | L38: 0.1215306281 | M38: 19.55580698
A39: Base case | B39: linear decline | C39: BAU | D39: Decline to 25% | E39: 2043-44 | F39: 18 | G39: 1995321.457 | H39: 275.3131707 | I39: 90.72590417 | J39: 45.46931717 | K39: -0.04861857661 | L39: 0.1341378294 | M39: 20.11685435
A40: Base case | B40: linear decline | C40: BAU | D40: Decline to 25% | E40: 2044-45 | F40: 19 | G40: 1765092.058 | H40: 260.1169672 | I40: 92.61096869 | J40: 52.4680672 | K40: -0.05519606464 | L40: 0.1539224792 | M40: 20.69342653
A41: Base case | B41: linear decline | C41: BAU | D41: Decline to 25% | E41: 2045-46 | F41: 20 | G41: 1534862.659 | H41: 243.7466838 | I41: 82.68862294 | J41: 53.87362997 | K41: -0.06293431573 | L41: 0.02678891846 | M41: 11.2709511
A42: Fully Depreciated SL | B42: BAU | C42: BAU | D42: Decline to 25% | E42: 2026-27 | F42: 1 | G42: 5909221.237 | H42: 380.88573 | I42: 64.84887365 | J42: =I42*10^6/G42 -> 10.97418273 | K42: n/a | L42: -0.000648141672 | M42: 11.02563955
A43: Fully Depreciated SL | B43: BAU | C43: BAU | D43: Decline to 25% | E43: 2027-28 | F43: 2 | G43: 5678991.838 | H43: 380.410965 | I43: 66.04656227 | J43: =I43*10^6/G43 -> 11.62998014 | K43: -0.001246476274 | L43: 0.05975819987 | M43: 12.32367799
A44: Fully Depreciated SL | B44: BAU | C44: BAU | D44: Decline to 25% | E44: 2028-29 | F44: 3 | G44: 5448762.439 | H44: 378.8963564 | I44: 69.19008707 | J44: 12.6983123 | K44: -0.00398150625 | L44: 0.09186018772 | M44: 13.6987703
A45: Fully Depreciated SL | B45: BAU | C45: BAU | D45: Decline to 25% | E45: 2029-30 | F45: 4 | G45: 5218533.04 | H45: 376.2813376 | I45: 69.81356248 | J45: 13.37800526 | K45: -0.006901673039 | L45: 0.05352624447 | M45: 15.1549142
A46: Fully Depreciated SL | B46: BAU | C46: BAU | D46: Decline to 25% | E46: 2030-31 | F46: 5 | G46: 4988303.641 | H46: 372.4574112 | I46: 73.3262061 | J46: 14.69962764 | K46: -0.01016241308 | L46: 0.0987906907 | M46: 16.69415123
A47: Fully Depreciated SL | B47: BAU | C47: BAU | D47: Decline to 25% | E47: 2031-32 | F47: 6 | G47: 4758074.242 | H47: 367.36686 | I47: 73.88767811 | J47: 15.52890399 | K47: -0.01366747183 | L47: 0.05641478613 | M47: 18.32110397
A48: Fully Depreciated SL | B48: BAU | C48: BAU | D48: Decline to 25% | E48: 2032-33 | F48: 7 | G48: 4527844.844 | H48: 360.9394461 | I48: 76.85834865 | J48: 16.97459858 | K48: -0.01749590016 | L48: 0.0930970135 | M48: 20.52398035
A49: Fully Depreciated SL | B49: BAU | C49: BAU | D49: Decline to 25% | E49: 2033-34 | F49: 8 | G49: 4297615.445 | H49: 352.6064981 | I49: 79.97933329 | J49: 18.61016518 | K49: -0.02308683111 | L49: 0.09635377179 | M49: 22.85941383
A50: Fully Depreciated SL | B50: BAU | C50: BAU | D50: Decline to 25% | E50: 2034-35 | F50: 9 | G50: 4067386.046 | H50: 342.2428924 | I50: 83.23870223 | J50: 20.46491316 | K50: -0.0293914201 | L50: 0.09966316625 | M50: 25.33350209
A51: Fully Depreciated SL | B51: BAU | C51: BAU | D51: Decline to 25% | E51: 2035-36 | F51: 10 | G51: 3837156.647 | H51: 329.7175936 | I51: 86.6278923 | J51: 22.57606354 | K51: -0.03659768849 | L51: 0.1031595085 | M51: 27.95258596
A52: Fully Depreciated SL | B52: BAU | C52: BAU | D52: Decline to 25% | E52: 2036-37 | F52: 11 | G52: 3606927.248 | H52: 314.8934161 | I52: 90.14093963 | J52: 24.99106121 | K52: -0.04496022609 | L52: 0.106971601 | M52: 30.72325839
A53: Fully Depreciated SL | B53: BAU | C53: BAU | D53: Decline to 25% | E53: 2037-38 | F53: 12 | G53: 3376697.849 | H53: 297.6267763 | I53: 95.43434375 | J53: 28.26262461 | K53: -0.05483328293 | L53: 0.1309093431 | M53: 35.56807275
A54: Fully Depreciated SL | B54: BAU | C54: BAU | D54: Decline to 25% | E54: 2038-39 | F54: 13 | G54: 3146468.451 | H54: 275.8517376 | I54: 101.2947763 | J54: 32.19316445 | K54: -0.07316223003 | L54: 0.1390720039 | M54: 40.72213225
A55: Fully Depreciated SL | B55: BAU | C55: BAU | D55: Decline to 25% | E55: 2039-40 | F55: 14 | G55: 2916239.052 | H55: 249.2674653 | I55: 107.5156396 | J55: 36.86791025 | K55: -0.09637159639 | L55: 0.1452092667 | M55: 46.20002631
A56: Fully Depreciated SL | B56: BAU | C56: BAU | D56: Decline to 25% | E56: 2040-41 | F56: 15 | G56: 2686009.653 | H56: 217.5587454 | I56: 114.0001994 | J56: 42.44221509 | K56: -0.1272076155 | L56: 0.1511966585 | M56: 52.0169344
A57: Fully Depreciated SL | B57: BAU | C57: BAU | D57: Decline to 25% | E57: 2041-42 | F57: 16 | G57: 2455780.254 | H57: 180.3954001 | I57: 112.837002 | J57: 45.9475158 | K57: -0.1708198181 | L57: 0.08258995678 | M57: 51.59927027
A58: Fully Depreciated SL | B58: BAU | C58: BAU | D58: Decline to 25% | E58: 2042-43 | F58: 17 | G58: 2225550.855 | H58: 144.0210587 | I58: 122.1577281 | J58: 54.8887606 | K58: -0.2016367459 | L58: 0.1945969144 | M58: 62.76337468
A59: Fully Depreciated SL | B59: BAU | C59: BAU | D59: Decline to 25% | E59: 2043-44 | F59: 18 | G59: 1995321.457 | H59: 96.86323601 | I59: 119.4265348 | J59: 59.85328048 | K59: -0.3274369948 | L59: 0.09044692979 | M59: 58.67858343
A60: Fully Depreciated SL | B60: BAU | C60: BAU | D60: Decline to 25% | E60: 2044-45 | F60: 19 | G60: 1765092.058 | H60: 54.18034342 | I60: 114.0699448 | J60: 64.62549321 | K60: -0.4406511113 | L60: 0.0797318491 | M60: 54.18034342
A61: Fully Depreciated SL | B61: BAU | C61: BAU | D61: Decline to 25% | E61: 2045-46 | F61: 20 | G61: 1534862.659 | H61: 7.460698725e-13 | I61: 0.3881682011 | J61: 0.2529009347 | K61: -1 | L61: -0.9960866692 | M61: -1.865174681e-14
A62: Fully Depreciated SL | B62: linear decline | C62: BAU | D62: Decline to 25% | E62: 2026-27 | F62: 1 | G62: 5909221.237 | H62: 380.88573 | I62: 66.02980906 | J62: =I62*10^6/G62 -> 11.17402893 | K62: n/a | L62: 0.01755063234 | M62: 11.02563955
A63: Fully Depreciated SL | B63: linear decline | C63: BAU | D63: Decline to 25% | E63: 2027-28 | F63: 2 | G63: 5678991.838 | H63: 379.8191011 | I63: 68.19297905 | J63: =I63*10^6/G63 -> 12.0079375 | K63: -0.002800390987 | L63: 0.07462917567 | M63: 12.29690416
A64: Fully Depreciated SL | B64: linear decline | C64: BAU | D64: Decline to 25% | E64: 2028-29 | F64: 3 | G64: 5448762.439 | H64: 377.1648349 | I64: 70.4011256 | J64: 12.92057167 | K64: -0.006988237715 | L64: 0.07600257492 | M64: 13.61545265
A65: Fully Depreciated SL | B65: linear decline | C65: BAU | D65: Decline to 25% | E65: 2029-30 | F65: 4 | G65: 5218533.04 | H65: 372.8533306 | I65: 72.6476423 | J65: 13.92108505 | K65: -0.01143135285 | L65: 0.07743569 | M65: 14.98201102
A66: Fully Depreciated SL | B66: linear decline | C66: BAU | D66: Decline to 25% | E66: 2030-31 | F66: 5 | G66: 4988303.641 | H66: 366.8137653 | I66: 74.92647439 | J66: 15.02043175 | K66: =IFERROR(IF(E66="2026-27","n/a",H66/H65-1),-1) -> -0.01619823348 | L66: 0.07896990019 | M66: 16.39550593
A67: Fully Depreciated SL | B67: linear decline | C67: BAU | D67: Decline to 25% | E67: 2031-32 | F67: 6 | G67: 4758074.242 | H67: 358.9741342 | I67: 77.23201897 | J67: 16.23178098 | K67: -0.02137223786 | L67: =IFERROR(IF(E67="2026-27",J67/$P$1-1,J67/J66-1),-1) -> 0.08064676481 | M67: 17.85683424
A68: Fully Depreciated SL | B68: linear decline | C68: BAU | D68: Decline to 25% | E68: 2032-33 | F68: 7 | G68: 4527844.844 | H68: 349.2612957 | I68: 79.84593828 | J68: 17.63442455 | K68: -0.0270572101 | L68: 0.086413412 | M68: 19.69745131
A69: Fully Depreciated SL | B69: linear decline | C69: BAU | D69: Decline to 25% | E69: 2033-34 | F69: 8 | G69: 4297615.445 | H69: 337.2700194 | I69: 82.49887641 | J69: 19.19643055 | K69: -0.03433325246 | L69: 0.08857708918 | M69: 21.58507472
A70: Fully Depreciated SL | B70: linear decline | C70: BAU | D70: Decline to 25% | E70: 2034-35 | F70: 9 | G70: 4067386.046 | H70: 322.9263181 | I70: 85.17385694 | J70: 20.94068672 | K70: -0.04252883584 | L70: 0.09086356774 | M70: 23.51823095
A71: Fully Depreciated SL | B71: linear decline | C71: BAU | D71: Decline to 25% | E71: 2035-36 | F71: 10 | G71: 3837156.647 | H71: 306.1566025 | I71: 87.85672744 | J71: 22.89630982 | K71: -0.05193047036 | L71: 0.09338868083 | M71: 25.49523089
A72: Fully Depreciated SL | B72: linear decline | C72: BAU | D72: Decline to 25% | E72: 2036-37 | F72: 11 | G72: 3606927.248 | H72: 286.8878602 | I72: 90.53545526 | J72: 25.10043841 | K72: -0.06293753656 | L72: 0.09626566925 | M72: 27.51415606
A73: Fully Depreciated SL | B73: linear decline | C73: BAU | D73: Decline to 25% | E73: 2037-38 | F73: 12 | G73: 3376697.849 | H73: 265.0478466 | I73: 93.898721 | J73: 27.80785406 | K73: -0.07612735344 | L73: 0.1078632812 | M73: 30.37945428
A74: Fully Depreciated SL | B74: linear decline | C74: BAU | D74: Decline to 25% | E74: 2038-39 | F74: 13 | G74: 3146468.451 | H74: 239.75868 | I74: 97.33777673 | J74: 30.93556419 | K74: -0.09541359013 | L74: 0.112475782 | M74: 33.23924278
A75: Fully Depreciated SL | B75: linear decline | C75: BAU | D75: Decline to 25% | E75: 2039-40 | F75: 14 | G75: 2916239.052 | H75: 210.993131 | I75: 100.7311642 | J75: 34.5414633 | K75: -0.1199770913 | L75: 0.1165616082 | M75: 36.08351519
A76: Fully Depreciated SL | B76: linear decline | C76: BAU | D76: Decline to 25% | E76: 2040-41 | F76: 15 | G76: 2686009.653 | H76: 178.7327045 | I76: 104.0142759 | J76: 38.72446094 | K76: -0.1528979942 | L76: 0.1211007652 | M76: 38.9014535
A77: Fully Depreciated SL | B77: linear decline | C77: BAU | D77: Decline to 25% | E77: 2041-42 | F77: 16 | G77: 2455780.254 | H77: 142.9684083 | I77: 102.5634979 | J77: 41.76411865 | K77: -0.20009934 | L77: 0.07849451314 | M77: 37.88726822
A78: Fully Depreciated SL | B78: linear decline | C78: BAU | D78: Decline to 25% | E78: 2042-43 | F78: 17 | G78: 2225550.855 | H78: 107.4918984 | I78: 103.11003 | J78: 46.33011632 | K78: -0.2481423015 | L78: 0.1093282421 | M78: 38.74195849
A79: Fully Depreciated SL | B79: linear decline | C79: BAU | D79: Decline to 25% | E79: 2043-44 | F79: 18 | G79: 1995321.457 | H79: 70.39665565 | I79: 101.2842175 | J79: 50.7608522 | K79: -0.3450980335 | L79: 0.095634033 | M79: 36.60594735
A80: Fully Depreciated SL | B80: linear decline | C80: BAU | D80: Decline to 25% | E80: 2044-45 | F80: 19 | G80: 1765092.058 | H80: 34.6333954 | I80: 99.21581516 | J80: 56.20999468 | K80: -0.5080249895 | L80: 0.1073493104 | M80: 34.6333954
A81: Fully Depreciated SL | B81: linear decline | C81: BAU | D81: Decline to 25% | E81: 2045-46 | F81: 20 | G81: 1534862.659 | H81: 4.689582056e-13 | I81: 7.113181306e-15 | J81: 4.634408991e-15 | K81: -1 | L81: -1 | M81: -1.172395514e-14
A82: Fully Depreciated SYD | B82: BAU | C82: BAU | D82: Decline to 25% | E82: 2026-27 | F82: 1 | G82: 5909221.237 | H82: 380.88573 | I82: 85.9716658 | J82: =I82*10^6/G82 -> 14.54873026 | K82: n/a | L82: 0.32486409 | M82: 29.51864408
A83: Fully Depreciated SYD | B83: BAU | C83: BAU | D83: Decline to 25% | E83: 2027-28 | F83: 2 | G83: 5678991.838 | H83: 353.0906931 | I83: 84.90223292 | J83: =I83*10^6/G83 -> 14.95022979 | K83: -0.07297473937 | L83: 0.02759687765 | M83: 29.635185
A84: Fully Depreciated SYD | B84: BAU | C84: BAU | D84: Decline to 25% | E84: 2028-29 | F84: 3 | G84: 5448762.439 | H84: 326.5597571 | I84: 85.66629377 | J84: 15.72215613 | K84: -0.07513915415 | L84: 0.0516330755 | M84: 29.70549311
A85: Fully Depreciated SYD | B85: BAU | C85: BAU | D85: Decline to 25% | E85: 2029-30 | F85: 4 | G85: 5218533.04 | H85: 301.3027467 | I85: 84.12811197 | J85: 16.12102699 | K85: -0.07734269097 | L85: 0.02536998456 | M85: 29.72682386
A86: Fully Depreciated SYD | B86: BAU | C86: BAU | D86: Decline to 25% | E86: 2030-31 | F86: 5 | G86: 4988303.641 | H86: 277.2881797 | I86: 85.31712085 | J86: 17.10343375 | K86: -0.07970244967 | L86: 0.06093946509 | M86: 29.6941836
A87: Fully Depreciated SYD | B87: BAU | C87: BAU | D87: Decline to 25% | E87: 2031-32 | F87: 6 | G87: 4758074.242 | H87: 254.5356136 | I87: 83.35860059 | J87: 17.51939889 | K87: -0.08205386247 | L87: 0.02432056302 | M87: 29.60485546
A88: Fully Depreciated SYD | B88: BAU | C88: BAU | D88: Decline to 25% | E88: 2032-33 | F88: 7 | G88: 4527844.844 | H88: 233.0551455 | I88: 83.70948205 | J88: 18.48770992 | K88: -0.08439081595 | L88: 0.05527079112 | M88: 29.93939209
A89: Fully Depreciated SYD | B89: BAU | C89: BAU | D89: Decline to 25% | E89: 2033-34 | F89: 8 | G89: 4297615.445 | H89: 212.4397956 | I89: 84.10830838 | J89: 19.57092473 | K89: -0.08845696094 | L89: 0.05859107529 | M89: 30.24644366
A90: Fully Depreciated SYD | B90: BAU | C90: BAU | D90: Decline to 25% | E90: 2034-35 | F90: 9 | G90: 4067386.046 | H90: 192.6895639 | I90: 84.54053216 | J90: 20.78497866 | K90: -0.09296860613 | L90: 0.06203354965 | M90: 30.52378413
A91: Fully Depreciated SYD | B91: BAU | C91: BAU | D91: Decline to 25% | E91: 2035-36 | F91: 10 | G91: 3837156.647 | H91: 173.8044504 | I91: 84.99492732 | J91: 22.15049713 | K91: -0.09800797241 | L91: 0.06569737208 | M91: 30.76907725
A92: Fully Depreciated SYD | B92: BAU | C92: BAU | D92: Decline to 25% | E92: 2036-37 | F92: 11 | G92: 3606927.248 | H92: 155.7844552 | I92: 85.46282166 | J92: 23.69407969 | K92: -0.1036797113 | L92: 0.06968613606 | M92: 30.97987204
A93: Fully Depreciated SYD | B93: BAU | C93: BAU | D93: Decline to 25% | E93: 2037-38 | F93: 12 | G93: 3376697.849 | H93: 138.6295781 | I93: 87.59796095 | J93: 25.94190089 | K93: -0.110119312 | L93: 0.09486847463 | M93: 33.06929733
A94: Fully Depreciated SYD | B94: BAU | C94: BAU | D94: Decline to 25% | E94: 2038-39 | F94: 13 | G94: 3146468.451 | H94: 120.9153899 | I94: 90.18421754 | J94: 28.66204412 | K94: -0.1277807264 | L94: 0.1048552008 | M94: 35.26263674
A95: Fully Depreciated SYD | B95: BAU | C95: BAU | D95: Decline to 25% | E95: 2039-40 | F95: 14 | G95: 2916239.052 | H95: 102.6418906 | I95: 93.01214921 | J95: 31.89455582 | K95: -0.1511263321 | L95: 0.1127802221 | M95: 37.56425023
A96: Fully Depreciated SYD | B96: BAU | C96: BAU | D96: Decline to 25% | E96: 2040-41 | F96: 15 | G96: 2686009.653 | H96: 83.80908001 | I96: 95.98213148 | J96: 35.73409774 | K96: -0.1834807451 | L96: 0.1203823609 | M96: 39.97866255
A97: Fully Depreciated SYD | B97: BAU | C97: BAU | D97: Decline to 25% | E97: 2041-42 | F97: 16 | G97: 2455780.254 | H97: 64.41695827 | I97: 91.17977545 | J97: 37.12863775 | K97: -0.231384496 | L97: 0.03902547133 | M97: 35.92119151
A98: Fully Depreciated SYD | B98: BAU | C98: BAU | D98: Decline to 25% | E98: 2042-43 | F98: 17 | G98: 2225550.855 | H98: 48.90429437 | I98: 97.73977416 | J98: 43.91711559 | K98: -0.2408164607 | L98: 0.1828367064 | M98: 43.1966243
A99: Fully Depreciated SYD | B99: BAU | C99: BAU | D99: Decline to 25% | E99: 2043-44 | F99: 18 | G99: 1995321.457 | H99: 29.57879039 | I99: 89.68781376 | J99: 44.94905493 | K99: -0.3951698767 | L99: 0.02349742988 | M99: 34.96226841
A100: Fully Depreciated SYD | B100: BAU | C100: BAU | D100: Decline to 25% | E100: 2044-45 | F100: 19 | G100: 1765092.058 | H100: 16.69663352 | I100: 81.32768687 | J100: 46.07560638 | K100: -0.4355200702 | L100: 0.02506285048 | M100: 26.04105003
A101: Fully Depreciated SYD | B101: BAU | C101: BAU | D101: Decline to 25% | E101: 2045-46 | F101: 20 | G101: 1534862.659 | H101: -1.065814104e-13 | I101: 6.682079409e-15 | J101: 4.353535719e-15 | K101: -1 | L101: -1 | M101: -1.10134124e-14
A102: Fully Depreciated SYD | B102: linear decline | C102: BAU | D102: Decline to 25% | E102: 2026-27 | F102: 1 | G102: 5909221.237 | H102: 380.88573 | I102: 87.15260121 | J102: =I102*10^6/G102 -> 14.74857646 | K102: n/a | L102: 0.343062864 | M102: 29.51864408
A103: Fully Depreciated SYD | B103: linear decline | C103: BAU | D103: Decline to 25% | E103: 2027-28 | F103: 2 | G103: 5678991.838 | H103: 361.3260965 | I103: 87.17013959 | J103: =I103*10^6/G103 -> 15.34958001 | K103: -0.05135302257 | L103: 0.04074993645 | M103: 29.60841117
A104: Fully Depreciated SYD | B104: linear decline | C104: BAU | D104: Decline to 25% | E104: 2028-29 | F104: 3 | G104: 5448762.439 | H104: 341.3603234 | I104: 87.14269914 | J104: 15.99311772 | K104: -0.05525693652 | L104: 0.04192542816 | M104: 29.62217545
A105: Fully Depreciated SYD | B105: linear decline | C105: BAU | D105: Decline to 25% | E105: 2029-30 | F105: 4 | G105: 5218533.04 | H105: 321.0420962 | I105: 87.06127988 | J105: 16.6830945 | K105: -0.05952134951 | L105: 0.04314210593 | M105: 29.55392068
A106: Fully Depreciated SYD | B106: linear decline | C106: BAU | D106: Decline to 25% | E106: 2030-31 | F106: 5 | G106: 4988303.641 | H106: 300.4306213 | I106: 86.91738913 | J106: 17.42423785 | K106: -0.06420178289 | L106: 0.04442481279 | M106: 29.3955383
A107: Fully Depreciated SYD | B107: linear decline | C107: BAU | D107: Decline to 25% | E107: 2031-32 | F107: 6 | G107: 4758074.242 | H107: 279.5909579 | I107: 86.70294145 | J107: 18.22227587 | K107: -0.06936597648 | L107: 0.04580045462 | M107: 29.14058574
A108: Fully Depreciated SYD | B108: linear decline | C108: BAU | D108: Decline to 25% | E108: 2032-33 | F108: 7 | G108: 4527844.844 | H108: 258.5943678 | I108: 86.69707168 | J108: 19.1475359 | K108: -0.07509752901 | L108: 0.0507763155 | M108: 29.11286305
A109: Fully Depreciated SYD | B109: linear decline | C109: BAU | D109: Decline to 25% | E109: 2033-34 | F109: 8 | G109: 4297615.445 | H109: 237.1876798 | I109: 86.6278515 | J109: 20.1571901 | K109: -0.08278095212 | L109: 0.05273024206 | M109: 28.97210455
A110: Fully Depreciated SYD | B110: linear decline | C110: BAU | D110: Decline to 25% | E110: 2034-35 | F110: 9 | G110: 4067386.046 | H110: 215.4569487 | I110: 86.47568687 | J110: 21.26075221 | K110: -0.09161829625 | L110: 0.05474781489 | M110: 28.708513
A111: Fully Depreciated SYD | B111: linear decline | C111: BAU | D111: Decline to 25% | E111: 2035-36 | F111: 10 | G111: 3837156.647 | H111: 193.4969511 | I111: 86.22376246 | J111: 22.47074341 | K111: -0.1019229028 | L111: 0.05691196577 | M111: 28.31172218
A112: Fully Depreciated SYD | B112: linear decline | C112: BAU | D112: Decline to 25% | E112: 2036-37 | F112: 11 | G112: 3606927.248 | H112: 171.4117174 | I112: 85.85733729 | J112: 23.8034569 | K112: -0.1141373729 | L112: 0.05930882924 | M112: 27.77076971
A113: Fully Depreciated SYD | B113: linear decline | C113: BAU | D113: Decline to 25% | E113: 2037-38 | F113: 12 | G113: 3376697.849 | H113: 149.3150902 | I113: 86.0623382 | J113: 25.48713034 | K113: -0.1289096656 | L113: 0.0707323078 | M113: 27.88067886
A114: Fully Depreciated SYD | B114: linear decline | C114: BAU | D114: Decline to 25% | E114: 2038-39 | F114: 13 | G114: 3146468.451 | H114: 126.5246991 | I114: 86.227218 | J114: 27.40444386 | K114: -0.1526328728 | L114: 0.07522673178 | M114: 27.77974726
A115: Fully Depreciated SYD | B115: linear decline | C115: BAU | D115: Decline to 25% | E115: 2039-40 | F115: 14 | G115: 2916239.052 | H115: 103.2186455 | I115: 86.22767376 | J115: 29.56810886 | K115: -0.184201612 | L115: 0.07895307125 | M115: 27.44773911
A116: Fully Depreciated SYD | B116: linear decline | C116: BAU | D116: Decline to 25% | E116: 2040-41 | F116: 15 | G116: 2686009.653 | H116: 79.59399509 | I116: 85.99620794 | J116: 32.01634359 | K116: -0.2288796788 | L116: 0.0827998415 | M116: 26.86318165
A117: Fully Depreciated SYD | B117: linear decline | C117: BAU | D117: Decline to 25% | E117: 2041-42 | F117: 16 | G117: 2455780.254 | H117: 55.86797075 | I117: 80.90627133 | J117: 32.9452406 | K117: -0.2980881198 | L117: 0.02901321328 | M117: 22.20918947
A118: Fully Depreciated SYD | B118: linear decline | C118: BAU | D118: Decline to 25% | E118: 2042-43 | F118: 17 | G118: 2225550.855 | H118: 36.06953963 | I118: 77.68608332 | J118: 34.90645165 | K118: -0.3543789198 | L118: 0.05952941953 | M118: 19.17520811
A119: Fully Depreciated SYD | B119: linear decline | C119: BAU | D119: Decline to 25% | E119: 2043-44 | F119: 18 | G119: 1995321.457 | H119: 18.54104724 | I119: 72.05721754 | J119: 36.11308709 | K119: -0.4859638511 | L119: 0.0345676914 | M119: 12.88963233
A120: Fully Depreciated SYD | B120: linear decline | C120: BAU | D120: Decline to 25% | E120: 2044-45 | F120: 19 | G120: 1765092.058 | H120: 6.494102015 | I120: 66.63918447 | J120: 37.75394274 | K120: -0.6497445948 | L120: 0.04543659309 | M120: 6.494102015
A121: Fully Depreciated SYD | B121: linear decline | C121: BAU | D121: Decline to 25% | E121: 2045-46 | F121: 20 | G121: 1534862.659 | H121: -4.174438573e-14 | I121: 6.358752986e-15 | J121: 4.142880765e-15 | K121: -1 | L121: -1 | M121: -1.048050535e-14
A122: Base case | B122: BAU | C122: BAU | D122: Decline to 50% | E122: 2026-27 | F122: 1 | G122: 5985964.37 | H122: 380.88573 | I122: 64.97428673 | J122: =I122*10^6/G122 -> 10.85443927 | K122: n/a | L122: -0.01155244789 | M122: 11.06368061
A123: Base case | B123: BAU | C123: BAU | D123: Decline to 50% | E123: 2027-28 | F123: 2 | G123: 5832478.104 | H123: 381.3714329 | I123: 67.18753778 | J123: =I123*10^6/G123 -> 11.51955251 | K123: 0.001275193123 | L123: 0.06127568828 | M123: 12.24355053
A124: Base case | B124: BAU | C124: BAU | D124: Decline to 50% | E124: 2028-29 | F124: 3 | G124: 5678991.838 | H124: 380.9660004 | I124: 69.47347879 | J124: 12.23341762 | K124: -0.001063090833 | L124: 0.06196986431 | M124: 13.49243332
A125: Base case | B125: BAU | C125: BAU | D125: Decline to 50% | E125: 2029-30 | F125: 4 | G125: 5525505.572 | H125: 379.6076381 | I125: 70.09754824 | J125: 12.68617818 | K125: -0.003565573606 | L125: 0.03701014572 | M125: 13.29452321
A126: Base case | B126: BAU | C126: BAU | D126: Decline to 50% | E126: 2030-31 | F126: 5 | G126: 5372019.306 | H126: 378.7505377 | I126: 71.82158409 | J126: 13.36956924 | K126: -0.002257858746 | L126: 0.05386894696 | M126: 14.01334088
A127: Base case | B127: BAU | C127: BAU | D127: Decline to 50% | E127: 2031-32 | F127: 6 | G127: 5218533.04 | H127: 377.4855551 | I127: 71.52676191 | J127: 13.70629665 | K127: -0.003339883124 | L127: 0.0251861072 | M127: 12.95284274
A128: Base case | B128: BAU | C128: BAU | D128: Decline to 50% | E128: 2032-33 | F128: 7 | G128: 5065046.774 | H128: 377.5997797 | I128: 71.83321256 | J128: 14.182142 | K128: 0.0003025932325 | L128: 0.03471728066 | M128: 11.96341778
A129: Base case | B129: BAU | C129: BAU | D129: Decline to 50% | E129: 2033-34 | F129: 8 | G129: 4911560.508 | H129: 379.0301059 | I129: 74.39510619 | J129: 15.14693875 | K129: 0.003787942398 | L129: 0.06802898711 | M129: 13.24828287
A130: Base case | B130: BAU | C130: BAU | D130: Decline to 50% | E130: 2034-35 | F130: 9 | G130: 4758074.242 | H130: 379.5104107 | I130: 77.03433139 | J130: 16.19023316 | K130: =IFERROR(IF(E130="2026-27","n/a",H130/H129-1),-1) -> 0.001267194138 | L130: 0.0688782354 | M130: 14.60955252
A131: Base case | B131: BAU | C131: BAU | D131: Decline to 50% | E131: 2035-36 | F131: 10 | G131: 4604587.977 | H131: 378.9726604 | I131: 79.65797579 | J131: 17.29969678 | K131: -0.001416957797 | L131: =IFERROR(IF(E131="2026-27",J131/$P$1-1,J131/J130-1),-1) -> 0.06852672259 | M131: 15.9583661
A132: Base case | B132: BAU | C132: BAU | D132: Decline to 50% | E132: 2036-37 | F132: 11 | G132: 4451101.711 | H132: 377.4378917 | I132: 82.44740626 | J132: 18.5229212 | K132: -0.004049813932 | L132: 0.0707078534 | M132: 17.47238868
A133: Base case | B133: BAU | C133: BAU | D133: Decline to 50% | E133: 2037-38 | F133: 12 | G133: 4297615.445 | H133: 374.7496903 | I133: 84.14146217 | J133: 19.57863919 | K133: -0.007122235122 | L133: 0.05699522092 | M133: 18.17936252
A134: Base case | B134: BAU | C134: BAU | D134: Decline to 50% | E134: 2038-39 | F134: 13 | G134: 4144129.179 | H134: 371.7241197 | I134: 86.00085634 | J134: 20.75245549 | K134: -0.008073577232 | L134: 0.05995392689 | M134: 18.88780779
A135: Base case | B135: BAU | C135: BAU | D135: Decline to 50% | E135: 2039-40 | F135: 14 | G135: 3990642.913 | H135: 368.3689487 | I135: 88.27195658 | J135: 22.11973321 | K135: -0.009025970751 | L135: 0.06588510553 | M135: 19.86062498
A136: Base case | B136: BAU | C136: BAU | D136: Decline to 50% | E136: 2040-41 | F136: 15 | G136: 3837156.647 | H136: 364.4292763 | I136: 90.63115732 | J136: 23.61935299 | K136: -0.01069490879 | L136: 0.06779556345 | M136: 20.96248243
A137: Base case | B137: BAU | C137: BAU | D137: Decline to 50% | E137: 2041-42 | F137: 16 | G137: 3683670.381 | H137: 359.7857704 | I137: 93.12978332 | J137: 25.28179063 | K137: -0.01274185759 | L137: 0.0703845545 | M137: 22.16873671
A138: Base case | B138: BAU | C138: BAU | D138: Decline to 50% | E138: 2042-43 | F138: 17 | G138: 3530184.115 | H138: 354.3439846 | I138: 95.39169579 | J138: 27.0217339 | K138: -0.01512507236 | L138: 0.06882199531 | M138: 23.23538965
A139: Base case | B139: BAU | C139: BAU | D139: Decline to 50% | E139: 2043-44 | F139: 18 | G139: 3376697.849 | H139: 348.2537196 | I139: 97.76111389 | J139: 28.95169134 | K139: -0.01718743718 | L139: 0.07142241295 | M139: 24.34530787
A140: Base case | B140: BAU | C140: BAU | D140: Decline to 50% | E140: 2044-45 | F140: 19 | G140: 3223211.584 | H140: 341.4821645 | I140: 100.5632715 | J140: 31.19971149 | K140: -0.01944431516 | L140: 0.07764728221 | M140: 25.50008268
A141: Base case | B141: BAU | C141: BAU | D141: Decline to 50% | E141: 2045-46 | F141: 20 | G141: 3069725.318 | H141: 333.9951785 | I141: 91.60786622 | J141: 29.84236593 | K141: -0.02192496958 | L141: -0.04350506778 | M141: 16.68652912
A142: Base case | B142: linear decline | C142: BAU | D142: Decline to 50% | E142: 2026-27 | F142: 1 | G142: 5985964.37 | H142: 380.88573 | I142: 64.97428673 | J142: =I142*10^6/G142 -> 10.85443927 | K142: n/a | L142: -0.01155244789 | M142: 11.06368061
A143: Base case | B143: linear decline | C143: BAU | D143: Decline to 50% | E143: 2027-28 | F143: 2 | G143: 5832478.104 | H143: 380.9094575 | I143: 67.15762637 | J143: =I143*10^6/G143 -> 11.51442409 | K143: 6.229565165e-05 | L143: 0.06080321604 | M143: 12.22800524
A144: Base case | B144: linear decline | C144: BAU | D144: Decline to 50% | E144: 2028-29 | F144: 3 | G144: 5678991.838 | H144: 379.5725209 | I144: 69.38076592 | J144: 12.21709203 | K144: -0.003509854113 | L144: 0.06102501842 | M144: 13.44395418
A145: Base case | B145: linear decline | C145: BAU | D145: Decline to 50% | E145: 2029-30 | F145: 4 | G145: 5525505.572 | H145: 376.8065492 | I145: 69.90614608 | J145: 12.65153843 | K145: -0.007287070436 | L145: 0.03556054075 | M145: 13.19375237
A146: Base case | B146: linear decline | C146: BAU | D146: Decline to 50% | E146: 2030-31 | F146: 5 | G146: 5372019.306 | H146: 374.060232 | I146: 71.49257458 | J146: 13.30832421 | K146: -0.007288400997 | L146: 0.05191351101 | M146: 13.8388185
A147: Base case | B147: linear decline | C147: BAU | D147: Decline to 50% | E147: 2031-32 | F147: 6 | G147: 5218533.04 | H147: 370.4201002 | I147: 71.01815218 | J147: 13.60883444 | K147: -0.009731405545 | L147: 0.02258062175 | M147: 12.68086732
A148: Base case | B148: linear decline | C148: BAU | D148: Decline to 50% | E148: 2032-33 | F148: 7 | G148: 5065046.774 | H148: 367.670204 | I148: 71.09987921 | J148: 14.03735886 | K148: -0.007423722859 | L148: 0.03148869346 | M148: 11.56789925
A149: Base case | B149: linear decline | C149: BAU | D149: Decline to 50% | E149: 2033-34 | F149: 8 | G149: 4911560.508 | H149: 365.7458004 | I149: 73.3887293 | J149: 14.94203913 | K149: -0.005234048223 | L149: 0.06444804029 | M149: 12.70058802
A150: Base case | B150: linear decline | C150: BAU | D150: Decline to 50% | E150: 2034-35 | F150: 9 | G150: 4758074.242 | H150: 362.380652 | I150: 75.70331904 | J150: 15.91049554 | K150: -0.009200784938 | L150: 0.06481420689 | M150: 13.87834249
A151: Base case | B151: linear decline | C151: BAU | D151: Decline to 50% | E151: 2035-36 | F151: 10 | G151: 4604587.977 | H151: 357.508263 | I151: 77.9473796 | J151: 16.92819857 | K151: -0.01344549993 | L151: 0.06396425696 | M151: 15.00942561
A152: Base case | B152: linear decline | C152: BAU | D152: Decline to 50% | E152: 2036-37 | F152: 11 | G152: 4451101.711 | H152: 351.1529957 | I152: 80.29882868 | J152: 18.04021429 | K152: -0.01777656033 | L152: 0.06569013901 | M152: 16.26844652
A153: Base case | B153: linear decline | C153: BAU | D153: Decline to 50% | E153: 2037-38 | F153: 12 | G153: 4297615.445 | H153: 343.1636941 | I153: 81.49295577 | J153: 18.96236571 | K153: -0.02275162604 | L153: 0.05111643422 | M153: 16.67990301
A154: Base case | B154: linear decline | C154: BAU | D154: Decline to 50% | E154: 2038-39 | F154: 13 | G154: 4144129.179 | H154: 334.3637629 | I154: 82.78681558 | J154: 19.97689068 | K154: -0.0256435379 | L154: 0.0535020252 | M154: 17.0488728
A155: Base case | B155: linear decline | C155: BAU | D155: Decline to 50% | E155: 2039-40 | F155: 14 | G155: 3990642.913 | H155: 324.7705557 | I155: 84.42300241 | J155: 21.15523845 | K155: -0.02869092954 | L155: 0.05898554432 | M155: 17.63460605
A156: Base case | B156: linear decline | C156: BAU | D156: Decline to 50% | E156: 2040-41 | F156: 15 | G156: 3837156.647 | H156: 314.1411689 | I156: 86.07401472 | J156: 22.43171771 | K156: -0.03272891181 | L156: 0.06033868435 | M156: 18.29790256
A157: Base case | B157: linear decline | C157: BAU | D157: Decline to 50% | E157: 2041-42 | F157: 16 | G157: 3683670.381 | H157: 302.3708569 | I157: 87.78715212 | J157: 23.83143524 | K157: -0.03746822488 | L157: 0.06239903447 | M157: 19.01002141
A158: Base case | B158: linear decline | C158: BAU | D158: Decline to 50% | E158: 2042-43 | F158: 17 | G158: 3530184.115 | H158: 289.3825378 | I158: 89.22573174 | J158: 25.27509298 | K158: -0.0429549303 | L158: 0.06057787654 | M158: 19.55580698
A159: Base case | B159: linear decline | C159: BAU | D159: Decline to 50% | E159: 2043-44 | F159: 18 | G159: 3376697.849 | H159: 275.3131707 | I159: 90.72590417 | J159: 26.86823287 | K159: -0.04861857661 | L159: 0.06303200937 | M159: 20.11685435
A160: Base case | B160: linear decline | C160: BAU | D160: Decline to 50% | E160: 2044-45 | F160: 19 | G160: 3223211.584 | H160: 260.1169672 | I160: 92.61096869 | J160: 28.73251299 | K160: -0.05519606464 | L160: 0.06938603381 | M160: 20.69342653
A161: Base case | B161: linear decline | C161: BAU | D161: Decline to 50% | E161: 2045-46 | F161: 20 | G161: 3069725.318 | H161: 243.7466838 | I161: 82.68862294 | J161: 26.93681499 | K161: -0.06293431573 | L161: -0.06249707445 | M161: 11.2709511
A162: Fully Depreciated SL | B162: BAU | C162: BAU | D162: Decline to 50% | E162: 2026-27 | F162: 1 | G162: 5985964.37 | H162: 380.88573 | I162: 64.84887365 | J162: =I162*10^6/G162 -> 10.83348808 | K162: n/a | L162: -0.01346034498 | M162: 11.02563955
A163: Fully Depreciated SL | B163: BAU | C163: BAU | D163: Decline to 50% | E163: 2027-28 | F163: 2 | G163: 5832478.104 | H163: 380.410965 | I163: 66.04656227 | J163: =I163*10^6/G163 -> 11.32392803 | K163: -0.001246476274 | L163: 0.04527073302 | M163: 12.32367799
A164: Fully Depreciated SL | B164: BAU | C164: BAU | D164: Decline to 50% | E164: 2028-29 | F164: 3 | G164: 5678991.838 | H164: 378.8963564 | I164: 69.19008707 | J164: 12.18351585 | K164: -0.00398150625 | L164: 0.07590897972 | M164: 13.6987703
A165: Fully Depreciated SL | B165: BAU | C165: BAU | D165: Decline to 50% | E165: 2029-30 | F165: 4 | G165: 5525505.572 | H165: 376.2813376 | I165: 69.81356248 | J165: 12.63478275 | K165: -0.006901673039 | L165: 0.03703913579 | M165: 15.1549142
A166: Fully Depreciated SL | B166: BAU | C166: BAU | D166: Decline to 50% | E166: 2030-31 | F166: 5 | G166: 5372019.306 | H166: 372.4574112 | I166: 73.3262061 | J166: 13.64965424 | K166: -0.01016241308 | L166: 0.08032362027 | M166: 16.69415123
A167: Fully Depreciated SL | B167: BAU | C167: BAU | D167: Decline to 50% | E167: 2031-32 | F167: 6 | G167: 5218533.04 | H167: 367.36686 | I167: 73.88767811 | J167: 14.15870658 | K167: -0.01366747183 | L167: 0.03729415652 | M167: 18.32110397
A168: Fully Depreciated SL | B168: BAU | C168: BAU | D168: Decline to 50% | E168: 2032-33 | F168: 7 | G168: 5065046.774 | H168: 360.9394461 | I168: 76.85834865 | J168: 15.17426237 | K168: -0.01749590016 | L168: 0.07172659291 | M168: 20.52398035
A169: Fully Depreciated SL | B169: BAU | C169: BAU | D169: Decline to 50% | E169: 2033-34 | F169: 8 | G169: 4911560.508 | H169: 352.6064981 | I169: 79.97933329 | J169: 16.28389453 | K169: -0.02308683111 | L169: 0.07312593764 | M169: 22.85941383
A170: Fully Depreciated SL | B170: BAU | C170: BAU | D170: Decline to 50% | E170: 2034-35 | F170: 9 | G170: 4758074.242 | H170: 342.2428924 | I170: 83.23870223 | J170: 17.49419996 | K170: -0.0293914201 | L170: 0.07432530528 | M170: 25.33350209
A171: Fully Depreciated SL | B171: BAU | C171: BAU | D171: Decline to 50% | E171: 2035-36 | F171: 10 | G171: 4604587.977 | H171: 329.7175936 | I171: 86.6278923 | J171: 18.81338629 | K171: -0.03659768849 | L171: 0.07540706799 | M171: 27.95258596
A172: Fully Depreciated SL | B172: BAU | C172: BAU | D172: Decline to 50% | E172: 2036-37 | F172: 11 | G172: 4451101.711 | H172: 314.8934161 | I172: 90.14093963 | J172: 20.25137718 | K172: -0.04496022609 | L172: 0.07643445339 | M172: 30.72325839
A173: Fully Depreciated SL | B173: BAU | C173: BAU | D173: Decline to 50% | E173: 2037-38 | F173: 12 | G173: 4297615.445 | H173: 297.6267763 | I173: 95.43434375 | J173: 22.20634791 | K173: -0.05483328293 | L173: 0.09653519892 | M173: 35.56807275
A174: Fully Depreciated SL | B174: BAU | C174: BAU | D174: Decline to 50% | E174: 2038-39 | F174: 13 | G174: 4144129.179 | H174: 275.8517376 | I174: 101.2947763 | J174: 24.44295819 | K174: -0.07316223003 | L174: 0.1007194112 | M174: 40.72213225
A175: Fully Depreciated SL | B175: BAU | C175: BAU | D175: Decline to 50% | E175: 2039-40 | F175: 14 | G175: 3990642.913 | H175: 249.2674653 | I175: 107.5156396 | J175: 26.94193442 | K175: -0.09637159639 | L175: 0.1022370616 | M175: 46.20002631
A176: Fully Depreciated SL | B176: BAU | C176: BAU | D176: Decline to 50% | E176: 2040-41 | F176: 15 | G176: 3837156.647 | H176: 217.5587454 | I176: 114.0001994 | J176: 29.70955056 | K176: -0.1272076155 | L176: 0.1027252203 | M176: 52.0169344
A177: Fully Depreciated SL | B177: BAU | C177: BAU | D177: Decline to 50% | E177: 2041-42 | F177: 16 | G177: 3683670.381 | H177: 180.3954001 | I177: 112.837002 | J177: 30.6316772 | K177: -0.1708198181 | L177: 0.03103805408 | M177: 51.59927027
A178: Fully Depreciated SL | B178: BAU | C178: BAU | D178: Decline to 50% | E178: 2042-43 | F178: 17 | G178: 3530184.115 | H178: 144.0210587 | I178: 122.1577281 | J178: 34.60378386 | K178: -0.2016367459 | L178: 0.1296731691 | M178: 62.76337468
A179: Fully Depreciated SL | B179: BAU | C179: BAU | D179: Decline to 50% | E179: 2043-44 | F179: 18 | G179: 3376697.849 | H179: 96.86323601 | I179: 119.4265348 | J179: 35.36784756 | K179: -0.3274369948 | L179: 0.02208035112 | M179: 58.67858343
A180: Fully Depreciated SL | B180: BAU | C180: BAU | D180: Decline to 50% | E180: 2044-45 | F180: 19 | G180: 3223211.584 | H180: 54.18034342 | I180: 114.0699448 | J180: 35.39015104 | K180: -0.4406511113 | L180: 0.0006306147295 | M180: 54.18034342
A181: Fully Depreciated SL | B181: BAU | C181: BAU | D181: Decline to 50% | E181: 2045-46 | F181: 20 | G181: 3069725.318 | H181: 7.460698725e-13 | I181: 0.3881682011 | J181: 0.1264504673 | K181: -1 | L181: -0.9964269588 | M181: -1.865174681e-14
A182: Fully Depreciated SL | B182: linear decline | C182: BAU | D182: Decline to 50% | E182: 2026-27 | F182: 1 | G182: 5985964.37 | H182: 380.88573 | I182: 66.02980906 | J182: =I182*10^6/G182 -> 11.03077215 | K182: n/a | L182: 0.004505111417 | M182: 11.02563955
A183: Fully Depreciated SL | B183: linear decline | C183: BAU | D183: Decline to 50% | E183: 2027-28 | F183: 2 | G183: 5832478.104 | H183: 379.8191011 | I183: 68.19297905 | J183: =I183*10^6/G183 -> 11.69193914 | K183: -0.002800390987 | L183: 0.05993841455 | M183: 12.29690416
A184: Fully Depreciated SL | B184: linear decline | C184: BAU | D184: Decline to 50% | E184: 2028-29 | F184: 3 | G184: 5678991.838 | H184: 377.1648349 | I184: 70.4011256 | J184: 12.39676471 | K184: -0.006988237715 | L184: 0.06028303401 | M184: 13.61545265
A185: Fully Depreciated SL | B185: linear decline | C185: BAU | D185: Decline to 50% | E185: 2029-30 | F185: 4 | G185: 5525505.572 | H185: 372.8533306 | I185: 72.6476423 | J185: 13.14769144 | K185: -0.01143135285 | L185: 0.0605744116 | M185: 14.98201102
A186: Fully Depreciated SL | B186: linear decline | C186: BAU | D186: Decline to 50% | E186: 2030-31 | F186: 5 | G186: 5372019.306 | H186: 366.8137653 | I186: 74.92647439 | J186: 13.94754377 | K186: -0.01619823348 | L186: 0.06083595228 | M186: 16.39550593
A187: Fully Depreciated SL | B187: linear decline | C187: BAU | D187: Decline to 50% | E187: 2031-32 | F187: 6 | G187: 5218533.04 | H187: 358.9741342 | I187: 77.23201897 | J187: 14.79956501 | K187: -0.02137223786 | L187: 0.06108754734 | M187: 17.85683424
A188: Fully Depreciated SL | B188: linear decline | C188: BAU | D188: Decline to 50% | E188: 2032-33 | F188: 7 | G188: 5065046.774 | H188: 349.2612957 | I188: 79.84593828 | J188: 15.7641068 | K188: -0.0270572101 | L188: 0.0651736581 | M188: 19.69745131
A189: Fully Depreciated SL | B189: linear decline | C189: BAU | D189: Decline to 50% | E189: 2033-34 | F189: 8 | G189: 4911560.508 | H189: 337.2700194 | I189: 82.49887641 | J189: 16.79687673 | K189: -0.03433325246 | L189: 0.06551401526 | M189: 21.58507472
A190: Fully Depreciated SL | B190: linear decline | C190: BAU | D190: Decline to 50% | E190: 2034-35 | F190: 9 | G190: 4758074.242 | H190: 322.9263181 | I190: 85.17385694 | J190: 17.90090961 | K190: -0.04252883584 | L190: 0.06572846249 | M190: 23.51823095
A191: Fully Depreciated SL | B191: linear decline | C191: BAU | D191: Decline to 50% | E191: 2035-36 | F191: 10 | G191: 4604587.977 | H191: 306.1566025 | I191: 87.85672744 | J191: 19.08025819 | K191: -0.05193047036 | L191: 0.06588204735 | M191: 25.49523089
A192: Fully Depreciated SL | B192: linear decline | C192: BAU | D192: Decline to 50% | E192: 2036-37 | F192: 11 | G192: 4451101.711 | H192: 286.8878602 | I192: 90.53545526 | J192: 20.34001044 | K192: -0.06293753656 | L192: 0.06602385768 | M192: 27.51415606
A193: Fully Depreciated SL | B193: linear decline | C193: BAU | D193: Decline to 50% | E193: 2037-38 | F193: 12 | G193: 4297615.445 | H193: 265.0478466 | I193: 93.898721 | J193: 21.84902819 | K193: -0.07612735344 | L193: 0.07418962527 | M193: 30.37945428
A194: Fully Depreciated SL | B194: linear decline | C194: BAU | D194: Decline to 50% | E194: 2038-39 | F194: 13 | G194: 4144129.179 | H194: 239.75868 | I194: 97.33777673 | J194: 23.48811355 | K194: =IFERROR(IF(E194="2026-27","n/a",H194/H193-1),-1) -> -0.09541359013 | L194: 0.07501868495 | M194: 33.23924278
A195: Fully Depreciated SL | B195: linear decline | C195: BAU | D195: Decline to 50% | E195: 2039-40 | F195: 14 | G195: 3990642.913 | H195: 210.993131 | I195: 100.7311642 | J195: 25.24183857 | K195: -0.1199770913 | L195: =IFERROR(IF(E195="2026-27",J195/$P$1-1,J195/J194-1),-1) -> 0.07466436207 | M195: 36.08351519
A196: Fully Depreciated SL | B196: linear decline | C196: BAU | D196: Decline to 50% | E196: 2040-41 | F196: 15 | G196: 3837156.647 | H196: 178.7327045 | I196: 104.0142759 | J196: 27.10712266 | K196: -0.1528979942 | L196: 0.07389652247 | M196: 38.9014535
A197: Fully Depreciated SL | B197: linear decline | C197: BAU | D197: Decline to 50% | E197: 2041-42 | F197: 16 | G197: 3683670.381 | H197: 142.9684083 | I197: 102.5634979 | J197: 27.84274577 | K197: -0.20009934 | L197: 0.02713763156 | M197: 37.88726822
A198: Fully Depreciated SL | B198: linear decline | C198: BAU | D198: Decline to 50% | E198: 2042-43 | F198: 17 | G198: 3530184.115 | H198: 107.4918984 | I198: 103.11003 | J198: 29.20811681 | K198: -0.2481423015 | L198: 0.04903866373 | M198: 38.74195849
A199: Fully Depreciated SL | B199: linear decline | C199: BAU | D199: Decline to 50% | E199: 2043-44 | F199: 18 | G199: 3376697.849 | H199: 70.39665565 | I199: 101.2842175 | J199: 29.99504903 | K199: -0.3450980335 | L199: 0.0269422441 | M199: 36.60594735
A200: Fully Depreciated SL | B200: linear decline | C200: BAU | D200: Decline to 50% | E200: 2044-45 | F200: 19 | G200: 3223211.584 | H200: 34.6333954 | I200: 99.21581516 | J200: 30.78166375 | K200: -0.5080249895 | L200: 0.0262248188 | M200: 34.6333954
... 221 more rows

Sheet PivotCharts
A42: Demand for price chart: | K42: Scenarios for right chart:
A43: →→→ | K43: →→→
A65: Capex | B65: linear decline | H65: Capex | I65: linear decline | P65: Capex | Q65: linear decline | AE65: Demand | AF65: Decline to 25%
A66: Opex | B66: (All) | H66: Opex | I66: (All) | P66: Opex | Q66: (All) | W66: Capex | X66: linear decline | AE66: Capex | AF66: linear decline
A67: Demand | B67: Decline to 25% | H67: Demand | I67: Decline to 25% | P67: Demand | Q67: Decline to 25% | W67: Opex | X67: (All) | AE67: Opex | AF67: BAU
A69: Sum of Nom RAB | B69: Column Labels | H69: Sum of Nom Revenue | I69: Column Labels | P69: Sum of Nom Price | Q69: Column Labels | W69: Sum of Nom Price | X69: Column Labels | AE69: Sum of Nom Price | AF69: Column Labels
A70: Row Labels | B70: Base case | C70: Fully Depreciated SL | D70: Grand Total | H70: Row Labels | I70: Base case | J70: Fully Depreciated SL | K70: Grand Total | P70: Row Labels | Q70: Base case | R70: Fully Depreciated SL | S70: Grand Total | X70: Base case | AA70: Base case Total | AB70: Grand Total | AE70: Row Labels | AF70: Base case | AG70: Fully Depreciated SL | AH70: Fully Depreciated SYD | AI70: Fully Depreciated S-curve | AJ70: Grand Total
A71: 2026-27 | B71: 380.88573 | C71: 380.88573 | D71: 761.77146 | H71: 2026-27 | I71: 64.97428673 | J71: 64.84887365 | K71: 129.8231604 | P71: 2026-27 | Q71: 10.99540602 | R71: 10.97418273 | S71: 21.96958875 | W71: Row Labels | X71: Decline to 25% | Y71: Decline to 50% | Z71: Decline to 10% | AE71: 2026-27 | AF71: 10.99540602 | AG71: 10.97418273 | AH71: 14.54873026 | AI71: 14.91018633 | AJ71: 51.42850534
A72: 2027-28 | B72: 380.9094575 | C72: 379.8556558 | D72: 760.7651134 | H72: 2027-28 | I72: 67.15762637 | J72: 65.99958458 | K72: 133.157211 | P72: 2027-28 | Q72: 11.82562474 | R72: 11.62170795 | S72: 23.44733269 | W72: 2026-27 | X72: 10.99540602 | Y72: 10.85443927 | Z72: 11.08175737 | AA72: 32.93160266 | AB72: 32.93160266 | AE72: 2027-28 | AF72: 11.82562474 | AG72: 11.62170795 | AH72: 14.9409451 | AI72: 15.71307802 | AJ72: 54.10135582
A73: 2028-29 | B73: 379.5725209 | C73: 377.2300242 | D73: 756.8025452 | H73: 2028-29 | I73: 69.38076592 | J73: 69.04327254 | K73: 138.4240385 | P73: 2028-29 | Q73: 12.73330719 | R73: 12.67136773 | S73: 25.40467492 | W73: 2027-28 | X73: 11.82562474 | Y73: 11.51442409 | Z73: 12.02055262 | AA73: 35.36060145 | AB73: 35.36060145 | AE73: 2028-29 | AF73: 12.73330719 | AG73: 12.67136773 | AH73: 15.69231429 | AI73: 16.89586065 | AJ73: 57.99284987
A74: 2029-30 | B74: 376.8065492 | C74: 372.9482571 | D74: 749.7548063 | H74: 2029-30 | I74: 69.90614608 | J74: 69.52917886 | K74: 139.4353249 | P74: 2029-30 | Q74: 13.39574657 | R74: 13.32351033 | S74: 26.7192569 | W74: 2028-29 | X74: 12.73330719 | Y74: 12.21709203 | Z74: 13.06452038 | AA74: 38.0149196 | AB74: 38.0149196 | AE74: 2029-30 | AF74: 13.39574657 | AG74: 13.32351033 | AH74: 16.0610176 | AI74: 17.70918133 | AJ74: 60.48945583
A75: 2030-31 | B75: 374.060232 | C75: 366.9117628 | D75: 740.9719948 | H75: 2030-31 | I75: 71.49257458 | J75: 72.8483893 | K75: 144.3409639 | P75: 2030-31 | Q75: 14.33204146 | R75: 14.60384021 | S75: 28.93588167 | W75: 2029-30 | X75: 13.39574657 | Y75: 12.65153843 | Z75: 13.88583486 | AA75: 39.93311986 | AB75: 39.93311986 | AE75: 2030-31 | AF75: 14.33204146 | AG75: 14.60384021 | AH75: 16.9989086 | AI75: 19.05439215 | AJ75: 64.98918242
A76: 2031-32 | B76: 370.4201002 | C76: 359.0662779 | D76: 729.4863781 | H76: 2031-32 | I76: 71.01815218 | J76: 73.14908772 | K76: 144.1672399 | P76: 2031-32 | Q76: 14.92581842 | R76: 15.37367514 | S76: 30.29949357 | W76: 2030-31 | X76: 14.33204146 | Y76: 13.30832421 | Z76: 15.02552733 | AA76: 42.665893 | AB76: 42.665893 | AE76: 2031-32 | AF76: 14.92581842 | AG76: 15.37367514 | AH76: 17.35174957 | AI76: 19.6946918 | AJ76: 67.34593493
A77: 2032-33 | B77: 367.670204 | C77: 349.3472316 | D77: 717.0174356 | H77: 2032-33 | I77: 71.09987921 | J77: 75.66081038 | K77: 146.7606896 | P77: 2032-33 | Q77: 15.70280822 | R77: 16.71011552 | S77: 32.41292373 | W77: 2031-32 | X77: 14.92581842 | Y77: 13.60883444 | Z77: 15.84590312 | AA77: 44.38055599 | AB77: 44.38055599 | AE77: 2032-33 | AF77: 15.70280822 | AG77: 16.71011552 | AH77: 18.20232786 | AI77: 20.59686722 | AJ77: 71.21211882
A78: 2033-34 | B78: 365.7458004 | C78: 337.3493797 | D78: 703.0951801 | H78: 2033-34 | I78: 73.3887293 | J78: 78.20899386 | K78: 151.5977232 | P78: 2033-34 | Q78: 17.07661615 | R78: 18.19822989 | S78: 35.27484604 | W78: 2032-33 | X78: 15.70280822 | Y78: 14.03735886 | Z78: 16.90630812 | AA78: 46.64647519 | AB78: 46.64647519 | AE78: 2033-34 | AF78: 17.07661615 | AG78: 18.19822989 | AH78: 19.13180033 | AI78: 21.17440739 | AJ78: 75.58105376
A79: 2034-35 | B79: 362.380652 | C79: 322.9987202 | D79: 685.3793722 | H79: 2034-35 | I79: 75.70331904 | J79: 80.77659771 | K79: 156.4799167 | P79: 2034-35 | Q79: 18.61227781 | R79: 19.85958471 | S79: 38.47186251 | W79: 2033-34 | X79: 17.07661615 | Y79: 14.94203913 | Z79: 18.67754891 | AA79: 50.69620419 | AB79: 50.69620419 | AE79: 2034-35 | AF79: 18.61227781 | AG79: 19.85958471 | AH79: 20.1486309 | AI79: 21.3084494 | AJ79: 79.92894281
A80: 2035-36 | B80: 357.508263 | C80: 306.2216489 | D80: 663.7299118 | H80: 2035-36 | I80: 77.9473796 | J80: 83.34940387 | K80: 161.2967835 | P80: 2035-36 | Q80: 20.31383828 | R80: 21.72165787 | S80: 42.03549615 | W80: 2034-35 | X80: 18.61227781 | Y80: 15.91049554 | Z80: 20.7237547 | AA80: 55.24652805 | AB80: 55.24652805 | AE80: 2035-36 | AF80: 20.31383828 | AG80: 21.72165787 | AH80: 21.26412692 | AI80: 21.04307774 | AJ80: 84.34270082
A81: 2036-37 | B81: 351.1529957 | C81: 286.9451377 | D81: 638.0981335 | H81: 2036-37 | I81: 80.29882868 | J81: 85.91531242 | K81: 166.2141411 | P81: 2036-37 | Q81: 22.2623921 | R81: 23.81953017 | S81: 46.08192227 | W81: 2035-36 | X81: 20.31383828 | Y81: 16.92819857 | Z81: 23.08390714 | AA81: 60.325944 | AB81: 60.325944 | AE81: Grand Total | AF81: 149.9134848 | AG81: 155.0578721 | AH81: 174.3405514 | AI81: 188.1001921 | AJ81: 667.4121004
A82: 2037-38 | B82: 343.1636941 | C82: 265.0969264 | D82: 608.2606205 | H82: 2037-38 | I82: 81.49295577 | J82: 89.16293502 | K82: 170.6558908 | P82: 2037-38 | Q82: 24.13392 | R82: 26.40536376 | S82: 50.53928376 | W82: 2036-37 | X82: 22.2623921 | Y82: 18.04021429 | Z82: 25.89931754 | AA82: 66.20192393 | AB82: 66.20192393
A83: 2038-39 | B83: 334.3637629 | C83: 239.7991162 | D83: 574.1628791 | H83: 2038-39 | I83: 82.78681558 | J83: 92.48345303 | K83: 175.2702686 | P83: 2038-39 | Q83: 26.31102675 | R83: 29.39277939 | S83: 55.70380614 | W83: 2037-38 | X83: 24.13392 | Y83: 18.96236571 | Z83: 28.85577391 | AA83: 71.95205963 | AB83: 71.95205963
A84: 2039-40 | B84: 324.7705557 | C84: 211.0244608 | D84: 535.7950165 | H84: 2039-40 | I84: 84.42300241 | J84: 95.75533575 | K84: 180.1783382 | P84: 2039-40 | Q84: 28.94927367 | R84: 32.83521482 | S84: 61.7844885 | W84: 2038-39 | X84: 26.31102675 | Y84: 19.97689068 | Z84: 32.49253304 | AA84: 78.78045047 | AB84: 78.78045047
A85: 2040-41 | B85: 314.1411689 | C85: 178.7544473 | D85: 492.8956162 | H85: 2040-41 | I85: 86.07401472 | J85: 98.91390142 | K85: 184.9879161 | P85: 2040-41 | Q85: 32.04531101 | R85: 36.82559417 | S85: 68.87090519 | W85: 2039-40 | X85: 28.94927367 | Y85: 21.15523845 | Z85: 37.16460809 | AA85: 87.26912022 | AB85: 87.26912022
A86: 2041-42 | B86: 302.3708569 | C86: 142.9800652 | D86: 445.3509221 | H86: 2041-42 | I86: 87.78715212 | J86: 97.33114067 | K86: 185.1182928 | P86: 2041-42 | Q86: 35.74715285 | R86: 39.6334894 | S86: 75.38064225 | W86: 2040-41 | X86: 32.04531101 | Y86: 22.43171771 | Z86: 43.13791867 | AA86: 97.61494739 | AB86: 97.61494739
A87: 2042-43 | B87: 289.3825378 | C87: 107.4967331 | D87: 396.8792709 | H87: 2042-43 | I87: 89.22573174 | J87: 97.74316898 | K87: 186.9689007 | P87: 2042-43 | Q87: 40.09152679 | R87: 43.91864097 | S87: 84.01016776 | W87: 2041-42 | X87: 35.74715285 | Y87: 23.83143524 | Z87: 51.06736122 | AA87: 110.6459493 | AB87: 110.6459493
A88: 2043-44 | B88: 275.3131707 | C88: 70.39746429 | D88: 345.710635 | H88: 2043-44 | I88: 90.72590417 | J88: 95.77921657 | K88: 186.5051207 | P88: 2043-44 | Q88: 45.46931717 | R88: 48.00189777 | S88: 93.47121494 | W88: 2042-43 | X88: 40.09152679 | Y88: 25.27509298 | Z88: 61.8433126 | AA88: 127.2099324 | AB88: 127.2099324
A89: 2044-45 | B89: 260.1169672 | C89: 34.6333954 | D89: 294.7503626 | H89: 2044-45 | I89: 92.61096869 | J89: 93.57220677 | K89: 186.1831755 | P89: 2044-45 | Q89: 52.4680672 | R89: 53.0126496 | S89: 105.4807168 | W89: 2043-44 | X89: 45.46931717 | Y89: 26.86823287 | Z89: 77.77646358 | AA89: 150.1140136 | AB89: 150.1140136
A90: 2045-46 | B90: 243.7466838 | C90: 4.689582056e-13 | D90: 243.7466838 | H90: 2045-46 | I90: 82.68862294 | J90: 7.113181306e-15 | K90: 82.68862294 | P90: Grand Total | Q90: 457.3914724 | R90: 488.9030321 | S90: 946.2945045 | W90: 2044-45 | X90: 52.4680672 | Y90: 28.73251299 | Z90: 104.0315125 | AA90: 185.2320927 | AB90: 185.2320927
A91: Grand Total | B91: 6754.481903 | C91: 5089.942435 | D91: 11844.42434 | H91: Grand Total | I91: 1570.182856 | J91: 1580.070863 | K91: 3150.253719 | W91: Grand Total | X91: 457.3914724 | Y91: 341.2464455 | Z91: 622.5844158 | AA91: 1421.222334 | AB91: 1421.222334
B93: =GETPIVOTDATA("Nom RAB",$A$69,"Depreciation","Base case","Year","2045-46")/GETPIVOTDATA("Nom RAB",$A$69,"Depreciation","Base case","Year","2026-27") -> 0.6399470094
B94: =GETPIVOTDATA("Nom RAB",$A$69,"Depreciation","Base case","Year","2045-46")/GETPIVOTDATA("Nom RAB",$A$69,"Depreciation","Base case","Year","2026-27")-1 -> -0.3600529906

Sheet Other charts
D1: 2026-27 | E1: 2027-28 | F1: 2028-29 | G1: 2029-30 | H1: 2030-31 | I1: 2031-32 | J1: 2032-33 | K1: 2033-34 | L1: 2034-35 | M1: 2035-36 | N1: 2036-37 | O1: 2037-38 | P1: 2038-39 | Q1: 2039-40 | R1: 2040-41 | S1: 2041-42 | T1: 2042-43 | U1: 2043-44 | V1: 2044-45 | W1: 2045-46
B2: Opening capital base ($m, nominal) | C2: Base case | D2: 380.88573 | E2: 380.9094575 | F2: 379.5725209 | G2: 376.8065492 | H2: 374.060232 | I2: 370.4201002 | J2: 367.670204 | K2: 365.7458004 | L2: 362.380652 | M2: 357.508263 | N2: 351.1529957 | O2: 343.1636941 | P2: 334.3637629 | Q2: 324.7705557 | R2: 314.1411689 | S2: 302.3708569 | T2: 289.3825378 | U2: 275.3131707 | V2: 260.1169672 | W2: 243.7466838
B3: Opening capital base ($m, nominal) | C3: Fully depreciated SL | D3: 380.88573 | E3: 379.8556558 | F3: 377.2300242 | G3: 372.9482571 | H3: 366.9117628 | I3: 359.0662779 | J3: 349.3472316 | K3: 337.3493797 | L3: 322.9987202 | M3: 306.2216489 | N3: 286.9451377 | O3: 265.0969264 | P3: 239.7991162 | Q3: 211.0244608 | R3: 178.7544473 | S3: 142.9800652 | T3: 107.4967331 | U3: 70.39746429 | V3: 34.6333954 | W3: 4.689582056e-13
B4: Opening capital base ($m, nominal) | C4: Fully depreciated SYD | D4: 380.88573 | E4: 361.3626513 | F4: 341.4255127 | G4: 321.1370228 | H4: 300.5286188 | I4: 279.6831016 | J4: 258.6803038 | K4: 237.2670401 | L4: 215.5293507 | M4: 193.5619974 | N4: 171.468995 | O4: 149.3641699 | P4: 126.5651352 | Q4: 103.2499753 | R4: 79.6157379 | S4: 55.87962764 | T4: 36.0743743 | U4: 18.54185588 | V4: 6.494102015 | W4: -4.174438573e-14
B5: Opening capital base ($m, nominal) | C5: Fully depreciated S-curve | D5: 380.88573 | E5: 350.7245365 | F5: 319.467267 | G5: 287.2795525 | H5: 254.3837108 | I5: 221.1968713 | J5: 188.3636701 | K5: 156.563603 | L5: 127.0973626 | M5: 101.3577974 | N5: 80.31852114 | O5: 64.03950983 | P5: 51.0673419 | Q5: 40.20409075 | R5: 30.34398577 | S5: 20.70257309 | T5: 13.37250031 | U5: 6.679164838 | V5: 2.339405222 | W5: 1.213251721e-12
B7: inflation index | C7: to $real 2025-26 | D7: ='Fully depreciate'!D229 -> 1.025 | E7: ='Fully depreciate'!E229 -> 1.050625 | F7: ='Fully depreciate'!F229 -> 1.076890625 | G7: ='Fully depreciate'!G229 -> 1.103812891 | H7: ='Fully depreciate'!H229 -> 1.131408213 | I7: ='Fully depreciate'!I229 -> 1.159693418 | J7: ='Fully depreciate'!J229 -> 1.188685754 | K7: ='Fully depreciate'!K229 -> 1.218402898 | L7: ='Fully depreciate'!L229 -> 1.24886297 | M7: ='Fully depreciate'!M229 -> 1.280084544 | N7: ='Fully depreciate'!N229 -> 1.312086658 | O7: ='Fully depreciate'!O229 -> 1.344888824 | P7: ='Fully depreciate'!P229 -> 1.378511045 | Q7: ='Fully depreciate'!Q229 -> 1.412973821 | R7: ='Fully depreciate'!R229 -> 1.448298166 | S7: ='Fully depreciate'!S229 -> 1.484505621 | T7: ='Fully depreciate'!T229 -> 1.521618261 | U7: ='Fully depreciate'!U229 -> 1.559658718 | V7: ='Fully depreciate'!V229 -> 1.598650186 | W7: ='Fully depreciate'!W229 -> 1.63861644
B8: Opening capital base ($m, 2025-26) | C8: Base case | D8: =D2/D$7 -> 371.5958342 | E8: =E2/E$7 -> 362.5551053 | F8: 352.4708193 | G8: 341.3681362 | H8: 330.6147399 | I8: 319.4120915 | J8: 309.3081606 | K8: 300.1846115 | L8: 290.1684658 | M8: 279.2848836 | N8: 267.6294235 | O8: 255.1613843 | P8: 242.5542865 | Q8: 229.8489547 | R8: 216.9036571 | S8: 203.6845484 | T8: 190.1807735 | U8: 176.5214195 | V8: 162.7103725 | W8: 148.7515186 | X8: =W8/D8-1 -> -0.5996954086
B9: Opening capital base ($m, 2025-26) | C9: Fully depreciated SL | D9: =D3/D$7 -> 371.5958342 | E9: 361.5520817 | F9: 350.2955783 | G9: 337.872714 | H9: 324.2965347 | I9: 309.6217261 | J9: 293.8936809 | K9: 276.8783465 | L9: 258.6342361 | M9: 239.2198627 | N9: 218.6937395 | O9: 197.1143797 | P9: 173.955165 | Q9: 149.3477499 | R9: 123.423789 | S9: 96.3149369 | T9: 70.64632164 | U9: 45.13645421 | V9: 21.66414874 | W9: 2.861915663e-13
B10: Opening capital base ($m, 2025-26) | C10: Fully depreciated SYD | D10: =D4/D$7 -> 371.5958342 | E10: 343.9501737 | F10: 317.04753 | G10: 290.9342928 | H10: 265.6235082 | I10: 241.1698619 | J10: 217.6187466 | K10: 194.7361095 | L10: 172.5804639 | M10: 151.210323 | N10: 130.6841998 | O10: 111.0606076 | P10: 91.81292794 | Q10: 73.07281549 | R10: 54.9719248 | S10: 37.64191045 | T10: 23.70790048 | U10: 11.88840589 | V10: 4.062240804 | W10: -2.547538564e-14
B11: Opening capital base ($m, 2025-26) | C11: Fully depreciated S-curve | D11: =D5/D$7 -> 371.5958342 | E11: 333.8246629 | F11: 296.657116 | G11: 260.2610958 | H11: 224.8381335 | I11: 190.7373689 | J11: 158.4638072 | K11: 128.4990403 | L11: 101.7704629 | M11: 79.18054932 | N11: 61.2143418 | O11: 47.61695441 | P11: 37.04529035 | Q11: 28.45352841 | R11: 20.95147703 | S11: 13.94576942 | T11: 8.788341101 | U11: 4.282452797 | V11: 1.463362806 | W11: 7.404122719e-13
N31: =M8/D8 -> 0.7515823859 | O31: =1-N31 -> 0.2484176141
N32: =M9/D9 -> 0.643763575 | O32: =1-N32 -> 0.356236425
N33: 0.4069214697 | O33: =1-N33 -> 0.5930785303
D35: 2026-27 | E35: 2027-28 | F35: 2028-29 | G35: 2029-30 | H35: 2030-31 | I35: 2031-32 | J35: 2032-33 | K35: 2033-34 | L35: 2034-35 | M35: 2035-36 | N35: 2036-37 | O35: 2037-38 | P35: 2038-39 | Q35: 2039-40 | R35: 2040-41 | S35: 2041-42 | T35: 2042-43 | U35: 2043-44 | V35: 2044-45
B36: Price ($/GJ, nominal) | C36: Base case | D36: 10.99540602 | E36: 11.82562474 | F36: 12.73330719 | G36: 13.39574657 | H36: 14.33204146 | I36: 14.92581842 | J36: 15.70280822 | K36: 17.07661615 | L36: 18.61227781 | M36: 20.31383828 | N36: 22.2623921 | O36: 24.13392 | P36: 26.31102675 | Q36: 28.94927367 | R36: 32.04531101 | S36: 35.74715285 | T36: 40.09152679 | U36: 45.46931717 | V36: 52.4680672
B37: Price ($/GJ, nominal) | C37: Fully depreciated SL | D37: 10.97418273 | E37: 11.62170795 | F37: 12.67136773 | G37: 13.32351033 | H37: 14.60384021 | I37: 15.37367514 | J37: 16.71011552 | K37: 18.19822989 | L37: 19.85958471 | M37: 21.72165787 | N37: 23.81953017 | O37: 26.40536376 | P37: 29.39277939 | Q37: 32.83521482 | R37: 36.82559417 | S37: 39.6334894 | T37: 43.91864097 | U37: 48.00189777 | V37: 53.0126496
B38: Price ($/GJ, nominal) | C38: Fully depreciated SYD | D38: 14.54873026 | E38: 14.9409451 | F38: 15.69231429 | G38: 16.0610176 | H38: 16.9989086 | I38: 17.35174957 | J38: 18.20232786 | K38: 19.13180033 | L38: 20.1486309 | M38: 21.26412692 | N38: 22.49313222 | O38: 24.01834143 | P38: 25.82360696 | Q38: 27.89877296 | R38: 30.27091043 | S38: 30.93309031 | T38: 32.46443319 | U38: 33.35407387 | V38: 34.55659766
B39: Price change | C39: =C75 -> 10.98130017 | D39: =D37/C39-1 -> -0.000648141672 | E39: =E37/D37-1 -> 0.05900441363 | F39: =F37/E37-1 -> 0.09031889173 | G39: 0.05146584108 | H39: 0.09609553721 | I39: 0.05271455466 | J39: 0.08693044177 | K39: 0.08905470315 | L39: 0.09129211039 | M39: 0.09376193855 | N39: 0.09657975092 | O39: 0.1085593867 | P39: 0.1131366967 | Q39: 0.1171184048 | R39: 0.1215274323 | S39: 0.07624847034 | T39: 0.1081194626 | U39: 0.09297320461 | V39: 0.1043865361
B40: Bill | C40: 382.6930647 | D40: =C40*(1+D39) -> 382.4450253 | E40: =D40*(1+E39) -> 405.0109698 | F40: =E40*(1+F39) -> 441.5911117 | G40: =F40*(1+G39) -> 464.3179697 | H40: =G40*(1+H39) -> 508.9368545 | I40: =H40*(1+I39) -> 535.7652341 | J40: =I40*(1+J39) -> 582.3395426 | K40: =J40*(1+K39) -> 634.1996177 | L40: =K40*(1+L39) -> 692.0970392 | M40: =L40*(1+M39) -> 756.9893992 | N40: =M40*(1+N39) -> 830.0992469 | O40: =N40*(1+O39) -> 920.214312 | P40: =O40*(1+P39) -> 1024.324319 | Q40: =P40*(1+Q39) -> 1144.29155 | R40: =Q40*(1+R39) -> 1283.354364 | S40: =R40*(1+S39) -> 1381.208171 | T40: =S40*(1+T39) -> 1530.543656 | U40: =T40*(1+U39) -> 1672.843205 | V40: =U40*(1+V39) -> 1847.465512
A42: =MAX(D36:V38) -> 53.0126496 | B42: Max primary | C42: 60
B43: Major unit | C43: 10
B44: Max secondary | C44: =ROUND(MAX(D40:V40)*C42/A42,0) -> 2091
B45: Major unit | C45: =C44*(C43/C42) -> 348.5
C46: =C44/C45 -> 6
B48: Max primary | C48: 35
B49: Major unit | C49: 5
B50: Max secondary | C50: =C44*(C48/C42) -> 1219.75
B51: Major unit | C51: =C50*(C49/C48) -> 174.25
C52: =C50/C51 -> 7
D73: =D75/C75-1 -> 0.001284533309
C74: 2025-26 | D74: 2026-27 | E74: 2027-28 | F74: 2028-29 | G74: 2029-30 | H74: 2030-31 | I74: 2031-32 | J74: 2032-33 | K74: 2033-34 | L74: 2034-35 | M74: 2035-36 | N74: 2036-37 | O74: 2037-38 | P74: 2038-39 | Q74: 2039-40 | R74: 2040-41 | S74: 2041-42 | T74: 2042-43 | U74: 2043-44 | V74: 2044-45
A75: Price ($/GJ, nominal) | B75: Base case - Decline to 25% | C75: =OutputDB!$P$1 -> 10.98130017 | D75: 10.99540602 | E75: 11.82562474 | F75: 12.73330719 | G75: 13.39574657 | H75: 14.33204146 | I75: 14.92581842 | J75: 15.70280822 | K75: 17.07661615 | L75: 18.61227781 | M75: 20.31383828 | N75: 22.2623921 | O75: 24.13392 | P75: 26.31102675 | Q75: 28.94927367 | R75: 32.04531101 | S75: 35.74715285 | T75: 40.09152679 | U75: 45.46931717 | V75: 52.4680672 | W75: 53.87362997
A76: Price ($/GJ, nominal) | B76: Base case - Decline to 50% | C76: =OutputDB!$P$1 -> 10.98130017 | D76: 10.85443927 | E76: 11.51442409 | F76: 12.21709203 | G76: 12.65153843 | H76: 13.30832421 | I76: 13.60883444 | J76: 14.03735886 | K76: 14.94203913 | L76: 15.91049554 | M76: 16.92819857 | N76: 18.04021429 | O76: 18.96236571 | P76: 19.97689068 | Q76: 21.15523845 | R76: 22.43171771 | S76: 23.83143524 | T76: 25.27509298 | U76: 26.86823287 | V76: 28.73251299 | W76: 26.93681499
A77: Price ($/GJ, nominal) | B77: Base case - Decline to 10% | C77: =OutputDB!$P$1 -> 10.98130017 | D77: 11.08175737 | E77: 12.02055262 | F77: 13.06452038 | G77: 13.88583486 | H77: 15.02552733 | I77: 15.84590312 | J77: 16.90630812 | K77: 18.67754891 | L77: 20.7237547 | M77: 23.08390714 | N77: 25.89931754 | O77: 28.85577391 | P77: 32.49253304 | Q77: 37.16460809 | R77: 43.13791867 | S77: 51.06736122 | T77: 61.8433126 | U77: 77.77646358 | V77: 104.0315125 | W77: 134.6840749
B78: Price change | D78: =D77/C77-1 -> 0.009148024409 | E78: =E77/D77-1 -> 0.08471537645 | F78: 0.08684856618 | G78: 0.06286602633 | H78: 0.08207590559 | I78: 0.05459880169 | J78: 0.06691982076 | K78: 0.1047680418 | L78: 0.1095542996 | M78: 0.1138863335 | N78: 0.1219642058 | O78: 0.1141519025 | P78: 0.1260322851 | Q78: 0.1437891915 | R78: 0.1607257787 | S78: 0.183816067 | T78: 0.2110144548 | U78: 0.2576374115 | V78: 0.3375706191
B79: Bill | C79: 382.6930647 | D79: =C79*(1+D78) -> 386.1939502 | E79: =D79*(1+E78) -> 418.910516 | F79: 455.2922937 | G79: 483.914711 | H79: 523.6324492 | I79: 552.2221534 | J79: 589.176761 | K79: 650.9036565 | L79: 722.2129507 | M79: 804.4631357 | N79: 902.5788431 | O79: 1005.609935 | P79: 1132.349253 | Q79: 1295.168837 | R79: 1503.335857 | S79: 1779.673141 | T79: 2155.209899 | U79: 2710.472599 | V79: 3625.448512
A81: =MAX(C75:V77) -> 104.0315125 | B81: Max primary | C81: 120
B82: Major unit | C82: 20
B83: Max secondary | C83: =ROUND(MAX(C79:V79)*C81/A81,0) -> 4182
B84: Major unit | C84: =C83*(C82/C81) -> 697
C85: =C83/C84 -> 6
A87: =MAX(C75:L77) -> 20.7237547 | C87: 25
C88: 5
C89: =ROUND(MAX(C79:L79)*C87/A87,0) -> 871
C90: =C89*(C88/C87) -> 174.2
C91: =C89/C90 -> 5
D101: =D103/C103-1 -> 0.01755063234
C102: 2025-26 | D102: 2026-27 | E102: 2027-28 | F102: 2028-29 | G102: 2029-30 | H102: 2030-31 | I102: 2031-32 | J102: 2032-33 | K102: 2033-34 | L102: 2034-35 | M102: 2035-36 | N102: 2036-37 | O102: 2037-38 | P102: 2038-39 | Q102: 2039-40 | R102: 2040-41 | S102: 2041-42 | T102: 2042-43 | U102: 2043-44 | V102: 2044-45
A103: Price ($/GJ, nominal) | B103: Full SL - Decline to 25% | C103: =OutputDB!$P$1 -> 10.98130017 | D103: 11.17402893 | E103: 12.0079375 | F103: 12.92057167 | G103: 13.92108505 | H103: 15.02043175 | I103: 16.23178098 | J103: 17.63442455 | K103: 19.19643055 | L103: 20.94068672 | M103: 22.89630982 | N103: 25.10043841 | O103: 27.80785406 | P103: 30.93556419 | Q103: 34.5414633 | R103: 38.72446094 | S103: 41.76411865 | T103: 46.33011632 | U103: 50.7608522 | V103: 56.20999468 | W103: 4.634408991e-15
A104: Price ($/GJ, nominal) | B104: Full SL - Decline to 50% | C104: =OutputDB!$P$1 -> 10.98130017 | D104: 11.03077215 | E104: 11.69193914 | F104: 12.39676471 | G104: 13.14769144 | H104: 13.94754377 | I104: 14.79956501 | J104: 15.7641068 | K104: 16.79687673 | L104: 17.90090961 | M104: 19.08025819 | N104: 20.34001044 | O104: 21.84902819 | P104: 23.48811355 | Q104: 25.24183857 | R104: 27.10712266 | S104: 27.84274577 | T104: 29.20811681 | U104: 29.99504903 | V104: 30.78166375 | W104: 2.317204495e-15
A105: Price ($/GJ, nominal) | B105: Full SL - Decline to 10% | C105: =OutputDB!$P$1 -> 10.98130017 | D105: 11.26178309 | E105: 12.20587054 | F105: 13.2566559 | G105: 14.43039304 | H105: 15.74722683 | I105: 17.23237021 | J105: 18.98596804 | K105: 20.99609591 | L105: 23.31631084 | M105: 26.01853389 | N105: 29.20100508 | O105: 33.24852116 | P105: 38.20355819 | Q105: 44.34377046 | R105: 52.12908203 | S105: 59.66302664 | T105: 71.4666688 | U105: 86.82777349 | V105: 111.4508515 | W105: 0
B106: Price change | D106: =D105/C105-1 -> 0.02554186768 | E106: =E105/D105-1 -> 0.08383108098 | F106: =F105/E105-1 -> 0.08608852313 | G106: =G105/F105-1 -> 0.0885394587 | H106: =H105/G105-1 -> 0.09125418748 | I106: =I105/H105-1 -> 0.09431142358 | J106: =J105/I105-1 -> 0.1017618473 | K106: =K105/J105-1 -> 0.1058743946 | L106: =L105/K105-1 -> 0.1105069693 | M106: =M105/L105-1 -> 0.1158941082 | N106: =N105/M105-1 -> 0.1223155465 | O106: =O105/N105-1 -> 0.1386087932 | P106: =P105/O105-1 -> 0.1490302984 | Q106: =Q105/P105-1 -> 0.1607235702 | R106: =R105/Q105-1 -> 0.1755671992 | S106: =S105/R105-1 -> 0.1445247895 | T106: =T105/S105-1 -> 0.1978384742 | U106: =U105/T105-1 -> 0.2149408242 | V106: =V105/U105-1 -> 0.2835852749
B107: Bill | C107: 382.6930647 | D107: =C107*(1+D106) -> 392.4677603 | E107: =D107*(1+E106) -> 425.3687569 | F107: =E107*(1+F106) -> 461.9881249 | G107: =F107*(1+G106) -> 502.8923035 | H107: =G107*(1+H106) -> 548.783332 | I107: =H107*(1+I106) -> 600.5398693 | J107: =I107*(1+J106) -> 661.6519158 | K107: =J107*(1+K106) -> 731.7039118 | L107: =K107*(1+L106) -> 812.5622935 | M107: =L107*(1+M106) -> 906.7334759 | N107: =M107*(1+N106) -> 1017.641077 | O107: =N107*(1+O106) -> 1158.695078 | P107: =O107*(1+P106) -> 1331.375751 | Q107: =P107*(1+Q106) -> 1545.359215 | R107: =Q107*(1+R106) -> 1816.673605 | S107: =R107*(1+S106) -> 2079.227975 | T107: =S107*(1+T106) -> 2490.579265 | U107: =T107*(1+U106) -> 3025.906425 | V107: =U107*(1+V106) -> 3884.00893
A109: =MAX(C103:V105) -> 111.4508515 | B109: Max primary | C109: 120
B110: Major unit | C110: 20
B111: Max secondary | C111: =ROUND(MAX(C107:V107)*C109/A109,0) -> 4182
B112: Major unit | C112: =C111*(C110/C109) -> 697
C113: =C111/C112 -> 6
C115: =C111*(25/120) -> 871.25
C116: =ROUND(C112*(25/120),0) -> 145
C117: =C116*6 -> 870
D128: =D130/C130-1 -> 0.343062864
C129: 2025-26 | D129: 2026-27 | E129: 2027-28 | F129: 2028-29 | G129: 2029-30 | H129: 2030-31 | I129: 2031-32 | J129: 2032-33 | K129: 2033-34 | L129: 2034-35 | M129: 2035-36 | N129: 2036-37 | O129: 2037-38 | P129: 2038-39 | Q129: 2039-40 | R129: 2040-41 | S129: 2041-42 | T129: 2042-43 | U129: 2043-44 | V129: 2044-45
A130: Price ($/GJ, nominal) | B130: Full SYD - Decline to 25% | C130: =OutputDB!$P$1 -> 10.98130017 | D130: 14.74857646 | E130: 15.34958001 | F130: 15.99311772 | G130: 16.6830945 | H130: 17.42423785 | I130: 18.22227587 | J130: 19.1475359 | K130: 20.1571901 | L130: 21.26075221 | M130: 22.47074341 | N130: 23.8034569 | O130: 25.48713034 | P130: 27.40444386 | Q130: 29.56810886 | R130: 32.01634359 | S130: 32.9452406 | T130: 34.90645165 | U130: 36.11308709 | V130: 37.75394274 | W130: 4.142880765e-15
A131: Price ($/GJ, nominal) | B131: Full SYD - Decline to 50% | C131: =OutputDB!$P$1 -> 10.98130017 | D131: 14.55949214 | E131: 14.94564369 | F131: 15.34474809 | G131: 15.75625592 | H131: 16.17964944 | I131: 16.614428 | J131: 17.11673664 | K131: 17.63754134 | L131: 18.17451399 | M131: 18.72561951 | N131: 19.28900818 | O131: 20.02560241 | P131: 20.80707774 | Q131: 21.60746417 | R131: 22.41144051 | S131: 21.96349373 | T131: 22.00624125 | U131: 21.33955146 | V131: 20.67477817 | W131: 2.071440382e-15
A132: Price ($/GJ, nominal) | B132: Full SYD - Decline to 10% | C132: =OutputDB!$P$1 -> 10.98130017 | D132: 14.86440297 | E132: 15.60259507 | F132: 16.40912368 | G132: 17.29345162 | H132: 18.26734614 | I132: 19.34556685 | J132: 20.61504777 | K132: 22.04692667 | L132: 23.67268629 | M132: 25.5349357 | N132: 27.69214045 | O132: 30.4737428 | P132: 33.84283729 | Q132: 37.95905868 | R132: 43.09892407 | S132: 47.06462942 | T132: 53.84505839 | U132: 61.77238582 | V132: 74.85695543 | W132: 0
B133: Price change | D133: =D132/C132-1 -> 0.3536104781 | E133: =E132/D132-1 -> 0.04966173839 | F133: =F132/E132-1 -> 0.05169195303 | G133: =G132/F132-1 -> 0.05389245398 | H133: =H132/G132-1 -> 0.05631579738 | I133: =I132/H132-1 -> 0.05902448566 | J133: =J132/I132-1 -> 0.06562128346 | K133: =K132/J132-1 -> 0.06945794717 | L133: =L132/K132-1 -> 0.07374087278 | M133: =M132/L132-1 -> 0.07866658599 | N133: =N132/M132-1 -> 0.08448052419 | O133: =O132/N132-1 -> 0.100447358 | P133: =P132/O132-1 -> 0.1105572925 | Q133: =Q132/P132-1 -> 0.12162755 | R133: =R132/Q132-1 -> 0.1354055018 | S133: =S132/R132-1 -> 0.09201402226 | T133: =T132/S132-1 -> 0.1440663413 | U133: =U132/T132-1 -> 0.1472247903 | V133: =V132/U132-1 -> 0.2118190747
B134: Bill | C134: 382.6930647 | D134: =C134*(1+D133) -> 518.0173422 | E134: =D134*(1+E133) -> 543.742984 | F134: =E134*(1+F133) -> 571.8501208 | G134: =F134*(1+G133) -> 602.6685271 | H134: =G134*(1+H133) -> 636.6082857 | I134: =H134*(1+I133) -> 674.1837624 | J134: =I134*(1+J133) -> 718.4245661 | K134: =J134*(1+K133) -> 768.3248617 | L134: =K134*(1+L133) -> 824.9818076 | M134: =L134*(1+M133) -> 889.8803099 | N134: =M134*(1+N133) -> 965.0578649 | O134: =N134*(1+O133) -> 1061.995378 | P134: =O134*(1+P133) -> 1179.406711 | Q134: =P134*(1+Q133) -> 1322.85506 | R134: =Q134*(1+R133) -> 1501.976913 | S134: =R134*(1+S133) -> 1640.179851 | T134: =S134*(1+T133) -> 1876.474561 | U134: =T134*(1+U133) -> 2152.738134 | V134: =U134*(1+V133) -> 2608.729134
A136: =MAX(C130:V132) -> 74.85695543 | B136: Max primary | C136: 120
B137: Major unit | C137: 20
B138: Max secondary | C138: =ROUND(MAX(C134:V134)*C136/A136,0) -> 4182
B139: Major unit | C139: =C138*(C137/C136) -> 697
C140: =C138/C139 -> 6
C159: 2025-26 | D159: 2026-27 | E159: 2027-28 | F159: 2028-29 | G159: 2029-30 | H159: 2030-31 | I159: 2031-32 | J159: 2032-33 | K159: 2033-34 | L159: 2034-35 | M159: 2035-36 | N159: 2036-37 | O159: 2037-38 | P159: 2038-39 | Q159: 2039-40 | R159: 2040-41 | S159: 2041-42 | T159: 2042-43 | U159: 2043-44 | V159: 2044-45
A160: Base case | B160: return on capital | D160: 15.29943688 | E160: 15.11347589 | F160: 14.89099427 | G160: 14.62984069 | H160: 14.38878101 | I160: 14.13167455 | J160: 13.93070825 | K160: 13.78377672 | L160: 13.60031122 | M160: 13.37806487 | N160: 13.11839875 | O160: 12.81557768 | P160: 12.502962 | Q160: 12.18147895 | R160: 11.84154088 | S160: 11.47904334 | T160: 10.7166147 | U160: 9.934467808 | V160: 9.132732711 | W160: 8.311574268
A161: Base case | B161: return of capital | D161: 11.06368061 | E161: 12.13372947 | F161: 13.26135758 | G161: 12.93010754 | H161: 13.5028193 | I161: 12.28273821 | J161: 11.11951074 | K161: 12.21557852 | L161: 13.37224688 | M161: 14.49981069 | N161: 15.77505388 | O161: 16.2247995 | P161: 16.65660896 | Q161: 17.33238299 | R161: 18.11574751 | S161: 18.98097247 | T161: 19.47186634 | U161: 19.95952268 | V161: 20.44307484 | W161: 10.90677373
A162: Base case | B162: Tax | D162: 0.4029701072 | E162: 0.5034877919 | F162: 0.6125039715 | G162: 0.5136658341 | H162: 0.5467243916 | I162: 0.3251935406 | J162: 0.546742503 | K162: 0.6645099519 | L162: 0.7888893041 | M162: 0.9181014769 | N162: 1.054492383 | O162: 0.914882845 | P162: 0.9180806502 | Q162: 1.046591776 | R162: 1.12168948 | S162: 1.223402576 | T162: 1.392079139 | U162: 1.535868586 | V162: 2.036574176 | W162: 0.7196824744
A163: Base case | B163: Opex | D163: 38.20819914 | E163: 39.16340412 | F163: 40.14248922 | G163: 41.14605145 | H163: 42.17470274 | I163: 43.22907031 | J163: 44.30979706 | K163: 45.41754199 | L163: 46.55298054 | M163: 47.71680505 | N163: 48.90972518 | O163: 50.13246831 | P163: 51.38578002 | Q163: 52.67042452 | R163: 53.98718513 | S163: 55.33686476 | T163: 56.72028638 | U163: 58.13829354 | V163: 59.59175087 | W163: 61.08154465
A164: Base case | B164: Total | D164: =SUM(D160:D163) -> 64.97428673 | E164: =SUM(E160:E163) -> 66.91409728 | F164: 68.90734504 | G164: 69.21966552 | H164: 70.61302744 | I164: 69.9686766 | J164: 69.90675855 | K164: 72.08140718 | L164: 74.31442795 | M164: 76.5127821 | N164: 78.8576702 | O164: 80.08772833 | P164: 81.46343162 | Q164: 83.23087823 | R164: 85.066163 | S164: 87.02028314 | T164: 88.30084655 | U164: 89.56815261 | V164: 91.2041326 | W164: 81.01957512
A166: Full SL | B166: return on capital | D166: 15.29943688 | E166: 15.25659248 | F166: 15.14997578 | G166: 14.97679106 | H166: 14.7341935 | I166: 14.41929082 | J166: 14.02914503 | K166: 13.54747886 | L166: 12.97132035 | M166: 12.29771359 | N166: 11.52372579 | O166: 10.64645504 | P166: 9.630638543 | Q166: 8.475182544 | R166: 7.179344133 | S166: 5.74276211 | T166: 4.317739903 | U166: 2.827696353 | V166: 1.391155943 | W166: 1.883713645e-14
A167: Full SL | B167: return of capital | D167: 11.02563955 | E167: 12.29514169 | F167: 13.61211364 | G167: 14.97686958 | H167: 16.38965214 | I167: 17.85062651 | J167: 19.69087559 | K167: 21.57811651 | L167: 23.51087523 | M167: 25.48746213 | N167: 27.50595821 | O167: 30.37081074 | P167: 33.23013639 | Q167: 36.0739282 | R167: 38.89136759 | S167: 37.88044601 | T167: 38.73793245 | U167: 36.60513872 | V167: 34.6333954 | W167: -1.172395514e-14
A168: Full SL | B168: Tax | D168: 1.30900774 | E168: 1.28562687 | F168: 1.299527715 | G168: 1.345985478 | H168: 1.420932669 | I168: 1.520863167 | J168: 1.59864821 | K168: 1.732829863 | L168: 1.9101989 | M168: 2.120552699 | N168: 2.355997267 | O168: 2.502936881 | P168: 2.839020499 | Q168: 3.253122607 | R168: 3.691410067 | S168: 3.331831831 | T168: 3.055688253 | U168: 3.427746328 | V168: 3.307036774 | W168: 0
A169: Full SL | B169: Opex | D169: 38.39572489 | E169: 39.35561801 | F169: 40.33950846 | G169: 41.34799617 | H169: 42.38169608 | I169: 43.44123848 | J169: 44.52726944 | K169: 45.64045118 | L169: 46.78146246 | M169: 47.95099902 | N169: 49.14977399 | O169: 50.37851834 | P169: 51.6379813 | Q169: 52.92893083 | R169: 54.25215411 | S169: 55.60845796 | T169: 56.99866941 | U169: 58.42363614 | V169: 59.88422705 | W169: 0
A170: Full SL | B170: Total | D170: =SUM(D166:D169) -> 66.02980906 | E170: =SUM(E166:E169) -> 68.19297905 | F170: 70.4011256 | G170: 72.6476423 | H170: 74.92647439 | I170: 77.23201897 | J170: 79.84593828 | K170: 82.49887641 | L170: 85.17385694 | M170: 87.85672744 | N170: 90.53545526 | O170: 93.898721 | P170: 97.33777673 | Q170: 100.7311642 | R170: 104.0142759 | S170: 102.5634979 | T170: 103.11003 | U170: 101.2842175 | V170: 99.21581516 | W170: 7.113181306e-15
A172: Full SYD | B172: return on capital | D172: 15.29943688 | E172: 14.51376455 | F172: 13.71177839 | G172: 12.89563483 | H172: 12.06771209 | I172: 11.23062345 | J172: 10.38723138 | K172: 9.527366479 | L172: 8.654485394 | M172: 7.772395121 | N172: 6.885274361 | O172: 5.997695945 | P172: 5.082250383 | Q172: 4.146091669 | R172: 3.19713554 | S172: 2.244107418 | T172: 1.448843055 | U172: 0.7447577046 | V172: 0.2608554116 | W172: 1.883713645e-14
A173: Full SL | B173: return of capital | D173: 29.51864408 | E173: 29.60664871 | F173: 29.61883645 | G173: 29.54877924 | H173: 29.3896845 | I173: 29.134378 | J173: 29.10628733 | K173: 28.96514634 | L173: 28.70115728 | M173: 28.30395342 | N173: 27.76257186 | O173: 27.87203532 | P173: 27.77064087 | Q173: 27.43815212 | R173: 26.85309573 | S173: 22.20236725 | T173: 19.17118207 | U173: 12.88882369 | V173: 6.494102015 | W173: -1.172395514e-14
A174: Full SL | B174: Tax | D174: 3.938795362 | E174: 3.69410832 | F174: 3.47257584 | G174: 3.268869628 | H174: 3.078296464 | I174: 2.896701512 | J174: 2.676283522 | K174: 2.494887497 | L174: 2.338581742 | M174: 2.196414897 | N174: 2.059717076 | O174: 1.814088597 | P174: 1.736345441 | Q174: 1.71449913 | R174: 1.693822563 | S174: 0.8513386979 | T174: 0.06738878243 | U174: 0 | V174: 0 | W174: 0
A175: Full SL | B175: Opex | D175: 38.39572489 | E175: 39.35561801 | F175: 40.33950846 | G175: 41.34799617 | H175: 42.38169608 | I175: 43.44123848 | J175: 44.52726944 | K175: 45.64045118 | L175: 46.78146246 | M175: 47.95099902 | N175: 49.14977399 | O175: 50.37851834 | P175: 51.6379813 | Q175: 52.92893083 | R175: 54.25215411 | S175: 55.60845796 | T175: 56.99866941 | U175: 58.42363614 | V175: 59.88422705 | W175: 0
A176: Full SL | B176: Total | D176: =SUM(D172:D175) -> 87.15260121 | E176: =SUM(E172:E175) -> 87.17013959 | F176: 87.14269914 | G176: 87.06127988 | H176: 86.91738913 | I176: 86.70294145 | J176: 86.69707168 | K176: 86.6278515 | L176: 86.47568687 | M176: 86.22376246 | N176: 85.85733729 | O176: 86.0623382 | P176: 86.227218 | Q176: 86.22767376 | R176: 85.99620794 | S176: 80.90627133 | T176: 77.68608332 | U176: 72.05721754 | V176: 66.63918447 | W176: 7.113181306e-15
